Workbook

Sheet CV Rotina <2A - procedência
E1: AO NASCER | I1: MENOR DE 1 ANO | U1: 1 ANO
A2: Regional | B2: Município | C2: ¹População < 1 ano e 1 ano anual | D2: ²População < 1 ano e 1 ano proporcional | E2: Doses Aplicadas HB < 30 dias | F2: Cobertura Vacinal HB até 30 dias | G2: Doses Aplicadas BCG | H2: Cobertura Vacinal BCG | I2: Doses Aplicadas Pentavalente | J2: Cobertura Vacinal Pentavalente | K2: Doses Aplicadas Poliomielite | L2: Cobertura Vacinal Poliomielite | M2: Doses Aplicadas Pneumo 10 | N2: Cobertura Vacinal Pneumo 10 | O2: Doses Aplicadas Rotavírus | P2: Cobertura Vacinal Rotavírus | Q2: Doses Aplicadas Meningo C | R2: Cobertura Vacinal Meningo C | S2: Doses Aplicadas Febre Amarela | T2: Cobertura Vacinal Febre Amarela | U2: Doses Aplicadas Hepatite A | V2: Cobertura Vacinal Hepatite A | W2: Doses Aplicadas de Tríplice Viral | X2: Cobertura Vacinal Tríplice Viral | Y2: Doses Aplicadas Varicela | Z2: Cobertura Varicela | AC2: VACINAS QUE ATINGIRAM A META DE CV | AD2: HOMOGENEIDADE ENTRE AS 10 VACINAS | AE2: VACINAS DO PQA-VS QUE ATINGIRAM A META DE CV | AF2: HOMOGENEIDADE ENTRE AS VACINAS DO PQA-VS
A3: Metropolitana | B3: Afonso Cláudio | C3: 374 | D3: 180 | E3: 143 | F3: =E3/D3 -> 0.7944444444 | G3: 158 | H3: =G3/D3 -> 0.8777777778 | I3: 175 | J3: =I3/D3 -> 0.9722222222 | K3: 173 | L3: =K3/D3 -> 0.9611111111 | M3: 178 | N3: =M3/D3 -> 0.9888888889 | O3: 180 | P3: =O3/D3 -> 1 | Q3: 179 | R3: =Q3/D3 -> 0.9944444444 | S3: 181 | T3: =S3/D3 -> 1.005555556 | U3: 204 | V3: =U3/D3 -> 1.133333333 | W3: 201 | X3: =W3/D3 -> 1.116666667 | Y3: 74 | Z3: =Y3/D3 -> 0.4111111111 | AC3: =cálculos1!P2 -> 8 | AD3: =AC3*0.1 -> 0.8 | AE3: =cálculos1!Q2 -> 4 | AF3: =AE3*0.25 -> 1 | AH3: LEGENDA / HOMOGENEIDADE PQA-VS
A4: Norte | B4: Água Doce do Norte | C4: 181 | D4: 107 | E4: 31 | F4: 0.2897196262 | G4: 47 | H4: 0.4392523364 | I4: 79 | J4: 0.738317757 | K4: 77 | L4: 0.7196261682 | M4: 86 | N4: 0.8037383178 | O4: 81 | P4: 0.7570093458 | Q4: 78 | R4: 0.7289719626 | S4: 66 | T4: 0.6168224299 | U4: 75 | V4: 0.7009345794 | W4: 72 | X4: 0.6728971963 | Y4: 28 | Z4: 0.261682243 | AC4: =cálculos1!P3 -> 0 | AD4: =AC4*0.1 -> 0 | AE4: =cálculos1!Q3 -> 0 | AF4: =AE4*0.25 -> 0 | AH4: PERCENTUAL | AI4: Nº DE MUNICÍPIOS
A5: Central | B5: Águia Branca | C5: 167 | D5: 82 | E5: 34 | F5: 0.4146341463 | G5: 46 | H5: 0.5609756098 | I5: 85 | J5: 1.036585366 | K5: 84 | L5: 1.024390244 | M5: 74 | N5: 0.9024390244 | O5: 74 | P5: 0.9024390244 | Q5: 85 | R5: 1.036585366 | S5: 73 | T5: 0.8902439024 | U5: 55 | V5: 0.6707317073 | W5: 58 | X5: 0.7073170732 | Y5: 23 | Z5: 0.2804878049 | AC5: =cálculos1!P4 -> 4 | AD5: 0.4 | AE5: =cálculos1!Q4 -> 2 | AF5: 0.5 | AH5: 0 | AI5: =COUNTIF($AF$3:$AF$80,"=0") -> 31
A6: Sul | B6: Alegre | C6: 335 | D6: 164 | E6: 86 | F6: 0.5243902439 | G6: 108 | H6: 0.6585365854 | I6: 171 | J6: 1.042682927 | K6: 175 | L6: 1.067073171 | M6: 155 | N6: 0.9451219512 | O6: 151 | P6: 0.9207317073 | Q6: 172 | R6: 1.048780488 | S6: 156 | T6: 0.9512195122 | U6: 148 | V6: 0.9024390244 | W6: 158 | X6: 0.9634146341 | Y6: 55 | Z6: 0.3353658537 | AC6: =cálculos1!P5 -> 6 | AD6: 0.6 | AE6: =cálculos1!Q5 -> 3 | AF6: 0.75 | AH6: 0.25 | AI6: =COUNTIF($AF$3:$AF$80,"=0,25") -> 12
A7: Sul | B7: Alfredo Chaves | C7: 142 | D7: 66 | E7: 10 | F7: 0.1515151515 | G7: 35 | H7: 0.5303030303 | I7: 80 | J7: 1.212121212 | K7: 79 | L7: 1.196969697 | M7: 80 | N7: 1.212121212 | O7: 82 | P7: 1.242424242 | Q7: 88 | R7: 1.333333333 | S7: 70 | T7: 1.060606061 | U7: 71 | V7: 1.075757576 | W7: 77 | X7: 1.166666667 | Y7: 49 | Z7: 0.7424242424 | AC7: =cálculos1!P6 -> 8 | AD7: 0.8 | AE7: =cálculos1!Q6 -> 4 | AF7: 1 | AH7: 0.5 | AI7: =COUNTIF($AF$3:$AF$80,"=0,5") -> 6
A8: Central | B8: Alto Rio Novo | C8: 81 | D8: 36 | E8: 6 | F8: 0.1666666667 | G8: 18 | H8: 0.5 | I8: 46 | J8: 1.277777778 | K8: 45 | L8: 1.25 | M8: 44 | N8: 1.222222222 | O8: 45 | P8: 1.25 | Q8: 51 | R8: 1.416666667 | S8: 39 | T8: 1.083333333 | U8: 55 | V8: 1.527777778 | W8: 44 | X8: 1.222222222 | Y8: 22 | Z8: 0.6111111111 | AC8: =cálculos1!P7 -> 8 | AD8: 0.8 | AE8: =cálculos1!Q7 -> 4 | AF8: 1 | AH8: 0.75 | AI8: =COUNTIF($AF$3:$AF$80,"=0,75") -> 11
A9: Sul | B9: Anchieta | C9: 382 | D9: 194 | E9: 12 | F9: 0.0618556701 | G9: 111 | H9: 0.5721649485 | I9: 194 | J9: 1 | K9: 196 | L9: 1.010309278 | M9: 195 | N9: 1.005154639 | O9: 194 | P9: 1 | Q9: 197 | R9: 1.015463918 | S9: 154 | T9: 0.793814433 | U9: 186 | V9: 0.9587628866 | W9: 200 | X9: 1.030927835 | Y9: 85 | Z9: 0.4381443299 | AC9: =cálculos1!P8 -> 7 | AD9: 0.7 | AE9: =cálculos1!Q8 -> 4 | AF9: 1 | AH9: 1 | AI9: =COUNTIF($AF$3:$AF$80,"=1,0") -> 18
A10: Sul | B10: Apiacá | C10: 61 | D10: 45 | E10: 17 | F10: 0.3777777778 | G10: 28 | H10: 0.6222222222 | I10: 25 | J10: 0.5555555556 | K10: 26 | L10: 0.5777777778 | M10: 32 | N10: 0.7111111111 | O10: 31 | P10: 0.6888888889 | Q10: 29 | R10: 0.6444444444 | S10: 30 | T10: 0.6666666667 | U10: 22 | V10: 0.4888888889 | W10: 39 | X10: 0.8666666667 | Y10: 8 | Z10: 0.1777777778 | AC10: =cálculos1!P9 -> 0 | AD10: 0 | AE10: =cálculos1!Q9 -> 0 | AF10: 0
A11: Metropolitana | B11: Aracruz | C11: 1456 | D11: 765 | E11: 568 | F11: 0.7424836601 | G11: 694 | H11: 0.9071895425 | I11: 659 | J11: 0.8614379085 | K11: 656 | L11: 0.8575163399 | M11: 682 | N11: 0.891503268 | O11: 672 | P11: 0.8784313725 | Q11: 658 | R11: 0.860130719 | S11: 604 | T11: 0.7895424837 | U11: 763 | V11: 0.9973856209 | W11: 779 | X11: 1.018300654 | Y11: 386 | Z11: 0.5045751634 | AC11: =cálculos1!P10 -> 3 | AD11: 0.3 | AE11: =cálculos1!Q10 -> 1 | AF11: 0.25
A12: Sul | B12: Atilio Vivacqua | C12: 136 | D12: 73 | E12: 0 | F12: 0 | G12: 1 | H12: 0.01369863014 | I12: 66 | J12: 0.904109589 | K12: 65 | L12: 0.8904109589 | M12: 65 | N12: 0.8904109589 | O12: 64 | P12: 0.8767123288 | Q12: 64 | R12: 0.8767123288 | S12: 54 | T12: 0.7397260274 | U12: 74 | V12: 1.01369863 | W12: 85 | X12: 1.164383562 | Y12: 35 | Z12: 0.4794520548 | AC12: =cálculos1!P11 -> 2 | AD12: 0.2 | AE12: =cálculos1!Q11 -> 1 | AF12: 0.25 | AH12: LEGENDA / HOMOGENEIDADE 10 VACINAS
A13: Central | B13: Baixo Guandu | C13: 325 | D13: 181 | E13: 37 | F13: 0.2044198895 | G13: 101 | H13: 0.5580110497 | I13: 195 | J13: 1.077348066 | K13: 195 | L13: 1.077348066 | M13: 205 | N13: 1.132596685 | O13: 197 | P13: 1.08839779 | Q13: 201 | R13: 1.110497238 | S13: 150 | T13: 0.8287292818 | U13: 209 | V13: 1.154696133 | W13: 220 | X13: 1.215469613 | Y13: 96 | Z13: 0.5303867403 | AC13: =cálculos1!P12 -> 7 | AD13: 0.7 | AE13: =cálculos1!Q12 -> 4 | AF13: 1 | AH13: PERCENTUAL | AI13: Nº DE MUNICÍPIOS
A14: Norte | B14: Barra de São Francisco | C14: 564 | D14: 303 | E14: 162 | F14: 0.5346534653 | G14: 259 | H14: 0.8547854785 | I14: 255 | J14: 0.8415841584 | K14: 253 | L14: 0.8349834983 | M14: 266 | N14: 0.8778877888 | O14: 261 | P14: 0.8613861386 | Q14: 263 | R14: 0.8679867987 | S14: 245 | T14: 0.8085808581 | U14: 226 | V14: 0.7458745875 | W14: 287 | X14: 0.9471947195 | Y14: 149 | Z14: 0.4917491749 | AC14: =cálculos1!P13 -> 0 | AD14: 0 | AE14: =cálculos1!Q13 -> 0 | AF14: 0 | AH14: 0 | AI14: =COUNTIF($AD$3:$AD$80,"=0") -> 23
A15: Norte | B15: Boa Esperança | C15: 200 | D15: 104 | E15: 6 | F15: 0.05769230769 | G15: 38 | H15: 0.3653846154 | I15: 84 | J15: 0.8076923077 | K15: 91 | L15: 0.875 | M15: 91 | N15: 0.875 | O15: 95 | P15: 0.9134615385 | Q15: 92 | R15: 0.8846153846 | S15: 77 | T15: 0.7403846154 | U15: 80 | V15: 0.7692307692 | W15: 107 | X15: 1.028846154 | Y15: 57 | Z15: 0.5480769231 | AC15: =cálculos1!P14 -> 2 | AD15: 0.2 | AE15: =cálculos1!Q14 -> 1 | AF15: 0.25 | AH15: 0.1 | AI15: =COUNTIFS($AD$3:$AD$80,">=0,10",$AD$3:$AD$80,"<0,20") -> 11
A16: Sul | B16: Bom Jesus do Norte | C16: 68 | D16: 41 | E16: 22 | F16: 0.5365853659 | G16: 44 | H16: 1.073170732 | I16: 62 | J16: 1.512195122 | K16: 60 | L16: 1.463414634 | M16: 53 | N16: 1.292682927 | O16: 51 | P16: 1.243902439 | Q16: 56 | R16: 1.365853659 | S16: 50 | T16: 1.219512195 | U16: 30 | V16: 0.7317073171 | W16: 76 | X16: 1.853658537 | Y16: 17 | Z16: 0.4146341463 | AC16: =cálculos1!P15 -> 8 | AD16: 0.8 | AE16: =cálculos1!Q15 -> 4 | AF16: 1 | AH16: 0.2 | AI16: =COUNTIFS($AD$3:$AD$80,">=0,20",$AD$3:$AD$80,"<0,30") -> 7
A17: Metropolitana | B17: Brejetuba | C17: 205 | D17: 112 | E17: 17 | F17: 0.1517857143 | G17: 81 | H17: 0.7232142857 | I17: 95 | J17: 0.8482142857 | K17: 95 | L17: 0.8482142857 | M17: 101 | N17: 0.9017857143 | O17: 106 | P17: 0.9464285714 | Q17: 95 | R17: 0.8482142857 | S17: 97 | T17: 0.8660714286 | U17: 83 | V17: 0.7410714286 | W17: 98 | X17: 0.875 | Y17: 43 | Z17: 0.3839285714 | AC17: =cálculos1!P16 -> 1 | AD17: 0.1 | AE17: =cálculos1!Q16 -> 0 | AF17: 0 | AH17: 0.3 | AI17: =COUNTIFS($AD$3:$AD$80,">=0,30",$AD$3:$AD$80,"<0,40") -> 6
A18: Sul | B18: Cachoeiro de Itapemirim | C18: 2481 | D18: 1354 | E18: 2218 | F18: 1.638109306 | G18: 2552 | H18: 1.88478582 | I18: 1058 | J18: 0.7813884786 | K18: 1044 | L18: 0.7710487445 | M18: 1089 | N18: 0.8042836041 | O18: 1057 | P18: 0.7806499261 | Q18: 1058 | R18: 0.7813884786 | S18: 833 | T18: 0.6152141802 | U18: 995 | V18: 0.734859675 | W18: 1172 | X18: 0.8655834564 | Y18: 414 | Z18: 0.305760709 | AC18: =cálculos1!P17 -> 1 | AD18: 0.1 | AE18: =cálculos1!Q17 -> 0 | AF18: 0 | AH18: 0.4 | AI18: =COUNTIFS($AD$3:$AD$80,">=0,40",$AD$3:$AD$80,"<0,50") -> 5
A19: Metropolitana | B19: Cariacica | C19: 4900 | D19: 2550 | E19: 1042 | F19: 0.408627451 | G19: 1270 | H19: 0.4980392157 | I19: 2061 | J19: 0.8082352941 | K19: 2035 | L19: 0.7980392157 | M19: 2138 | N19: 0.8384313725 | O19: 2044 | P19: 0.8015686275 | Q19: 2097 | R19: 0.8223529412 | S19: 1721 | T19: 0.6749019608 | U19: 1607 | V19: 0.6301960784 | W19: 2332 | X19: 0.9145098039 | Y19: 809 | Z19: 0.317254902 | AC19: =cálculos1!P18 -> 0 | AD19: 0 | AE19: =cálculos1!Q18 -> 0 | AF19: 0 | AH19: 0.5 | AI19: =COUNTIFS($AD$3:$AD$80,">=0,50",$AD$3:$AD$80,"<0,60") -> 4
A20: Sul | B20: Castelo | C20: 451 | D20: 235 | E20: 102 | F20: 0.4340425532 | G20: 130 | H20: 0.5531914894 | I20: 203 | J20: 0.8638297872 | K20: 203 | L20: 0.8638297872 | M20: 201 | N20: 0.8553191489 | O20: 197 | P20: 0.8382978723 | Q20: 195 | R20: 0.829787234 | S20: 185 | T20: 0.7872340426 | U20: 170 | V20: 0.7234042553 | W20: 244 | X20: 1.038297872 | Y20: 99 | Z20: 0.4212765957 | AC20: =cálculos1!P19 -> 1 | AD20: 0.1 | AE20: =cálculos1!Q19 -> 1 | AF20: 0.25 | AH20: 0.6 | AI20: =COUNTIFS($AD$3:$AD$80,">=0,60",$AD$3:$AD$80,"<0,70") -> 2
A21: Central | B21: Colatina | C21: 1544 | D21: 806 | E21: 1644 | F21: 2.039702233 | G21: 1715 | H21: 2.127791563 | I21: 697 | J21: 0.864764268 | K21: 688 | L21: 0.8535980149 | M21: 707 | N21: 0.8771712159 | O21: 688 | P21: 0.8535980149 | Q21: 675 | R21: 0.8374689826 | S21: 621 | T21: 0.770471464 | U21: 465 | V21: 0.5769230769 | W21: 736 | X21: 0.9131513648 | Y21: 307 | Z21: 0.3808933002 | AC21: =cálculos1!P20 -> 1 | AD21: 0.1 | AE21: =cálculos1!Q20 -> 0 | AF21: 0 | AH21: 0.7 | AI21: =COUNTIFS($AD$3:$AD$80,">=0,70",$AD$3:$AD$80,"<0,80") -> 9
A22: Norte | B22: Conceição da Barra | C22: 383 | D22: 197 | E22: 6 | F22: 0.03045685279 | G22: 14 | H22: 0.07106598985 | I22: 170 | J22: 0.8629441624 | K22: 172 | L22: 0.8730964467 | M22: 187 | N22: 0.9492385787 | O22: 184 | P22: 0.9340101523 | Q22: 180 | R22: 0.9137055838 | S22: 164 | T22: 0.8324873096 | U22: 146 | V22: 0.7411167513 | W22: 184 | X22: 0.9340101523 | Y22: 88 | Z22: 0.4467005076 | AC22: =cálculos1!P21 -> 1 | AD22: 0.1 | AE22: =cálculos1!Q21 -> 0 | AF22: 0 | AH22: 0.8 | AI22: =COUNTIFS($AD$3:$AD$80,">=0,80",$AD$3:$AD$80,"<0,90") -> 10
A23: Metropolitana | B23: Conceição do Castelo | C23: 162 | D23: 92 | E23: 0 | F23: 0 | G23: 0 | H23: 0 | I23: 66 | J23: 0.7173913043 | K23: 64 | L23: 0.6956521739 | M23: 71 | N23: 0.7717391304 | O23: 69 | P23: 0.75 | Q23: 61 | R23: 0.6630434783 | S23: 84 | T23: 0.9130434783 | U23: 70 | V23: 0.7608695652 | W23: 72 | X23: 0.7826086957 | Y23: 45 | Z23: 0.4891304348 | AC23: =cálculos1!P22 -> 0 | AD23: 0 | AE23: =cálculos1!Q22 -> 0 | AF23: 0 | AH23: 0.9 | AI23: =COUNTIFS($AD$3:$AD$80,">=0,90",$AD$3:$AD$80,"<1,0") -> 1
A24: Sul | B24: Divino de São Lourenço | C24: 69 | D24: 39 | E24: 28 | F24: 0.7179487179 | G24: 30 | H24: 0.7692307692 | I24: 38 | J24: 0.9743589744 | K24: 38 | L24: 0.9743589744 | M24: 40 | N24: 1.025641026 | O24: 40 | P24: 1.025641026 | Q24: 45 | R24: 1.153846154 | S24: 31 | T24: 0.7948717949 | U24: 25 | V24: 0.641025641 | W24: 26 | X24: 0.6666666667 | Y24: 23 | Z24: 0.5897435897 | AC24: =cálculos1!P23 -> 5 | AD24: 0.5 | AE24: =cálculos1!Q23 -> 3 | AF24: 0.75 | AH24: 1 | AI24: =COUNTIF($AD$3:$AD$80,">=1,0") -> 0
A25: Metropolitana | B25: Domingos Martins | C25: 423 | D25: 226 | E25: 11 | F25: 0.04867256637 | G25: 42 | H25: 0.185840708 | I25: 186 | J25: 0.8230088496 | K25: 186 | L25: 0.8230088496 | M25: 206 | N25: 0.9115044248 | O25: 204 | P25: 0.9026548673 | Q25: 200 | R25: 0.8849557522 | S25: 166 | T25: 0.7345132743 | U25: 179 | V25: 0.7920353982 | W25: 220 | X25: 0.9734513274 | Y25: 144 | Z25: 0.6371681416 | AC25: =cálculos1!P24 -> 2 | AD25: 0.2 | AE25: =cálculos1!Q24 -> 1 | AF25: 0.25
A26: Sul | B26: Dores do Rio Preto | C26: 73 | D26: 42 | E26: 15 | F26: 0.3571428571 | G26: 34 | H26: 0.8095238095 | I26: 52 | J26: 1.238095238 | K26: 55 | L26: 1.30952381 | M26: 57 | N26: 1.357142857 | O26: 56 | P26: 1.333333333 | Q26: 53 | R26: 1.261904762 | S26: 48 | T26: 1.142857143 | U26: 41 | V26: 0.9761904762 | W26: 57 | X26: 1.357142857 | Y26: 18 | Z26: 0.4285714286 | AC26: =cálculos1!P25 -> 8 | AD26: 0.8 | AE26: =cálculos1!Q25 -> 4 | AF26: 1
A27: Norte | B27: Ecoporanga | C27: 269 | D27: 147 | E27: 59 | F27: 0.4013605442 | G27: 68 | H27: 0.462585034 | I27: 118 | J27: 0.8027210884 | K27: 117 | L27: 0.7959183673 | M27: 111 | N27: 0.7551020408 | O27: 110 | P27: 0.7482993197 | Q27: 104 | R27: 0.7074829932 | S27: 108 | T27: 0.7346938776 | U27: 117 | V27: 0.7959183673 | W27: 131 | X27: 0.8911564626 | Y27: 76 | Z27: 0.5170068027 | AC27: =cálculos1!P26 -> 0 | AD27: 0 | AE27: =cálculos1!Q26 -> 0 | AF27: 0
A28: Metropolitana | B28: Fundão | C28: 223 | D28: 121 | E28: 6 | F28: 0.04958677686 | G28: 49 | H28: 0.4049586777 | I28: 118 | J28: 0.9752066116 | K28: 117 | L28: 0.9669421488 | M28: 115 | N28: 0.9504132231 | O28: 116 | P28: 0.958677686 | Q28: 106 | R28: 0.8760330579 | S28: 99 | T28: 0.8181818182 | U28: 108 | V28: 0.8925619835 | W28: 94 | X28: 0.7768595041 | Y28: 66 | Z28: 0.5454545455 | AC28: =cálculos1!P27 -> 4 | AD28: 0.4 | AE28: =cálculos1!Q27 -> 3 | AF28: 0.75
A29: Central | B29: Governador Lindenberg | C29: 139 | D29: 71 | E29: 8 | F29: 0.1126760563 | G29: 15 | H29: 0.2112676056 | I29: 62 | J29: 0.8732394366 | K29: 59 | L29: 0.8309859155 | M29: 61 | N29: 0.8591549296 | O29: 62 | P29: 0.8732394366 | Q29: 60 | R29: 0.8450704225 | S29: 73 | T29: 1.028169014 | U29: 59 | V29: 0.8309859155 | W29: 77 | X29: 1.084507042 | Y29: 35 | Z29: 0.4929577465 | AC29: =cálculos1!P28 -> 2 | AD29: 0.2 | AE29: =cálculos1!Q28 -> 1 | AF29: 0.25
A30: Sul | B30: Guaçuí | C30: 415 | D30: 213 | E30: 69 | F30: 0.323943662 | G30: 108 | H30: 0.5070422535 | I30: 197 | J30: 0.9248826291 | K30: 191 | L30: 0.896713615 | M30: 184 | N30: 0.8638497653 | O30: 170 | P30: 0.7981220657 | Q30: 168 | R30: 0.7887323944 | S30: 151 | T30: 0.7089201878 | U30: 165 | V30: 0.7746478873 | W30: 207 | X30: 0.9718309859 | Y30: 79 | Z30: 0.3708920188 | AC30: =cálculos1!P29 -> 1 | AD30: 0.1 | AE30: =cálculos1!Q29 -> 1 | AF30: 0.25
A31: Metropolitana | B31: Guarapari | C31: 1752 | D31: 932 | E31: 487 | F31: 0.5225321888 | G31: 719 | H31: 0.7714592275 | I31: 713 | J31: 0.7650214592 | K31: 691 | L31: 0.741416309 | M31: 756 | N31: 0.8111587983 | O31: 717 | P31: 0.7693133047 | Q31: 725 | R31: 0.7778969957 | S31: 549 | T31: 0.589055794 | U31: 678 | V31: 0.7274678112 | W31: 774 | X31: 0.830472103 | Y31: 392 | Z31: 0.4206008584 | AC31: =cálculos1!P30 -> 0 | AD31: 0 | AE31: =cálculos1!Q30 -> 0 | AF31: 0
A32: Metropolitana | B32: Ibatiba | C32: 285 | D32: 170 | E32: 74 | F32: 0.4352941176 | G32: 164 | H32: 0.9647058824 | I32: 181 | J32: 1.064705882 | K32: 182 | L32: 1.070588235 | M32: 182 | N32: 1.070588235 | O32: 173 | P32: 1.017647059 | Q32: 185 | R32: 1.088235294 | S32: 174 | T32: 1.023529412 | U32: 162 | V32: 0.9529411765 | W32: 189 | X32: 1.111764706 | Y32: 29 | Z32: 0.1705882353 | AC32: =cálculos1!P31 -> 9 | AD32: 0.9 | AE32: =cálculos1!Q31 -> 4 | AF32: 1
A33: Metropolitana | B33: Ibiraçu | C33: 155 | D33: 86 | E33: 18 | F33: 0.2093023256 | G33: 15 | H33: 0.1744186047 | I33: 59 | J33: 0.6860465116 | K33: 58 | L33: 0.6744186047 | M33: 62 | N33: 0.7209302326 | O33: 61 | P33: 0.7093023256 | Q33: 66 | R33: 0.7674418605 | S33: 67 | T33: 0.7790697674 | U33: 51 | V33: 0.5930232558 | W33: 74 | X33: 0.8604651163 | Y33: 29 | Z33: 0.3372093023 | AC33: =cálculos1!P32 -> 0 | AD33: 0 | AE33: =cálculos1!Q32 -> 0 | AF33: 0
A34: Sul | B34: Ibitirama | C34: 130 | D34: 65 | E34: 33 | F34: 0.5076923077 | G34: 39 | H34: 0.6 | I34: 63 | J34: 0.9692307692 | K34: 63 | L34: 0.9692307692 | M34: 58 | N34: 0.8923076923 | O34: 60 | P34: 0.9230769231 | Q34: 52 | R34: 0.8 | S34: 51 | T34: 0.7846153846 | U34: 62 | V34: 0.9538461538 | W34: 78 | X34: 1.2 | Y34: 37 | Z34: 0.5692307692 | AC34: =cálculos1!P33 -> 5 | AD34: 0.5 | AE34: =cálculos1!Q33 -> 3 | AF34: 0.75
A35: Sul | B35: Iconha | C35: 119 | D35: 61 | E35: 4 | F35: =E35/D35 -> 0.06557377049 | G35: 19 | H35: =G35/D35 -> 0.3114754098 | I35: 59 | J35: =I35/D35 -> 0.9672131148 | K35: 57 | L35: =K35/D35 -> 0.9344262295 | M35: 57 | N35: =M35/D35 -> 0.9344262295 | O35: 58 | P35: =O35/D35 -> 0.9508196721 | Q35: 57 | R35: =Q35/D35 -> 0.9344262295 | S35: 68 | T35: =S35/D35 -> 1.114754098 | U35: 71 | V35: =U35/D35 -> 1.163934426 | W35: 78 | X35: =W35/D35 -> 1.278688525 | Y35: 18 | Z35: =Y35/D35 -> 0.2950819672 | AC35: =cálculos1!P34 -> 5 | AD35: 0.5 | AE35: =cálculos1!Q34 -> 2 | AF35: 0.5
A36: Sul | B36: Irupi | C36: 149 | D36: 81 | E36: 46 | F36: 0.5679012346 | G36: 70 | H36: 0.8641975309 | I36: 105 | J36: 1.296296296 | K36: 104 | L36: 1.283950617 | M36: 116 | N36: 1.432098765 | O36: 113 | P36: 1.395061728 | Q36: 111 | R36: 1.37037037 | S36: 90 | T36: 1.111111111 | U36: 99 | V36: 1.222222222 | W36: 133 | X36: 1.641975309 | Y36: 23 | Z36: 0.2839506173 | AC36: =cálculos1!P35 -> 8 | AD36: 0.8 | AE36: =cálculos1!Q35 -> 4 | AF36: 1
A37: Metropolitana | B37: Itaguaçu | C37: 137 | D37: 78 | E37: 7 | F37: 0.08974358974 | G37: 53 | H37: 0.6794871795 | I37: 61 | J37: 0.7820512821 | K37: 61 | L37: 0.7820512821 | M37: 62 | N37: 0.7948717949 | O37: 62 | P37: 0.7948717949 | Q37: 62 | R37: 0.7948717949 | S37: 76 | T37: 0.9743589744 | U37: 76 | V37: 0.9743589744 | W37: 70 | X37: 0.8974358974 | Y37: 46 | Z37: 0.5897435897 | AC37: =cálculos1!P36 -> 2 | AD37: 0.2 | AE37: =cálculos1!Q36 -> 0 | AF37: 0
A38: Sul | B38: Itapemirim | C38: 540 | D38: 243 | E38: 427 | F38: 1.757201646 | G38: 136 | H38: 0.5596707819 | I38: 231 | J38: 0.950617284 | K38: 228 | L38: 0.9382716049 | M38: 251 | N38: 1.032921811 | O38: 230 | P38: 0.9465020576 | Q38: 224 | R38: 0.9218106996 | S38: 152 | T38: 0.6255144033 | U38: 210 | V38: 0.8641975309 | W38: 249 | X38: 1.024691358 | Y38: 109 | Z38: 0.4485596708 | AC38: =cálculos1!P37 -> 4 | AD38: 0.4 | AE38: =cálculos1!Q37 -> 3 | AF38: 0.75
A39: Metropolitana | B39: Itarana | C39: 147 | D39: 85 | E39: 5 | F39: 0.05882352941 | G39: 63 | H39: 0.7411764706 | I39: 62 | J39: 0.7294117647 | K39: 62 | L39: 0.7294117647 | M39: 56 | N39: 0.6588235294 | O39: 62 | P39: 0.7294117647 | Q39: 54 | R39: 0.6352941176 | S39: 68 | T39: 0.8 | U39: 43 | V39: 0.5058823529 | W39: 69 | X39: 0.8117647059 | Y39: 38 | Z39: 0.4470588235 | AC39: =cálculos1!P38 -> 0 | AD39: 0 | AE39: =cálculos1!Q38 -> 0 | AF39: 0
A40: Sul | B40: Iúna | C40: 406 | D40: 186 | E40: 116 | F40: 0.623655914 | G40: 158 | H40: 0.8494623656 | I40: 239 | J40: 1.284946237 | K40: 237 | L40: 1.274193548 | M40: 216 | N40: 1.161290323 | O40: 213 | P40: 1.14516129 | Q40: 222 | R40: 1.193548387 | S40: 210 | T40: 1.129032258 | U40: 169 | V40: 0.9086021505 | W40: 215 | X40: 1.155913978 | Y40: 95 | Z40: 0.5107526882 | AC40: =cálculos1!P39 -> 7 | AD40: 0.7 | AE40: =cálculos1!Q39 -> 4 | AF40: 1
A41: Norte | B41: Jaguaré | C41: 510 | D41: 291 | E41: 163 | F41: 0.560137457 | G41: 192 | H41: 0.6597938144 | I41: 228 | J41: 0.7835051546 | K41: 233 | L41: 0.8006872852 | M41: 213 | N41: 0.7319587629 | O41: 211 | P41: 0.7250859107 | Q41: 215 | R41: 0.7388316151 | S41: 207 | T41: 0.7113402062 | U41: 173 | V41: 0.5945017182 | W41: 235 | X41: 0.8075601375 | Y41: 103 | Z41: 0.35395189 | AC41: =cálculos1!P40 -> 0 | AD41: 0 | AE41: =cálculos1!Q40 -> 0 | AF41: 0
A42: Sul | B42: Jerônimo Monteiro | C42: 161 | D42: 82 | E42: 7 | F42: 0.08536585366 | G42: 9 | H42: 0.1097560976 | I42: 84 | J42: 1.024390244 | K42: 85 | L42: 1.036585366 | M42: 74 | N42: 0.9024390244 | O42: 73 | P42: 0.8902439024 | Q42: 71 | R42: 0.8658536585 | S42: 79 | T42: 0.9634146341 | U42: 75 | V42: 0.9146341463 | W42: 74 | X42: 0.9024390244 | Y42: 19 | Z42: 0.2317073171 | AC42: =cálculos1!P41 -> 3 | AD42: 0.3 | AE42: =cálculos1!Q41 -> 2 | AF42: 0.5
A43: Metropolitana | B43: João Neiva | C43: 172 | D43: 84 | E43: 15 | F43: 0.1785714286 | G43: 26 | H43: 0.3095238095 | I43: 86 | J43: 1.023809524 | K43: 85 | L43: 1.011904762 | M43: 80 | N43: 0.9523809524 | O43: 78 | P43: 0.9285714286 | Q43: 78 | R43: 0.9285714286 | S43: 89 | T43: 1.05952381 | U43: 80 | V43: 0.9523809524 | W43: 100 | X43: 1.19047619 | Y43: 32 | Z43: 0.380952381 | AC43: =cálculos1!P42 -> 7 | AD43: 0.7 | AE43: =cálculos1!Q42 -> 4 | AF43: 1
A44: Metropolitana | B44: Laranja da Terra | C44: 92 | D44: 48 | E44: 0 | F44: 0 | G44: 36 | H44: 0.75 | I44: 50 | J44: 1.041666667 | K44: 50 | L44: 1.041666667 | M44: 39 | N44: 0.8125 | O44: 38 | P44: 0.7916666667 | Q44: 49 | R44: 1.020833333 | S44: 64 | T44: 1.333333333 | U44: 62 | V44: 1.291666667 | W44: 75 | X44: 1.5625 | Y44: 55 | Z44: 1.145833333 | AC44: =cálculos1!P43 -> 7 | AD44: 0.7 | AE44: =cálculos1!Q43 -> 3 | AF44: 0.75
A45: Central | B45: Linhares | C45: 2598 | D45: 1358 | E45: 973 | F45: 0.7164948454 | G45: 1165 | H45: 0.8578792342 | I45: 1062 | J45: 0.7820324006 | K45: 1049 | L45: 0.7724594993 | M45: 1074 | N45: 0.7908689249 | O45: 1087 | P45: 0.8004418262 | Q45: 1074 | R45: 0.7908689249 | S45: 966 | T45: 0.7113402062 | U45: 904 | V45: 0.6656848306 | W45: 1098 | X45: 0.8085419735 | Y45: 473 | Z45: 0.3483063328 | AC45: =cálculos1!P44 -> 0 | AD45: 0 | AE45: =cálculos1!Q44 -> 0 | AF45: 0
A46: Central | B46: Mantenópolis | C46: 151 | D46: 83 | E46: 24 | F46: 0.2891566265 | G46: 39 | H46: 0.4698795181 | I46: 72 | J46: 0.8674698795 | K46: 76 | L46: 0.9156626506 | M46: 62 | N46: 0.7469879518 | O46: 59 | P46: 0.7108433735 | Q46: 64 | R46: 0.7710843373 | S46: 75 | T46: 0.9036144578 | U46: 66 | V46: 0.7951807229 | W46: 79 | X46: 0.9518072289 | Y46: 38 | Z46: 0.4578313253 | AC46: =cálculos1!P45 -> 1 | AD46: 0.1 | AE46: =cálculos1!Q45 -> 1 | AF46: 0.25
A47: Sul | B47: Marataízes | C47: 553 | D47: 297 | E47: 8 | F47: 0.02693602694 | G47: 127 | H47: 0.4276094276 | I47: 272 | J47: 0.9158249158 | K47: 271 | L47: 0.9124579125 | M47: 288 | N47: 0.9696969697 | O47: 281 | P47: 0.9461279461 | Q47: 267 | R47: 0.898989899 | S47: 203 | T47: 0.6835016835 | U47: 270 | V47: 0.9090909091 | W47: 294 | X47: 0.9898989899 | Y47: 116 | Z47: 0.3905723906 | AC47: =cálculos1!P46 -> 3 | AD47: 0.3 | AE47: =cálculos1!Q46 -> 2 | AF47: 0.5
A48: Metropolitana | B48: Marechal Floriano | C48: 224 | D48: 113 | E48: 18 | F48: 0.1592920354 | G48: 26 | H48: 0.2300884956 | I48: 97 | J48: 0.8584070796 | K48: 96 | L48: 0.8495575221 | M48: 113 | N48: 1 | O48: 110 | P48: 0.9734513274 | Q48: 107 | R48: 0.9469026549 | S48: 78 | T48: 0.6902654867 | U48: 106 | V48: 0.9380530973 | W48: 117 | X48: 1.03539823 | Y48: 75 | Z48: 0.6637168142 | AC48: =cálculos1!P47 -> 3 | AD48: 0.3 | AE48: =cálculos1!Q47 -> 2 | AF48: 0.5
A49: Central | B49: Marilândia | C49: 171 | D49: 83 | E49: 19 | F49: 0.2289156627 | G49: 35 | H49: 0.421686747 | I49: 69 | J49: 0.8313253012 | K49: 69 | L49: 0.8313253012 | M49: 61 | N49: 0.734939759 | O49: 69 | P49: 0.8313253012 | Q49: 72 | R49: 0.8674698795 | S49: 74 | T49: 0.8915662651 | U49: 64 | V49: 0.7710843373 | W49: 67 | X49: 0.8072289157 | Y49: 45 | Z49: 0.5421686747 | AC49: =cálculos1!P48 -> 0 | AD49: 0 | AE49: =cálculos1!Q48 -> 0 | AF49: 0
A50: Sul | B50: Mimoso do Sul | C50: 267 | D50: 139 | E50: 16 | F50: 0.1151079137 | G50: 20 | H50: 0.1438848921 | I50: 98 | J50: 0.7050359712 | K50: 97 | L50: 0.6978417266 | M50: 91 | N50: 0.654676259 | O50: 88 | P50: 0.6330935252 | Q50: 93 | R50: 0.6690647482 | S50: 95 | T50: 0.6834532374 | U50: 84 | V50: 0.6043165468 | W50: 110 | X50: 0.7913669065 | Y50: 57 | Z50: 0.4100719424 | AC50: =cálculos1!P49 -> 0 | AD50: 0 | AE50: =cálculos1!Q49 -> 0 | AF50: 0
A51: Norte | B51: Montanha | C51: 232 | D51: 113 | E51: 29 | F51: 0.2566371681 | G51: 41 | H51: 0.3628318584 | I51: 152 | J51: 1.345132743 | K51: 154 | L51: 1.362831858 | M51: 119 | N51: 1.053097345 | O51: 125 | P51: 1.10619469 | Q51: 130 | R51: 1.150442478 | S51: 143 | T51: 1.265486726 | U51: 129 | V51: 1.14159292 | W51: 132 | X51: 1.168141593 | Y51: 72 | Z51: 0.6371681416 | AC51: =cálculos1!P50 -> 8 | AD51: 0.8 | AE51: =cálculos1!Q50 -> 4 | AF51: 1
A52: Norte | B52: Mucurici | C52: 66 | D52: 31 | E52: 5 | F52: 0.1612903226 | G52: 6 | H52: 0.1935483871 | I52: 47 | J52: 1.516129032 | K52: 47 | L52: 1.516129032 | M52: 41 | N52: 1.322580645 | O52: 40 | P52: 1.290322581 | Q52: 43 | R52: 1.387096774 | S52: 46 | T52: 1.483870968 | U52: 26 | V52: 0.8387096774 | W52: 45 | X52: 1.451612903 | Y52: 17 | Z52: 0.5483870968 | AC52: =cálculos1!P51 -> 7 | AD52: 0.7 | AE52: =cálculos1!Q51 -> 4 | AF52: 1
A53: Sul | B53: Muniz Freire | C53: 204 | D53: 103 | E53: 57 | F53: 0.5533980583 | G53: 76 | H53: 0.7378640777 | I53: 113 | J53: 1.097087379 | K53: 108 | L53: 1.048543689 | M53: 112 | N53: 1.087378641 | O53: 114 | P53: 1.106796117 | Q53: 113 | R53: 1.097087379 | S53: 116 | T53: 1.126213592 | U53: 106 | V53: 1.029126214 | W53: 133 | X53: 1.291262136 | Y53: 50 | Z53: 0.4854368932 | AC53: =cálculos1!P52 -> 8 | AD53: 0.8 | AE53: =cálculos1!Q52 -> 4 | AF53: 1
A54: Sul | B54: Muqui | C54: 164 | D54: 78 | E54: 2 | F54: 0.02564102564 | G54: 9 | H54: 0.1153846154 | I54: 90 | J54: 1.153846154 | K54: 91 | L54: 1.166666667 | M54: 68 | N54: 0.8717948718 | O54: 68 | P54: 0.8717948718 | Q54: 80 | R54: 1.025641026 | S54: 83 | T54: 1.064102564 | U54: 65 | V54: 0.8333333333 | W54: 72 | X54: 0.9230769231 | Y54: 37 | Z54: 0.4743589744 | AC54: =cálculos1!P53 -> 4 | AD54: 0.4 | AE54: =cálculos1!Q53 -> 2 | AF54: 0.5
A55: Norte | B55: Nova Venécia | C55: 678 | D55: 374 | E55: 34 | F55: 0.09090909091 | G55: 198 | H55: 0.5294117647 | I55: 312 | J55: 0.8342245989 | K55: 314 | L55: 0.8395721925 | M55: 293 | N55: 0.7834224599 | O55: 292 | P55: 0.7807486631 | Q55: 307 | R55: 0.820855615 | S55: 321 | T55: 0.8582887701 | U55: 291 | V55: 0.7780748663 | W55: 353 | X55: 0.9438502674 | Y55: 166 | Z55: 0.4438502674 | AC55: =cálculos1!P54 -> 0 | AD55: 0 | AE55: =cálculos1!Q54 -> 0 | AF55: 0
A56: Central | B56: Pancas | C56: 217 | D56: 106 | E56: 18 | F56: 0.1698113208 | G56: 53 | H56: 0.5 | I56: 107 | J56: 1.009433962 | K56: 107 | L56: 1.009433962 | M56: 105 | N56: 0.9905660377 | O56: 101 | P56: 0.9528301887 | Q56: 104 | R56: 0.9811320755 | S56: 107 | T56: 1.009433962 | U56: 100 | V56: 0.9433962264 | W56: 92 | X56: 0.8679245283 | Y56: 73 | Z56: 0.6886792453 | AC56: =cálculos1!P55 -> 6 | AD56: 0.6 | AE56: =cálculos1!Q55 -> 3 | AF56: 0.75
A57: Norte | B57: Pedro Canário | C57: 305 | D57: 163 | E57: 11 | F57: 0.06748466258 | G57: 10 | H57: 0.06134969325 | I57: 165 | J57: 1.012269939 | K57: 164 | L57: 1.006134969 | M57: 146 | N57: 0.8957055215 | O57: 142 | P57: 0.8711656442 | Q57: 153 | R57: 0.9386503067 | S57: 144 | T57: 0.8834355828 | U57: 124 | V57: 0.7607361963 | W57: 185 | X57: 1.134969325 | Y57: 95 | Z57: 0.5828220859 | AC57: =cálculos1!P56 -> 3 | AD57: 0.3 | AE57: =cálculos1!Q56 -> 3 | AF57: 0.75
A58: Norte | B58: Pinheiros | C58: 325 | D58: 168 | E58: 6 | F58: 0.03571428571 | G58: 9 | H58: 0.05357142857 | I58: 166 | J58: 0.9880952381 | K58: 164 | L58: 0.9761904762 | M58: 162 | N58: 0.9642857143 | O58: 160 | P58: 0.9523809524 | Q58: 151 | R58: 0.8988095238 | S58: 144 | T58: 0.8571428571 | U58: 117 | V58: 0.6964285714 | W58: 155 | X58: 0.9226190476 | Y58: 50 | Z58: 0.2976190476 | AC58: =cálculos1!P57 -> 4 | AD58: 0.4 | AE58: =cálculos1!Q57 -> 3 | AF58: 0.75
A59: Sul | B59: Piúma | C59: 303 | D59: 151 | E59: 5 | F59: 0.03311258278 | G59: 94 | H59: 0.6225165563 | I59: 135 | J59: 0.8940397351 | K59: 134 | L59: 0.8874172185 | M59: 137 | N59: 0.9072847682 | O59: 126 | P59: 0.8344370861 | Q59: 122 | R59: 0.8079470199 | S59: 97 | T59: 0.642384106 | U59: 110 | V59: 0.7284768212 | W59: 140 | X59: 0.9271523179 | Y59: 58 | Z59: 0.3841059603 | AC59: =cálculos1!P58 -> 0 | AD59: 0 | AE59: =cálculos1!Q58 -> 0 | AF59: 0
A60: Norte | B60: Ponto Belo | C60: 75 | D60: 35 | E60: 8 | F60: 0.2285714286 | G60: 4 | H60: 0.1142857143 | I60: 34 | J60: 0.9714285714 | K60: 34 | L60: 0.9714285714 | M60: 33 | N60: 0.9428571429 | O60: 34 | P60: 0.9714285714 | Q60: 27 | R60: 0.7714285714 | S60: 39 | T60: 1.114285714 | U60: 23 | V60: 0.6571428571 | W60: 42 | X60: 1.2 | Y60: 18 | Z60: 0.5142857143 | AC60: =cálculos1!P59 -> 5 | AD60: 0.5 | AE60: =cálculos1!Q59 -> 3 | AF60: 0.75
A61: Sul | B61: Presidente Kennedy | C61: 196 | D61: 115 | E61: 3 | F61: 0.02608695652 | G61: 10 | H61: 0.08695652174 | I61: 73 | J61: 0.6347826087 | K61: 74 | L61: 0.6434782609 | M61: 79 | N61: 0.6869565217 | O61: 78 | P61: 0.6782608696 | Q61: 74 | R61: 0.6434782609 | S61: 80 | T61: 0.6956521739 | U61: 97 | V61: 0.8434782609 | W61: 122 | X61: 1.060869565 | Y61: 43 | Z61: 0.3739130435 | AC61: =cálculos1!P60 -> 1 | AD61: 0.1 | AE61: =cálculos1!Q60 -> 1 | AF61: 0.25
A62: Central | B62: Rio Bananal | C62: 301 | D62: 167 | E62: 35 | F62: 0.2095808383 | G62: 30 | H62: 0.1796407186 | I62: 143 | J62: 0.8562874251 | K62: 142 | L62: 0.8502994012 | M62: 130 | N62: 0.7784431138 | O62: 137 | P62: 0.8203592814 | Q62: 123 | R62: 0.7365269461 | S62: 152 | T62: 0.9101796407 | U62: 150 | V62: 0.8982035928 | W62: 165 | X62: 0.9880239521 | Y62: 76 | Z62: 0.4550898204 | AC62: =cálculos1!P61 -> 1 | AD62: 0.1 | AE62: =cálculos1!Q61 -> 1 | AF62: 0.25
A63: Sul | B63: Rio Novo do Sul | C63: 118 | D63: 56 | E63: 3 | F63: 0.05357142857 | G63: 22 | H63: 0.3928571429 | I63: 68 | J63: 1.214285714 | K63: 67 | L63: 1.196428571 | M63: 56 | N63: 1 | O63: 57 | P63: 1.017857143 | Q63: 60 | R63: 1.071428571 | S63: 52 | T63: 0.9285714286 | U63: 65 | V63: 1.160714286 | W63: 56 | X63: 1 | Y63: 40 | Z63: 0.7142857143 | AC63: =cálculos1!P62 -> 7 | AD63: 0.7 | AE63: =cálculos1!Q62 -> 4 | AF63: 1
A64: Metropolitana | B64: Santa Leopoldina | C64: 95 | D64: 38 | E64: 1 | F64: 0.02631578947 | G64: 14 | H64: 0.3684210526 | I64: 60 | J64: 1.578947368 | K64: 60 | L64: 1.578947368 | M64: 49 | N64: 1.289473684 | O64: 52 | P64: 1.368421053 | Q64: 58 | R64: 1.526315789 | S64: 52 | T64: 1.368421053 | U64: 66 | V64: 1.736842105 | W64: 66 | X64: 1.736842105 | Y64: 13 | Z64: 0.3421052632 | AC64: =cálculos1!P63 -> 8 | AD64: 0.8 | AE64: =cálculos1!Q63 -> 4 | AF64: 1
A65: Metropolitana | B65: Santa Maria de Jetibá | C65: 640 | D65: 319 | E65: 211 | F65: 0.6614420063 | G65: 260 | H65: 0.8150470219 | I65: 287 | J65: 0.8996865204 | K65: 287 | L65: 0.8996865204 | M65: 287 | N65: 0.8996865204 | O65: 293 | P65: 0.9184952978 | Q65: 290 | R65: 0.9090909091 | S65: 257 | T65: 0.8056426332 | U65: 326 | V65: 1.021943574 | W65: 344 | X65: 1.078369906 | Y65: 132 | Z65: 0.4137931034 | AC65: =cálculos1!P64 -> 3 | AD65: 0.3 | AE65: =cálculos1!Q64 -> 1 | AF65: 0.25
A66: Metropolitana | B66: Santa Teresa | C66: 306 | D66: 158 | E66: 276 | F66: 1.746835443 | G66: 116 | H66: 0.7341772152 | I66: 131 | J66: 0.8291139241 | K66: 132 | L66: 0.835443038 | M66: 146 | N66: 0.9240506329 | O66: 140 | P66: 0.8860759494 | Q66: 130 | R66: 0.8227848101 | S66: 114 | T66: 0.7215189873 | U66: 109 | V66: 0.6898734177 | W66: 131 | X66: 0.8291139241 | Y66: 84 | Z66: 0.5316455696 | AC66: =cálculos1!P65 -> 0 | AD66: 0 | AE66: =cálculos1!Q65 -> 0 | AF66: 0
A67: Central | B67: São Domingos do Norte | C67: 121 | D67: 65 | E67: 12 | F67: =E67/D67 -> 0.1846153846 | G67: 23 | H67: =G67/D67 -> 0.3538461538 | I67: 53 | J67: =I67/D67 -> 0.8153846154 | K67: 53 | L67: =K67/D67 -> 0.8153846154 | M67: 54 | N67: =M67/D67 -> 0.8307692308 | O67: 55 | P67: =O67/D67 -> 0.8461538462 | Q67: 55 | R67: =Q67/D67 -> 0.8461538462 | S67: 55 | T67: =S67/D67 -> 0.8461538462 | U67: 31 | V67: =U67/D67 -> 0.4769230769 | W67: 51 | X67: =W67/D67 -> 0.7846153846 | Y67: 24 | Z67: =Y67/D67 -> 0.3692307692 | AC67: =cálculos1!P66 -> 0 | AD67: 0 | AE67: =cálculos1!Q66 -> 0 | AF67: 0
A68: Central | B68: São Gabriel da Palha | C68: 457 | D68: 234 | E68: 57 | F68: 0.2435897436 | G68: 128 | H68: 0.547008547 | I68: 204 | J68: 0.8717948718 | K68: 206 | L68: 0.8803418803 | M68: 203 | N68: 0.8675213675 | O68: 197 | P68: 0.8418803419 | Q68: 198 | R68: 0.8461538462 | S68: 173 | T68: 0.7393162393 | U68: 164 | V68: 0.7008547009 | W68: 204 | X68: 0.8717948718 | Y68: 88 | Z68: 0.3760683761 | AC68: =cálculos1!P67 -> 0 | AD68: =AC68*0.1 -> 0 | AE68: =cálculos1!Q67 -> 0 | AF68: =AE68*0.25 -> 0
A69: Sul | B69: São José do Calçado | C69: 80 | D69: 44 | E69: 32 | F69: 0.7272727273 | G69: 38 | H69: 0.8636363636 | I69: 67 | J69: 1.522727273 | K69: 66 | L69: 1.5 | M69: 57 | N69: 1.295454545 | O69: 49 | P69: 1.113636364 | Q69: 59 | R69: 1.340909091 | S69: 49 | T69: 1.113636364 | U69: 51 | V69: 1.159090909 | W69: 63 | X69: 1.431818182 | Y69: 34 | Z69: 0.7727272727 | AC69: =cálculos1!P68 -> 8 | AD69: 0.8 | AE69: =cálculos1!Q68 -> 4 | AF69: 1
A70: Norte | B70: São Mateus | C70: 1923 | D70: 972 | E70: 1280 | F70: 1.316872428 | G70: 1481 | H70: 1.523662551 | I70: 861 | J70: 0.8858024691 | K70: 843 | L70: 0.8672839506 | M70: 854 | N70: 0.878600823 | O70: 796 | P70: 0.8189300412 | Q70: 802 | R70: 0.8251028807 | S70: 669 | T70: 0.6882716049 | U70: 715 | V70: 0.7355967078 | W70: 829 | X70: 0.8528806584 | Y70: 352 | Z70: 0.3621399177 | AC70: =cálculos1!P69 -> 1 | AD70: 0.1 | AE70: =cálculos1!Q69 -> 0 | AF70: 0
A71: Central | B71: São Roque do Canaã | C71: 130 | D71: 84 | E71: 22 | F71: 0.2619047619 | G71: 25 | H71: 0.2976190476 | I71: 49 | J71: 0.5833333333 | K71: 48 | L71: 0.5714285714 | M71: 50 | N71: 0.5952380952 | O71: 55 | P71: 0.6547619048 | Q71: 53 | R71: 0.630952381 | S71: 62 | T71: 0.7380952381 | U71: 57 | V71: 0.6785714286 | W71: 77 | X71: 0.9166666667 | Y71: 28 | Z71: 0.3333333333 | AC71: =cálculos1!P70 -> 0 | AD71: 0 | AE71: =cálculos1!Q70 -> 0 | AF71: 0
A72: Metropolitana | B72: Serra | C72: 7354 | D72: 3900 | E72: 3793 | F72: 0.9725641026 | G72: 4143 | H72: 1.062307692 | I72: 3045 | J72: 0.7807692308 | K72: 3018 | L72: 0.7738461538 | M72: 3105 | N72: 0.7961538462 | O72: 3017 | P72: 0.7735897436 | Q72: 2973 | R72: 0.7623076923 | S72: 2572 | T72: 0.6594871795 | U72: 1670 | V72: 0.4282051282 | W72: 3086 | X72: 0.7912820513 | Y72: 884 | Z72: 0.2266666667 | AC72: =cálculos1!P71 -> 1 | AD72: 0.1 | AE72: =cálculos1!Q71 -> 0 | AF72: 0
A73: Central | B73: Sooretama | C73: 442 | D73: 245 | E73: 14 | F73: 0.05714285714 | G73: 17 | H73: 0.0693877551 | I73: 187 | J73: 0.7632653061 | K73: 189 | L73: 0.7714285714 | M73: 188 | N73: 0.7673469388 | O73: 187 | P73: 0.7632653061 | Q73: 174 | R73: 0.7102040816 | S73: 189 | T73: 0.7714285714 | U73: 196 | V73: 0.8 | W73: 215 | X73: 0.8775510204 | Y73: 72 | Z73: 0.293877551 | AC73: =cálculos1!P72 -> 0 | AD73: 0 | AE73: =cálculos1!Q72 -> 0 | AF73: 0
A74: Sul | B74: Vargem Alta | C74: 264 | D74: 141 | E74: 3 | F74: 0.02127659574 | G74: 13 | H74: 0.09219858156 | I74: 108 | J74: 0.7659574468 | K74: 108 | L74: 0.7659574468 | M74: 111 | N74: 0.7872340426 | O74: 116 | P74: 0.8226950355 | Q74: 116 | R74: 0.8226950355 | S74: 102 | T74: 0.7234042553 | U74: 122 | V74: 0.865248227 | W74: 133 | X74: 0.9432624113 | Y74: 55 | Z74: 0.390070922 | AC74: =cálculos1!P73 -> 0 | AD74: 0 | AE74: =cálculos1!Q73 -> 0 | AF74: 0
A75: Metropolitana | B75: Venda Nova do Imigrante | C75: 400 | D75: 211 | E75: 18 | F75: 0.08530805687 | G75: 214 | H75: 1.014218009 | I75: 194 | J75: 0.9194312796 | K75: 194 | L75: 0.9194312796 | M75: 178 | N75: 0.8436018957 | O75: 173 | P75: 0.8199052133 | Q75: 182 | R75: 0.8625592417 | S75: 184 | T75: 0.8720379147 | U75: 142 | V75: 0.672985782 | W75: 208 | X75: 0.9857819905 | Y75: 66 | Z75: 0.3127962085 | AC75: =cálculos1!P74 -> 2 | AD75: 0.2 | AE75: =cálculos1!Q74 -> 1 | AF75: 0.25
A76: Metropolitana | B76: Viana | C76: 955 | D76: 495 | E76: 87 | F76: 0.1757575758 | G76: 94 | H76: 0.1898989899 | I76: 407 | J76: 0.8222222222 | K76: 396 | L76: 0.8 | M76: 441 | N76: 0.8909090909 | O76: 423 | P76: 0.8545454545 | Q76: 448 | R76: 0.9050505051 | S76: 326 | T76: 0.6585858586 | U76: 378 | V76: 0.7636363636 | W76: 466 | X76: 0.9414141414 | Y76: 136 | Z76: 0.2747474747 | AC76: =cálculos1!P75 -> 0 | AD76: 0 | AE76: =cálculos1!Q75 -> 0 | AF76: 0
A77: Norte | B77: Vila Pavão | C77: 86 | D77: 47 | E77: 11 | F77: 0.2340425532 | G77: 27 | H77: 0.5744680851 | I77: 46 | J77: 0.9787234043 | K77: 45 | L77: 0.9574468085 | M77: 45 | N77: 0.9574468085 | O77: 45 | P77: 0.9574468085 | Q77: 43 | R77: 0.914893617 | S77: 53 | T77: 1.127659574 | U77: 63 | V77: 1.340425532 | W77: 69 | X77: 1.468085106 | Y77: 29 | Z77: 0.6170212766 | AC77: =cálculos1!P76 -> 7 | AD77: 0.7 | AE77: =cálculos1!Q76 -> 4 | AF77: 1
A78: Central | B78: Vila Valério | C78: 249 | D78: 125 | E78: 12 | F78: 0.096 | G78: 34 | H78: 0.272 | I78: 106 | J78: 0.848 | K78: 100 | L78: 0.8 | M78: 108 | N78: 0.864 | O78: 113 | P78: 0.904 | Q78: 120 | R78: 0.96 | S78: 107 | T78: 0.856 | U78: 107 | V78: 0.856 | W78: 116 | X78: 0.928 | Y78: 53 | Z78: 0.424 | AC78: =cálculos1!P77 -> 2 | AD78: 0.2 | AE78: =cálculos1!Q77 -> 0 | AF78: 0
A79: Metropolitana | B79: Vila Velha | C79: 5702 | D79: 2920 | E79: 1873 | F79: 0.6414383562 | G79: 2169 | H79: 0.7428082192 | I79: 2268 | J79: 0.7767123288 | K79: 2264 | L79: 0.7753424658 | M79: 2324 | N79: 0.795890411 | O79: 2335 | P79: 0.7996575342 | Q79: 2313 | R79: 0.7921232877 | S79: 1957 | T79: 0.6702054795 | U79: 1970 | V79: 0.6746575342 | W79: 2465 | X79: 0.8441780822 | Y79: 881 | Z79: 0.3017123288 | AC79: =cálculos1!P78 -> 0 | AD79: 0 | AE79: =cálculos1!Q78 -> 0 | AF79: 0
A80: Metropolitana | B80: Vitória | C80: 3704 | D80: 1886 | E80: 2764 | F80: 1.465535525 | G80: 3547 | H80: 1.880699894 | I80: 1947 | J80: 1.032343584 | K80: 1948 | L80: 1.032873807 | M80: 1797 | N80: 0.9528101803 | O80: 1752 | P80: 0.9289501591 | Q80: 1837 | R80: 0.974019088 | S80: 1379 | T80: 0.7311770944 | U80: 1890 | V80: 1.002120891 | W80: 1790 | X80: 0.9490986214 | Y80: 835 | Z80: 0.4427359491 | AC80: =cálculos1!P79 -> 7 | AD80: 0.7 | AE80: =cálculos1!Q79 -> 3 | AF80: 0.75
B82: Total Norte | C82: =SUMIF($A$3:$A$80,"Norte",C$3:C$80) -> 5797 | D82: =SUMIF($A$3:$A$80,"Norte",D$3:D$80) -> 3052 | E82: =SUMIF($A$3:$A$80,"Norte",E$3:E$80) -> 1811 | F82: =E82/D82 -> 0.5933813893 | G82: =SUMIF($A$3:$A$80,"Norte",G$3:G$80) -> 2394 | H82: =G82/D82 -> 0.7844036697 | I82: =SUMIF($A$3:$A$80,"Norte",I$3:I$80) -> 2717 | J82: =I82/D82 -> 0.8902359109 | K82: =SUMIF($A$3:$A$80,"Norte",K$3:K$80) -> 2708 | L82: =K82/D82 -> 0.8872870249 | M82: =SUMIF($A$3:$A$80,"Norte",M$3:M$80) -> 2647 | N82: =M82/D82 -> 0.8673001311 | O82: =SUMIF($A$3:$A$80,"Norte",O$3:O$80) -> 2576 | P82: =O82/D82 -> 0.8440366972 | Q82: =SUMIF($A$3:$A$80,"Norte",Q$3:Q$80) -> 2588 | R82: =Q82/D82 -> 0.8479685452 | S82: =SUMIF($A$3:$A$80,"Norte",S$3:S$80) -> 2426 | T82: =S82/D82 -> 0.7948885976 | U82: =SUMIF($A$3:$A$80,"Norte",U$3:U$80) -> 2305 | V82: =U82/D82 -> 0.755242464 | W82: =SUMIF($A$3:$A$80,"Norte",W$3:W$80) -> 2826 | X82: =W82/D82 -> 0.9259501966 | Y82: =SUMIF($A$3:$A$80,"Norte",Y$3:Y$80) -> 1300 | Z82: =Y82/D82 -> 0.4259501966 | AC82: =cálculos1!P81 -> 0 | AD82: =AC82*0.1 -> 0 | AE82: =cálculos1!Q81 -> 0 | AF82: 0
B83: Total Central | C83: =SUMIF($A$3:$A$80,"Central",C$3:C$80) -> 7093 | D83: =SUMIF($A$3:$A$80,"Central",D$3:D$80) -> 3726 | E83: =SUMIF($A$3:$A$80,"Central",E$3:E$80) -> 2915 | F83: =E83/D83 -> 0.7823403113 | G83: =SUMIF($A$3:$A$80,"Central",G$3:G$80) -> 3444 | H83: =G83/D83 -> 0.92431562 | I83: =SUMIF($A$3:$A$80,"Central",I$3:I$80) -> 3137 | J83: =I83/D83 -> 0.8419216318 | K83: =SUMIF($A$3:$A$80,"Central",K$3:K$80) -> 3110 | L83: =K83/D83 -> 0.834675255 | M83: =SUMIF($A$3:$A$80,"Central",M$3:M$80) -> 3126 | N83: =M83/D83 -> 0.8389694042 | O83: =SUMIF($A$3:$A$80,"Central",O$3:O$80) -> 3126 | P83: =O83/D83 -> 0.8389694042 | Q83: =SUMIF($A$3:$A$80,"Central",Q$3:Q$80) -> 3109 | R83: =Q83/D83 -> 0.8344068706 | S83: =SUMIF($A$3:$A$80,"Central",S$3:S$80) -> 2916 | T83: =S83/D83 -> 0.7826086957 | U83: =SUMIF($A$3:$A$80,"Central",U$3:U$80) -> 2682 | V83: =U83/D83 -> 0.7198067633 | W83: =SUMIF($A$3:$A$80,"Central",W$3:W$80) -> 3299 | X83: =W83/D83 -> 0.8853998926 | Y83: =SUMIF($A$3:$A$80,"Central",Y$3:Y$80) -> 1453 | Z83: =Y83/D83 -> 0.3899624262 | AC83: =cálculos1!P82 -> 1 | AD83: =AC83*0.1 -> 0.1 | AE83: =cálculos1!Q82 -> 0 | AF83: 0
B84: Total Metropolitana | C84: =SUMIF($A$3:$A$80,"Metropolitana",C$3:C$80) -> 29863 | D84: =SUMIF($A$3:$A$80,"Metropolitana",D$3:D$80) -> 15569 | E84: =SUMIF($A$3:$A$80,"Metropolitana",E$3:E$80) -> 11434 | F84: =E84/D84 -> 0.7344081187 | G84: =SUMIF($A$3:$A$80,"Metropolitana",G$3:G$80) -> 13953 | H84: =G84/D84 -> 0.8962039951 | I84: =SUMIF($A$3:$A$80,"Metropolitana",I$3:I$80) -> 13008 | J84: =I84/D84 -> 0.8355064551 | K84: =SUMIF($A$3:$A$80,"Metropolitana",K$3:K$80) -> 12910 | L84: =K84/D84 -> 0.8292118954 | M84: =SUMIF($A$3:$A$80,"Metropolitana",M$3:M$80) -> 13168 | N84: =M84/D84 -> 0.8457832873 | O84: =SUMIF($A$3:$A$80,"Metropolitana",O$3:O$80) -> 12877 | P84: =O84/D84 -> 0.8270922988 | Q84: =SUMIF($A$3:$A$80,"Metropolitana",Q$3:Q$80) -> 12953 | R84: =Q84/D84 -> 0.8319737941 | S84: =SUMIF($A$3:$A$80,"Metropolitana",S$3:S$80) -> 10958 | T84: =S84/D84 -> 0.703834543 | U84: =SUMIF($A$3:$A$80,"Metropolitana",U$3:U$80) -> 10823 | V84: =U84/D84 -> 0.6951634659 | W84: =SUMIF($A$3:$A$80,"Metropolitana",W$3:W$80) -> 13820 | X84: =W84/D84 -> 0.8876613784 | Y84: =SUMIF($A$3:$A$80,"Metropolitana",Y$3:Y$80) -> 5294 | Z84: =Y84/D84 -> 0.3400346843 | AC84: =cálculos1!P83 -> 0 | AD84: 0 | AE84: =cálculos1!Q83 -> 0 | AF84: 0
B85: Total Sul | C85: =SUMIF($A$3:$A$80,"sul",C$3:C$80) -> 8267 | D85: =SUMIF($A$3:$A$80,"sul",D$3:D$80) -> 4308 | E85: =SUMIF($A$3:$A$80,"Sul",E$3:E$80) -> 3341 | F85: =E85/D85 -> 0.7755338904 | G85: =SUMIF($A$3:$A$80,"Sul",G$3:G$80) -> 4021 | H85: =G85/D85 -> 0.9333797586 | I85: =SUMIF($A$3:$A$80,"Sul",I$3:I$80) -> 3951 | J85: =I85/D85 -> 0.9171309192 | K85: =SUMIF($A$3:$A$80,"Sul",K$3:K$80) -> 3922 | L85: =K85/D85 -> 0.9103992572 | M85: =SUMIF($A$3:$A$80,"Sul",M$3:M$80) -> 3922 | N85: =M85/D85 -> 0.9103992572 | O85: =SUMIF($A$3:$A$80,"Sul",O$3:O$80) -> 3817 | P85: =O85/D85 -> 0.8860259981 | Q85: =SUMIF($A$3:$A$80,"Sul",Q$3:Q$80) -> 3846 | R85: =Q85/D85 -> 0.8927576602 | S85: =SUMIF($A$3:$A$80,"Sul",S$3:S$80) -> 3289 | T85: =S85/D85 -> 0.763463324 | U85: =SUMIF($A$3:$A$80,"Sul",U$3:U$80) -> 3583 | V85: =U85/D85 -> 0.8317084494 | W85: =SUMIF($A$3:$A$80,"Sul",W$3:W$80) -> 4291 | X85: =W85/D85 -> 0.9960538533 | Y85: =SUMIF($A$3:$A$80,"Sul",Y$3:Y$80) -> 1673 | Z85: =Y85/D85 -> 0.3883472609 | AC85: =cálculos1!P84 -> 2 | AD85: 0.2 | AE85: =cálculos1!Q84 -> 1 | AF85: 0.25
B86: Total Espírito Santo | C86: =SUM(C3:C80) -> 51020 | D86: =SUM(D3:D80) -> 26655 | E86: =SUM(E82:E85) -> 19501 | F86: =E86/D86 -> 0.7316075783 | G86: =SUM(G82:G85) -> 23812 | H86: =G86/D86 -> 0.8933408366 | I86: =SUM(I82:I85) -> 22813 | J86: =I86/D86 -> 0.8558619396 | K86: =SUM(K82:K85) -> 22650 | L86: =K86/D86 -> 0.8497467642 | M86: =SUM(M82:M85) -> 22863 | N86: =M86/D86 -> 0.8577377603 | O86: =SUM(O82:O85) -> 22396 | P86: =O86/D86 -> 0.8402175952 | Q86: =SUM(Q82:Q85) -> 22496 | R86: =Q86/D86 -> 0.8439692365 | S86: =SUM(S82:S85) -> 19589 | T86: =S86/D86 -> 0.7349090227 | U86: =SUM(U82:U85) -> 19393 | V86: =U86/D86 -> 0.7275558057 | W86: =SUM(W82:W85) -> 24236 | X86: =W86/D86 -> 0.9092477959 | Y86: =SUM(Y82:Y85) -> 9720 | Z86: =Y86/D86 -> 0.3646595385 | AC86: =cálculos1!P85 -> 0 | AD86: 0 | AE86: =cálculos1!Q85 -> 0 | AF86: 0
E87: =COUNTIF(F3:F80,">=0,95") -> 7 | G87: =COUNTIF(H3:H80,">=0,9") -> 9 | I87: =COUNTIF(J3:J80,">=0,95") -> 33 | K87: =COUNTIF(L3:L80,">=0,95") -> 31 | M87: =COUNTIF(N3:N80,">=0,95") -> 26 | O87: =COUNTIF(P3:P80,">=0,9") -> 37 | Q87: =COUNTIF(R3:R80,">=0,95") -> 24 | S87: =COUNTIF(T3:T80,">=0,95") -> 24 | U87: =COUNTIF(V3:V80,">=0,95") -> 23 | W87: =COUNTIF(X3:X80,">=0,95") -> 39 | Y87: =COUNTIF(Z3:Z80,">=0,95") -> 1
B88: HOMOGENEIDADE ENTRE MUNICÍPIOS | E88: =E87/78 -> 0.08974358974 | G88: =G87/78 -> 0.1153846154 | I88: =I87/78 -> 0.4230769231 | K88: =K87/78 -> 0.3974358974 | M88: =M87/78 -> 0.3333333333 | O88: =O87/78 -> 0.4743589744 | Q88: =Q87/78 -> 0.3076923077 | S88: =S87/78 -> 0.3076923077 | U88: =U87/78 -> 0.2948717949 | W88: =W87/78 -> 0.5 | Y88: =Y87/78 -> 0.01282051282
A90: FonteVacina e Confia, em 03 de Julho de 2024.**
A91: **Dados referente às doses aplicadas no período de Janeiro a Junho de 2024
A92: Cobertura Calculada por município de procedência da vacinação
A93: 1 População anual extraída do MS/SVS/DASIS - SINASC/DASIS/SVS/MS 2023 (hoje preliminares) referente ao período de março a dezembro de 2023 e SINASC/DASIS/SVS/MS 2024 referente ao período de janeiro a fevereiro de 2024.
A95: ² População proporcional extraída do MS/SVS/DASIS - SINASC/DASIS/SVS/MS 2023 (hoje preliminares) referente ao período de março e abril de 2023 somada a população extraída do SINASC/DASIS/SVS/MS 2024 referente ao período de janeiro e fevereiro de 2024.
A96: Sinasc, em 10 de Julho de 2024.
A97: Observações:
A98: Imunobiológicos que foram recebidos parcialmente pelo estado no mês da análise, sendo distribuídos em quantidades reduzidas às regionais e municípios: Varicela, Febre Amarela e HPV Quadrivalente.
A99: Imunobiológicos que não foram recebidos pelo estado no mês da análise, não sendo possível a distribuição às regionais e municípios: Meningo C, Hepatite A (CRIE), HIB, Hepatite A Rotina Pediátrica, DTPa (CRIE).
A100: Imunobiológicos com indisponibilidade de aquisição e distribuição no mês da análise: Tetra Viral.

Sheet CV Rotina <2A - residência
E1: AO NASCER | I1: MENOR DE 1 ANO | U1: 1 ANO
A2: Regional | B2: Município | C2: ¹População < 1 ano e 1 ano anual | D2: ²População < 1 ano e 1 ano proporcional | E2: Doses Aplicadas HB < 30 dias | F2: Cobertura Vacinal HB até 30 dias | G2: Doses Aplicadas BCG | H2: Cobertura Vacinal BCG | I2: Doses Aplicadas Pentavalente | J2: Cobertura Vacinal Pentavalente | K2: Doses Aplicadas Poliomielite | L2: Cobertura Vacinal Poliomielite | M2: Doses Aplicadas Pneumo 10 | N2: Cobertura Vacinal Pneumo 10 | O2: Doses Aplicadas Rotavírus | P2: Cobertura Vacinal Rotavírus | Q2: Doses Aplicadas Meningo C | R2: Cobertura Vacinal Meningo C | S2: Doses Aplicadas Febre Amarela | T2: Cobertura Vacinal Febre Amarela | U2: Doses Aplicadas Hepatite A | V2: Cobertura Vacinal Hepatite A | W2: Doses Aplicadas de Tríplice Viral | X2: Cobertura Vacinal Tríplice Viral | Y2: Doses Aplicadas Varicela | Z2: Cobertura Varicela | AC2: VACINAS QUE ATINGIRAM A META DE CV | AD2: HOMOGENEIDADE ENTRE AS 10 VACINAS | AE2: VACINAS DO PQA-VS QUE ATINGIRAM A META DE CV | AF2: HOMOGENEIDADE ENTRE AS VACINAS DO PQA-VS
A3: Metropolitana | B3: Afonso Cláudio | C3: 374 | D3: 180 | E3: 149 | F3: =E3/D3 -> 0.8277777778 | G3: 170 | H3: =G3/D3 -> 0.9444444444 | I3: 192 | J3: =I3/D3 -> 1.066666667 | K3: 190 | L3: =K3/D3 -> 1.055555556 | M3: 188 | N3: =M3/D3 -> 1.044444444 | O3: 189 | P3: =O3/D3 -> 1.05 | Q3: 190 | R3: =Q3/D3 -> 1.055555556 | S3: 198 | T3: =S3/D3 -> 1.1 | U3: 211 | V3: =U3/D3 -> 1.172222222 | W3: 215 | X3: =W3/D3 -> 1.194444444 | Y3: 81 | Z3: =Y3/D3 -> 0.45 | AC3: =cálculos2!P2 -> 9 | AD3: =AC3*0.1 -> 0.9 | AE3: =cálculos2!Q2 -> 4 | AF3: =AE3*0.25 -> 1 | AH3: LEGENDA / HOMOGENEIDADE PQA-VS
A4: Norte | B4: Água Doce do Norte | C4: 181 | D4: 107 | E4: 86 | F4: 0.8037383178 | G4: 112 | H4: =G4/D4 -> 1.046728972 | I4: 82 | J4: =I4/D4 -> 0.7663551402 | K4: 82 | L4: =K4/D4 -> 0.7663551402 | M4: 91 | N4: =M4/D4 -> 0.8504672897 | O4: 87 | P4: =O4/D4 -> 0.8130841121 | Q4: 86 | R4: =Q4/D4 -> 0.8037383178 | S4: 70 | T4: =S4/D4 -> 0.6542056075 | U4: 68 | V4: 0.6355140187 | W4: 70 | X4: 0.6542056075 | Y4: 23 | Z4: 0.214953271 | AC4: =cálculos2!P3 -> 1 | AD4: =AC4*0.1 -> 0.1 | AE4: =cálculos2!Q3 -> 0 | AF4: =AE4*0.25 -> 0 | AH4: PERCENTUAL | AI4: Nº DE MUNICÍPIOS
A5: Central | B5: Águia Branca | C5: 167 | D5: 82 | E5: 55 | F5: 0.6707317073 | G5: 79 | H5: 0.9634146341 | I5: 84 | J5: 1.024390244 | K5: 83 | L5: 1.012195122 | M5: 79 | N5: 0.9634146341 | O5: 77 | P5: 0.9390243902 | Q5: 80 | R5: 0.9756097561 | S5: 70 | T5: 0.8536585366 | U5: 59 | V5: 0.7195121951 | W5: 58 | X5: 0.7073170732 | Y5: 23 | Z5: 0.2804878049 | AC5: =cálculos2!P4 -> 6 | AD5: 0.6 | AE5: =cálculos2!Q4 -> 3 | AF5: 0.75 | AH5: 0 | AI5: =COUNTIF($AF$3:$AF$80,"=0") -> 32
A6: Sul | B6: Alegre | C6: 335 | D6: 164 | E6: 119 | F6: 0.7256097561 | G6: 146 | H6: 0.8902439024 | I6: 160 | J6: 0.9756097561 | K6: 164 | L6: 1 | M6: 150 | N6: 0.9146341463 | O6: 148 | P6: 0.9024390244 | Q6: 166 | R6: 1.012195122 | S6: 153 | T6: 0.9329268293 | U6: 143 | V6: 0.8719512195 | W6: 165 | X6: 1.006097561 | Y6: 53 | Z6: 0.3231707317 | AC6: =cálculos2!P5 -> 5 | AD6: 0.5 | AE6: =cálculos2!Q5 -> 3 | AF6: 0.75 | AH6: 0.25 | AI6: =COUNTIF($AF$3:$AF$80,"=0,25") -> 12
A7: Sul | B7: Alfredo Chaves | C7: 142 | D7: 66 | E7: 38 | F7: 0.5757575758 | G7: 52 | H7: 0.7878787879 | I7: 74 | J7: 1.121212121 | K7: 73 | L7: 1.106060606 | M7: 76 | N7: 1.151515152 | O7: 78 | P7: 1.181818182 | Q7: 83 | R7: 1.257575758 | S7: 73 | T7: 1.106060606 | U7: 59 | V7: 0.8939393939 | W7: 78 | X7: 1.181818182 | Y7: 42 | Z7: 0.6363636364 | AC7: =cálculos2!P6 -> 7 | AD7: 0.7 | AE7: =cálculos2!Q6 -> 4 | AF7: 1 | AH7: 0.5 | AI7: =COUNTIF($AF$3:$AF$80,"=0,5") -> 8
A8: Central | B8: Alto Rio Novo | C8: 81 | D8: 36 | E8: 30 | F8: 0.8333333333 | G8: 42 | H8: 1.166666667 | I8: 46 | J8: 1.277777778 | K8: 46 | L8: 1.277777778 | M8: 43 | N8: 1.194444444 | O8: 43 | P8: 1.194444444 | Q8: 47 | R8: 1.305555556 | S8: 36 | T8: 1 | U8: 44 | V8: 1.222222222 | W8: 43 | X8: 1.194444444 | Y8: 16 | Z8: 0.4444444444 | AC8: =cálculos2!P7 -> 9 | AD8: 0.9 | AE8: =cálculos2!Q7 -> 4 | AF8: 1 | AH8: 0.75 | AI8: =COUNTIF($AF$3:$AF$80,"=0,75") -> 7
A9: Sul | B9: Anchieta | C9: 382 | D9: 194 | E9: 145 | F9: 0.7474226804 | G9: 177 | H9: 0.912371134 | I9: 212 | J9: 1.092783505 | K9: 214 | L9: 1.103092784 | M9: 202 | N9: 1.041237113 | O9: 201 | P9: 1.036082474 | Q9: 207 | R9: 1.067010309 | S9: 167 | T9: 0.8608247423 | U9: 182 | V9: 0.9381443299 | W9: 209 | X9: 1.077319588 | Y9: 89 | Z9: 0.4587628866 | AC9: =cálculos2!P8 -> 7 | AD9: 0.7 | AE9: =cálculos2!Q8 -> 4 | AF9: 1 | AH9: 1 | AI9: =COUNTIF($AF$3:$AF$80,"=1,0") -> 19
A10: Sul | B10: Apiacá | C10: 61 | D10: 45 | E10: 21 | F10: 0.4666666667 | G10: 37 | H10: 0.8222222222 | I10: 26 | J10: 0.5777777778 | K10: 26 | L10: 0.5777777778 | M10: 30 | N10: 0.6666666667 | O10: 29 | P10: 0.6444444444 | Q10: 31 | R10: 0.6888888889 | S10: 27 | T10: 0.6 | U10: 18 | V10: 0.4 | W10: 35 | X10: 0.7777777778 | Y10: 6 | Z10: 0.1333333333 | AC10: =cálculos2!P9 -> 0 | AD10: 0 | AE10: =cálculos2!Q9 -> 0 | AF10: 0
A11: Metropolitana | B11: Aracruz | C11: 1456 | D11: 765 | E11: 604 | F11: 0.7895424837 | G11: 701 | H11: 0.9163398693 | I11: 644 | J11: 0.8418300654 | K11: 642 | L11: 0.8392156863 | M11: 677 | N11: 0.8849673203 | O11: 669 | P11: 0.8745098039 | Q11: 649 | R11: 0.8483660131 | S11: 580 | T11: 0.7581699346 | U11: 717 | V11: 0.937254902 | W11: 764 | X11: 0.9986928105 | Y11: 368 | Z11: 0.4810457516 | AC11: =cálculos2!P10 -> 2 | AD11: 0.2 | AE11: =cálculos2!Q10 -> 1 | AF11: 0.25
A12: Sul | B12: Atilio Vivacqua | C12: 136 | D12: 73 | E12: 55 | F12: 0.7534246575 | G12: 65 | H12: 0.8904109589 | I12: 64 | J12: 0.8767123288 | K12: 63 | L12: 0.8630136986 | M12: 62 | N12: 0.8493150685 | O12: 61 | P12: 0.8356164384 | Q12: 64 | R12: 0.8767123288 | S12: 45 | T12: 0.6164383562 | U12: 64 | V12: 0.8767123288 | W12: 78 | X12: 1.068493151 | Y12: 31 | Z12: 0.4246575342 | AC12: =cálculos2!P11 -> 1 | AD12: 0.1 | AE12: =cálculos2!Q11 -> 1 | AF12: 0.25 | AH12: LEGENDA / HOMOGENEIDADE 10 VACINAS
A13: Central | B13: Baixo Guandu | C13: 325 | D13: 181 | E13: 126 | F13: 0.6961325967 | G13: 186 | H13: 1.027624309 | I13: 189 | J13: 1.044198895 | K13: 189 | L13: 1.044198895 | M13: 195 | N13: 1.077348066 | O13: 190 | P13: 1.049723757 | Q13: 195 | R13: 1.077348066 | S13: 153 | T13: 0.8453038674 | U13: 206 | V13: 1.138121547 | W13: 215 | X13: 1.187845304 | Y13: 98 | Z13: 0.5414364641 | AC13: =cálculos2!P12 -> 8 | AD13: 0.8 | AE13: =cálculos2!Q12 -> 4 | AF13: 1 | AH13: PERCENTUAL | AI13: Nº DE MUNICÍPIOS
A14: Norte | B14: Barra de São Francisco | C14: 564 | D14: 303 | E14: 215 | F14: 0.7095709571 | G14: 267 | H14: 0.8811881188 | I14: 266 | J14: 0.8778877888 | K14: 261 | L14: 0.8613861386 | M14: 255 | N14: 0.8415841584 | O14: 248 | P14: 0.8184818482 | Q14: 263 | R14: 0.8679867987 | S14: 252 | T14: 0.8316831683 | U14: 231 | V14: 0.7623762376 | W14: 285 | X14: 0.9405940594 | Y14: 156 | Z14: 0.5148514851 | AC14: =cálculos2!P13 -> 0 | AD14: 0 | AE14: =cálculos2!Q13 -> 0 | AF14: 0 | AH14: 0 | AI14: =COUNTIF($AD$3:$AD$80,"=0") -> 21
A15: Norte | B15: Boa Esperança | C15: 200 | D15: 104 | E15: 51 | F15: 0.4903846154 | G15: 79 | H15: 0.7596153846 | I15: 85 | J15: 0.8173076923 | K15: 93 | L15: 0.8942307692 | M15: 100 | N15: 0.9615384615 | O15: 104 | P15: 1 | Q15: 96 | R15: 0.9230769231 | S15: 81 | T15: 0.7788461538 | U15: 78 | V15: 0.75 | W15: 108 | X15: 1.038461538 | Y15: 54 | Z15: 0.5192307692 | AC15: =cálculos2!P14 -> 3 | AD15: 0.3 | AE15: =cálculos2!Q14 -> 2 | AF15: 0.5 | AH15: 0.1 | AI15: =COUNTIFS($AD$3:$AD$80,">=0,10",$AD$3:$AD$80,"<0,20") -> 16
A16: Sul | B16: Bom Jesus do Norte | C16: 68 | D16: 41 | E16: 25 | F16: 0.6097560976 | G16: 37 | H16: 0.9024390244 | I16: 58 | J16: 1.414634146 | K16: 56 | L16: 1.365853659 | M16: 46 | N16: 1.12195122 | O16: 44 | P16: 1.073170732 | Q16: 47 | R16: 1.146341463 | S16: 48 | T16: 1.170731707 | U16: 14 | V16: 0.3414634146 | W16: 58 | X16: 1.414634146 | Y16: 5 | Z16: 0.1219512195 | AC16: =cálculos2!P15 -> 8 | AD16: 0.8 | AE16: =cálculos2!Q15 -> 4 | AF16: 1 | AH16: 0.2 | AI16: =COUNTIFS($AD$3:$AD$80,">=0,20",$AD$3:$AD$80,"<0,30") -> 4
A17: Metropolitana | B17: Brejetuba | C17: 205 | D17: 112 | E17: 32 | F17: 0.2857142857 | G17: 93 | H17: 0.8303571429 | I17: 92 | J17: 0.8214285714 | K17: 92 | L17: 0.8214285714 | M17: 95 | N17: 0.8482142857 | O17: 99 | P17: 0.8839285714 | Q17: 92 | R17: 0.8214285714 | S17: 93 | T17: 0.8303571429 | U17: 88 | V17: 0.7857142857 | W17: 98 | X17: 0.875 | Y17: 40 | Z17: 0.3571428571 | AC17: =cálculos2!P16 -> 0 | AD17: 0 | AE17: =cálculos2!Q16 -> 0 | AF17: 0 | AH17: 0.3 | AI17: =COUNTIFS($AD$3:$AD$80,">=0,30",$AD$3:$AD$80,"<0,40") -> 5
A18: Sul | B18: Cachoeiro de Itapemirim | C18: 2481 | D18: 1354 | E18: 1199 | F18: 0.8855243722 | G18: 1402 | H18: 1.035450517 | I18: 1042 | J18: 0.7695716396 | K18: 1027 | L18: 0.758493353 | M18: 1067 | N18: 0.7880354505 | O18: 1042 | P18: 0.7695716396 | Q18: 1029 | R18: 0.7599704579 | S18: 857 | T18: 0.6329394387 | U18: 1022 | V18: 0.7548005908 | W18: 1204 | X18: 0.8892171344 | Y18: 426 | Z18: 0.3146233383 | AC18: =cálculos2!P17 -> 1 | AD18: 0.1 | AE18: =cálculos2!Q17 -> 0 | AF18: 0 | AH18: 0.4 | AI18: =COUNTIFS($AD$3:$AD$80,">=0,40",$AD$3:$AD$80,"<0,50") -> 5
A19: Metropolitana | B19: Cariacica | C19: 4900 | D19: 2550 | E19: 1802 | F19: 0.7066666667 | G19: 2108 | H19: 0.8266666667 | I19: 2119 | J19: 0.8309803922 | K19: 2093 | L19: 0.8207843137 | M19: 2196 | N19: 0.8611764706 | O19: 2087 | P19: 0.8184313725 | Q19: 2121 | R19: 0.8317647059 | S19: 1721 | T19: 0.6749019608 | U19: 1705 | V19: 0.668627451 | W19: 2363 | X19: 0.9266666667 | Y19: 851 | Z19: 0.3337254902 | AC19: =cálculos2!P18 -> 0 | AD19: 0 | AE19: =cálculos2!Q18 -> 0 | AF19: 0 | AH19: 0.5 | AI19: =COUNTIFS($AD$3:$AD$80,">=0,50",$AD$3:$AD$80,"<0,60") -> 3
A20: Sul | B20: Castelo | C20: 451 | D20: 235 | E20: 165 | F20: 0.7021276596 | G20: 187 | H20: 0.7957446809 | I20: 211 | J20: 0.8978723404 | K20: 211 | L20: 0.8978723404 | M20: 212 | N20: 0.9021276596 | O20: 206 | P20: 0.8765957447 | Q20: 204 | R20: 0.8680851064 | S20: 186 | T20: 0.7914893617 | U20: 168 | V20: 0.714893617 | W20: 232 | X20: 0.9872340426 | Y20: 98 | Z20: 0.4170212766 | AC20: =cálculos2!P19 -> 1 | AD20: 0.1 | AE20: =cálculos2!Q19 -> 1 | AF20: 0.25 | AH20: 0.6 | AI20: =COUNTIFS($AD$3:$AD$80,">=0,60",$AD$3:$AD$80,"<0,70") -> 5
A21: Central | B21: Colatina | C21: 1544 | D21: 806 | E21: 682 | F21: 0.8461538462 | G21: 798 | H21: 0.9900744417 | I21: 697 | J21: 0.864764268 | K21: 686 | L21: 0.8511166253 | M21: 699 | N21: 0.8672456576 | O21: 699 | P21: 0.8672456576 | Q21: 696 | R21: 0.8635235732 | S21: 636 | T21: 0.7890818859 | U21: 497 | V21: 0.6166253102 | W21: 747 | X21: 0.9267990074 | Y21: 324 | Z21: 0.4019851117 | AC21: =cálculos2!P20 -> 1 | AD21: 0.1 | AE21: =cálculos2!Q20 -> 0 | AF21: 0 | AH21: 0.7 | AI21: =COUNTIFS($AD$3:$AD$80,">=0,70",$AD$3:$AD$80,"<0,80") -> 6
A22: Norte | B22: Conceição da Barra | C22: 383 | D22: 197 | E22: 79 | F22: 0.4010152284 | G22: 84 | H22: 0.4263959391 | I22: 173 | J22: 0.8781725888 | K22: 177 | L22: 0.8984771574 | M22: 188 | N22: 0.9543147208 | O22: 181 | P22: 0.9187817259 | Q22: 182 | R22: 0.923857868 | S22: 170 | T22: 0.8629441624 | U22: 147 | V22: 0.7461928934 | W22: 194 | X22: 0.9847715736 | Y22: 87 | Z22: 0.4416243655 | AC22: =cálculos2!P21 -> 3 | AD22: 0.3 | AE22: =cálculos2!Q21 -> 2 | AF22: 0.5 | AH22: 0.8 | AI22: =COUNTIFS($AD$3:$AD$80,">=0,80",$AD$3:$AD$80,"<0,90") -> 7
A23: Metropolitana | B23: Conceição do Castelo | C23: 162 | D23: 92 | E23: 13 | F23: 0.1413043478 | G23: 70 | H23: 0.7608695652 | I23: 58 | J23: 0.6304347826 | K23: 55 | L23: 0.597826087 | M23: 63 | N23: 0.6847826087 | O23: 62 | P23: 0.6739130435 | Q23: 52 | R23: 0.5652173913 | S23: 71 | T23: 0.7717391304 | U23: 63 | V23: 0.6847826087 | W23: 69 | X23: 0.75 | Y23: 41 | Z23: 0.4456521739 | AC23: =cálculos2!P22 -> 0 | AD23: 0 | AE23: =cálculos2!Q22 -> 0 | AF23: 0 | AH23: 0.9 | AI23: =COUNTIFS($AD$3:$AD$80,">=0,90",$AD$3:$AD$80,"<1,0") -> 6
A24: Sul | B24: Divino de São Lourenço | C24: 69 | D24: 39 | E24: 33 | F24: 0.8461538462 | G24: 39 | H24: 1 | I24: 38 | J24: 0.9743589744 | K24: 38 | L24: 0.9743589744 | M24: 40 | N24: 1.025641026 | O24: 41 | P24: 1.051282051 | Q24: 43 | R24: 1.102564103 | S24: 29 | T24: 0.7435897436 | U24: 23 | V24: 0.5897435897 | W24: 25 | X24: 0.641025641 | Y24: 19 | Z24: 0.4871794872 | AC24: =cálculos2!P23 -> 6 | AD24: 0.6 | AE24: =cálculos2!Q23 -> 3 | AF24: 0.75 | AH24: 1 | AI24: =COUNTIF($AD$3:$AD$80,">=1,0") -> 0
A25: Metropolitana | B25: Domingos Martins | C25: 423 | D25: 226 | E25: 127 | F25: 0.5619469027 | G25: 180 | H25: 0.796460177 | I25: 184 | J25: 0.814159292 | K25: 182 | L25: 0.8053097345 | M25: 202 | N25: 0.8938053097 | O25: 201 | P25: 0.889380531 | Q25: 194 | R25: 0.8584070796 | S25: 158 | T25: 0.6991150442 | U25: 184 | V25: 0.814159292 | W25: 215 | X25: 0.9513274336 | Y25: 146 | Z25: 0.6460176991 | AC25: =cálculos2!P24 -> 1 | AD25: 0.1 | AE25: =cálculos2!Q24 -> 1 | AF25: 0.25
A26: Sul | B26: Dores do Rio Preto | C26: 73 | D26: 42 | E26: 23 | F26: 0.5476190476 | G26: 31 | H26: 0.7380952381 | I26: 43 | J26: 1.023809524 | K26: 46 | L26: 1.095238095 | M26: 50 | N26: 1.19047619 | O26: 48 | P26: 1.142857143 | Q26: 49 | R26: 1.166666667 | S26: 42 | T26: 1 | U26: 34 | V26: 0.8095238095 | W26: 51 | X26: 1.214285714 | Y26: 13 | Z26: 0.3095238095 | AC26: =cálculos2!P25 -> 7 | AD26: 0.7 | AE26: =cálculos2!Q25 -> 4 | AF26: 1
A27: Norte | B27: Ecoporanga | C27: 269 | D27: 147 | E27: 120 | F27: 0.8163265306 | G27: 145 | H27: 0.9863945578 | I27: 119 | J27: 0.8095238095 | K27: 117 | L27: 0.7959183673 | M27: 113 | N27: 0.768707483 | O27: 112 | P27: 0.7619047619 | Q27: 104 | R27: 0.7074829932 | S27: 109 | T27: 0.7414965986 | U27: 119 | V27: 0.8095238095 | W27: 128 | X27: 0.8707482993 | Y27: 73 | Z27: 0.4965986395 | AC27: =cálculos2!P26 -> 1 | AD27: 0.1 | AE27: =cálculos2!Q26 -> 0 | AF27: 0
A28: Metropolitana | B28: Fundão | C28: 223 | D28: 121 | E28: 74 | F28: 0.6115702479 | G28: 90 | H28: 0.7438016529 | I28: 113 | J28: 0.9338842975 | K28: 111 | L28: 0.9173553719 | M28: 101 | N28: 0.8347107438 | O28: 101 | P28: 0.8347107438 | Q28: 97 | R28: 0.8016528926 | S28: 102 | T28: 0.8429752066 | U28: 99 | V28: 0.8181818182 | W28: 101 | X28: 0.8347107438 | Y28: 61 | Z28: 0.5041322314 | AC28: =cálculos2!P27 -> 0 | AD28: 0 | AE28: =cálculos2!Q27 -> 0 | AF28: 0
A29: Central | B29: Governador Lindenberg | C29: 139 | D29: 71 | E29: 39 | F29: 0.5492957746 | G29: 52 | H29: 0.7323943662 | I29: 64 | J29: 0.9014084507 | K29: 62 | L29: 0.8732394366 | M29: 66 | N29: 0.9295774648 | O29: 66 | P29: 0.9295774648 | Q29: 58 | R29: 0.8169014085 | S29: 80 | T29: 1.126760563 | U29: 56 | V29: 0.7887323944 | W29: 71 | X29: 1 | Y29: 36 | Z29: 0.5070422535 | AC29: =cálculos2!P28 -> 3 | AD29: 0.3 | AE29: =cálculos2!Q28 -> 1 | AF29: 0.25
A30: Sul | B30: Guaçuí | C30: 415 | D30: 213 | E30: 120 | F30: 0.5633802817 | G30: 159 | H30: 0.7464788732 | I30: 205 | J30: 0.9624413146 | K30: 200 | L30: 0.9389671362 | M30: 190 | N30: 0.8920187793 | O30: 175 | P30: 0.8215962441 | Q30: 178 | R30: 0.8356807512 | S30: 154 | T30: 0.7230046948 | U30: 173 | V30: 0.8122065728 | W30: 208 | X30: 0.9765258216 | Y30: 88 | Z30: 0.4131455399 | AC30: =cálculos2!P29 -> 2 | AD30: 0.2 | AE30: =cálculos2!Q29 -> 2 | AF30: 0.5
A31: Metropolitana | B31: Guarapari | C31: 1752 | D31: 932 | E31: 565 | F31: 0.606223176 | G31: 803 | H31: 0.8615879828 | I31: 742 | J31: 0.7961373391 | K31: 721 | L31: 0.7736051502 | M31: 784 | N31: 0.8412017167 | O31: 747 | P31: 0.8015021459 | Q31: 756 | R31: 0.8111587983 | S31: 578 | T31: 0.6201716738 | U31: 686 | V31: 0.7360515021 | W31: 787 | X31: 0.8444206009 | Y31: 383 | Z31: 0.410944206 | AC31: =cálculos2!P30 -> 0 | AD31: 0 | AE31: =cálculos2!Q30 -> 0 | AF31: 0
A32: Metropolitana | B32: Ibatiba | C32: 285 | D32: 170 | E32: 93 | F32: 0.5470588235 | G32: 185 | H32: 1.088235294 | I32: 182 | J32: 1.070588235 | K32: 182 | L32: 1.070588235 | M32: 178 | N32: 1.047058824 | O32: 168 | P32: 0.9882352941 | Q32: 180 | R32: 1.058823529 | S32: 171 | T32: 1.005882353 | U32: 159 | V32: 0.9352941176 | W32: 186 | X32: 1.094117647 | Y32: 34 | Z32: 0.2 | AC32: =cálculos2!P31 -> 8 | AD32: 0.8 | AE32: =cálculos2!Q31 -> 4 | AF32: 1
A33: Metropolitana | B33: Ibiraçu | C33: 155 | D33: 86 | E33: 62 | F33: 0.7209302326 | G33: 73 | H33: 0.8488372093 | I33: 62 | J33: 0.7209302326 | K33: 60 | L33: 0.6976744186 | M33: 62 | N33: 0.7209302326 | O33: 61 | P33: 0.7093023256 | Q33: 62 | R33: 0.7209302326 | S33: 62 | T33: 0.7209302326 | U33: 49 | V33: 0.5697674419 | W33: 70 | X33: 0.8139534884 | Y33: 22 | Z33: 0.2558139535 | AC33: =cálculos2!P32 -> 0 | AD33: 0 | AE33: =cálculos2!Q32 -> 0 | AF33: 0
A34: Sul | B34: Ibitirama | C34: 130 | D34: 65 | E34: 53 | F34: 0.8153846154 | G34: 60 | H34: 0.9230769231 | I34: 62 | J34: 0.9538461538 | K34: 61 | L34: 0.9384615385 | M34: 60 | N34: 0.9230769231 | O34: 62 | P34: 0.9538461538 | Q34: 53 | R34: 0.8153846154 | S34: 49 | T34: 0.7538461538 | U34: 56 | V34: 0.8615384615 | W34: 68 | X34: 1.046153846 | Y34: 31 | Z34: 0.4769230769 | AC34: =cálculos2!P33 -> 4 | AD34: 0.4 | AE34: =cálculos2!Q33 -> 2 | AF34: 0.5
A35: Sul | B35: Iconha | C35: 119 | D35: 61 | E35: 40 | F35: =E35/D35 -> 0.6557377049 | G35: 37 | H35: 0.606557377 | I35: 61 | J35: 1 | K35: 57 | L35: 0.9344262295 | M35: 60 | N35: 0.9836065574 | O35: 59 | P35: 0.9672131148 | Q35: 53 | R35: 0.868852459 | S35: 57 | T35: 0.9344262295 | U35: 69 | V35: =U35/D35 -> 1.131147541 | W35: 76 | X35: =W35/D35 -> 1.245901639 | Y35: 28 | Z35: =Y35/D35 -> 0.4590163934 | AC35: =cálculos2!P34 -> 5 | AD35: 0.5 | AE35: =cálculos2!Q34 -> 3 | AF35: 0.75
A36: Sul | B36: Irupi | C36: 149 | D36: 81 | E36: 62 | F36: 0.7654320988 | G36: 87 | H36: 1.074074074 | I36: 100 | J36: 1.234567901 | K36: 99 | L36: 1.222222222 | M36: 106 | N36: 1.308641975 | O36: 103 | P36: 1.271604938 | Q36: 104 | R36: 1.283950617 | S36: 88 | T36: 1.086419753 | U36: 99 | V36: 1.222222222 | W36: 130 | X36: 1.604938272 | Y36: 30 | Z36: 0.3703703704 | AC36: =cálculos2!P35 -> 9 | AD36: 0.9 | AE36: =cálculos2!Q35 -> 4 | AF36: 1
A37: Metropolitana | B37: Itaguaçu | C37: 137 | D37: 78 | E37: 65 | F37: 0.8333333333 | G37: 73 | H37: 0.9358974359 | I37: 62 | J37: 0.7948717949 | K37: 60 | L37: 0.7692307692 | M37: 62 | N37: 0.7948717949 | O37: 62 | P37: 0.7948717949 | Q37: 63 | R37: 0.8076923077 | S37: 70 | T37: 0.8974358974 | U37: 75 | V37: 0.9615384615 | W37: 70 | X37: 0.8974358974 | Y37: 43 | Z37: 0.5512820513 | AC37: =cálculos2!P36 -> 2 | AD37: 0.2 | AE37: =cálculos2!Q36 -> 0 | AF37: 0
A38: Sul | B38: Itapemirim | C38: 540 | D38: 243 | E38: 182 | F38: 0.7489711934 | G38: 228 | H38: 0.9382716049 | I38: 241 | J38: 0.9917695473 | K38: 243 | L38: 1 | M38: 256 | N38: 1.053497942 | O38: 231 | P38: 0.950617284 | Q38: 234 | R38: 0.962962963 | S38: 161 | T38: 0.6625514403 | U38: 232 | V38: 0.9547325103 | W38: 252 | X38: 1.037037037 | Y38: 113 | Z38: 0.4650205761 | AC38: =cálculos2!P37 -> 8 | AD38: 0.8 | AE38: =cálculos2!Q37 -> 4 | AF38: 1
A39: Metropolitana | B39: Itarana | C39: 147 | D39: 85 | E39: 64 | F39: 0.7529411765 | G39: 79 | H39: 0.9294117647 | I39: 61 | J39: 0.7176470588 | K39: 61 | L39: 0.7176470588 | M39: 60 | N39: 0.7058823529 | O39: 62 | P39: 0.7294117647 | Q39: 53 | R39: 0.6235294118 | S39: 69 | T39: 0.8117647059 | U39: 45 | V39: 0.5294117647 | W39: 64 | X39: 0.7529411765 | Y39: 38 | Z39: 0.4470588235 | AC39: =cálculos2!P38 -> 1 | AD39: 0.1 | AE39: =cálculos2!Q38 -> 0 | AF39: 0
A40: Sul | B40: Iúna | C40: 406 | D40: 186 | E40: 137 | F40: 0.7365591398 | G40: 165 | H40: 0.8870967742 | I40: 232 | J40: 1.247311828 | K40: 230 | L40: 1.23655914 | M40: 219 | N40: 1.177419355 | O40: 216 | P40: 1.161290323 | Q40: 220 | R40: 1.182795699 | S40: 207 | T40: 1.112903226 | U40: 173 | V40: 0.9301075269 | W40: 225 | X40: 1.209677419 | Y40: 88 | Z40: 0.4731182796 | AC40: =cálculos2!P39 -> 7 | AD40: 0.7 | AE40: =cálculos2!Q39 -> 4 | AF40: 1
A41: Norte | B41: Jaguaré | C41: 510 | D41: 291 | E41: 196 | F41: 0.6735395189 | G41: 234 | H41: 0.8041237113 | I41: 241 | J41: 0.8281786942 | K41: 247 | L41: 0.8487972509 | M41: 227 | N41: 0.7800687285 | O41: 221 | P41: 0.7594501718 | Q41: 225 | R41: 0.7731958763 | S41: 210 | T41: 0.7216494845 | U41: 175 | V41: 0.6013745704 | W41: 232 | X41: 0.7972508591 | Y41: 106 | Z41: 0.3642611684 | AC41: =cálculos2!P40 -> 0 | AD41: 0 | AE41: =cálculos2!Q40 -> 0 | AF41: 0
A42: Sul | B42: Jerônimo Monteiro | C42: 161 | D42: 82 | E42: 61 | F42: 0.743902439 | G42: 75 | H42: 0.9146341463 | I42: 82 | J42: 1 | K42: 83 | L42: 1.012195122 | M42: 79 | N42: 0.9634146341 | O42: 77 | P42: 0.9390243902 | Q42: 69 | R42: 0.8414634146 | S42: 81 | T42: 0.987804878 | U42: 70 | V42: 0.8536585366 | W42: 77 | X42: 0.9390243902 | Y42: 20 | Z42: 0.243902439 | AC42: =cálculos2!P41 -> 6 | AD42: 0.6 | AE42: =cálculos2!Q41 -> 3 | AF42: 0.75
A43: Metropolitana | B43: João Neiva | C43: 172 | D43: 84 | E43: 57 | F43: 0.6785714286 | G43: 66 | H43: 0.7857142857 | I43: 84 | J43: 1 | K43: 82 | L43: 0.9761904762 | M43: 82 | N43: 0.9761904762 | O43: 80 | P43: 0.9523809524 | Q43: 79 | R43: 0.9404761905 | S43: 81 | T43: 0.9642857143 | U43: 80 | V43: 0.9523809524 | W43: 97 | X43: 1.154761905 | Y43: 32 | Z43: 0.380952381 | AC43: =cálculos2!P42 -> 7 | AD43: 0.7 | AE43: =cálculos2!Q42 -> 4 | AF43: 1
A44: Metropolitana | B44: Laranja da Terra | C44: 92 | D44: 48 | E44: 30 | F44: 0.625 | G44: 41 | H44: 0.8541666667 | I44: 43 | J44: 0.8958333333 | K44: 43 | L44: 0.8958333333 | M44: 34 | N44: 0.7083333333 | O44: 34 | P44: 0.7083333333 | Q44: 44 | R44: 0.9166666667 | S44: 53 | T44: 1.104166667 | U44: 60 | V44: 1.25 | W44: 72 | X44: 1.5 | Y44: 51 | Z44: 1.0625 | AC44: =cálculos2!P43 -> 4 | AD44: 0.4 | AE44: =cálculos2!Q43 -> 1 | AF44: 0.25
A45: Central | B45: Linhares | C45: 2598 | D45: 1358 | E45: 768 | F45: 0.5655375552 | G45: 919 | H45: 0.676730486 | I45: 1082 | J45: 0.7967599411 | K45: 1071 | L45: 0.7886597938 | M45: 1073 | N45: 0.7901325479 | O45: 1093 | P45: 0.8048600884 | Q45: 1084 | R45: 0.7982326951 | S45: 987 | T45: 0.7268041237 | U45: 930 | V45: 0.6848306333 | W45: 1136 | X45: 0.8365243004 | Y45: 472 | Z45: 0.3475699558 | AC45: =cálculos2!P44 -> 0 | AD45: 0 | AE45: =cálculos2!Q44 -> 0 | AF45: 0
A46: Central | B46: Mantenópolis | C46: 151 | D46: 83 | E46: 64 | F46: 0.7710843373 | G46: 82 | H46: 0.9879518072 | I46: 70 | J46: 0.843373494 | K46: 72 | L46: 0.8674698795 | M46: 64 | N46: 0.7710843373 | O46: 61 | P46: 0.734939759 | Q46: 65 | R46: 0.7831325301 | S46: 75 | T46: 0.9036144578 | U46: 61 | V46: 0.734939759 | W46: 78 | X46: 0.9397590361 | Y46: 35 | Z46: 0.421686747 | AC46: =cálculos2!P45 -> 1 | AD46: 0.1 | AE46: =cálculos2!Q45 -> 0 | AF46: 0
A47: Sul | B47: Marataízes | C47: 553 | D47: 297 | E47: 231 | F47: 0.7777777778 | G47: 261 | H47: 0.8787878788 | I47: 262 | J47: 0.8821548822 | K47: 260 | L47: 0.8754208754 | M47: 282 | N47: 0.9494949495 | O47: 278 | P47: 0.936026936 | Q47: 263 | R47: 0.8855218855 | S47: 188 | T47: 0.632996633 | U47: 235 | V47: 0.7912457912 | W47: 282 | X47: 0.9494949495 | Y47: 103 | Z47: 0.3468013468 | AC47: =cálculos2!P46 -> 1 | AD47: 0.1 | AE47: =cálculos2!Q46 -> 0 | AF47: 0
A48: Metropolitana | B48: Marechal Floriano | C48: 224 | D48: 113 | E48: 73 | F48: 0.6460176991 | G48: 91 | H48: 0.8053097345 | I48: 103 | J48: 0.9115044248 | K48: 102 | L48: 0.9026548673 | M48: 117 | N48: 1.03539823 | O48: 114 | P48: 1.008849558 | Q48: 112 | R48: 0.9911504425 | S48: 77 | T48: 0.6814159292 | U48: 98 | V48: 0.8672566372 | W48: 116 | X48: 1.026548673 | Y48: 68 | Z48: 0.6017699115 | AC48: =cálculos2!P47 -> 4 | AD48: 0.4 | AE48: =cálculos2!Q47 -> 2 | AF48: 0.5
A49: Central | B49: Marilândia | C49: 171 | D49: 83 | E49: 63 | F49: 0.7590361446 | G49: 73 | H49: 0.8795180723 | I49: 82 | J49: 0.9879518072 | K49: 82 | L49: 0.9879518072 | M49: 69 | N49: 0.8313253012 | O49: 72 | P49: 0.8674698795 | Q49: 80 | R49: 0.9638554217 | S49: 79 | T49: 0.9518072289 | U49: 70 | V49: 0.843373494 | W49: 72 | X49: 0.8674698795 | Y49: 46 | Z49: 0.5542168675 | AC49: =cálculos2!P48 -> 4 | AD49: 0.4 | AE49: =cálculos2!Q48 -> 2 | AF49: 0.5
A50: Sul | B50: Mimoso do Sul | C50: 267 | D50: 139 | E50: 83 | F50: 0.5971223022 | G50: 107 | H50: 0.7697841727 | I50: 117 | J50: 0.8417266187 | K50: 116 | L50: 0.8345323741 | M50: 105 | N50: 0.7553956835 | O50: 104 | P50: 0.7482014388 | Q50: 108 | R50: 0.7769784173 | S50: 97 | T50: 0.6978417266 | U50: 94 | V50: 0.6762589928 | W50: 116 | X50: 0.8345323741 | Y50: 58 | Z50: 0.4172661871 | AC50: =cálculos2!P49 -> 0 | AD50: 0 | AE50: =cálculos2!Q49 -> 0 | AF50: 0
A51: Norte | B51: Montanha | C51: 232 | D51: 113 | E51: 64 | F51: 0.5663716814 | G51: 69 | H51: 0.610619469 | I51: 138 | J51: 1.221238938 | K51: 139 | L51: 1.230088496 | M51: 116 | N51: 1.026548673 | O51: 119 | P51: 1.053097345 | Q51: 117 | R51: 1.03539823 | S51: 136 | T51: 1.203539823 | U51: 118 | V51: 1.044247788 | W51: 126 | X51: 1.115044248 | Y51: 68 | Z51: 0.6017699115 | AC51: =cálculos2!P50 -> 8 | AD51: 0.8 | AE51: =cálculos2!Q50 -> 4 | AF51: 1
A52: Norte | B52: Mucurici | C52: 66 | D52: 31 | E52: 17 | F52: 0.5483870968 | G52: 21 | H52: 0.6774193548 | I52: 49 | J52: 1.580645161 | K52: 49 | L52: 1.580645161 | M52: 43 | N52: 1.387096774 | O52: 43 | P52: 1.387096774 | Q52: 43 | R52: 1.387096774 | S52: 44 | T52: 1.419354839 | U52: 28 | V52: 0.9032258065 | W52: 44 | X52: 1.419354839 | Y52: 20 | Z52: 0.6451612903 | AC52: =cálculos2!P51 -> 7 | AD52: 0.7 | AE52: =cálculos2!Q51 -> 4 | AF52: 1
A53: Sul | B53: Muniz Freire | C53: 204 | D53: 103 | E53: 82 | F53: 0.7961165049 | G53: 107 | H53: 1.038834951 | I53: 115 | J53: 1.116504854 | K53: 110 | L53: 1.067961165 | M53: 114 | N53: 1.106796117 | O53: 112 | P53: 1.087378641 | Q53: 115 | R53: 1.116504854 | S53: 116 | T53: 1.126213592 | U53: 101 | V53: 0.9805825243 | W53: 120 | X53: 1.165048544 | Y53: 45 | Z53: 0.4368932039 | AC53: =cálculos2!P52 -> 9 | AD53: 0.9 | AE53: =cálculos2!Q52 -> 4 | AF53: 1
A54: Sul | B54: Muqui | C54: 164 | D54: 78 | E54: 60 | F54: 0.7692307692 | G54: 75 | H54: 0.9615384615 | I54: 82 | J54: 1.051282051 | K54: 83 | L54: 1.064102564 | M54: 65 | N54: 0.8333333333 | O54: 64 | P54: 0.8205128205 | Q54: 75 | R54: 0.9615384615 | S54: 84 | T54: 1.076923077 | U54: 69 | V54: 0.8846153846 | W54: 74 | X54: 0.9487179487 | Y54: 34 | Z54: 0.4358974359 | AC54: =cálculos2!P53 -> 5 | AD54: 0.5 | AE54: =cálculos2!Q53 -> 2 | AF54: 0.5
A55: Norte | B55: Nova Venécia | C55: 678 | D55: 374 | E55: 147 | F55: 0.3930481283 | G55: 315 | H55: 0.8422459893 | I55: 335 | J55: 0.8957219251 | K55: 337 | L55: 0.9010695187 | M55: 316 | N55: 0.8449197861 | O55: 308 | P55: 0.8235294118 | Q55: 321 | R55: 0.8582887701 | S55: 324 | T55: 0.8663101604 | U55: 291 | V55: 0.7780748663 | W55: 343 | X55: 0.9171122995 | Y55: 172 | Z55: 0.4598930481 | AC55: =cálculos2!P54 -> 0 | AD55: 0 | AE55: =cálculos2!Q54 -> 0 | AF55: 0
A56: Central | B56: Pancas | C56: 217 | D56: 106 | E56: 83 | F56: 0.7830188679 | G56: 97 | H56: 0.9150943396 | I56: 119 | J56: 1.122641509 | K56: 119 | L56: 1.122641509 | M56: 111 | N56: 1.047169811 | O56: 108 | P56: 1.018867925 | Q56: 112 | R56: 1.056603774 | S56: 106 | T56: 1 | U56: 106 | V56: 1 | W56: 102 | X56: 0.9622641509 | Y56: 76 | Z56: 0.7169811321 | AC56: =cálculos2!P55 -> 9 | AD56: 0.9 | AE56: =cálculos2!Q55 -> 4 | AF56: 1
A57: Norte | B57: Pedro Canário | C57: 305 | D57: 163 | E57: 76 | F57: 0.4662576687 | G57: 86 | H57: 0.527607362 | I57: 163 | J57: 1 | K57: 160 | L57: 0.981595092 | M57: 143 | N57: 0.8773006135 | O57: 138 | P57: 0.8466257669 | Q57: 146 | R57: 0.8957055215 | S57: 140 | T57: 0.8588957055 | U57: 134 | V57: 0.8220858896 | W57: 192 | X57: 1.17791411 | Y57: 99 | Z57: 0.6073619632 | AC57: =cálculos2!P56 -> 3 | AD57: 0.3 | AE57: =cálculos2!Q56 -> 3 | AF57: 0.75
A58: Norte | B58: Pinheiros | C58: 325 | D58: 168 | E58: 67 | F58: 0.3988095238 | G58: 67 | H58: 0.3988095238 | I58: 158 | J58: 0.9404761905 | K58: 156 | L58: 0.9285714286 | M58: 148 | N58: 0.880952381 | O58: 143 | P58: 0.8511904762 | Q58: 140 | R58: 0.8333333333 | S58: 136 | T58: 0.8095238095 | U58: 120 | V58: 0.7142857143 | W58: 164 | X58: 0.9761904762 | Y58: 54 | Z58: 0.3214285714 | AC58: =cálculos2!P57 -> 1 | AD58: 0.1 | AE58: =cálculos2!Q57 -> 1 | AF58: 0.25
A59: Sul | B59: Piúma | C59: 303 | D59: 151 | E59: 106 | F59: 0.701986755 | G59: 127 | H59: 0.8410596026 | I59: 137 | J59: 0.9072847682 | K59: 136 | L59: 0.9006622517 | M59: 138 | N59: 0.9139072848 | O59: 126 | P59: 0.8344370861 | Q59: 131 | R59: 0.8675496689 | S59: 100 | T59: 0.6622516556 | U59: 113 | V59: 0.7483443709 | W59: 145 | X59: 0.9602649007 | Y59: 64 | Z59: 0.4238410596 | AC59: =cálculos2!P58 -> 1 | AD59: 0.1 | AE59: =cálculos2!Q58 -> 1 | AF59: 0.25
A60: Norte | B60: Ponto Belo | C60: 75 | D60: 35 | E60: 17 | F60: 0.4857142857 | G60: 21 | H60: 0.6 | I60: 36 | J60: 1.028571429 | K60: 36 | L60: 1.028571429 | M60: 33 | N60: 0.9428571429 | O60: 34 | P60: 0.9714285714 | Q60: 34 | R60: 0.9714285714 | S60: 40 | T60: 1.142857143 | U60: 25 | V60: 0.7142857143 | W60: 43 | X60: 1.228571429 | Y60: 18 | Z60: 0.5142857143 | AC60: =cálculos2!P59 -> 6 | AD60: 0.6 | AE60: =cálculos2!Q59 -> 3 | AF60: 0.75
A61: Sul | B61: Presidente Kennedy | C61: 196 | D61: 115 | E61: 99 | F61: 0.8608695652 | G61: 110 | H61: 0.9565217391 | I61: 79 | J61: 0.6869565217 | K61: 81 | L61: 0.7043478261 | M61: 81 | N61: 0.7043478261 | O61: 81 | P61: 0.7043478261 | Q61: 75 | R61: 0.652173913 | S61: 80 | T61: 0.6956521739 | U61: 99 | V61: 0.8608695652 | W61: 115 | X61: 1 | Y61: 47 | Z61: 0.4086956522 | AC61: =cálculos2!P60 -> 2 | AD61: 0.2 | AE61: =cálculos2!Q60 -> 1 | AF61: 0.25
A62: Central | B62: Rio Bananal | C62: 301 | D62: 167 | E62: 94 | F62: 0.5628742515 | G62: 107 | H62: 0.6407185629 | I62: 137 | J62: 0.8203592814 | K62: 136 | L62: 0.8143712575 | M62: 122 | N62: 0.7305389222 | O62: 131 | P62: 0.7844311377 | Q62: 121 | R62: 0.7245508982 | S62: 150 | T62: 0.8982035928 | U62: 143 | V62: 0.8562874251 | W62: 154 | X62: 0.9221556886 | Y62: 71 | Z62: 0.4251497006 | AC62: =cálculos2!P61 -> 0 | AD62: 0 | AE62: =cálculos2!Q61 -> 0 | AF62: 0
A63: Sul | B63: Rio Novo do Sul | C63: 118 | D63: 56 | E63: 40 | F63: 0.7142857143 | G63: 42 | H63: 0.75 | I63: 61 | J63: 1.089285714 | K63: 59 | L63: 1.053571429 | M63: 57 | N63: 1.017857143 | O63: 59 | P63: 1.053571429 | Q63: 61 | R63: 1.089285714 | S63: 58 | T63: 1.035714286 | U63: 57 | V63: 1.017857143 | W63: 58 | X63: 1.035714286 | Y63: 31 | Z63: 0.5535714286 | AC63: =cálculos2!P62 -> 8 | AD63: 0.8 | AE63: =cálculos2!Q62 -> 4 | AF63: 1
A64: Metropolitana | B64: Santa Leopoldina | C64: 95 | D64: 38 | E64: 20 | F64: 0.5263157895 | G64: 29 | H64: 0.7631578947 | I64: 57 | J64: 1.5 | K64: 57 | L64: 1.5 | M64: 49 | N64: 1.289473684 | O64: 50 | P64: 1.315789474 | Q64: 55 | R64: 1.447368421 | S64: 51 | T64: 1.342105263 | U64: 60 | V64: 1.578947368 | W64: 69 | X64: 1.815789474 | Y64: 14 | Z64: 0.3684210526 | AC64: =cálculos2!P63 -> 8 | AD64: 0.8 | AE64: =cálculos2!Q63 -> 4 | AF64: 1
A65: Metropolitana | B65: Santa Maria de Jetibá | C65: 640 | D65: 319 | E65: 256 | F65: 0.802507837 | G65: 294 | H65: 0.921630094 | I65: 267 | J65: 0.8369905956 | K65: 268 | L65: 0.8401253918 | M65: 293 | N65: 0.9184952978 | O65: 295 | P65: 0.9247648903 | Q65: 286 | R65: 0.8965517241 | S65: 246 | T65: 0.7711598746 | U65: 317 | V65: 0.9937304075 | W65: 341 | X65: 1.068965517 | Y65: 134 | Z65: 0.4200626959 | AC65: =cálculos2!P64 -> 4 | AD65: 0.4 | AE65: =cálculos2!Q64 -> 1 | AF65: 0.25
A66: Metropolitana | B66: Santa Teresa | C66: 306 | D66: 158 | E66: 120 | F66: 0.7594936709 | G66: 148 | H66: 0.9367088608 | I66: 144 | J66: 0.9113924051 | K66: 144 | L66: 0.9113924051 | M66: 152 | N66: 0.9620253165 | O66: 151 | P66: 0.9556962025 | Q66: 142 | R66: 0.8987341772 | S66: 133 | T66: 0.8417721519 | U66: 117 | V66: 0.7405063291 | W66: 138 | X66: 0.8734177215 | Y66: 85 | Z66: 0.5379746835 | AC66: =cálculos2!P65 -> 3 | AD66: 0.3 | AE66: =cálculos2!Q65 -> 1 | AF66: 0.25
A67: Central | B67: São Domingos do Norte | C67: 121 | D67: 65 | E67: 48 | F67: =E67/D67 -> 0.7384615385 | G67: 55 | H67: 0.8461538462 | I67: 59 | J67: 0.9076923077 | K67: 59 | L67: 0.9076923077 | M67: 56 | N67: 0.8615384615 | O67: 54 | P67: 0.8307692308 | Q67: 60 | R67: 0.9230769231 | S67: 52 | T67: 0.8 | U67: 31 | V67: =U67/D67 -> 0.4769230769 | W67: 49 | X67: =W67/D67 -> 0.7538461538 | Y67: 26 | Z67: =Y67/D67 -> 0.4 | AC67: =cálculos2!P66 -> 0 | AD67: 0 | AE67: =cálculos2!Q66 -> 0 | AF67: 0
A68: Central | B68: São Gabriel da Palha | C68: 457 | D68: 234 | E68: 170 | F68: 0.7264957265 | G68: 225 | H68: =G68/D68 -> 0.9615384615 | I68: 200 | J68: =I68/D68 -> 0.8547008547 | K68: 199 | L68: =K68/D68 -> 0.8504273504 | M68: 201 | N68: =M68/D68 -> 0.858974359 | O68: 202 | P68: =O68/D68 -> 0.8632478632 | Q68: 201 | R68: =Q68/D68 -> 0.858974359 | S68: 172 | T68: =S68/D68 -> 0.735042735 | U68: 155 | V68: 0.6623931624 | W68: 200 | X68: 0.8547008547 | Y68: 78 | Z68: 0.3333333333 | AC68: =cálculos2!P67 -> 1 | AD68: =AC68*0.1 -> 0.1 | AE68: =cálculos2!Q67 -> 0 | AF68: =AE68*0.25 -> 0
A69: Sul | B69: São José do Calçado | C69: 80 | D69: 44 | E69: 47 | F69: 1.068181818 | G69: 53 | H69: 1.204545455 | I69: 64 | J69: 1.454545455 | K69: 63 | L69: 1.431818182 | M69: 56 | N69: 1.272727273 | O69: 48 | P69: 1.090909091 | Q69: 58 | R69: 1.318181818 | S69: 50 | T69: 1.136363636 | U69: 53 | V69: 1.204545455 | W69: 62 | X69: 1.409090909 | Y69: 36 | Z69: 0.8181818182 | AC69: =cálculos2!P68 -> 9 | AD69: 0.9 | AE69: =cálculos2!Q68 -> 4 | AF69: 1
A70: Norte | B70: São Mateus | C70: 1923 | D70: 972 | E70: 1028 | F70: 1.057613169 | G70: 1226 | H70: 1.261316872 | I70: 851 | J70: 0.8755144033 | K70: 833 | L70: 0.8569958848 | M70: 863 | N70: 0.8878600823 | O70: 819 | P70: 0.8425925926 | Q70: 813 | R70: 0.8364197531 | S70: 666 | T70: 0.6851851852 | U70: 703 | V70: 0.7232510288 | W70: 820 | X70: 0.8436213992 | Y70: 335 | Z70: 0.3446502058 | AC70: =cálculos2!P69 -> 1 | AD70: 0.1 | AE70: =cálculos2!Q69 -> 0 | AF70: 0
A71: Central | B71: São Roque do Canaã | C71: 130 | D71: 84 | E71: 67 | F71: 0.7976190476 | G71: 72 | H71: 0.8571428571 | I71: 44 | J71: 0.5238095238 | K71: 43 | L71: 0.5119047619 | M71: 49 | N71: 0.5833333333 | O71: 51 | P71: 0.6071428571 | Q71: 46 | R71: 0.5476190476 | S71: 54 | T71: 0.6428571429 | U71: 55 | V71: 0.6547619048 | W71: 70 | X71: 0.8333333333 | Y71: 27 | Z71: 0.3214285714 | AC71: =cálculos2!P70 -> 0 | AD71: 0 | AE71: =cálculos2!Q70 -> 0 | AF71: 0
A72: Metropolitana | B72: Serra | C72: 7354 | D72: 3900 | E72: 3003 | F72: 0.77 | G72: 3426 | H72: 0.8784615385 | I72: 3119 | J72: 0.7997435897 | K72: 3090 | L72: 0.7923076923 | M72: 3134 | N72: 0.8035897436 | O72: 3045 | P72: 0.7807692308 | Q72: 3017 | R72: 0.7735897436 | S72: 2577 | T72: 0.6607692308 | U72: 1844 | V72: 0.4728205128 | W72: 3159 | X72: 0.81 | Y72: 983 | Z72: 0.2520512821 | AC72: =cálculos2!P71 -> 0 | AD72: 0 | AE72: =cálculos2!Q71 -> 0 | AF72: 0
A73: Central | B73: Sooretama | C73: 442 | D73: 245 | E73: 129 | F73: 0.5265306122 | G73: 147 | H73: 0.6 | I73: 186 | J73: 0.7591836735 | K73: 189 | L73: 0.7714285714 | M73: 184 | N73: 0.7510204082 | O73: 182 | P73: 0.7428571429 | Q73: 170 | R73: 0.693877551 | S73: 178 | T73: 0.7265306122 | U73: 185 | V73: 0.7551020408 | W73: 201 | X73: 0.8204081633 | Y73: 80 | Z73: 0.3265306122 | AC73: =cálculos2!P72 -> 0 | AD73: 0 | AE73: =cálculos2!Q72 -> 0 | AF73: 0
A74: Sul | B74: Vargem Alta | C74: 264 | D74: 141 | E74: 104 | F74: 0.7375886525 | G74: 126 | H74: 0.8936170213 | I74: 109 | J74: 0.7730496454 | K74: 109 | L74: 0.7730496454 | M74: 113 | N74: 0.8014184397 | O74: 116 | P74: 0.8226950355 | Q74: 115 | R74: 0.8156028369 | S74: 101 | T74: 0.7163120567 | U74: 127 | V74: 0.9007092199 | W74: 133 | X74: 0.9432624113 | Y74: 61 | Z74: 0.4326241135 | AC74: =cálculos2!P73 -> 0 | AD74: 0 | AE74: =cálculos2!Q73 -> 0 | AF74: 0
A75: Metropolitana | B75: Venda Nova do Imigrante | C75: 400 | D75: 211 | E75: 35 | F75: 0.1658767773 | G75: 160 | H75: 0.7582938389 | I75: 191 | J75: 0.9052132701 | K75: 193 | L75: 0.9146919431 | M75: 176 | N75: 0.8341232227 | O75: 175 | P75: 0.8293838863 | Q75: 184 | R75: 0.8720379147 | S75: 187 | T75: 0.8862559242 | U75: 152 | V75: 0.7203791469 | W75: 197 | X75: 0.9336492891 | Y75: 71 | Z75: 0.336492891 | AC75: =cálculos2!P74 -> 0 | AD75: 0 | AE75: =cálculos2!Q74 -> 0 | AF75: 0
A76: Metropolitana | B76: Viana | C76: 955 | D76: 495 | E76: 345 | F76: 0.696969697 | G76: 391 | H76: 0.7898989899 | I76: 425 | J76: 0.8585858586 | K76: 418 | L76: 0.8444444444 | M76: 442 | N76: 0.8929292929 | O76: 420 | P76: 0.8484848485 | Q76: 435 | R76: 0.8787878788 | S76: 326 | T76: 0.6585858586 | U76: 379 | V76: 0.7656565657 | W76: 480 | X76: 0.9696969697 | Y76: 142 | Z76: 0.2868686869 | AC76: =cálculos2!P75 -> 1 | AD76: 0.1 | AE76: =cálculos2!Q75 -> 1 | AF76: 0.25
A77: Norte | B77: Vila Pavão | C77: 86 | D77: 47 | E77: 34 | F77: 0.7234042553 | G77: 52 | H77: 1.106382979 | I77: 43 | J77: 0.914893617 | K77: 43 | L77: 0.914893617 | M77: 45 | N77: 0.9574468085 | O77: 44 | P77: 0.9361702128 | Q77: 41 | R77: 0.8723404255 | S77: 49 | T77: 1.042553191 | U77: 54 | V77: 1.14893617 | W77: 59 | X77: 1.255319149 | Y77: 23 | Z77: 0.4893617021 | AC77: =cálculos2!P76 -> 6 | AD77: 0.6 | AE77: =cálculos2!Q76 -> 2 | AF77: 0.5
A78: Central | B78: Vila Valério | C78: 249 | D78: 125 | E78: 89 | F78: 0.712 | G78: 111 | H78: 0.888 | I78: 106 | J78: 0.848 | K78: 103 | L78: 0.824 | M78: 108 | N78: 0.864 | O78: 111 | P78: 0.888 | Q78: 117 | R78: 0.936 | S78: 103 | T78: 0.824 | U78: 100 | V78: 0.8 | W78: 111 | X78: 0.888 | Y78: 51 | Z78: 0.408 | AC78: =cálculos2!P77 -> 0 | AD78: 0 | AE78: =cálculos2!Q77 -> 0 | AF78: 0
A79: Metropolitana | B79: Vila Velha | C79: 5702 | D79: 2920 | E79: 2078 | F79: 0.7116438356 | G79: 2409 | H79: 0.825 | I79: 2337 | J79: 0.8003424658 | K79: 2335 | L79: 0.7996575342 | M79: 2351 | N79: 0.8051369863 | O79: 2349 | P79: 0.8044520548 | Q79: 2357 | R79: 0.8071917808 | S79: 1993 | T79: 0.6825342466 | U79: 2018 | V79: 0.6910958904 | W79: 2496 | X79: 0.8547945205 | Y79: 902 | Z79: 0.3089041096 | AC79: =cálculos2!P78 -> 0 | AD79: 0 | AE79: =cálculos2!Q78 -> 0 | AF79: 0
A80: Metropolitana | B80: Vitória | C80: 3704 | D80: 1886 | E80: 1748 | F80: 0.9268292683 | G80: 2242 | H80: 1.188759279 | I80: 1616 | J80: 0.8568398727 | K80: 1618 | L80: 0.8579003181 | M80: 1575 | N80: 0.8351007423 | O80: 1554 | P80: 0.8239660657 | Q80: 1622 | R80: 0.8600212089 | S80: 1279 | T80: 0.678154825 | U80: 1544 | V80: 0.8186638388 | W80: 1569 | X80: 0.8319194062 | Y80: 648 | Z80: 0.3435843054 | AC80: =cálculos2!P79 -> 1 | AD80: 0.1 | AE80: =cálculos2!Q79 -> 0 | AF80: 0
B82: Total Norte | C82: =SUMIF($A$3:$A$80,"Norte",C$3:C$80) -> 5797 | D82: =SUMIF($A$3:$A$80,"Norte",D$3:D$80) -> 3052 | E82: =SUMIF($A$3:$A$80,"Norte",E$3:E$80) -> 2197 | F82: =E82/D82 -> 0.7198558322 | G82: =SUMIF($A$3:$A$80,"Norte",G$3:G$80) -> 2778 | H82: =G82/D82 -> 0.9102228047 | I82: =SUMIF($A$3:$A$80,"Norte",I$3:I$80) -> 2739 | J82: =I82/D82 -> 0.8974442988 | K82: =SUMIF($A$3:$A$80,"Norte",K$3:K$80) -> 2730 | L82: =K82/D82 -> 0.8944954128 | M82: =SUMIF($A$3:$A$80,"Norte",M$3:M$80) -> 2681 | N82: =M82/D82 -> 0.878440367 | O82: =SUMIF($A$3:$A$80,"Norte",O$3:O$80) -> 2601 | P82: =O82/D82 -> 0.8522280472 | Q82: =SUMIF($A$3:$A$80,"Norte",Q$3:Q$80) -> 2611 | R82: =Q82/D82 -> 0.8555045872 | S82: =SUMIF($A$3:$A$80,"Norte",S$3:S$80) -> 2427 | T82: =S82/D82 -> 0.7952162516 | U82: =SUMIF($A$3:$A$80,"Norte",U$3:U$80) -> 2291 | V82: =U82/D82 -> 0.750655308 | W82: =SUMIF($A$3:$A$80,"Norte",W$3:W$80) -> 2808 | X82: =W82/D82 -> 0.9200524246 | Y82: =SUMIF($A$3:$A$80,"Norte",Y$3:Y$80) -> 1288 | Z82: =Y82/D82 -> 0.4220183486 | AC82: =cálculos1!P81 -> 0 | AD82: =AC82*0.1 -> 0 | AE82: =cálculos1!Q81 -> 0 | AF82: 0
B83: Total Central | C83: =SUMIF($A$3:$A$80,"Central",C$3:C$80) -> 7093 | D83: =SUMIF($A$3:$A$80,"Central",D$3:D$80) -> 3726 | E83: =SUMIF($A$3:$A$80,"Central",E$3:E$80) -> 2507 | F83: =E83/D83 -> 0.6728395062 | G83: =SUMIF($A$3:$A$80,"Central",G$3:G$80) -> 3045 | H83: =G83/D83 -> 0.8172302738 | I83: =SUMIF($A$3:$A$80,"Central",I$3:I$80) -> 3165 | J83: =I83/D83 -> 0.8494363929 | K83: =SUMIF($A$3:$A$80,"Central",K$3:K$80) -> 3139 | L83: =K83/D83 -> 0.8424584004 | M83: =SUMIF($A$3:$A$80,"Central",M$3:M$80) -> 3119 | N83: =M83/D83 -> 0.8370907139 | O83: =SUMIF($A$3:$A$80,"Central",O$3:O$80) -> 3140 | P83: =O83/D83 -> 0.8427267848 | Q83: =SUMIF($A$3:$A$80,"Central",Q$3:Q$80) -> 3132 | R83: =Q83/D83 -> 0.8405797101 | S83: =SUMIF($A$3:$A$80,"Central",S$3:S$80) -> 2931 | T83: =S83/D83 -> 0.7866344605 | U83: =SUMIF($A$3:$A$80,"Central",U$3:U$80) -> 2698 | V83: =U83/D83 -> 0.7241009125 | W83: =SUMIF($A$3:$A$80,"Central",W$3:W$80) -> 3307 | X83: =W83/D83 -> 0.8875469673 | Y83: =SUMIF($A$3:$A$80,"Central",Y$3:Y$80) -> 1459 | Z83: =Y83/D83 -> 0.3915727322 | AC83: =cálculos1!P82 -> 1 | AD83: 0.1 | AE83: =cálculos1!Q82 -> 0 | AF83: 0
B84: Total Metropolitana | C84: =SUMIF($A$3:$A$80,"Metropolitana",C$3:C$80) -> 29863 | D84: =SUMIF($A$3:$A$80,"Metropolitana",D$3:D$80) -> 15569 | E84: =SUMIF($A$3:$A$80,"Metropolitana",E$3:E$80) -> 11415 | F84: =E84/D84 -> 0.7331877449 | G84: =SUMIF($A$3:$A$80,"Metropolitana",G$3:G$80) -> 13922 | H84: =G84/D84 -> 0.8942128589 | I84: =SUMIF($A$3:$A$80,"Metropolitana",I$3:I$80) -> 12897 | J84: =I84/D84 -> 0.8283769028 | K84: =SUMIF($A$3:$A$80,"Metropolitana",K$3:K$80) -> 12799 | L84: =K84/D84 -> 0.8220823431 | M84: =SUMIF($A$3:$A$80,"Metropolitana",M$3:M$80) -> 13073 | N84: =M84/D84 -> 0.8396814182 | O84: =SUMIF($A$3:$A$80,"Metropolitana",O$3:O$80) -> 12775 | P84: =O84/D84 -> 0.8205408183 | Q84: =SUMIF($A$3:$A$80,"Metropolitana",Q$3:Q$80) -> 12842 | R84: =Q84/D84 -> 0.8248442418 | S84: =SUMIF($A$3:$A$80,"Metropolitana",S$3:S$80) -> 10876 | T84: =S84/D84 -> 0.6985676665 | U84: =SUMIF($A$3:$A$80,"Metropolitana",U$3:U$80) -> 10750 | V84: =U84/D84 -> 0.6904746612 | W84: =SUMIF($A$3:$A$80,"Metropolitana",W$3:W$80) -> 13736 | X84: =W84/D84 -> 0.8822660415 | Y84: =SUMIF($A$3:$A$80,"Metropolitana",Y$3:Y$80) -> 5238 | Z84: =Y84/D84 -> 0.3364377931 | AC84: =cálculos1!P83 -> 0 | AD84: 0 | AE84: =cálculos1!Q83 -> 0 | AF84: 0
B85: Total Sul | C85: =SUMIF($A$3:$A$80,"sul",C$3:C$80) -> 8267 | D85: =SUMIF($A$3:$A$80,"sul",D$3:D$80) -> 4308 | E85: =SUMIF($A$3:$A$80,"Sul",E$3:E$80) -> 3330 | F85: =E85/D85 -> 0.7729805014 | G85: =SUMIF($A$3:$A$80,"Sul",G$3:G$80) -> 3992 | H85: =G85/D85 -> 0.9266480966 | I85: =SUMIF($A$3:$A$80,"Sul",I$3:I$80) -> 3937 | J85: =I85/D85 -> 0.9138811513 | K85: =SUMIF($A$3:$A$80,"Sul",K$3:K$80) -> 3908 | L85: =K85/D85 -> 0.9071494893 | M85: =SUMIF($A$3:$A$80,"Sul",M$3:M$80) -> 3916 | N85: =M85/D85 -> 0.9090064995 | O85: =SUMIF($A$3:$A$80,"Sul",O$3:O$80) -> 3809 | P85: =O85/D85 -> 0.8841689879 | Q85: =SUMIF($A$3:$A$80,"Sul",Q$3:Q$80) -> 3835 | R85: =Q85/D85 -> 0.8902042711 | S85: =SUMIF($A$3:$A$80,"Sul",S$3:S$80) -> 3298 | T85: =S85/D85 -> 0.7655524605 | U85: =SUMIF($A$3:$A$80,"Sul",U$3:U$80) -> 3547 | V85: =U85/D85 -> 0.8233519034 | W85: =SUMIF($A$3:$A$80,"Sul",W$3:W$80) -> 4276 | X85: =W85/D85 -> 0.9925719591 | Y85: =SUMIF($A$3:$A$80,"Sul",Y$3:Y$80) -> 1659 | Z85: =Y85/D85 -> 0.385097493 | AC85: =cálculos1!P84 -> 2 | AD85: 0.2 | AE85: =cálculos1!Q84 -> 1 | AF85: 0.25
B86: Total Espírito Santo | C86: =SUM(C3:C80) -> 51020 | D86: =SUM(D3:D80) -> 26655 | E86: =SUM(E82:E85) -> 19449 | F86: =E86/D86 -> 0.7296567248 | G86: =SUM(G82:G85) -> 23737 | H86: =G86/D86 -> 0.8905271056 | I86: =SUM(I82:I85) -> 22738 | J86: =I86/D86 -> 0.8530482086 | K86: =SUM(K82:K85) -> 22576 | L86: =K86/D86 -> 0.8469705496 | M86: =SUM(M82:M85) -> 22789 | N86: =M86/D86 -> 0.8549615457 | O86: =SUM(O82:O85) -> 22325 | P86: =O86/D86 -> 0.8375539298 | Q86: =SUM(Q82:Q85) -> 22420 | R86: =Q86/D86 -> 0.8411179891 | S86: =SUM(S82:S85) -> 19532 | T86: =S86/D86 -> 0.7327705871 | U86: =SUM(U82:U85) -> 19286 | V86: =U86/D86 -> 0.7235415494 | W86: =SUM(W82:W85) -> 24127 | X86: =W86/D86 -> 0.9051585068 | Y86: =SUM(Y82:Y85) -> 9644 | Z86: =Y86/D86 -> 0.3618082911 | AC86: =cálculos1!P85 -> 0 | AD86: 0 | AE86: =cálculos1!Q85 -> 0 | AF86: 0
E87: =COUNTIF(F3:F80,">=0,95") -> 2 | G87: =COUNTIF(H3:H80,">=0,9") -> 31 | I87: =COUNTIF(J3:J80,">=0,95") -> 30 | K87: =COUNTIF(L3:L80,">=0,95") -> 27 | M87: =COUNTIF(N3:N80,">=0,95") -> 28 | O87: =COUNTIF(P3:P80,">=0,9") -> 34 | Q87: =COUNTIF(R3:R80,">=0,95") -> 25 | S87: =COUNTIF(T3:T80,">=0,95") -> 23 | U87: =COUNTIF(V3:V80,">=0,95") -> 17 | W87: =COUNTIF(X3:X80,">=0,95") -> 40 | Y87: =COUNTIF(Z3:Z80,">=0,95") -> 1
B88: HOMOGENEIDADE ENTRE MUNICÍPIOS | E88: =E87/78 -> 0.02564102564 | G88: =G87/78 -> 0.3974358974 | I88: =I87/78 -> 0.3846153846 | K88: =K87/78 -> 0.3461538462 | M88: =M87/78 -> 0.358974359 | O88: =O87/78 -> 0.4358974359 | Q88: =Q87/78 -> 0.3205128205 | S88: =S87/78 -> 0.2948717949 | U88: =U87/78 -> 0.2179487179 | W88: =W87/78 -> 0.5128205128 | Y88: =Y87/78 -> 0.01282051282
A90: FonteVacina e Confia, em 03 de Julho de 2024.**
A91: **Dados referente às doses aplicadas no período de Janeiro a Junho de 2024
A92: Cobertura Calculada por município de residência do cidadão (no Vacina e Confia, a origem da informação é o endereço que consta no cadastro do cidadão preenchido manualmente por meio do autocadastro ou pelo cadastro realizado por um profissional de saúde no momento do atendimento).
A94: 1 População anual extraída do MS/SVS/DASIS - SINASC/DASIS/SVS/MS 2023 (hoje preliminares) referente ao período de março a dezembro de 2023 e SINASC/DASIS/SVS/MS 2024 referente ao período de janeiro a fevereiro de 2024.
A96: ² População proporcional extraída do MS/SVS/DASIS - SINASC/DASIS/SVS/MS 2023 (hoje preliminares) referente ao período de março e abril de 2023 somada a população extraída do SINASC/DASIS/SVS/MS 2024 referente ao período de janeiro e fevereiro de 2024.
A97: Sinasc, em 10 de Julho de 2024.
A98: Observações:
A99: Imunobiológicos que foram recebidos parcialmente pelo estado no mês da análise, sendo distribuídos em quantidades reduzidas às regionais e municípios: Varicela, Haemophilus influenzae tipo B, Soro Antirrábico Humano.
A100: Imunobiológicos que não foram recebidos pelo estado no mês da análise, não sendo possível a distribuição às regionais e municípios: Meningo C, Tetra viral, Sars-cov-10 Bivalente, DTPa (CRIE) e Sars-Cov2-10 Doses Pediátricas.
A101: Imunobiológicos com indisponibilidade de aquisição e distribuição no mês da análise:

Sheet CV REF 1A e 4A - procedência
G1: D2 | K1: REFORÇOS 1 ANO | S1: REFORÇOS 4 ANOS
A2: Regional | B2: Município | C2: ¹População 1 ano anual | D2: ²População 1 ano proporcional | E2: ³População 4 anos anual | F2: ³População 4 anos proporcional | G2: DOSES APLICADAS D2 TRÍPLICE VIRAL | H2: COBERTURA D2 TRÍPLICE VIRAL | I2: DOSES APLICADAS D2 VARICELA | J2: COBERTURA D2 VARICELA | K2: DOSES APLICADAS REF PNEUMO | L2: COBERTURA REF PNEUMO | M2: DOSES APLICADAS REF MENINGO | N2: COBERTURA REF MENINGO | O2: DOSES APLICADAS R1 POLIO | P2: COBERTURA R1 POLIO | Q2: DOSES APLICADAS R1 TRÍPLICE BACTERIANA | R2: COBERTURA R1 TRÍPLICE BACTERIANA | S2: DOSES APLICADAS REF FEBRE AMARELA | T2: COBERTURA REF FEBRE AMARELA | U2: DOSES APLICADAS R2 POLIO | V2: COBERTURA R2 POLIO | W2: DOSES APLICADAS R2 TRÍPLICE BACTERIANA | X2: COBERTURA R2 TRÍPLICE BACTERIANA
A3: Metropolitana | B3: Afonso Cláudio | C3: 374 | D3: 180 | E3: 416 | F3: =E3/12*6 -> 208 | G3: 184 | H3: =G3/D3 -> 1.022222222 | I3: 66 | J3: =I3/F3 -> 0.3173076923 | K3: 184 | L3: =K3/D3 -> 1.022222222 | M3: 188 | N3: =M3/D3 -> 1.044444444 | O3: 502 | P3: =O3/D3 -> 2.788888889 | Q3: 195 | R3: =Q3/D3 -> 1.083333333 | S3: 148 | T3: =S3/F3 -> 0.7115384615 | U3: 138 | V3: =U3/F3 -> 0.6634615385 | W3: 164 | X3: =W3/F3 -> 0.7884615385
A4: Norte | B4: Água Doce do Norte | C4: 181 | D4: 107 | E4: 151 | F4: =E4/12*6 -> 75.5 | G4: 61 | H4: 0.5700934579 | I4: 33 | J4: 0.4370860927 | K4: 74 | L4: 0.691588785 | M4: 75 | N4: 0.7009345794 | O4: 137 | P4: 1.280373832 | Q4: 71 | R4: 0.6635514019 | S4: 56 | T4: 0.7417218543 | U4: 78 | V4: 1.033112583 | W4: 71 | X4: 0.940397351
A5: Central | B5: Águia Branca | C5: 167 | D5: 82 | E5: 129 | F5: 64.5 | G5: 41 | H5: 0.5 | I5: 21 | J5: 0.3255813953 | K5: 54 | L5: 0.6585365854 | M5: 57 | N5: 0.6951219512 | O5: 80 | P5: 0.9756097561 | Q5: 55 | R5: 0.6707317073 | S5: 49 | T5: 0.7596899225 | U5: 60 | V5: 0.9302325581 | W5: 61 | X5: 0.9457364341
A6: Sul | B6: Alegre | C6: 335 | D6: 164 | E6: 372 | F6: 186 | G6: 133 | H6: 0.8109756098 | I6: 97 | J6: 0.5215053763 | K6: 157 | L6: 0.9573170732 | M6: 161 | N6: 0.9817073171 | O6: 366 | P6: 2.231707317 | Q6: 151 | R6: 0.9207317073 | S6: 178 | T6: 0.9569892473 | U6: 207 | V6: 1.112903226 | W6: 211 | X6: 1.134408602
A7: Sul | B7: Alfredo Chaves | C7: 142 | D7: 66 | E7: 138 | F7: 69 | G7: 66 | H7: 1 | I7: 38 | J7: 0.5507246377 | K7: 74 | L7: 1.121212121 | M7: 78 | N7: 1.181818182 | O7: 197 | P7: 2.984848485 | Q7: 67 | R7: 1.015151515 | S7: 61 | T7: 0.884057971 | U7: 76 | V7: 1.101449275 | W7: 75 | X7: 1.086956522
A8: Central | B8: Alto Rio Novo | C8: 81 | D8: 36 | E8: 102 | F8: 51 | G8: 45 | H8: 1.25 | I8: 17 | J8: 0.3333333333 | K8: 43 | L8: 1.194444444 | M8: 43 | N8: 1.194444444 | O8: 98 | P8: 2.722222222 | Q8: 51 | R8: 1.416666667 | S8: 35 | T8: 0.6862745098 | U8: 32 | V8: 0.6274509804 | W8: 32 | X8: 0.6274509804
A9: Sul | B9: Anchieta | C9: 382 | D9: 194 | E9: 390 | F9: 195 | G9: 153 | H9: 0.7886597938 | I9: 87 | J9: 0.4461538462 | K9: 212 | L9: 1.092783505 | M9: 217 | N9: 1.118556701 | O9: 425 | P9: 2.190721649 | Q9: 196 | R9: 1.010309278 | S9: 180 | T9: 0.9230769231 | U9: 242 | V9: 1.241025641 | W9: 245 | X9: 1.256410256
A10: Sul | B10: Apiacá | C10: 61 | D10: 45 | E10: 90 | F10: 45 | G10: 18 | H10: 0.4 | I10: 23 | J10: 0.5111111111 | K10: 39 | L10: 0.8666666667 | M10: 40 | N10: 0.8888888889 | O10: 61 | P10: 1.355555556 | Q10: 23 | R10: 0.5111111111 | S10: 3 | T10: 0.06666666667 | U10: 39 | V10: 0.8666666667 | W10: 38 | X10: 0.8444444444
A11: Metropolitana | B11: Aracruz | C11: 1456 | D11: 765 | E11: 1420 | F11: 710 | G11: 665 | H11: 0.8692810458 | I11: 350 | J11: 0.4929577465 | K11: 788 | L11: 1.030065359 | M11: 820 | N11: 1.071895425 | O11: 1340 | P11: 1.751633987 | Q11: 753 | R11: 0.9843137255 | S11: 533 | T11: 0.7507042254 | U11: 654 | V11: 0.9211267606 | W11: 660 | X11: 0.9295774648
A12: Sul | B12: Atilio Vivacqua | C12: 136 | D12: 73 | E12: 138 | F12: 69 | G12: 51 | H12: 0.698630137 | I12: 20 | J12: 0.2898550725 | K12: 85 | L12: 1.164383562 | M12: 86 | N12: 1.178082192 | O12: 161 | P12: 2.205479452 | Q12: 82 | R12: 1.123287671 | S12: 52 | T12: 0.7536231884 | U12: 56 | V12: 0.8115942029 | W12: 57 | X12: 0.8260869565
A13: Central | B13: Baixo Guandu | C13: 325 | D13: 181 | E13: 427 | F13: 213.5 | G13: 166 | H13: 0.9171270718 | I13: 71 | J13: 0.3325526932 | K13: 201 | L13: 1.110497238 | M13: 208 | N13: 1.149171271 | O13: 439 | P13: 2.425414365 | Q13: 207 | R13: 1.143646409 | S13: 161 | T13: 0.7540983607 | U13: 203 | V13: 0.9508196721 | W13: 194 | X13: 0.9086651054
A14: Norte | B14: Barra de São Francisco | C14: 564 | D14: 303 | E14: 589 | F14: 294.5 | G14: 255 | H14: 0.8415841584 | I14: 126 | J14: 0.4278438031 | K14: 278 | L14: 0.9174917492 | M14: 278 | N14: 0.9174917492 | O14: 441 | P14: 1.455445545 | Q14: 263 | R14: 0.8679867987 | S14: 242 | T14: 0.8217317487 | U14: 250 | V14: 0.8488964346 | W14: 255 | X14: 0.8658743633
A15: Norte | B15: Boa Esperança | C15: 200 | D15: 104 | E15: 200 | F15: 100 | G15: 58 | H15: 0.5576923077 | I15: 49 | J15: 0.49 | K15: 109 | L15: 1.048076923 | M15: 112 | N15: 1.076923077 | O15: 220 | P15: 2.115384615 | Q15: 95 | R15: 0.9134615385 | S15: 64 | T15: 0.64 | U15: 105 | V15: 1.05 | W15: 87 | X15: 0.87
A16: Sul | B16: Bom Jesus do Norte | C16: 68 | D16: 41 | E16: 146 | F16: 73 | G16: 39 | H16: 0.9512195122 | I16: 17 | J16: 0.2328767123 | K16: 74 | L16: 1.804878049 | M16: 75 | N16: 1.829268293 | O16: 113 | P16: 2.756097561 | Q16: 55 | R16: 1.341463415 | S16: 55 | T16: 0.7534246575 | U16: 54 | V16: 0.7397260274 | W16: 63 | X16: 0.8630136986
A17: Metropolitana | B17: Brejetuba | C17: 205 | D17: 112 | E17: 169 | F17: 84.5 | G17: 96 | H17: 0.8571428571 | I17: 46 | J17: 0.5443786982 | K17: 94 | L17: 0.8392857143 | M17: 99 | N17: 0.8839285714 | O17: 234 | P17: 2.089285714 | Q17: 94 | R17: 0.8392857143 | S17: 96 | T17: 1.136094675 | U17: 106 | V17: 1.25443787 | W17: 106 | X17: 1.25443787
A18: Sul | B18: Cachoeiro de Itapemirim | C18: 2481 | D18: 1354 | E18: 2417 | F18: 1208.5 | G18: 887 | H18: 0.6550960118 | I18: 404 | J18: 0.3342987174 | K18: 1198 | L18: 0.8847858198 | M18: 1259 | N18: 0.9298375185 | O18: 1763 | P18: 1.302067947 | Q18: 1078 | R18: 0.7961595273 | S18: 714 | T18: 0.59081506 | U18: 930 | V18: 0.7695490277 | W18: 977 | X18: 0.8084402151
A19: Metropolitana | B19: Cariacica | C19: 4900 | D19: 2550 | E19: 5005 | F19: 2502.5 | G19: 1579 | H19: 0.6192156863 | I19: 907 | J19: 0.3624375624 | K19: 2382 | L19: 0.9341176471 | M19: 2449 | N19: 0.9603921569 | O19: 3112 | P19: 1.220392157 | Q19: 2082 | R19: 0.8164705882 | S19: 1906 | T19: 0.7616383616 | U19: 2437 | V19: 0.9738261738 | W19: 2435 | X19: 0.973026973
A20: Sul | B20: Castelo | C20: 451 | D20: 235 | E20: 399 | F20: 199.5 | G20: 192 | H20: 0.8170212766 | I20: 70 | J20: 0.350877193 | K20: 236 | L20: 1.004255319 | M20: 231 | N20: 0.9829787234 | O20: 492 | P20: 2.093617021 | Q20: 216 | R20: 0.9191489362 | S20: 144 | T20: 0.7218045113 | U20: 181 | V20: 0.9072681704 | W20: 189 | X20: 0.9473684211
A21: Central | B21: Colatina | C21: 1544 | D21: 806 | E21: 1561 | F21: 780.5 | G21: 505 | H21: 0.6265508685 | I21: 201 | J21: 0.2575272261 | K21: 711 | L21: 0.882133995 | M21: 751 | N21: 0.9317617866 | O21: 915 | P21: 1.135235732 | Q21: 634 | R21: 0.7866004963 | S21: 429 | T21: 0.5496476618 | U21: 536 | V21: 0.6867392697 | W21: 546 | X21: 0.6995515695
A22: Norte | B22: Conceição da Barra | C22: 383 | D22: 197 | E22: 391 | F22: 195.5 | G22: 150 | H22: 0.7614213198 | I22: 100 | J22: 0.5115089514 | K22: 195 | L22: 0.9898477157 | M22: 197 | N22: 1 | O22: 406 | P22: 2.060913706 | Q22: 179 | R22: 0.9086294416 | S22: 168 | T22: 0.8593350384 | U22: 227 | V22: 1.16112532 | W22: 237 | X22: 1.212276215
A23: Metropolitana | B23: Conceição do Castelo | C23: 162 | D23: 92 | E23: 144 | F23: 72 | G23: 66 | H23: 0.7173913043 | I23: 37 | J23: 0.5138888889 | K23: 62 | L23: 0.6739130435 | M23: 66 | N23: 0.7173913043 | O23: 172 | P23: 1.869565217 | Q23: 67 | R23: 0.7282608696 | S23: 60 | T23: 0.8333333333 | U23: 66 | V23: 0.9166666667 | W23: 65 | X23: 0.9027777778
A24: Sul | B24: Divino de São Lourenço | C24: 69 | D24: 39 | E24: 68 | F24: 34 | G24: 24 | H24: 0.6153846154 | I24: 16 | J24: 0.4705882353 | K24: 26 | L24: 0.6666666667 | M24: 26 | N24: 0.6666666667 | O24: 63 | P24: 1.615384615 | Q24: 25 | R24: 0.641025641 | S24: 42 | T24: 1.235294118 | U24: 39 | V24: 1.147058824 | W24: 36 | X24: 1.058823529
A25: Metropolitana | B25: Domingos Martins | C25: 423 | D25: 226 | E25: 411 | F25: 205.5 | G25: 190 | H25: 0.8407079646 | I25: 121 | J25: 0.5888077859 | K25: 216 | L25: 0.9557522124 | M25: 206 | N25: 0.9115044248 | O25: 454 | P25: 2.008849558 | Q25: 217 | R25: 0.9601769912 | S25: 177 | T25: 0.8613138686 | U25: 208 | V25: 1.01216545 | W25: 217 | X25: 1.055961071
A26: Sul | B26: Dores do Rio Preto | C26: 73 | D26: 42 | E26: 92 | F26: 46 | G26: 32 | H26: 0.7619047619 | I26: 16 | J26: 0.347826087 | K26: 63 | L26: 1.5 | M26: 65 | N26: 1.547619048 | O26: 87 | P26: 2.071428571 | Q26: 41 | R26: 0.9761904762 | S26: 39 | T26: 0.847826087 | U26: 38 | V26: 0.8260869565 | W26: 41 | X26: 0.8913043478
A27: Norte | B27: Ecoporanga | C27: 269 | D27: 147 | E27: 283 | F27: 141.5 | G27: 109 | H27: 0.7414965986 | I27: 68 | J27: 0.480565371 | K27: 123 | L27: 0.8367346939 | M27: 127 | N27: 0.8639455782 | O27: 214 | P27: 1.455782313 | Q27: 110 | R27: 0.7482993197 | S27: 113 | T27: 0.7985865724 | U27: 116 | V27: 0.8197879859 | W27: 119 | X27: 0.8409893993
A28: Metropolitana | B28: Fundão | C28: 223 | D28: 121 | E28: 218 | F28: 109 | G28: 89 | H28: 0.7355371901 | I28: 56 | J28: 0.5137614679 | K28: 110 | L28: 0.9090909091 | M28: 115 | N28: 0.9504132231 | O28: 207 | P28: 1.710743802 | Q28: 98 | R28: 0.8099173554 | S28: 85 | T28: 0.7798165138 | U28: 102 | V28: 0.9357798165 | W28: 99 | X28: 0.9082568807
A29: Central | B29: Governador Lindenberg | C29: 139 | D29: 71 | E29: 142 | F29: 71 | G29: 52 | H29: 0.7323943662 | I29: 32 | J29: 0.4507042254 | K29: 78 | L29: 1.098591549 | M29: 80 | N29: 1.126760563 | O29: 143 | P29: 2.014084507 | Q29: 58 | R29: 0.8169014085 | S29: 57 | T29: 0.8028169014 | U29: 64 | V29: 0.9014084507 | W29: 67 | X29: 0.9436619718
A30: Sul | B30: Guaçuí | C30: 415 | D30: 213 | E30: 407 | F30: 203.5 | G30: 180 | H30: 0.8450704225 | I30: 43 | J30: 0.2113022113 | K30: 198 | L30: 0.9295774648 | M30: 203 | N30: 0.9530516432 | O30: 367 | P30: 1.723004695 | Q30: 175 | R30: 0.8215962441 | S30: 136 | T30: 0.6683046683 | U30: 154 | V30: 0.7567567568 | W30: 150 | X30: 0.7371007371
A31: Metropolitana | B31: Guarapari | C31: 1752 | D31: 932 | E31: 1557 | F31: 778.5 | G31: 521 | H31: 0.5590128755 | I31: 311 | J31: 0.3994861914 | K31: 848 | L31: 0.9098712446 | M31: 829 | N31: 0.8894849785 | O31: 1123 | P31: 1.204935622 | Q31: 721 | R31: 0.7736051502 | S31: 501 | T31: 0.6435452794 | U31: 702 | V31: 0.901734104 | W31: 729 | X31: 0.936416185
A32: Metropolitana | B32: Ibatiba | C32: 285 | D32: 170 | E32: 354 | F32: 177 | G32: 161 | H32: 0.9470588235 | I32: 38 | J32: 0.2146892655 | K32: 191 | L32: 1.123529412 | M32: 195 | N32: 1.147058824 | O32: 314 | P32: 1.847058824 | Q32: 174 | R32: 1.023529412 | S32: 140 | T32: 0.790960452 | U32: 143 | V32: 0.8079096045 | W32: 156 | X32: 0.8813559322
A33: Metropolitana | B33: Ibiraçu | C33: 155 | D33: 86 | E33: 160 | F33: 80 | G33: 40 | H33: 0.4651162791 | I33: 40 | J33: 0.5 | K33: 68 | L33: 0.7906976744 | M33: 71 | N33: 0.8255813953 | O33: 156 | P33: 1.813953488 | Q33: 47 | R33: 0.5465116279 | S33: 54 | T33: 0.675 | U33: 63 | V33: 0.7875 | W33: 65 | X33: 0.8125
A34: Sul | B34: Ibitirama | C34: 130 | D34: 65 | E34: 148 | F34: 74 | G34: 58 | H34: 0.8923076923 | I34: 13 | J34: 0.1756756757 | K34: 71 | L34: 1.092307692 | M34: 73 | N34: 1.123076923 | O34: 126 | P34: 1.938461538 | Q34: 65 | R34: 1 | S34: 16 | T34: 0.2162162162 | U34: 29 | V34: 0.3918918919 | W34: 20 | X34: 0.2702702703
A35: Sul | B35: Iconha | C35: 119 | D35: 61 | E35: 156 | F35: 78 | G35: 76 | H35: =G35/D35 -> 1.245901639 | I35: 24 | J35: =I35/F35 -> 0.3076923077 | K35: 76 | L35: =K35/D35 -> 1.245901639 | M35: 81 | N35: =M35/D35 -> 1.327868852 | O35: 118 | P35: =O35/D35 -> 1.93442623 | Q35: 64 | R35: =Q35/D35 -> 1.049180328 | S35: 66 | T35: =S35/F35 -> 0.8461538462 | U35: 63 | V35: =U35/F35 -> 0.8076923077 | W35: 65 | X35: =W35/F35 -> 0.8333333333
A36: Sul | B36: Irupi | C36: 149 | D36: 81 | E36: 200 | F36: 100 | G36: 78 | H36: 0.962962963 | I36: 41 | J36: 0.41 | K36: 124 | L36: 1.530864198 | M36: 127 | N36: 1.567901235 | O36: 189 | P36: 2.333333333 | Q36: 96 | R36: 1.185185185 | S36: 100 | T36: 1 | U36: 103 | V36: 1.03 | W36: 115 | X36: 1.15
A37: Metropolitana | B37: Itaguaçu | C37: 137 | D37: 78 | E37: 154 | F37: 77 | G37: 76 | H37: 0.9743589744 | I37: 22 | J37: 0.2857142857 | K37: 71 | L37: 0.9102564103 | M37: 77 | N37: 0.9871794872 | O37: 181 | P37: 2.320512821 | Q37: 69 | R37: 0.8846153846 | S37: 56 | T37: 0.7272727273 | U37: 73 | V37: 0.9480519481 | W37: 74 | X37: 0.961038961
A38: Sul | B38: Itapemirim | C38: 540 | D38: 243 | E38: 556 | F38: 278 | G38: 174 | H38: 0.7160493827 | I38: 92 | J38: 0.3309352518 | K38: 263 | L38: 1.082304527 | M38: 277 | N38: 1.139917695 | O38: 441 | P38: 1.814814815 | Q38: 248 | R38: 1.020576132 | S38: 128 | T38: 0.4604316547 | U38: 257 | V38: 0.9244604317 | W38: 259 | X38: 0.9316546763
A39: Metropolitana | B39: Itarana | C39: 147 | D39: 85 | E39: 128 | F39: 64 | G39: 44 | H39: 0.5176470588 | I39: 41 | J39: 0.640625 | K39: 62 | L39: 0.7294117647 | M39: 69 | N39: 0.8117647059 | O39: 144 | P39: 1.694117647 | Q39: 53 | R39: 0.6235294118 | S39: 52 | T39: 0.8125 | U39: 61 | V39: 0.953125 | W39: 63 | X39: 0.984375
A40: Sul | B40: Iúna | C40: 406 | D40: 186 | E40: 410 | F40: 205 | G40: 168 | H40: 0.9032258065 | I40: 87 | J40: 0.4243902439 | K40: 221 | L40: 1.188172043 | M40: 239 | N40: 1.284946237 | O40: 352 | P40: 1.892473118 | Q40: 182 | R40: 0.9784946237 | S40: 158 | T40: 0.7707317073 | U40: 191 | V40: 0.9317073171 | W40: 192 | X40: 0.9365853659
A41: Norte | B41: Jaguaré | C41: 510 | D41: 291 | E41: 445 | F41: 222.5 | G41: 183 | H41: 0.6288659794 | I41: 89 | J41: 0.4 | K41: 251 | L41: 0.8625429553 | M41: 252 | N41: 0.8659793814 | O41: 422 | P41: 1.450171821 | Q41: 215 | R41: 0.7388316151 | S41: 184 | T41: 0.8269662921 | U41: 244 | V41: 1.096629213 | W41: 246 | X41: 1.105617978
A42: Sul | B42: Jerônimo Monteiro | C42: 161 | D42: 82 | E42: 157 | F42: 78.5 | G42: 69 | H42: 0.8414634146 | I42: 15 | J42: 0.1910828025 | K42: 78 | L42: 0.9512195122 | M42: 79 | N42: 0.9634146341 | O42: 156 | P42: 1.902439024 | Q42: 84 | R42: 1.024390244 | S42: 59 | T42: 0.7515923567 | U42: 69 | V42: 0.8789808917 | W42: 74 | X42: 0.9426751592
A43: Metropolitana | B43: João Neiva | C43: 172 | D43: 84 | E43: 142 | F43: 71 | G43: 73 | H43: 0.869047619 | I43: 25 | J43: 0.3521126761 | K43: 93 | L43: 1.107142857 | M43: 102 | N43: 1.214285714 | O43: 165 | P43: 1.964285714 | Q43: 73 | R43: 0.869047619 | S43: 58 | T43: 0.8169014085 | U43: 70 | V43: 0.985915493 | W43: 65 | X43: 0.9154929577
A44: Metropolitana | B44: Laranja da Terra | C44: 92 | D44: 48 | E44: 133 | F44: 66.5 | G44: 60 | H44: 1.25 | I44: 45 | J44: 0.6766917293 | K44: 70 | L44: 1.458333333 | M44: 73 | N44: 1.520833333 | O44: 162 | P44: 3.375 | Q44: 62 | R44: 1.291666667 | S44: 54 | T44: 0.8120300752 | U44: 56 | V44: 0.8421052632 | W44: 56 | X44: 0.8421052632
A45: Central | B45: Linhares | C45: 2598 | D45: 1358 | E45: 2452 | F45: 1226 | G45: 810 | H45: 0.5964653903 | I45: 395 | J45: 0.3221859706 | K45: 1066 | L45: 0.7849779087 | M45: 1104 | N45: 0.8129602356 | O45: 1907 | P45: 1.404270987 | Q45: 1056 | R45: 0.7776141384 | S45: 824 | T45: 0.6721044046 | U45: 994 | V45: 0.810766721 | W45: 1100 | X45: 0.8972267537
A46: Central | B46: Mantenópolis | C46: 151 | D46: 83 | E46: 166 | F46: 83 | G46: 57 | H46: 0.686746988 | I46: 36 | J46: 0.4337349398 | K46: 84 | L46: 1.012048193 | M46: 82 | N46: 0.9879518072 | O46: 147 | P46: 1.771084337 | Q46: 70 | R46: 0.843373494 | S46: 63 | T46: 0.7590361446 | U46: 62 | V46: 0.7469879518 | W46: 73 | X46: 0.8795180723
A47: Sul | B47: Marataízes | C47: 553 | D47: 297 | E47: 579 | F47: 289.5 | G47: 229 | H47: 0.771043771 | I47: 106 | J47: 0.366148532 | K47: 323 | L47: 1.087542088 | M47: 323 | N47: 1.087542088 | O47: 486 | P47: 1.636363636 | Q47: 275 | R47: 0.9259259259 | S47: 157 | T47: 0.5423143351 | U47: 289 | V47: 0.9982728843 | W47: 285 | X47: 0.9844559585
A48: Metropolitana | B48: Marechal Floriano | C48: 224 | D48: 113 | E48: 236 | F48: 118 | G48: 91 | H48: 0.8053097345 | I48: 78 | J48: 0.6610169492 | K48: 118 | L48: 1.044247788 | M48: 114 | N48: 1.008849558 | O48: 208 | P48: 1.840707965 | Q48: 99 | R48: 0.8761061947 | S48: 79 | T48: 0.6694915254 | U48: 90 | V48: 0.7627118644 | W48: 89 | X48: 0.7542372881
A49: Central | B49: Marilândia | C49: 171 | D49: 83 | E49: 164 | F49: 82 | G49: 63 | H49: 0.7590361446 | I49: 36 | J49: 0.4390243902 | K49: 64 | L49: 0.7710843373 | M49: 69 | N49: 0.8313253012 | O49: 153 | P49: 1.843373494 | Q49: 63 | R49: 0.7590361446 | S49: 65 | T49: 0.7926829268 | U49: 73 | V49: 0.8902439024 | W49: 72 | X49: 0.8780487805
A50: Sul | B50: Mimoso do Sul | C50: 267 | D50: 139 | E50: 276 | F50: 138 | G50: 76 | H50: 0.5467625899 | I50: 69 | J50: 0.5 | K50: 98 | L50: 0.7050359712 | M50: 106 | N50: 0.7625899281 | O50: 160 | P50: 1.151079137 | Q50: 87 | R50: 0.6258992806 | S50: 107 | T50: 0.7753623188 | U50: 99 | V50: 0.7173913043 | W50: 105 | X50: 0.7608695652
A51: Norte | B51: Montanha | C51: 232 | D51: 113 | E51: 278 | F51: 139 | G51: 117 | H51: 1.03539823 | I51: 65 | J51: 0.4676258993 | K51: 125 | L51: 1.10619469 | M51: 129 | N51: 1.14159292 | O51: 269 | P51: 2.380530973 | Q51: 126 | R51: 1.115044248 | S51: 115 | T51: 0.8273381295 | U51: 125 | V51: 0.8992805755 | W51: 131 | X51: 0.9424460432
A52: Norte | B52: Mucurici | C52: 66 | D52: 31 | E52: 97 | F52: 48.5 | G52: 27 | H52: 0.8709677419 | I52: 23 | J52: 0.4742268041 | K52: 44 | L52: 1.419354839 | M52: 46 | N52: 1.483870968 | O52: 47 | P52: 1.516129032 | Q52: 26 | R52: 0.8387096774 | S52: 35 | T52: 0.7216494845 | U52: 35 | V52: 0.7216494845 | W52: 37 | X52: 0.7628865979
A53: Sul | B53: Muniz Freire | C53: 204 | D53: 103 | E53: 275 | F53: 137.5 | G53: 109 | H53: 1.058252427 | I53: 27 | J53: 0.1963636364 | K53: 132 | L53: 1.281553398 | M53: 130 | N53: 1.262135922 | O53: 282 | P53: 2.737864078 | Q53: 116 | R53: 1.126213592 | S53: 109 | T53: 0.7927272727 | U53: 125 | V53: 0.9090909091 | W53: 122 | X53: 0.8872727273
A54: Sul | B54: Muqui | C54: 164 | D54: 78 | E54: 152 | F54: 76 | G54: 67 | H54: 0.858974359 | I54: 43 | J54: 0.5657894737 | K54: 72 | L54: 0.9230769231 | M54: 71 | N54: 0.9102564103 | O54: 196 | P54: 2.512820513 | Q54: 63 | R54: 0.8076923077 | S54: 64 | T54: 0.8421052632 | U54: 63 | V54: 0.8289473684 | W54: 64 | X54: 0.8421052632
A55: Norte | B55: Nova Venécia | C55: 678 | D55: 374 | E55: 656 | F55: 328 | G55: 323 | H55: 0.8636363636 | I55: 116 | J55: 0.3536585366 | K55: 324 | L55: 0.8663101604 | M55: 351 | N55: 0.9385026738 | O55: 556 | P55: 1.486631016 | Q55: 310 | R55: 0.8288770053 | S55: 254 | T55: 0.7743902439 | U55: 283 | V55: 0.862804878 | W55: 281 | X55: 0.8567073171
A56: Central | B56: Pancas | C56: 217 | D56: 106 | E56: 244 | F56: 122 | G56: 104 | H56: 0.9811320755 | I56: 39 | J56: 0.3196721311 | K56: 100 | L56: 0.9433962264 | M56: 106 | N56: 1 | O56: 247 | P56: 2.330188679 | Q56: 104 | R56: 0.9811320755 | S56: 93 | T56: 0.762295082 | U56: 106 | V56: 0.868852459 | W56: 105 | X56: 0.8606557377
A57: Norte | B57: Pedro Canário | C57: 305 | D57: 163 | E57: 338 | F57: 169 | G57: 148 | H57: 0.9079754601 | I57: 90 | J57: 0.5325443787 | K57: 183 | L57: 1.122699387 | M57: 183 | N57: 1.122699387 | O57: 332 | P57: 2.036809816 | Q57: 185 | R57: 1.134969325 | S57: 142 | T57: 0.8402366864 | U57: 152 | V57: 0.899408284 | W57: 161 | X57: 0.9526627219
A58: Norte | B58: Pinheiros | C58: 325 | D58: 168 | E58: 383 | F58: 191.5 | G58: 85 | H58: 0.505952381 | I58: 76 | J58: 0.3968668407 | K58: 150 | L58: 0.8928571429 | M58: 150 | N58: 0.8928571429 | O58: 218 | P58: 1.297619048 | Q58: 112 | R58: 0.6666666667 | S58: 121 | T58: 0.6318537859 | U58: 142 | V58: 0.7415143603 | W58: 144 | X58: 0.7519582245
A59: Sul | B59: Piúma | C59: 303 | D59: 151 | E59: 311 | F59: 155.5 | G59: 67 | H59: 0.4437086093 | I59: 46 | J59: 0.2958199357 | K59: 141 | L59: 0.9337748344 | M59: 134 | N59: 0.8874172185 | O59: 249 | P59: 1.649006623 | Q59: 126 | R59: 0.8344370861 | S59: 97 | T59: 0.6237942122 | U59: 147 | V59: 0.9453376206 | W59: 151 | X59: 0.9710610932
A60: Norte | B60: Ponto Belo | C60: 75 | D60: 35 | E60: 85 | F60: 42.5 | G60: 37 | H60: 1.057142857 | I60: 16 | J60: 0.3764705882 | K60: 43 | L60: 1.228571429 | M60: 45 | N60: 1.285714286 | O60: 99 | P60: 2.828571429 | Q60: 37 | R60: 1.057142857 | S60: 41 | T60: 0.9647058824 | U60: 36 | V60: 0.8470588235 | W60: 35 | X60: 0.8235294118
A61: Sul | B61: Presidente Kennedy | C61: 196 | D61: 115 | E61: 239 | F61: 119.5 | G61: 104 | H61: 0.9043478261 | I61: 40 | J61: 0.3347280335 | K61: 126 | L61: 1.095652174 | M61: 126 | N61: 1.095652174 | O61: 233 | P61: 2.026086957 | Q61: 103 | R61: 0.8956521739 | S61: 102 | T61: 0.8535564854 | U61: 114 | V61: 0.9539748954 | W61: 115 | X61: 0.9623430962
A62: Central | B62: Rio Bananal | C62: 301 | D62: 167 | E62: 229 | F62: 114.5 | G62: 153 | H62: 0.9161676647 | I62: 62 | J62: 0.5414847162 | K62: 155 | L62: 0.9281437126 | M62: 173 | N62: 1.035928144 | O62: 394 | P62: 2.359281437 | Q62: 154 | R62: 0.9221556886 | S62: 146 | T62: 1.27510917 | U62: 139 | V62: 1.213973799 | W62: 142 | X62: 1.240174672
A63: Sul | B63: Rio Novo do Sul | C63: 118 | D63: 56 | E63: 144 | F63: 72 | G63: 49 | H63: 0.875 | I63: 37 | J63: 0.5138888889 | K63: 62 | L63: 1.107142857 | M63: 66 | N63: 1.178571429 | O63: 125 | P63: 2.232142857 | Q63: 62 | R63: 1.107142857 | S63: 53 | T63: 0.7361111111 | U63: 61 | V63: 0.8472222222 | W63: 63 | X63: 0.875
A64: Metropolitana | B64: Santa Leopoldina | C64: 95 | D64: 38 | E64: 155 | F64: 77.5 | G64: 30 | H64: 0.7894736842 | I64: 15 | J64: 0.1935483871 | K64: 69 | L64: 1.815789474 | M64: 69 | N64: 1.815789474 | O64: 136 | P64: 3.578947368 | Q64: 60 | R64: 1.578947368 | S64: 47 | T64: 0.6064516129 | U64: 52 | V64: 0.6709677419 | W64: 58 | X64: 0.7483870968
A65: Metropolitana | B65: Santa Maria de Jetibá | C65: 640 | D65: 319 | E65: 685 | F65: 342.5 | G65: 289 | H65: 0.9059561129 | I65: 104 | J65: 0.303649635 | K65: 335 | L65: 1.05015674 | M65: 356 | N65: 1.115987461 | O65: 574 | P65: 1.799373041 | Q65: 316 | R65: 0.9905956113 | S65: 222 | T65: 0.6481751825 | U65: 293 | V65: 0.8554744526 | W65: 292 | X65: 0.8525547445
A66: Metropolitana | B66: Santa Teresa | C66: 306 | D66: 158 | E66: 260 | F66: 130 | G66: 98 | H66: 0.6202531646 | I66: 84 | J66: 0.6461538462 | K66: 131 | L66: 0.8291139241 | M66: 136 | N66: 0.8607594937 | O66: 242 | P66: 1.53164557 | Q66: 100 | R66: 0.6329113924 | S66: 114 | T66: 0.8769230769 | U66: 123 | V66: 0.9461538462 | W66: 116 | X66: 0.8923076923
A67: Central | B67: São Domingos do Norte | C67: 121 | D67: 65 | E67: 117 | F67: 58.5 | G67: 33 | H67: =G67/D67 -> 0.5076923077 | I67: 17 | J67: =I67/F67 -> 0.2905982906 | K67: 52 | L67: =K67/D67 -> 0.8 | M67: 55 | N67: =M67/D67 -> 0.8461538462 | O67: 73 | P67: =O67/D67 -> 1.123076923 | Q67: 34 | R67: =Q67/D67 -> 0.5230769231 | S67: 42 | T67: =S67/F67 -> 0.7179487179 | U67: 41 | V67: =U67/F67 -> 0.7008547009 | W67: 42 | X67: =W67/F67 -> 0.7179487179
A68: Central | B68: São Gabriel da Palha | C68: 457 | D68: 234 | E68: 426 | F68: =E68/12*6 -> 213 | G68: 166 | H68: 0.7094017094 | I68: 78 | J68: 0.3661971831 | K68: 202 | L68: 0.8632478632 | M68: 200 | N68: 0.8547008547 | O68: 365 | P68: 1.55982906 | Q68: 174 | R68: 0.7435897436 | S68: 205 | T68: 0.9624413146 | U68: 215 | V68: 1.009389671 | W68: 204 | X68: 0.9577464789
A69: Sul | B69: São José do Calçado | C69: 80 | D69: 44 | E69: 150 | F69: 75 | G69: 54 | H69: 1.227272727 | I69: 21 | J69: 0.28 | K69: 63 | L69: 1.431818182 | M69: 63 | N69: 1.431818182 | O69: 88 | P69: 2 | Q69: 54 | R69: 1.227272727 | S69: 68 | T69: 0.9066666667 | U69: 69 | V69: 0.92 | W69: 69 | X69: 0.92
A70: Norte | B70: São Mateus | C70: 1923 | D70: 972 | E70: 1766 | F70: 883 | G70: 547 | H70: 0.5627572016 | I70: 370 | J70: 0.4190260476 | K70: 858 | L70: 0.8827160494 | M70: 872 | N70: 0.8971193416 | O70: 1208 | P70: 1.242798354 | Q70: 733 | R70: 0.7541152263 | S70: 624 | T70: 0.7066817667 | U70: 735 | V70: 0.832389581 | W70: 755 | X70: 0.8550396376
A71: Central | B71: São Roque do Canaã | C71: 130 | D71: 84 | E71: 100 | F71: 50 | G71: 60 | H71: 0.7142857143 | I71: 34 | J71: 0.68 | K71: 69 | L71: 0.8214285714 | M71: 73 | N71: 0.869047619 | O71: 149 | P71: 1.773809524 | Q71: 58 | R71: 0.6904761905 | S71: 47 | T71: 0.94 | U71: 53 | V71: 1.06 | W71: 54 | X71: 1.08
A72: Metropolitana | B72: Serra | C72: 7354 | D72: 3900 | E72: 7550 | F72: 3775 | G72: 2252 | H72: 0.5774358974 | I72: 1036 | J72: 0.2744370861 | K72: 3190 | L72: 0.8179487179 | M72: 3252 | N72: 0.8338461538 | O72: 4120 | P72: 1.056410256 | Q72: 2890 | R72: 0.741025641 | S72: 3003 | T72: 0.7954966887 | U72: 3465 | V72: 0.9178807947 | W72: 3448 | X72: 0.9133774834
A73: Central | B73: Sooretama | C73: 442 | D73: 245 | E73: 415 | F73: 207.5 | G73: 147 | H73: 0.6 | I73: 88 | J73: 0.4240963855 | K73: 220 | L73: 0.8979591837 | M73: 228 | N73: 0.9306122449 | O73: 483 | P73: 1.971428571 | Q73: 194 | R73: 0.7918367347 | S73: 248 | T73: 1.195180723 | U73: 235 | V73: 1.13253012 | W73: 238 | X73: 1.146987952
A74: Sul | B74: Vargem Alta | C74: 264 | D74: 141 | E74: 278 | F74: 139 | G74: 109 | H74: 0.7730496454 | I74: 53 | J74: 0.381294964 | K74: 140 | L74: 0.9929078014 | M74: 141 | N74: 1 | O74: 283 | P74: 2.007092199 | Q74: 125 | R74: 0.8865248227 | S74: 94 | T74: 0.6762589928 | U74: 116 | V74: 0.8345323741 | W74: 120 | X74: 0.8633093525
A75: Metropolitana | B75: Venda Nova do Imigrante | C75: 400 | D75: 211 | E75: 328 | F75: 164 | G75: 171 | H75: 0.8104265403 | I75: 49 | J75: 0.2987804878 | K75: 212 | L75: 1.004739336 | M75: 220 | N75: 1.042654028 | O75: 448 | P75: 2.123222749 | Q75: 180 | R75: 0.8530805687 | S75: 119 | T75: 0.7256097561 | U75: 134 | V75: 0.8170731707 | W75: 134 | X75: 0.8170731707
A76: Metropolitana | B76: Viana | C76: 955 | D76: 495 | E76: 1064 | F76: 532 | G76: 201 | H76: 0.4060606061 | I76: 146 | J76: 0.2744360902 | K76: 498 | L76: 1.006060606 | M76: 508 | N76: 1.026262626 | O76: 626 | P76: 1.264646465 | Q76: 404 | R76: 0.8161616162 | S76: 401 | T76: 0.7537593985 | U76: 469 | V76: 0.8815789474 | W76: 487 | X76: 0.9154135338
A77: Norte | B77: Vila Pavão | C77: 86 | D77: 47 | E77: 127 | F77: 63.5 | G77: 54 | H77: 1.14893617 | I77: 24 | J77: 0.3779527559 | K77: 65 | L77: 1.382978723 | M77: 69 | N77: 1.468085106 | O77: 130 | P77: 2.765957447 | Q77: 58 | R77: 1.234042553 | S77: 60 | T77: 0.9448818898 | U77: 69 | V77: 1.086614173 | W77: 64 | X77: 1.007874016
A78: Central | B78: Vila Valério | C78: 249 | D78: 125 | E78: 169 | F78: 84.5 | G78: 86 | H78: 0.688 | I78: 41 | J78: 0.4852071006 | K78: 114 | L78: 0.912 | M78: 98 | N78: 0.784 | O78: 244 | P78: 1.952 | Q78: 109 | R78: 0.872 | S78: 97 | T78: 1.147928994 | U78: 138 | V78: 1.633136095 | W78: 128 | X78: 1.514792899
A79: Metropolitana | B79: Vila Velha | C79: 5702 | D79: 2920 | E79: 5675 | F79: 2837.5 | G79: 1852 | H79: 0.6342465753 | I79: 802 | J79: 0.2826431718 | K79: 2401 | L79: 0.822260274 | M79: 2506 | N79: 0.8582191781 | O79: 3352 | P79: 1.147945205 | Q79: 2157 | R79: 0.7386986301 | S79: 2153 | T79: 0.7587665198 | U79: 2356 | V79: 0.83030837 | W79: 2347 | X79: 0.8271365639
A80: Metropolitana | B80: Vitória | C80: 3704 | D80: 1886 | E80: 3833 | F80: 1916.5 | G80: 1053 | H80: 0.5583244963 | I80: 601 | J80: 0.3135924863 | K80: 1708 | L80: 0.9056203606 | M80: 1731 | N80: 0.9178154825 | O80: 2497 | P80: 1.323966066 | Q80: 1640 | R80: 0.8695652174 | S80: 1330 | T80: 0.693973389 | U80: 1733 | V80: 0.9042525437 | W80: 1808 | X80: 0.9433863814
B82: Total Norte | C82: =SUMIF($A$3:$A$80,"Norte",C$3:C$80) -> 5797 | D82: =SUMIF($A$3:$A$80,"Norte",D$3:D$80) -> 3052 | E82: =SUMIF($A$3:$A$80,"Norte",E$3:E$80) -> 5789 | F82: =SUMIF($A$3:$A$80,"Norte",F$3:F$80) -> 2894.5 | G82: =SUMIF($A$3:$A$80,"Norte",G$3:G$80) -> 2154 | H82: =G82/D82 -> 0.7057667104 | I82: =SUMIF($A$3:$A$80,"Norte",I$3:I$80) -> 1245 | J82: =I82/F82 -> 0.4301261012 | K82: =SUMIF($A$3:$A$80,"Norte",K$3:K$80) -> 2822 | L82: =K82/D82 -> 0.9246395806 | M82: =SUMIF($A$3:$A$80,"Norte",M$3:M$80) -> 2886 | N82: =M82/D82 -> 0.9456094364 | O82: =SUMIF($A$3:$A$80,"Norte",O$3:O$80) -> 4699 | P82: =O82/D82 -> 1.539646134 | Q82: =SUMIF($A$3:$A$80,"Norte",Q$3:Q$80) -> 2520 | R82: =Q82/D82 -> 0.8256880734 | S82: =SUMIF($A$3:$A$80,"Norte",S$3:S$80) -> 2219 | T82: =S82/F82 -> 0.7666263603 | U82: =SUMIF($A$3:$A$80,"Norte",U$3:U$80) -> 2597 | V82: =U82/F82 -> 0.8972188634 | W82: =SUMIF($A$3:$A$80,"Norte",W$3:W$80) -> 2623 | X82: =W82/F82 -> 0.9062014165
B83: Total Central | C83: =SUMIF($A$3:$A$80,"Central",C$3:C$80) -> 7093 | D83: =SUMIF($A$3:$A$80,"Central",D$3:D$80) -> 3726 | E83: =SUMIF($A$3:$A$80,"Central",E$3:E$80) -> 6843 | F83: =SUMIF($A$3:$A$80,"Central",F$3:F$80) -> 3421.5 | G83: =SUMIF($A$3:$A$80,"Central",G$3:G$80) -> 2488 | H83: =G83/D83 -> 0.667740204 | I83: =SUMIF($A$3:$A$80,"Central",I$3:I$80) -> 1168 | J83: =I83/F83 -> 0.3413707438 | K83: =SUMIF($A$3:$A$80,"Central",K$3:K$80) -> 3213 | L83: =K83/D83 -> 0.8623188406 | M83: =SUMIF($A$3:$A$80,"Central",M$3:M$80) -> 3327 | N83: =M83/D83 -> 0.8929146538 | O83: =SUMIF($A$3:$A$80,"Central",O$3:O$80) -> 5837 | P83: =O83/D83 -> 1.566559313 | Q83: =SUMIF($A$3:$A$80,"Central",Q$3:Q$80) -> 3021 | R83: =Q83/D83 -> 0.8107890499 | S83: =SUMIF($A$3:$A$80,"Central",S$3:S$80) -> 2561 | T83: =S83/F83 -> 0.748502119 | U83: =SUMIF($A$3:$A$80,"Central",U$3:U$80) -> 2951 | V83: =U83/F83 -> 0.8624872132 | W83: =SUMIF($A$3:$A$80,"Central",W$3:W$80) -> 3058 | X83: =W83/F83 -> 0.8937600468
B84: Total Metropolitana | C84: =SUMIF($A$3:$A$80,"Metropolitana",C$3:C$80) -> 29863 | D84: =SUMIF($A$3:$A$80,"Metropolitana",D$3:D$80) -> 15569 | E84: =SUMIF($A$3:$A$80,"Metropolitana",E$3:E$80) -> 30197 | F84: =SUMIF($A$3:$A$80,"Metropolitana",F$3:F$80) -> 15098.5 | G84: =SUMIF($A$3:$A$80,"Metropolitana",G$3:G$80) -> 9881 | H84: =G84/D84 -> 0.6346586165 | I84: =SUMIF($A$3:$A$80,"Metropolitana",I$3:I$80) -> 5020 | J84: =I84/F84 -> 0.3324833593 | K84: =SUMIF($A$3:$A$80,"Metropolitana",K$3:K$80) -> 13901 | L84: =K84/D84 -> 0.8928640247 | M84: =SUMIF($A$3:$A$80,"Metropolitana",M$3:M$80) -> 14251 | N84: =M84/D84 -> 0.915344595 | O84: =SUMIF($A$3:$A$80,"Metropolitana",O$3:O$80) -> 20469 | P84: =O84/D84 -> 1.314727985 | Q84: =SUMIF($A$3:$A$80,"Metropolitana",Q$3:Q$80) -> 12551 | R84: =Q84/D84 -> 0.8061532533 | S84: =SUMIF($A$3:$A$80,"Metropolitana",S$3:S$80) -> 11388 | T84: =S84/F84 -> 0.7542471106 | U84: =SUMIF($A$3:$A$80,"Metropolitana",U$3:U$80) -> 13594 | V84: =U84/F84 -> 0.9003543398 | W84: =SUMIF($A$3:$A$80,"Metropolitana",W$3:W$80) -> 13733 | X84: =W84/F84 -> 0.9095605524
B85: Total Sul | C85: =SUMIF($A$3:$A$80,"sul",C$3:C$80) -> 8267 | D85: =SUMIF($A$3:$A$80,"sul",D$3:D$80) -> 4308 | E85: =SUMIF($A$3:$A$80,"sul",E$3:E$80) -> 8688 | F85: =SUMIF($A$3:$A$80,"sul",F$3:F$80) -> 4344 | G85: =SUMIF($A$3:$A$80,"sul",G$3:G$80) -> 3262 | H85: =G85/D85 -> 0.7571959146 | I85: =SUMIF($A$3:$A$80,"sul",I$3:I$80) -> 1545 | J85: =I85/F85 -> 0.3556629834 | K85: =SUMIF($A$3:$A$80,"sul",K$3:K$80) -> 4352 | L85: =K85/D85 -> 1.010213556 | M85: =SUMIF($A$3:$A$80,"sul",M$3:M$80) -> 4477 | N85: =M85/D85 -> 1.039229341 | O85: =SUMIF($A$3:$A$80,"sul",O$3:O$80) -> 7579 | P85: =O85/D85 -> 1.759285051 | Q85: =SUMIF($A$3:$A$80,"sul",Q$3:Q$80) -> 3859 | R85: =Q85/D85 -> 0.8957753018 | S85: =SUMIF($A$3:$A$80,"sul",S$3:S$80) -> 2982 | T85: =S85/F85 -> 0.6864640884 | U85: =SUMIF($A$3:$A$80,"sul",U$3:U$80) -> 3811 | V85: =U85/F85 -> 0.8773020258 | W85: =SUMIF($A$3:$A$80,"sul",W$3:W$80) -> 3901 | X85: =W85/F85 -> 0.8980202578
B86: Total Espírito Santo | C86: =SUM(C3:C80) -> 51020 | D86: =SUM(D3:D80) -> 26655 | E86: =SUM(E3:E80) -> 51517 | F86: =SUM(F3:F80) -> 25758.5 | G86: =SUM(G3:G80) -> 17785 | H86: =G86/D86 -> 0.6672294129 | I86: =SUM(I3:I80) -> 8978 | J86: =I86/F86 -> 0.3485451404 | K86: =SUM(K3:K80) -> 24288 | L86: =K86/D86 -> 0.9111986494 | M86: =SUM(M3:M80) -> 24941 | N86: =M86/D86 -> 0.9356968674 | O86: =SUM(O3:O80) -> 38584 | P86: =O86/D86 -> 1.447533296 | Q86: =SUM(Q3:Q80) -> 21951 | R86: =Q86/D86 -> 0.8235227912 | S86: =SUM(S3:S80) -> 19150 | T86: =S86/F86 -> 0.7434439117 | U86: =SUM(U3:U80) -> 22953 | V86: =U86/F86 -> 0.8910844964 | W86: =SUM(W3:W80) -> 23315 | X86: =W86/F86 -> 0.9051381098
A90: FonteVacina e Confia, em 03 de Julho de 2024.**
A91: **Dados referente às doses aplicadas no período de Junho de 2024
A92: Cobertura Calculada por município de procedência da vacinação
A93: 1 População anual extraída do MS/SVS/DASIS - SINASC/DASIS/SVS/MS 2023 (hoje preliminares) referente ao período de março a dezembro de 2023 e SINASC/DASIS/SVS/MS 2024 referente ao período de janeiro a fevereiro de 2024.
A95: ² População proporcional extraída do MS/SVS/DASIS - SINASC/DASIS/SVS/MS 2023 (hoje preliminares) referente ao período de março e abril de 2023 somada a população extraída do SINASC/DASIS/SVS/MS 2024 referente ao período de janeiro e fevereiro de 2024.
A96: ³ População anual e proporcional extraída do Censo IBGE 2022.
A97: Sinasc, em 10 de Julho de 2024.
A98: Observações:
A99: Imunobiológicos que foram recebidos parcialmente pelo estado no mês da análise, sendo distribuídos em quantidades reduzidas às regionais e municípios: Varicela, Haemophilus influenzae tipo B, Soro Antirrábico Humano.
A100: Imunobiológicos que não foram recebidos pelo estado no mês da análise, não sendo possível a distribuição às regionais e municípios: Meningo C, Tetra viral, Sars-cov-10 Bivalente, DTPa (CRIE) e Sars-Cov2-10 Doses Pediátricas.
A101: Imunobiológicos com indisponibilidade de aquisição e distribuição no mês da análise:

Sheet CV REF 1A e 4A - residência
G1: D2 | K1: REFORÇOS 1 ANO | S1: REFORÇOS 4 ANOS
A2: Regional | B2: Município | C2: ¹População 1 ano anual | D2: ²População 1 ano proporcional | E2: ³População 4 anos anual | F2: ³População 4 anos proporcional | G2: DOSES APLICADAS D2 TRÍPLICE VIRAL | H2: COBERTURA D2 TRÍPLICE VIRAL | I2: DOSES APLICADAS D2 VARICELA | J2: COBERTURA D2 VARICELA | K2: DOSES APLICADAS REF PNEUMO | L2: COBERTURA REF PNEUMO | M2: DOSES APLICADAS REF MENINGO | N2: COBERTURA REF MENINGO | O2: DOSES APLICADAS R1 POLIO | P2: COBERTURA R1 POLIO | Q2: DOSES APLICADAS R1 TRÍPLICE BACTERIANA | R2: COBERTURA R1 TRÍPLICE BACTERIANA | S2: DOSES APLICADAS REF FEBRE AMARELA | T2: COBERTURA REF FEBRE AMARELA | U2: DOSES APLICADAS R2 POLIO | V2: COBERTURA R2 POLIO | W2: DOSES APLICADAS R2 TRÍPLICE BACTERIANA | X2: COBERTURA R2 TRÍPLICE BACTERIANA
A3: Metropolitana | B3: Afonso Cláudio | C3: 374 | D3: 180 | E3: 416 | F3: =E3/12*6 -> 208 | G3: 197 | H3: =G3/D3 -> 1.094444444 | I3: 75 | J3: =I3/F3 -> 0.3605769231 | K3: 200 | L3: =K3/D3 -> 1.111111111 | M3: 203 | N3: =M3/D3 -> 1.127777778 | O3: 527 | P3: =O3/D3 -> 2.927777778 | Q3: 212 | R3: =Q3/D3 -> 1.177777778 | S3: 156 | T3: =S3/F3 -> 0.75 | U3: 464 | V3: =U3/F3 -> 2.230769231 | W3: 176 | X3: =W3/F3 -> 0.8461538462
A4: Norte | B4: Água Doce do Norte | C4: 181 | D4: 107 | E4: 151 | F4: =E4/12*6 -> 75.5 | G4: 55 | H4: 0.5140186916 | I4: 30 | J4: 0.3973509934 | K4: 73 | L4: 0.6822429907 | M4: 73 | N4: 0.6822429907 | O4: 124 | P4: 1.158878505 | Q4: 64 | R4: 0.5981308411 | S4: 52 | T4: 0.6887417219 | U4: 121 | V4: 1.602649007 | W4: 66 | X4: 0.8741721854
A5: Central | B5: Águia Branca | C5: 167 | D5: 82 | E5: 129 | F5: 64.5 | G5: 45 | H5: 0.5487804878 | I5: 21 | J5: 0.3255813953 | K5: 56 | L5: 0.6829268293 | M5: 57 | N5: 0.6951219512 | O5: 90 | P5: 1.097560976 | Q5: 61 | R5: 0.743902439 | S5: 41 | T5: 0.6356589147 | U5: 94 | V5: 1.457364341 | W5: 54 | X5: 0.8372093023
A6: Sul | B6: Alegre | C6: 335 | D6: 164 | E6: 372 | F6: 186 | G6: 131 | H6: 0.7987804878 | I6: 93 | J6: 0.5 | K6: 160 | L6: 0.9756097561 | M6: 166 | N6: 1.012195122 | O6: 349 | P6: 2.12804878 | Q6: 146 | R6: 0.8902439024 | S6: 178 | T6: 0.9569892473 | U6: 427 | V6: 2.295698925 | W6: 208 | X6: 1.11827957
A7: Sul | B7: Alfredo Chaves | C7: 142 | D7: 66 | E7: 138 | F7: 69 | G7: 56 | H7: 0.8484848485 | I7: 40 | J7: 0.5797101449 | K7: 73 | L7: 1.106060606 | M7: 76 | N7: 1.151515152 | O7: 174 | P7: 2.636363636 | Q7: 60 | R7: 0.9090909091 | S7: 66 | T7: 0.9565217391 | U7: 226 | V7: 3.275362319 | W7: 80 | X7: 1.15942029
A8: Central | B8: Alto Rio Novo | C8: 81 | D8: 36 | E8: 102 | F8: 51 | G8: 37 | H8: 1.027777778 | I8: 17 | J8: 0.3333333333 | K8: 44 | L8: 1.222222222 | M8: 43 | N8: 1.194444444 | O8: 77 | P8: 2.138888889 | Q8: 41 | R8: 1.138888889 | S8: 36 | T8: 0.7058823529 | U8: 82 | V8: 1.607843137 | W8: 33 | X8: 0.6470588235
A9: Sul | B9: Anchieta | C9: 382 | D9: 194 | E9: 390 | F9: 195 | G9: 148 | H9: 0.7628865979 | I9: 88 | J9: 0.4512820513 | K9: 221 | L9: 1.139175258 | M9: 219 | N9: 1.128865979 | O9: 416 | P9: 2.144329897 | Q9: 191 | R9: 0.9845360825 | S9: 177 | T9: 0.9076923077 | U9: 434 | V9: 2.225641026 | W9: 235 | X9: 1.205128205
A10: Sul | B10: Apiacá | C10: 61 | D10: 45 | E10: 90 | F10: 45 | G10: 13 | H10: 0.2888888889 | I10: 23 | J10: 0.5111111111 | K10: 35 | L10: 0.7777777778 | M10: 36 | N10: 0.8 | O10: 50 | P10: 1.111111111 | Q10: 20 | R10: 0.4444444444 | S10: 9 | T10: 0.2 | U10: 74 | V10: 1.644444444 | W10: 38 | X10: 0.8444444444
A11: Metropolitana | B11: Aracruz | C11: 1456 | D11: 765 | E11: 1420 | F11: 710 | G11: 622 | H11: 0.8130718954 | I11: 322 | J11: 0.4535211268 | K11: 765 | L11: 1 | M11: 805 | N11: 1.052287582 | O11: 1284 | P11: 1.678431373 | Q11: 719 | R11: 0.939869281 | S11: 503 | T11: 0.7084507042 | U11: 1101 | V11: 1.550704225 | W11: 624 | X11: 0.8788732394
A12: Sul | B12: Atilio Vivacqua | C12: 136 | D12: 73 | E12: 138 | F12: 69 | G12: 46 | H12: 0.6301369863 | I12: 20 | J12: 0.2898550725 | K12: 78 | L12: 1.068493151 | M12: 79 | N12: 1.082191781 | O12: 145 | P12: 1.98630137 | Q12: 72 | R12: 0.9863013699 | S12: 52 | T12: 0.7536231884 | U12: 103 | V12: 1.492753623 | W12: 58 | X12: 0.8405797101
A13: Central | B13: Baixo Guandu | C13: 325 | D13: 181 | E13: 427 | F13: 213.5 | G13: 172 | H13: 0.9502762431 | I13: 71 | J13: 0.3325526932 | K13: 194 | L13: 1.071823204 | M13: 202 | N13: 1.116022099 | O13: 413 | P13: 2.281767956 | Q13: 205 | R13: 1.132596685 | S13: 152 | T13: 0.7119437939 | U13: 403 | V13: 1.887587822 | W13: 189 | X13: 0.8852459016
A14: Norte | B14: Barra de São Francisco | C14: 564 | D14: 303 | E14: 589 | F14: 294.5 | G14: 252 | H14: 0.8316831683 | I14: 117 | J14: 0.3972835314 | K14: 275 | L14: 0.9075907591 | M14: 276 | N14: 0.9108910891 | O14: 454 | P14: 1.498349835 | Q14: 255 | R14: 0.8415841584 | S14: 235 | T14: 0.7979626486 | U14: 380 | V14: 1.290322581 | W14: 248 | X14: 0.8421052632
A15: Norte | B15: Boa Esperança | C15: 200 | D15: 104 | E15: 200 | F15: 100 | G15: 58 | H15: 0.5576923077 | I15: 49 | J15: 0.49 | K15: 107 | L15: 1.028846154 | M15: 109 | N15: 1.048076923 | O15: 213 | P15: 2.048076923 | Q15: 93 | R15: 0.8942307692 | S15: 63 | T15: 0.63 | U15: 175 | V15: 1.75 | W15: 86 | X15: 0.86
A16: Sul | B16: Bom Jesus do Norte | C16: 68 | D16: 41 | E16: 146 | F16: 73 | G16: 20 | H16: 0.487804878 | I16: 8 | J16: 0.1095890411 | K16: 57 | L16: 1.390243902 | M16: 57 | N16: 1.390243902 | O16: 74 | P16: 1.804878049 | Q16: 29 | R16: 0.7073170732 | S16: 27 | T16: 0.3698630137 | U16: 70 | V16: 0.9589041096 | W16: 31 | X16: 0.4246575342
A17: Metropolitana | B17: Brejetuba | C17: 205 | D17: 112 | E17: 169 | F17: 84.5 | G17: 102 | H17: 0.9107142857 | I17: 42 | J17: 0.4970414201 | K17: 95 | L17: 0.8482142857 | M17: 98 | N17: 0.875 | O17: 236 | P17: 2.107142857 | Q17: 103 | R17: 0.9196428571 | S17: 95 | T17: 1.124260355 | U17: 247 | V17: 2.923076923 | W17: 105 | X17: 1.24260355
A18: Sul | B18: Cachoeiro de Itapemirim | C18: 2481 | D18: 1354 | E18: 2417 | F18: 1208.5 | G18: 907 | H18: 0.6698670606 | I18: 410 | J18: 0.3392635499 | K18: 1233 | L18: 0.9106351551 | M18: 1276 | N18: 0.9423929099 | O18: 1820 | P18: 1.344165436 | Q18: 1115 | R18: 0.8234859675 | S18: 728 | T18: 0.602399669 | U18: 1534 | V18: 1.26934216 | W18: 1001 | X18: 0.8282995449
A19: Metropolitana | B19: Cariacica | C19: 4900 | D19: 2550 | E19: 5005 | F19: 2502.5 | G19: 1583 | H19: 0.6207843137 | I19: 904 | J19: 0.3612387612 | K19: 2396 | L19: 0.9396078431 | M19: 2447 | N19: 0.9596078431 | O19: 3184 | P19: 1.248627451 | Q19: 2127 | R19: 0.8341176471 | S19: 1895 | T19: 0.7572427572 | U19: 3271 | V19: 1.307092907 | W19: 2416 | X19: 0.9654345654
A20: Sul | B20: Castelo | C20: 451 | D20: 235 | E20: 399 | F20: 199.5 | G20: 187 | H20: 0.7957446809 | I20: 73 | J20: 0.365914787 | K20: 223 | L20: 0.9489361702 | M20: 218 | N20: 0.9276595745 | O20: 457 | P20: 1.944680851 | Q20: 209 | R20: 0.8893617021 | S20: 136 | T20: 0.6817042607 | U20: 389 | V20: 1.949874687 | W20: 185 | X20: 0.9273182957
A21: Central | B21: Colatina | C21: 1544 | D21: 806 | E21: 1561 | F21: 780.5 | G21: 532 | H21: 0.6600496278 | I21: 196 | J21: 0.2511210762 | K21: 705 | L21: 0.8746898263 | M21: 755 | N21: 0.9367245658 | O21: 935 | P21: 1.160049628 | Q21: 639 | R21: 0.7928039702 | S21: 415 | T21: 0.531710442 | U21: 828 | V21: 1.060858424 | W21: 534 | X21: 0.6841768097
A22: Norte | B22: Conceição da Barra | C22: 383 | D22: 197 | E22: 391 | F22: 195.5 | G22: 149 | H22: 0.7563451777 | I22: 93 | J22: 0.4757033248 | K22: 204 | L22: 1.035532995 | M22: 206 | N22: 1.045685279 | O22: 410 | P22: 2.081218274 | Q22: 178 | R22: 0.9035532995 | S22: 162 | T22: 0.8286445013 | U22: 431 | V22: 2.204603581 | W22: 232 | X22: 1.186700767
A23: Metropolitana | B23: Conceição do Castelo | C23: 162 | D23: 92 | E23: 144 | F23: 72 | G23: 59 | H23: 0.6413043478 | I23: 34 | J23: 0.4722222222 | K23: 60 | L23: 0.652173913 | M23: 65 | N23: 0.7065217391 | O23: 151 | P23: 1.641304348 | Q23: 62 | R23: 0.6739130435 | S23: 56 | T23: 0.7777777778 | U23: 170 | V23: 2.361111111 | W23: 60 | X23: 0.8333333333
A24: Sul | B24: Divino de São Lourenço | C24: 69 | D24: 39 | E24: 68 | F24: 34 | G24: 20 | H24: 0.5128205128 | I24: 13 | J24: 0.3823529412 | K24: 25 | L24: 0.641025641 | M24: 26 | N24: 0.6666666667 | O24: 57 | P24: 1.461538462 | Q24: 23 | R24: 0.5897435897 | S24: 38 | T24: 1.117647059 | U24: 65 | V24: 1.911764706 | W24: 36 | X24: 1.058823529
A25: Metropolitana | B25: Domingos Martins | C25: 423 | D25: 226 | E25: 411 | F25: 205.5 | G25: 187 | H25: 0.8274336283 | I25: 112 | J25: 0.5450121655 | K25: 219 | L25: 0.9690265487 | M25: 206 | N25: 0.9115044248 | O25: 442 | P25: 1.955752212 | Q25: 213 | R25: 0.9424778761 | S25: 170 | T25: 0.8272506083 | U25: 425 | V25: 2.068126521 | W25: 204 | X25: 0.9927007299
A26: Sul | B26: Dores do Rio Preto | C26: 73 | D26: 42 | E26: 92 | F26: 46 | G26: 27 | H26: 0.6428571429 | I26: 12 | J26: 0.2608695652 | K26: 56 | L26: 1.333333333 | M26: 57 | N26: 1.357142857 | O26: 76 | P26: 1.80952381 | Q26: 34 | R26: 0.8095238095 | S26: 29 | T26: 0.6304347826 | U26: 60 | V26: 1.304347826 | W26: 30 | X26: 0.652173913
A27: Norte | B27: Ecoporanga | C27: 269 | D27: 147 | E27: 283 | F27: 141.5 | G27: 112 | H27: 0.7619047619 | I27: 69 | J27: 0.4876325088 | K27: 127 | L27: 0.8639455782 | M27: 131 | N27: 0.8911564626 | O27: 223 | P27: 1.517006803 | Q27: 119 | R27: 0.8095238095 | S27: 110 | T27: 0.777385159 | U27: 200 | V27: 1.413427562 | W27: 117 | X27: 0.8268551237
A28: Metropolitana | B28: Fundão | C28: 223 | D28: 121 | E28: 218 | F28: 109 | G28: 89 | H28: 0.7355371901 | I28: 41 | J28: 0.376146789 | K28: 108 | L28: 0.8925619835 | M28: 112 | N28: 0.9256198347 | O28: 195 | P28: 1.611570248 | Q28: 95 | R28: 0.7851239669 | S28: 68 | T28: 0.623853211 | U28: 137 | V28: 1.256880734 | W28: 80 | X28: 0.7339449541
A29: Central | B29: Governador Lindenberg | C29: 139 | D29: 71 | E29: 142 | F29: 71 | G29: 51 | H29: 0.7183098592 | I29: 31 | J29: 0.4366197183 | K29: 70 | L29: 0.985915493 | M29: 71 | N29: 1 | O29: 128 | P29: 1.802816901 | Q29: 56 | R29: 0.7887323944 | S29: 58 | T29: 0.8169014085 | U29: 128 | V29: 1.802816901 | W29: 72 | X29: 1.014084507
A30: Sul | B30: Guaçuí | C30: 415 | D30: 213 | E30: 407 | F30: 203.5 | G30: 184 | H30: 0.8638497653 | I30: 44 | J30: 0.2162162162 | K30: 206 | L30: 0.9671361502 | M30: 210 | N30: 0.985915493 | O30: 382 | P30: 1.79342723 | Q30: 184 | R30: 0.8638497653 | S30: 129 | T30: 0.6339066339 | U30: 295 | V30: 1.44963145 | W30: 142 | X30: 0.6977886978
A31: Metropolitana | B31: Guarapari | C31: 1752 | D31: 932 | E31: 1557 | F31: 778.5 | G31: 524 | H31: 0.5622317597 | I31: 300 | J31: 0.3853564547 | K31: 852 | L31: 0.9141630901 | M31: 849 | N31: 0.910944206 | O31: 1120 | P31: 1.201716738 | Q31: 721 | R31: 0.7736051502 | S31: 498 | T31: 0.6396917148 | U31: 996 | V31: 1.27938343 | W31: 710 | X31: 0.9120102762
A32: Metropolitana | B32: Ibatiba | C32: 285 | D32: 170 | E32: 354 | F32: 177 | G32: 160 | H32: 0.9411764706 | I32: 40 | J32: 0.2259887006 | K32: 191 | L32: 1.123529412 | M32: 194 | N32: 1.141176471 | O32: 321 | P32: 1.888235294 | Q32: 170 | R32: 1 | S32: 131 | T32: 0.7401129944 | U32: 232 | V32: 1.310734463 | W32: 154 | X32: 0.8700564972
A33: Metropolitana | B33: Ibiraçu | C33: 155 | D33: 86 | E33: 160 | F33: 80 | G33: 34 | H33: 0.3953488372 | I33: 39 | J33: 0.4875 | K33: 71 | L33: 0.8255813953 | M33: 71 | N33: 0.8255813953 | O33: 141 | P33: 1.639534884 | Q33: 48 | R33: 0.5581395349 | S33: 55 | T33: 0.6875 | U33: 187 | V33: 2.3375 | W33: 69 | X33: 0.8625
A34: Sul | B34: Ibitirama | C34: 130 | D34: 65 | E34: 148 | F34: 74 | G34: 55 | H34: 0.8461538462 | I34: 20 | J34: 0.2702702703 | K34: 66 | L34: 1.015384615 | M34: 67 | N34: 1.030769231 | O34: 114 | P34: 1.753846154 | Q34: 61 | R34: 0.9384615385 | S34: 27 | T34: 0.3648648649 | U34: 105 | V34: 1.418918919 | W34: 32 | X34: 0.4324324324
A35: Sul | B35: Iconha | C35: 119 | D35: 61 | E35: 156 | F35: 78 | G35: 70 | H35: =G35/D35 -> 1.147540984 | I35: 23 | J35: =I35/F35 -> 0.2948717949 | K35: 74 | L35: =K35/D35 -> 1.213114754 | M35: 83 | N35: =M35/D35 -> 1.360655738 | O35: 110 | P35: =O35/D35 -> 1.803278689 | Q35: 63 | R35: =Q35/D35 -> 1.032786885 | S35: 64 | T35: =S35/F35 -> 0.8205128205 | U35: 103 | V35: =U35/F35 -> 1.320512821 | W35: 61 | X35: =W35/F35 -> 0.7820512821
A36: Sul | B36: Irupi | C36: 149 | D36: 81 | E36: 200 | F36: 100 | G36: 82 | H36: 1.012345679 | I36: 44 | J36: 0.44 | K36: 122 | L36: 1.50617284 | M36: 124 | N36: 1.530864198 | O36: 191 | P36: 2.358024691 | Q36: 95 | R36: 1.172839506 | S36: 102 | T36: 1.02 | U36: 185 | V36: 1.85 | W36: 113 | X36: 1.13
A37: Metropolitana | B37: Itaguaçu | C37: 137 | D37: 78 | E37: 154 | F37: 77 | G37: 76 | H37: 0.9743589744 | I37: 20 | J37: 0.2597402597 | K37: 78 | L37: 1 | M37: 81 | N37: 1.038461538 | O37: 183 | P37: 2.346153846 | Q37: 72 | R37: 0.9230769231 | S37: 57 | T37: 0.7402597403 | U37: 152 | V37: 1.974025974 | W37: 70 | X37: 0.9090909091
A38: Sul | B38: Itapemirim | C38: 540 | D38: 243 | E38: 556 | F38: 278 | G38: 197 | H38: 0.8106995885 | I38: 97 | J38: 0.3489208633 | K38: 272 | L38: 1.119341564 | M38: 283 | N38: 1.164609053 | O38: 461 | P38: 1.897119342 | Q38: 267 | R38: 1.098765432 | S38: 144 | T38: 0.5179856115 | U38: 439 | V38: 1.579136691 | W38: 276 | X38: 0.9928057554
A39: Metropolitana | B39: Itarana | C39: 147 | D39: 85 | E39: 128 | F39: 64 | G39: 42 | H39: 0.4941176471 | I39: 37 | J39: 0.578125 | K39: 55 | L39: 0.6470588235 | M39: 59 | N39: 0.6941176471 | O39: 127 | P39: 1.494117647 | Q39: 50 | R39: 0.5882352941 | S39: 45 | T39: 0.703125 | U39: 138 | V39: 2.15625 | W39: 56 | X39: 0.875
A40: Sul | B40: Iúna | C40: 406 | D40: 186 | E40: 410 | F40: 205 | G40: 167 | H40: 0.8978494624 | I40: 76 | J40: 0.3707317073 | K40: 227 | L40: 1.220430108 | M40: 249 | N40: 1.338709677 | O40: 359 | P40: 1.930107527 | Q40: 188 | R40: 1.010752688 | S40: 141 | T40: 0.687804878 | U40: 347 | V40: 1.692682927 | W40: 175 | X40: 0.8536585366
A41: Norte | B41: Jaguaré | C41: 510 | D41: 291 | E41: 445 | F41: 222.5 | G41: 182 | H41: 0.6254295533 | I41: 85 | J41: 0.3820224719 | K41: 248 | L41: 0.852233677 | M41: 250 | N41: 0.8591065292 | O41: 424 | P41: 1.457044674 | Q41: 220 | R41: 0.7560137457 | S41: 183 | T41: 0.8224719101 | U41: 433 | V41: 1.946067416 | W41: 236 | X41: 1.060674157
A42: Sul | B42: Jerônimo Monteiro | C42: 161 | D42: 82 | E42: 157 | F42: 78.5 | G42: 65 | H42: 0.7926829268 | I42: 22 | J42: 0.2802547771 | K42: 76 | L42: 0.9268292683 | M42: 80 | N42: 0.9756097561 | O42: 146 | P42: 1.780487805 | Q42: 75 | R42: 0.9146341463 | S42: 56 | T42: 0.7133757962 | U42: 131 | V42: 1.668789809 | W42: 70 | X42: 0.8917197452
A43: Metropolitana | B43: João Neiva | C43: 172 | D43: 84 | E43: 142 | F43: 71 | G43: 76 | H43: 0.9047619048 | I43: 28 | J43: 0.3943661972 | K43: 89 | L43: 1.05952381 | M43: 96 | N43: 1.142857143 | O43: 162 | P43: 1.928571429 | Q43: 78 | R43: 0.9285714286 | S43: 61 | T43: 0.8591549296 | U43: 135 | V43: 1.901408451 | W43: 69 | X43: 0.9718309859
A44: Metropolitana | B44: Laranja da Terra | C44: 92 | D44: 48 | E44: 133 | F44: 66.5 | G44: 55 | H44: 1.145833333 | I44: 37 | J44: 0.5563909774 | K44: 69 | L44: 1.4375 | M44: 71 | N44: 1.479166667 | O44: 155 | P44: 3.229166667 | Q44: 59 | R44: 1.229166667 | S44: 52 | T44: 0.7819548872 | U44: 147 | V44: 2.210526316 | W44: 54 | X44: 0.8120300752
A45: Central | B45: Linhares | C45: 2598 | D45: 1358 | E45: 2452 | F45: 1226 | G45: 845 | H45: 0.6222385862 | I45: 436 | J45: 0.3556280587 | K45: 1111 | L45: 0.8181148748 | M45: 1142 | N45: 0.8409425626 | O45: 1933 | P45: 1.423416789 | Q45: 1076 | R45: 0.7923416789 | S45: 875 | T45: 0.7137030995 | U45: 1894 | V45: 1.544861338 | W45: 1173 | X45: 0.9567699837
A46: Central | B46: Mantenópolis | C46: 151 | D46: 83 | E46: 166 | F46: 83 | G46: 52 | H46: 0.6265060241 | I46: 35 | J46: 0.421686747 | K46: 83 | L46: 1 | M46: 79 | N46: 0.9518072289 | O46: 141 | P46: 1.698795181 | Q46: 67 | R46: 0.8072289157 | S46: 58 | T46: 0.6987951807 | U46: 128 | V46: 1.542168675 | W46: 65 | X46: 0.7831325301
A47: Sul | B47: Marataízes | C47: 553 | D47: 297 | E47: 579 | F47: 289.5 | G47: 204 | H47: 0.6868686869 | I47: 96 | J47: 0.3316062176 | K47: 300 | L47: 1.01010101 | M47: 307 | N47: 1.033670034 | O47: 437 | P47: 1.471380471 | Q47: 243 | R47: 0.8181818182 | S47: 148 | T47: 0.5112262522 | U47: 401 | V47: 1.385146805 | W47: 260 | X47: 0.8981001727
A48: Metropolitana | B48: Marechal Floriano | C48: 224 | D48: 113 | E48: 236 | F48: 118 | G48: 88 | H48: 0.7787610619 | I48: 62 | J48: 0.5254237288 | K48: 115 | L48: 1.017699115 | M48: 112 | N48: 0.9911504425 | O48: 194 | P48: 1.716814159 | Q48: 99 | R48: 0.8761061947 | S48: 71 | T48: 0.6016949153 | U48: 179 | V48: 1.516949153 | W48: 84 | X48: 0.7118644068
A49: Central | B49: Marilândia | C49: 171 | D49: 83 | E49: 164 | F49: 82 | G49: 68 | H49: 0.8192771084 | I49: 38 | J49: 0.4634146341 | K49: 74 | L49: 0.8915662651 | M49: 75 | N49: 0.9036144578 | O49: 161 | P49: 1.939759036 | Q49: 75 | R49: 0.9036144578 | S49: 61 | T49: 0.743902439 | U49: 162 | V49: 1.975609756 | W49: 69 | X49: 0.8414634146
A50: Sul | B50: Mimoso do Sul | C50: 267 | D50: 139 | E50: 276 | F50: 138 | G50: 85 | H50: 0.6115107914 | I50: 77 | J50: 0.5579710145 | K50: 102 | L50: 0.7338129496 | M50: 112 | N50: 0.8057553957 | O50: 181 | P50: 1.302158273 | Q50: 96 | R50: 0.690647482 | S50: 124 | T50: 0.8985507246 | U50: 211 | V50: 1.528985507 | W50: 124 | X50: 0.8985507246
A51: Norte | B51: Montanha | C51: 232 | D51: 113 | E51: 278 | F51: 139 | G51: 112 | H51: 0.9911504425 | I51: 61 | J51: 0.4388489209 | K51: 121 | L51: 1.07079646 | M51: 126 | N51: 1.115044248 | O51: 253 | P51: 2.238938053 | Q51: 122 | R51: 1.079646018 | S51: 114 | T51: 0.8201438849 | U51: 268 | V51: 1.928057554 | W51: 126 | X51: 0.9064748201
A52: Norte | B52: Mucurici | C52: 66 | D52: 31 | E52: 97 | F52: 48.5 | G52: 29 | H52: 0.935483871 | I52: 26 | J52: 0.5360824742 | K52: 44 | L52: 1.419354839 | M52: 44 | N52: 1.419354839 | O52: 54 | P52: 1.741935484 | Q52: 28 | R52: 0.9032258065 | S52: 38 | T52: 0.7835051546 | U52: 76 | V52: 1.567010309 | W52: 41 | X52: 0.8453608247
A53: Sul | B53: Muniz Freire | C53: 204 | D53: 103 | E53: 275 | F53: 137.5 | G53: 107 | H53: 1.038834951 | I53: 35 | J53: 0.2545454545 | K53: 120 | L53: 1.165048544 | M53: 118 | N53: 1.145631068 | O53: 260 | P53: 2.524271845 | Q53: 110 | R53: 1.067961165 | S53: 114 | T53: 0.8290909091 | U53: 301 | V53: 2.189090909 | W53: 128 | X53: 0.9309090909
A54: Sul | B54: Muqui | C54: 164 | D54: 78 | E54: 152 | F54: 76 | G54: 68 | H54: 0.8717948718 | I54: 35 | J54: 0.4605263158 | K54: 72 | L54: 0.9230769231 | M54: 73 | N54: 0.9358974359 | O54: 190 | P54: 2.435897436 | Q54: 66 | R54: 0.8461538462 | S54: 49 | T54: 0.6447368421 | U54: 154 | V54: 2.026315789 | W54: 52 | X54: 0.6842105263
A55: Norte | B55: Nova Venécia | C55: 678 | D55: 374 | E55: 656 | F55: 328 | G55: 307 | H55: 0.820855615 | I55: 108 | J55: 0.3292682927 | K55: 330 | L55: 0.8823529412 | M55: 340 | N55: 0.9090909091 | O55: 540 | P55: 1.443850267 | Q55: 310 | R55: 0.8288770053 | S55: 250 | T55: 0.762195122 | U55: 472 | V55: 1.43902439 | W55: 283 | X55: 0.862804878
A56: Central | B56: Pancas | C56: 217 | D56: 106 | E56: 244 | F56: 122 | G56: 110 | H56: 1.037735849 | I56: 46 | J56: 0.3770491803 | K56: 116 | L56: 1.094339623 | M56: 120 | N56: 1.132075472 | O56: 242 | P56: 2.283018868 | Q56: 110 | R56: 1.037735849 | S56: 99 | T56: 0.8114754098 | U56: 236 | V56: 1.93442623 | W56: 111 | X56: 0.9098360656
A57: Norte | B57: Pedro Canário | C57: 305 | D57: 163 | E57: 338 | F57: 169 | G57: 149 | H57: 0.9141104294 | I57: 91 | J57: 0.5384615385 | K57: 192 | L57: 1.17791411 | M57: 193 | N57: 1.18404908 | O57: 325 | P57: 1.993865031 | Q57: 191 | R57: 1.171779141 | S57: 134 | T57: 0.7928994083 | U57: 296 | V57: 1.75147929 | W57: 163 | X57: 0.9644970414
A58: Norte | B58: Pinheiros | C58: 325 | D58: 168 | E58: 383 | F58: 191.5 | G58: 87 | H58: 0.5178571429 | I58: 74 | J58: 0.3864229765 | K58: 155 | L58: 0.9226190476 | M58: 150 | N58: 0.8928571429 | O58: 221 | P58: 1.31547619 | Q58: 124 | R58: 0.7380952381 | S58: 122 | T58: 0.637075718 | U58: 228 | V58: 1.190600522 | W58: 142 | X58: 0.7415143603
A59: Sul | B59: Piúma | C59: 303 | D59: 151 | E59: 311 | F59: 155.5 | G59: 71 | H59: 0.4701986755 | I59: 43 | J59: 0.2765273312 | K59: 146 | L59: 0.9668874172 | M59: 140 | N59: 0.9271523179 | O59: 239 | P59: 1.582781457 | Q59: 128 | R59: 0.8476821192 | S59: 87 | T59: 0.5594855305 | U59: 218 | V59: 1.40192926 | W59: 137 | X59: 0.8810289389
A60: Norte | B60: Ponto Belo | C60: 75 | D60: 35 | E60: 85 | F60: 42.5 | G60: 35 | H60: 1 | I60: 15 | J60: 0.3529411765 | K60: 43 | L60: 1.228571429 | M60: 46 | N60: 1.314285714 | O60: 96 | P60: 2.742857143 | Q60: 38 | R60: 1.085714286 | S60: 34 | T60: 0.8 | U60: 80 | V60: 1.882352941 | W60: 34 | X60: 0.8
A61: Sul | B61: Presidente Kennedy | C61: 196 | D61: 115 | E61: 239 | F61: 119.5 | G61: 101 | H61: 0.8782608696 | I61: 40 | J61: 0.3347280335 | K61: 121 | L61: 1.052173913 | M61: 122 | N61: 1.060869565 | O61: 226 | P61: 1.965217391 | Q61: 101 | R61: 0.8782608696 | S61: 110 | T61: 0.9205020921 | U61: 213 | V61: 1.782426778 | W61: 119 | X61: 0.9958158996
A62: Central | B62: Rio Bananal | C62: 301 | D62: 167 | E62: 229 | F62: 114.5 | G62: 136 | H62: 0.8143712575 | I62: 61 | J62: 0.5327510917 | K62: 147 | L62: 0.880239521 | M62: 164 | N62: 0.9820359281 | O62: 348 | P62: 2.083832335 | Q62: 144 | R62: 0.8622754491 | S62: 152 | T62: 1.327510917 | U62: 340 | V62: 2.969432314 | W62: 150 | X62: 1.310043668
A63: Sul | B63: Rio Novo do Sul | C63: 118 | D63: 56 | E63: 144 | F63: 72 | G63: 36 | H63: 0.6428571429 | I63: 38 | J63: 0.5277777778 | K63: 60 | L63: 1.071428571 | M63: 65 | N63: 1.160714286 | O63: 112 | P63: 2 | Q63: 53 | R63: 0.9464285714 | S63: 57 | T63: 0.7916666667 | U63: 133 | V63: 1.847222222 | W63: 64 | X63: 0.8888888889
A64: Metropolitana | B64: Santa Leopoldina | C64: 95 | D64: 38 | E64: 155 | F64: 77.5 | G64: 28 | H64: 0.7368421053 | I64: 17 | J64: 0.2193548387 | K64: 72 | L64: 1.894736842 | M64: 73 | N64: 1.921052632 | O64: 123 | P64: 3.236842105 | Q64: 58 | R64: 1.526315789 | S64: 50 | T64: 0.6451612903 | U64: 126 | V64: 1.625806452 | W64: 59 | X64: 0.7612903226
A65: Metropolitana | B65: Santa Maria de Jetibá | C65: 640 | D65: 319 | E65: 685 | F65: 342.5 | G65: 279 | H65: 0.8746081505 | I65: 110 | J65: 0.3211678832 | K65: 328 | L65: 1.028213166 | M65: 341 | N65: 1.068965517 | O65: 580 | P65: 1.818181818 | Q65: 307 | R65: 0.9623824451 | S65: 219 | T65: 0.6394160584 | U65: 482 | V65: 1.40729927 | W65: 287 | X65: 0.8379562044
A66: Metropolitana | B66: Santa Teresa | C66: 306 | D66: 158 | E66: 260 | F66: 130 | G66: 107 | H66: 0.6772151899 | I66: 81 | J66: 0.6230769231 | K66: 137 | L66: 0.8670886076 | M66: 147 | N66: 0.9303797468 | O66: 248 | P66: 1.569620253 | Q66: 111 | R66: 0.7025316456 | S66: 119 | T66: 0.9153846154 | U66: 256 | V66: 1.969230769 | W66: 121 | X66: 0.9307692308
A67: Central | B67: São Domingos do Norte | C67: 121 | D67: 65 | E67: 117 | F67: 58.5 | G67: 34 | H67: =G67/D67 -> 0.5230769231 | I67: 16 | J67: =I67/F67 -> 0.2735042735 | K67: 50 | L67: =K67/D67 -> 0.7692307692 | M67: 54 | N67: =M67/D67 -> 0.8307692308 | O67: 71 | P67: =O67/D67 -> 1.092307692 | Q67: 36 | R67: =Q67/D67 -> 0.5538461538 | S67: 48 | T67: =S67/F67 -> 0.8205128205 | U67: 85 | V67: =U67/F67 -> 1.452991453 | W67: 50 | X67: =W67/F67 -> 0.8547008547
A68: Central | B68: São Gabriel da Palha | C68: 457 | D68: 234 | E68: 426 | F68: =E68/12*6 -> 213 | G68: 153 | H68: 0.6538461538 | I68: 79 | J68: 0.3708920188 | K68: 195 | L68: 0.8333333333 | M68: 196 | N68: 0.8376068376 | O68: 344 | P68: 1.47008547 | Q68: 167 | R68: 0.7136752137 | S68: 187 | T68: 0.8779342723 | U68: 378 | V68: 1.774647887 | W68: 185 | X68: 0.8685446009
A69: Sul | B69: São José do Calçado | C69: 80 | D69: 44 | E69: 150 | F69: 75 | G69: 55 | H69: 1.25 | I69: 16 | J69: 0.2133333333 | K69: 62 | L69: 1.409090909 | M69: 62 | N69: 1.409090909 | O69: 90 | P69: 2.045454545 | Q69: 58 | R69: 1.318181818 | S69: 64 | T69: 0.8533333333 | U69: 109 | V69: 1.453333333 | W69: 64 | X69: 0.8533333333
A70: Norte | B70: São Mateus | C70: 1923 | D70: 972 | E70: 1766 | F70: 883 | G70: 566 | H70: 0.5823045267 | I70: 378 | J70: 0.4280860702 | K70: 842 | L70: 0.866255144 | M70: 881 | N70: 0.9063786008 | O70: 1190 | P70: 1.224279835 | Q70: 723 | R70: 0.7438271605 | S70: 630 | T70: 0.7134767837 | U70: 1136 | V70: 1.286523216 | W70: 751 | X70: 0.8505096263
A71: Central | B71: São Roque do Canaã | C71: 130 | D71: 84 | E71: 100 | F71: 50 | G71: 51 | H71: 0.6071428571 | I71: 30 | J71: 0.6 | K71: 63 | L71: 0.75 | M71: 67 | N71: 0.7976190476 | O71: 134 | P71: 1.595238095 | Q71: 57 | R71: 0.6785714286 | S71: 46 | T71: 0.92 | U71: 139 | V71: 2.78 | W71: 53 | X71: 1.06
A72: Metropolitana | B72: Serra | C72: 7354 | D72: 3900 | E72: 7550 | F72: 3775 | G72: 2297 | H72: 0.588974359 | I72: 1043 | J72: 0.2762913907 | K72: 3234 | L72: 0.8292307692 | M72: 3286 | N72: 0.8425641026 | O72: 4239 | P72: 1.086923077 | Q72: 2966 | R72: 0.7605128205 | S72: 2939 | T72: 0.7785430464 | U72: 4389 | V72: 1.162649007 | W72: 3396 | X72: 0.899602649
A73: Central | B73: Sooretama | C73: 442 | D73: 245 | E73: 415 | F73: 207.5 | G73: 142 | H73: 0.5795918367 | I73: 92 | J73: 0.443373494 | K73: 206 | L73: 0.8408163265 | M73: 210 | N73: 0.8571428571 | O73: 449 | P73: 1.832653061 | Q73: 190 | R73: 0.7755102041 | S73: 246 | T73: 1.185542169 | U73: 573 | V73: 2.761445783 | W73: 241 | X73: 1.161445783
A74: Sul | B74: Vargem Alta | C74: 264 | D74: 141 | E74: 278 | F74: 139 | G74: 115 | H74: 0.8156028369 | I74: 56 | J74: 0.4028776978 | K74: 143 | L74: 1.014184397 | M74: 144 | N74: 1.021276596 | O74: 282 | P74: 2 | Q74: 132 | R74: 0.9361702128 | S74: 94 | T74: 0.6762589928 | U74: 287 | V74: 2.064748201 | W74: 124 | X74: 0.8920863309
A75: Metropolitana | B75: Venda Nova do Imigrante | C75: 400 | D75: 211 | E75: 328 | F75: 164 | G75: 180 | H75: 0.8530805687 | I75: 50 | J75: 0.3048780488 | K75: 194 | L75: 0.9194312796 | M75: 203 | N75: 0.9620853081 | O75: 459 | P75: 2.17535545 | Q75: 182 | R75: 0.8625592417 | S75: 119 | T75: 0.7256097561 | U75: 350 | V75: 2.134146341 | W75: 136 | X75: 0.8292682927
A76: Metropolitana | B76: Viana | C76: 955 | D76: 495 | E76: 1064 | F76: 532 | G76: 223 | H76: 0.4505050505 | I76: 161 | J76: 0.3026315789 | K76: 516 | L76: 1.042424242 | M76: 521 | N76: 1.052525253 | O76: 638 | P76: 1.288888889 | Q76: 414 | R76: 0.8363636364 | S76: 431 | T76: 0.8101503759 | U76: 758 | V76: 1.42481203 | W76: 505 | X76: 0.9492481203
A77: Norte | B77: Vila Pavão | C77: 86 | D77: 47 | E77: 127 | F77: 63.5 | G77: 43 | H77: 0.914893617 | I77: 23 | J77: 0.3622047244 | K77: 59 | L77: 1.255319149 | M77: 60 | N77: 1.276595745 | O77: 103 | P77: 2.191489362 | Q77: 46 | R77: 0.9787234043 | S77: 60 | T77: 0.9448818898 | U77: 150 | V77: 2.362204724 | W77: 62 | X77: 0.9763779528
A78: Central | B78: Vila Valério | C78: 249 | D78: 125 | E78: 169 | F78: 84.5 | G78: 86 | H78: 0.688 | I78: 32 | J78: 0.3786982249 | K78: 116 | L78: 0.928 | M78: 100 | N78: 0.8 | O78: 231 | P78: 1.848 | Q78: 101 | R78: 0.808 | S78: 86 | T78: 1.017751479 | U78: 231 | V78: 2.733727811 | W78: 116 | X78: 1.372781065
A79: Metropolitana | B79: Vila Velha | C79: 5702 | D79: 2920 | E79: 5675 | F79: 2837.5 | G79: 1838 | H79: 0.6294520548 | I79: 794 | J79: 0.2798237885 | K79: 2445 | L79: 0.8373287671 | M79: 2541 | N79: 0.8702054795 | O79: 3335 | P79: 1.142123288 | Q79: 2177 | R79: 0.7455479452 | S79: 2119 | T79: 0.746784141 | U79: 3388 | V79: 1.194008811 | W79: 2363 | X79: 0.8327753304
A80: Metropolitana | B80: Vitória | C80: 3704 | D80: 1886 | E80: 3833 | F80: 1916.5 | G80: 959 | H80: 0.5084835631 | I80: 560 | J80: 0.2921993217 | K80: 1511 | L80: 0.8011664899 | M80: 1577 | N80: 0.8361611877 | O80: 2111 | P80: 1.119300106 | Q80: 1411 | R80: 0.7481442206 | S80: 1276 | T80: 0.6657970258 | U80: 2333 | V80: 1.217323245 | W80: 1668 | X80: 0.870336551
B82: Total Norte | C82: =SUMIF($A$3:$A$80,"Norte",C$3:C$80) -> 5797 | D82: =SUMIF($A$3:$A$80,"Norte",D$3:D$80) -> 3052 | E82: =SUMIF($A$3:$A$80,"Norte",E$3:E$80) -> 5789 | F82: =SUMIF($A$3:$A$80,"Norte",F$3:F$80) -> 2894.5 | G82: =SUMIF($A$3:$A$80,"Norte",G$3:G$80) -> 2136 | H82: =G82/D82 -> 0.6998689384 | I82: =SUMIF($A$3:$A$80,"Norte",I$3:I$80) -> 1219 | J82: =I82/F82 -> 0.4211435481 | K82: =SUMIF($A$3:$A$80,"Norte",K$3:K$80) -> 2820 | L82: =K82/D82 -> 0.9239842726 | M82: =SUMIF($A$3:$A$80,"Norte",M$3:M$80) -> 2885 | N82: =M82/D82 -> 0.9452817824 | O82: =SUMIF($A$3:$A$80,"Norte",O$3:O$80) -> 4630 | P82: =O82/D82 -> 1.517038008 | Q82: =SUMIF($A$3:$A$80,"Norte",Q$3:Q$80) -> 2511 | R82: =Q82/D82 -> 0.8227391874 | S82: =SUMIF($A$3:$A$80,"Norte",S$3:S$80) -> 2187 | T82: =S82/F82 -> 0.7555709103 | U82: =SUMIF($A$3:$A$80,"Norte",U$3:U$80) -> 4446 | V82: =U82/F82 -> 1.536016583 | W82: =SUMIF($A$3:$A$80,"Norte",W$3:W$80) -> 2587 | X82: =W82/F82 -> 0.8937640352
B83: Total Central | C83: =SUMIF($A$3:$A$80,"Central",C$3:C$80) -> 7093 | D83: =SUMIF($A$3:$A$80,"Central",D$3:D$80) -> 3726 | E83: =SUMIF($A$3:$A$80,"Central",E$3:E$80) -> 6843 | F83: =SUMIF($A$3:$A$80,"Central",F$3:F$80) -> 3421.5 | G83: =SUMIF($A$3:$A$80,"Central",G$3:G$80) -> 2514 | H83: =G83/D83 -> 0.6747181965 | I83: =SUMIF($A$3:$A$80,"Central",I$3:I$80) -> 1201 | J83: =I83/F83 -> 0.3510156364 | K83: =SUMIF($A$3:$A$80,"Central",K$3:K$80) -> 3230 | L83: =K83/D83 -> 0.8668813741 | M83: =SUMIF($A$3:$A$80,"Central",M$3:M$80) -> 3335 | N83: =M83/D83 -> 0.8950617284 | O83: =SUMIF($A$3:$A$80,"Central",O$3:O$80) -> 5697 | P83: =O83/D83 -> 1.528985507 | Q83: =SUMIF($A$3:$A$80,"Central",Q$3:Q$80) -> 3025 | R83: =Q83/D83 -> 0.8118625872 | S83: =SUMIF($A$3:$A$80,"Central",S$3:S$80) -> 2560 | T83: =S83/F83 -> 0.7482098495 | U83: =SUMIF($A$3:$A$80,"Central",U$3:U$80) -> 5701 | V83: =U83/F83 -> 1.666228262 | W83: =SUMIF($A$3:$A$80,"Central",W$3:W$80) -> 3095 | X83: =W83/F83 -> 0.9045740172
B84: Total Metropolitana | C84: =SUMIF($A$3:$A$80,"Metropolitana",C$3:C$80) -> 29863 | D84: =SUMIF($A$3:$A$80,"Metropolitana",D$3:D$80) -> 15569 | E84: =SUMIF($A$3:$A$80,"Metropolitana",E$3:E$80) -> 30197 | F84: =SUMIF($A$3:$A$80,"Metropolitana",F$3:F$80) -> 15098.5 | G84: =SUMIF($A$3:$A$80,"Metropolitana",G$3:G$80) -> 9805 | H84: =G84/D84 -> 0.6297771212 | I84: =SUMIF($A$3:$A$80,"Metropolitana",I$3:I$80) -> 4909 | J84: =I84/F84 -> 0.3251316356 | K84: =SUMIF($A$3:$A$80,"Metropolitana",K$3:K$80) -> 13800 | L84: =K84/D84 -> 0.8863767744 | M84: =SUMIF($A$3:$A$80,"Metropolitana",M$3:M$80) -> 14158 | N84: =M84/D84 -> 0.9093711863 | O84: =SUMIF($A$3:$A$80,"Metropolitana",O$3:O$80) -> 20155 | P84: =O84/D84 -> 1.294559702 | Q84: =SUMIF($A$3:$A$80,"Metropolitana",Q$3:Q$80) -> 12454 | R84: =Q84/D84 -> 0.7999229238 | S84: =SUMIF($A$3:$A$80,"Metropolitana",S$3:S$80) -> 11185 | T84: =S84/F84 -> 0.7408020664 | U84: =SUMIF($A$3:$A$80,"Metropolitana",U$3:U$80) -> 20063 | V84: =U84/F84 -> 1.328807497 | W84: =SUMIF($A$3:$A$80,"Metropolitana",W$3:W$80) -> 13466 | X84: =W84/F84 -> 0.8918766765
B85: Total Sul | C85: =SUMIF($A$3:$A$80,"sul",C$3:C$80) -> 8267 | D85: =SUMIF($A$3:$A$80,"sul",D$3:D$80) -> 4308 | E85: =SUMIF($A$3:$A$80,"sul",E$3:E$80) -> 8688 | F85: =SUMIF($A$3:$A$80,"sul",F$3:F$80) -> 4344 | G85: =SUMIF($A$3:$A$80,"sul",G$3:G$80) -> 3217 | H85: =G85/D85 -> 0.7467502321 | I85: =SUMIF($A$3:$A$80,"sul",I$3:I$80) -> 1542 | J85: =I85/F85 -> 0.3549723757 | K85: =SUMIF($A$3:$A$80,"sul",K$3:K$80) -> 4330 | L85: =K85/D85 -> 1.005106778 | M85: =SUMIF($A$3:$A$80,"sul",M$3:M$80) -> 4449 | N85: =M85/D85 -> 1.032729805 | O85: =SUMIF($A$3:$A$80,"sul",O$3:O$80) -> 7398 | P85: =O85/D85 -> 1.717270195 | Q85: =SUMIF($A$3:$A$80,"sul",Q$3:Q$80) -> 3819 | R85: =Q85/D85 -> 0.8864902507 | S85: =SUMIF($A$3:$A$80,"sul",S$3:S$80) -> 2950 | T85: =S85/F85 -> 0.6790976059 | U85: =SUMIF($A$3:$A$80,"sul",U$3:U$80) -> 7014 | V85: =U85/F85 -> 1.614640884 | W85: =SUMIF($A$3:$A$80,"sul",W$3:W$80) -> 3843 | X85: =W85/F85 -> 0.8846685083
B86: Total Espírito Santo | C86: =SUM(C3:C80) -> 51020 | D86: =SUM(D3:D80) -> 26655 | E86: =SUM(E3:E80) -> 51517 | F86: =SUM(F3:F80) -> 25758.5 | G86: =SUM(G3:G80) -> 17672 | H86: =G86/D86 -> 0.6629900582 | I86: =SUM(I3:I80) -> 8871 | J86: =I86/F86 -> 0.3443911718 | K86: =SUM(K3:K80) -> 24180 | L86: =K86/D86 -> 0.9071468768 | M86: =SUM(M3:M80) -> 24827 | N86: =M86/D86 -> 0.9314199962 | O86: =SUM(O3:O80) -> 37880 | P86: =O86/D86 -> 1.421121741 | Q86: =SUM(Q3:Q80) -> 21809 | R86: =Q86/D86 -> 0.8181954605 | S86: =SUM(S3:S80) -> 18882 | T86: =S86/F86 -> 0.7330395792 | U86: =SUM(U3:U80) -> 37224 | V86: =U86/F86 -> 1.445115205 | W86: =SUM(W3:W80) -> 22991 | X86: =W86/F86 -> 0.8925597376
A90: Fonte: Vacina e Confia, em 03 de Julho de 2024.**
A91: **Dados referente às doses aplicadas no período de Junho de 2024
A92: Cobertura Calculada por município de residência do cidadão (no Vacina e Confia, a origem da informação é o endereço que consta no cadastro do cidadão preenchido manualmente por meio do autocadastro ou pelo cadastro realizado por um profissional de saúde no momento do atendimento).
A94: 1 População anual extraída do MS/SVS/DASIS - SINASC/DASIS/SVS/MS 2023 (hoje preliminares) referente ao período de março a dezembro de 2023 e SINASC/DASIS/SVS/MS 2024 referente ao período de janeiro a fevereiro de 2024.
A96: ² População proporcional extraída do MS/SVS/DASIS - SINASC/DASIS/SVS/MS 2023 (hoje preliminares) referente ao período de março e abril de 2023 somada a população extraída do SINASC/DASIS/SVS/MS 2024 referente ao período de janeiro e fevereiro de 2024.
A97: Sinasc, em 10 de Julho de 2024.
A98: Observações:
A99: Imunobiológicos que foram recebidos parcialmente pelo estado no mês da análise, sendo distribuídos em quantidades reduzidas às regionais e municípios: Varicela, Haemophilus influenzae tipo B, Soro Antirrábico Humano.
A100: Imunobiológicos que não foram recebidos pelo estado no mês da análise, não sendo possível a distribuição às regionais e municípios: Meningo C, Tetra viral, Sars-cov-10 Bivalente, DTPa (CRIE) e Sars-Cov2-10 Doses Pediátricas.
A101: Imunobiológicos com indisponibilidade de aquisição e distribuição no mês da análise:
A102: Imunobiológicos com indisponibilidade de aquisição e distribuição no mês da análise: Tetra Viral.

Sheet Cobert. COVID-19 Menores 4 anos (hidden)
A1: Regional | B1: Município | C1: Série Histórica
A2: Região Metropolitana | B2: Afonso Cláudio
A3: Região Norte | B3: Água Doce do Norte
A4: Região Central | B4: Águia Branca
A5: Região Sul | B5: Alegre
A6: Região Sul | B6: Alfredo Chaves
A7: Região Central | B7: Alto Rio Novo
A8: Região Sul | B8: Anchieta
A9: Região Sul | B9: Apiacá
A10: Região Metropolitana | B10: Aracruz
A11: Região Sul | B11: Atilio Vivacqua
A12: Região Central | B12: Baixo Guandu
A13: Região Norte | B13: Barra de São Francisco
A14: Região Norte | B14: Boa Esperança
A15: Região Sul | B15: Bom Jesus do Norte
A16: Região Metropolitana | B16: Brejetuba
A17: Região Sul | B17: Cachoeiro de Itapemirim
A18: Região Metropolitana | B18: Cariacica
A19: Região Sul | B19: Castelo
A20: Região Central | B20: Colatina
A21: Região Norte | B21: Conceição da Barra
A22: Região Metropolitana | B22: Conceição do Castelo
A23: Região Sul | B23: Divino de São Lourenço
A24: Região Metropolitana | B24: Domingos Martins
A25: Região Sul | B25: Dores do Rio Preto
A26: Região Norte | B26: Ecoporanga
A27: Região Metropolitana | B27: Fundão
A28: Região Central | B28: Governador Lindenberg
A29: Região Sul | B29: Guaçuí
A30: Região Metropolitana | B30: Guarapari
A31: Região Metropolitana | B31: Ibatiba
A32: Região Metropolitana | B32: Ibiraçu
A33: Região Sul | B33: Ibitirama
A34: Região Sul | B34: Iconha
A35: Região Sul | B35: Irupi
A36: Região Metropolitana | B36: Itaguaçu
A37: Região Sul | B37: Itapemirim
A38: Região Metropolitana | B38: Itarana
A39: Região Sul | B39: Iúna
A40: Região Norte | B40: Jaguaré
A41: Região Sul | B41: Jerônimo Monteiro
A42: Região Metropolitana | B42: João Neiva
A43: Região Metropolitana | B43: Laranja da Terra
A44: Região Central | B44: Linhares
A45: Região Central | B45: Mantenópolis
A46: Região Sul | B46: Marataízes
A47: Região Metropolitana | B47: Marechal Floriano
A48: Região Central | B48: Marilândia
A49: Região Sul | B49: Mimoso do Sul
A50: Região Norte | B50: Montanha
A51: Região Norte | B51: Mucurici
A52: Região Sul | B52: Muniz Freire
A53: Região Sul | B53: Muqui
A54: Região Norte | B54: Nova Venécia
A55: Região Central | B55: Pancas
A56: Região Norte | B56: Pedro Canário
A57: Região Norte | B57: Pinheiros
A58: Região Sul | B58: Piúma
A59: Região Norte | B59: Ponto Belo
A60: Região Sul | B60: Presidente Kennedy
A61: Região Central | B61: Rio Bananal
A62: Região Sul | B62: Rio Novo do Sul
A63: Região Metropolitana | B63: Santa Leopoldina
A64: Região Metropolitana | B64: Santa Maria de Jetibá
A65: Região Metropolitana | B65: Santa Teresa
A66: Região Central | B66: São Domingos do Norte
A67: Região Central | B67: São Gabriel da Palha
A68: Região Sul | B68: São José do Calçado
A69: Região Norte | B69: São Mateus
A70: Região Central | B70: São Roque do Canaã
A71: Região Metropolitana | B71: Serra
A72: Região Central | B72: Sooretama
A73: Região Sul | B73: Vargem Alta
A74: Região Metropolitana | B74: Venda Nova do Imigrante
A75: Região Metropolitana | B75: Viana
A76: Região Norte | B76: Vila Pavão
A77: Região Central | B77: Vila Valério
A78: Região Metropolitana | B78: Vila Velha
A79: Região Metropolitana | B79: Vitória
B81: Espírito Santo
B82: Região Norte
B83: Região Central
B84: Região Metropolitana
B85: Região Sul
A87: Pfizer Pediátrica Menor de 5 anos e Coronavac
A88: Período avaliado: 2021-2024
A89: Fonte: https://www.vacinaeconfia.es.gov.br
A90: *Dados de janeiro/2024 extraídos do Vacina e Confia em 04/01/2024
A91: População proporcional extraída do SINASC 2022 (menores de 1 ano) e Censo IBGE 2022 (demais idades)
A92: Cobertura Calculada por município de procedência da vacinação

Sheet Cobert. Meningo C Adolescentes
A1: Regional | B1: Município | C1: Série Histórica
A2: Metropolitana | B2: Afonso Cláudio | C2: 56.48432698
A3: Central Norte | B3: Água Doce do Norte | C3: 65.36144578
A4: Central Norte | B4: Águia Branca | C4: 59.12698413
A5: Sul | B5: Alegre | C5: 70.24426351
A6: Sul | B6: Alfredo Chaves | C6: 40.50632911
A7: Central Norte | B7: Alto Rio Novo | C7: 86.16504854
A8: Sul | B8: Anchieta | C8: 76.38888889
A9: Sul | B9: Apiacá | C9: 29.3956044
A10: Metropolitana | B10: Aracruz | C10: 76.60244535
A11: Sul | B11: Atilio Vivacqua | C11: 75.9765625
A12: Central Norte | B12: Baixo Guandu | C12: 62.15505913
A13: Central Norte | B13: Barra de São Francisco | C13: 64.91760624
A14: Central Norte | B14: Boa Esperança | C14: 57.78401122
A15: Sul | B15: Bom Jesus do Norte | C15: 51.05566219
A16: Metropolitana | B16: Brejetuba | C16: 80.34528552
A17: Sul | B17: Cachoeiro de Itapemirim | C17: 75.43413339
A18: Metropolitana | B18: Cariacica | C18: 70.78759674
A19: Sul | B19: Castelo | C19: 76.51133501
A20: Central Norte | B20: Colatina | C20: 60.10427904
A21: Central Norte | B21: Conceição da Barra | C21: 54.47761194
A22: Metropolitana | B22: Conceição do Castelo | C22: 74.32432432
A23: Sul | B23: Divino de São Lourenço | C23: 59.92647059
A24: Metropolitana | B24: Domingos Martins | C24: 75.84204413
A25: Sul | B25: Dores do Rio Preto | C25: 73.49081365
A26: Central Norte | B26: Ecoporanga | C26: 60.42216359
A27: Metropolitana | B27: Fundão | C27: 73.79454927
A28: Central Norte | B28: Governador Lindenberg | C28: 73.27272727
A29: Sul | B29: Guaçuí | C29: 65.78249337
A30: Metropolitana | B30: Guarapari | C30: 66.59031913
A31: Metropolitana | B31: Ibatiba | C31: 69.88472622
A32: Metropolitana | B32: Ibiraçu | C32: 72.99651568
A33: Sul | B33: Ibitirama | C33: 67.71378709
A34: Sul | B34: Iconha | C34: 71.8503937
A35: Sul | B35: Irupi | C35: 64.67463479
A36: Metropolitana | B36: Itaguaçu | C36: 63.96103896
A37: Sul | B37: Itapemirim | C37: 57.16730852
A38: Metropolitana | B38: Itarana | C38: 63.31775701
A39: Sul | B39: Iúna | C39: 61.12531969
A40: Central Norte | B40: Jaguaré | C40: 59.19732441
A41: Sul | B41: Jerônimo Monteiro | C41: 80.10657194
A42: Metropolitana | B42: João Neiva | C42: 70.86494689
A43: Metropolitana | B43: Laranja da Terra | C43: 64.75409836
A44: Central Norte | B44: Linhares | C44: 68.16427193
A45: Central Norte | B45: Mantenópolis | C45: 76.33802817
A46: Sul | B46: Marataízes | C46: 80.03573024
A47: Metropolitana | B47: Marechal Floriano | C47: 75.37960954
A48: Central Norte | B48: Marilândia | C48: 70.54545455
A49: Sul | B49: Mimoso do Sul | C49: 65.05608283
A50: Central Norte | B50: Montanha | C50: 72.38095238
A51: Central Norte | B51: Mucurici | C51: 63.63636364
A52: Sul | B52: Muniz Freire | C52: 64.28571429
A53: Sul | B53: Muqui | C53: 66.3141994
A54: Central Norte | B54: Nova Venécia | C54: 50.43298969
A55: Central Norte | B55: Pancas | C55: 65.85623679
A56: Central Norte | B56: Pedro Canário | C56: 69.91221069
A57: Central Norte | B57: Pinheiros | C57: 60.0564573
A58: Sul | B58: Piúma | C58: 65.10128913
A59: Central Norte | B59: Ponto Belo | C59: 57.32323232
A60: Sul | B60: Presidente Kennedy | C60: 84.65753425
A61: Central Norte | B61: Rio Bananal | C61: 76.86868687
A62: Sul | B62: Rio Novo do Sul | C62: 58.04597701
A63: Metropolitana | B63: Santa Leopoldina | C63: 49.29133858
A64: Metropolitana | B64: Santa Maria de Jetibá | C64: 71.75035195
A65: Metropolitana | B65: Santa Teresa | C65: 75.04743833
A66: Central Norte | B66: São Domingos do Norte | C66: 69.26829268
A67: Central Norte | B67: São Gabriel da Palha | C67: 54.08415842
A68: Sul | B68: São José do Calçado | C68: 64.67391304
A69: Central Norte | B69: São Mateus | C69: 60.23002421
A70: Central Norte | B70: São Roque do Canaã | C70: 77.84946237
A71: Metropolitana | B71: Serra | C71: 66.8111306
A72: Central Norte | B72: Sooretama | C72: 76.85131195
A73: Sul | B73: Vargem Alta | C73: 71.23552124
A74: Metropolitana | B74: Venda Nova do Imigrante | C74: 69.34046346
A75: Metropolitana | B75: Viana | C75: 70.03519356
A76: Central Norte | B76: Vila Pavão | C76: 81.00436681
A77: Central Norte | B77: Vila Valério | C77: 84.51327434
A78: Metropolitana | B78: Vila Velha | C78: 73.26759667
A79: Metropolitana | B79: Vitória | C79: 76.97907188
A80: Total | C80: 74.11369749
A82: Meningocócica Conjudada C e Meningocócica ACWY
A83: Período avaliado: 2016-2024
A84: Fonte: http://tabnet.datasus.gov.br/ e https://www.vacinaeconfia.es.gov.br
A85: *Dados parciais. Dados de janeiro/2022 a abril/2022 extraídos do TABNET em 10/05/2024
A86: *Dados de Maio/2024 extraídos do Vacina e Confia em Junho/2024
A87: População proporcional extraída do Censo IBGE 2022
A88: Cobertura Calculada por município de procedência da vacinação
A90: Observações:
A91: Imunobiológicos que foram recebidos parcialmente pelo estado no mês da análise, sendo distribuídos em quantidades reduzidas às regionais e municípios: Varicela, Febre Amarela e HPV Quadrivalente.
A92: Imunobiológicos que não foram recebidos pelo estado no mês da análise, não sendo possível a distribuição às regionais e municípios: Meningo C, Hepatite A (CRIE), HIB, Hepatite A Rotina Pediátrica, DTPa (CRIE).
A93: Imunobiológicos com indisponibilidade de aquisição e distribuição no mês da análise: Tetra Viral.
A98: Observações:
A99: Imunobiológicos que foram recebidos parcialmente pelo estado no mês da análise, sendo distribuídos em quantidades reduzidas às regionais e municípios: Varicela, Haemophilus influenzae tipo B, Soro Antirrábico Humano.
A100: Imunobiológicos que não foram recebidos pelo estado no mês da análise, não sendo possível a distribuição às regionais e municípios: Meningo C, Tetra viral, Sars-cov-10 Bivalente, DTPa (CRIE) e Sars-Cov2-10 Doses Pediátricas.
A101: Imunobiológicos com indisponibilidade de aquisição e distribuição no mês da análise:

Sheet Cobert. HPV
A1: REGIONAL | B1: MUNICÍPIO | C1: HPV* Quadrivalente D1 Total - Feminino | D1: HPV* Quadrivalente D1 Total - Masculino
A2: METROPOLITANA | B2: Afonso Cláudio | C2: 85.29534981 | D2: 78.92752409
A3: CENTRAL-NORTE | B3: Água Doce do Norte | C3: 86.1195542 | D3: 60.9929078
A4: CENTRAL-NORTE | B4: Águia Branca | C4: 71.13543092 | D4: 76.60738714
A5: SUL | B5: Alegre | C5: 84.67939305 | D5: 67.15614293
A6: SUL | B6: Alfredo Chaves | C6: 82.19461698 | D6: 60.04140787
A7: CENTRAL-NORTE | B7: Alto Rio Novo | C7: 103.1509121 | D7: 91.87396352
A8: SUL | B8: Anchieta | C8: 94.33635971 | D8: 83.96022482
A9: SUL | B9: Apiacá | C9: 71.66979362 | D9: 50.65666041
A10: METROPOLITANA | B10: Aracruz | C10: 85.86797066 | D10: 72.00488998
A11: SUL | B11: Atílio Vivácqua | C11: 103.2663317 | D11: 92.46231156
A12: CENTRAL-NORTE | B12: Baixo Guandu | C12: 84.60532054 | D12: 68.12036633
A13: CENTRAL-NORTE | B13: Barra de São Francisco | C13: 76.84785735 | D13: 60.45441473
A14: CENTRAL-NORTE | B14: Boa Esperança | C14: 87.51191611 | D14: 51.28693994
A15: SUL | B15: Bom Jesus do Norte | C15: 86.45833333 | D15: 66.66666667
A16: METROPOLITANA | B16: Brejetuba | C16: 92.29422067 | D16: 74.25569177
A17: SUL | B17: Cachoeiro de Itapemirim | C17: 88.43467392 | D17: 87.21417543
A18: METROPOLITANA | B18: Cariacica | C18: 84.60663634 | D18: 49.89965213
A19: SUL | B19: Castelo | C19: 94.09317804 | D19: 87.60399334
A20: CENTRAL-NORTE | B20: Colatina | C20: 54.62154729 | D20: 45.62955877
A21: CENTRAL-NORTE | B21: Conceição da Barra | C21: 82.68330733 | D21: 69.73478939
A22: METROPOLITANA | B22: Conceição do Castelo | C22: 99.01423877 | D22: 84.3373494
A23: SUL | B23: Divino de São Lourenço | C23: 77.77777778 | D23: 88.88888889
A24: METROPOLITANA | B24: Domingos Martins | C24: 93.27181853 | D24: 78.12379854
A25: SUL | B25: Dores do Rio Preto | C25: 96.88073394 | D25: 85.87155963
A26: CENTRAL-NORTE | B26: Ecoporanga | C26: 84.49328449 | D26: 68.37606838
A27: METROPOLITANA | B27: Fundão | C27: 83.3917309 | D27: 65.31184303
A28: CENTRAL-NORTE | B28: Governador Lindenberg | C28: 90.39408867 | D28: 83.25123153
A29: SUL | B29: Guaçuí | C29: 89.22129344 | D29: 72.5032996
A30: METROPOLITANA | B30: Guarapari | C30: 77.41803697 | D30: 44.59197222
A31: METROPOLITANA | B31: Ibatiba | C31: 89.54056696 | D31: 78.0058651
A32: METROPOLITANA | B32: Ibiraçu | C32: 91.78852643 | D32: 67.0416198
A33: SUL | B33: Ibitirama | C33: 50.64782097 | D33: 61.7196702
A34: SUL | B34: Iconha | C34: 95.37275064 | D34: 88.68894602
A35: SUL | B35: Irupi | C35: 70.1598579 | D35: 84.54706927
A36: METROPOLITANA | B36: Itaguaçu | C36: 94.57013575 | D36: 47.28506787
A37: SUL | B37: Itapemirim | C37: 69.93615786 | D37: 70.2843877
A38: METROPOLITANA | B38: Itarana | C38: 85.40372671 | D38: 78.26086957
A39: SUL | B39: Iúna | C39: 77.92541792 | D39: 81.44020574
A40: CENTRAL-NORTE | B40: Jaguaré | C40: 92.6064227 | D40: 76.62434653
A41: SUL | B41: Jerônimo Monteiro | C41: 95.73690621 | D41: 87.21071864
A42: METROPOLITANA | B42: João Neiva | C42: 96.8879668 | D42: 75.31120332
A43: METROPOLITANA | B43: Laranja da Terra | C43: 81.13207547 | D43: 65.22911051
A44: CENTRAL-NORTE | B44: Linhares | C44: 78.22920386 | D44: 62.14923242
A45: CENTRAL-NORTE | B45: Mantenópolis | C45: 90.87415946 | D45: 60.90297791
A46: SUL | B46: Marataízes | C46: 96.90969097 | D46: 98.04980498
A47: METROPOLITANA | B47: Marechal Floriano | C47: 96.56716418 | D47: 68.05970149
A48: CENTRAL-NORTE | B48: Marilândia | C48: 102.244389 | D48: 91.27182045
A49: SUL | B49: Mimoso do Sul | C49: 81.45065398 | D49: 71.34363853
A50: CENTRAL-NORTE | B50: Montanha | C50: 95.13444302 | D50: 86.1715749
A51: CENTRAL-NORTE | B51: Mucurici | C51: 98.32402235 | D51: 76.53631285
A52: SUL | B52: Muniz Freire | C52: 92.44186047 | D52: 92.87790698
A53: SUL | B53: Muqui | C53: 84.56913828 | D53: 75.3507014
A54: CENTRAL-NORTE | B54: Nova Venécia | C54: 88.90714873 | D54: 80.03286771
A55: CENTRAL-NORTE | B55: Pancas | C55: 88.95184136 | D55: 79.74504249
A56: CENTRAL-NORTE | B56: Pedro Canário | C56: 91.52360515 | D56: 77.03862661
A57: CENTRAL-NORTE | B57: Pinheiros | C57: 79.80952381 | D57: 60.38095238
A58: SUL | B58: Piúma | C58: 72.73788675 | D58: 63.98131932
A59: CENTRAL-NORTE | B59: Ponto Belo | C59: 92.98245614 | D59: 77.54385965
A60: SUL | B60: Presidente Kennedy | C60: 86.70120898 | D60: 85.14680484
A61: CENTRAL-NORTE | B61: Rio Bananal | C61: 102.4454726 | D61: 101.2557832
A62: SUL | B62: Rio Novo do Sul | C62: 74.36548223 | D62: 84.26395939
A63: METROPOLITANA | B63: Santa Leopoldina | C63: 65.3968254 | D63: 38.30687831
A64: METROPOLITANA | B64: Santa Maria de Jetibá | C64: 90.87488241 | D64: 55.00156789
A65: METROPOLITANA | B65: Santa Teresa | C65: 103.6160421 | D65: 74.55621302
A66: CENTRAL-NORTE | B66: São Domingos do Norte | C66: 98.84297521 | D66: 80.66115702
A67: CENTRAL-NORTE | B67: São Gabriel da Palha | C67: 82.41758242 | D67: 72.78106509
A68: SUL | B68: São José do Calçado | C68: 83.80024361 | D68: 86.72350792
A69: CENTRAL-NORTE | B69: São Mateus | C69: 85.34456816 | D69: 64.45982546
A70: CENTRAL-NORTE | B70: São Roque do Canaã | C70: 106.0693642 | D70: 75.43352601
A71: METROPOLITANA | B71: Serra | C71: 82.19165666 | D71: 42.61403549
A72: CENTRAL-NORTE | B72: Sooretama | C72: 85.01362398 | D72: 79.17477618
A73: SUL | B73: Vargem Alta | C73: 87.64940239 | D73: 87.91500664
A74: METROPOLITANA | B74: Venda Nova do Imigrante | C74: 99.93846154 | D74: 88.73846154
A75: METROPOLITANA | B75: Viana | C75: 90.7868191 | D75: 69.199731
A76: CENTRAL-NORTE | B76: Vila Pavão | C76: 97.40634006 | D76: 71.1815562
A77: CENTRAL-NORTE | B77: Vila Valério | C77: 104.9800797 | D77: 85.85657371
A78: METROPOLITANA | B78: Vila Velha | C78: 90.00301477 | D78: 65.33614712
A79: METROPOLITANA | B79: Vitória | C79: 101.3070675 | D79: 66.63243395
A80: TOTAL | C80: 86.02890942 | D80: 80.30760429
A83: Cobertura Vacinal HPV 2024
A84: Período avaliado: 2013-2024
A85: Fonte: http://tabnet.datasus.gov.br/
A86: Fonte: https://www.vacinaeconfia.es.gov.br
A87: *Dados parciais gerados em 10/05/2024 (TABNET) e Junho/2024 (VeC)
A88: População proporcional extraída do Censo IBGE 2022
A89: Cobertura Calculada por município de procedência da vacinação
A91: Observações:
A92: Imunobiológicos que foram recebidos parcialmente pelo estado no mês da análise, sendo distribuídos em quantidades reduzidas às regionais e municípios: Varicela, Haemophilus influenzae tipo B, Soro Antirrábico Humano.
A93: Imunobiológicos que não foram recebidos pelo estado no mês da análise, não sendo possível a distribuição às regionais e municípios: Meningo C, Tetra viral, Sars-cov-10 Bivalente, DTPa (CRIE) e Sars-Cov2-10 Doses Pediátricas.
A94: Imunobiológicos com indisponibilidade de aquisição e distribuição no mês da análise:

Sheet dTpa gestantes - procedência
A1: REGIONAL | B1: MUNICÍPIO | C1: ¹POPULAÇÃO GESTANTE ANUAL | D1: ²POPULAÇÃO PROPORCIONAL | E1: DOSES APLICADAS dTpa GESTANTES | F1: COBERTURA VACINAL dTpa GESTANTES
A2: Metropolitana | B2: Afonso Cláudio | C2: 374 | D2: 146 | E2: 134 | F2: =E2/D2 -> 0.9178082192
A3: Norte | B3: Água Doce do Norte | C3: 185 | D3: 90 | E3: 81 | F3: =E3/D3 -> 0.9
A4: Central | B4: Águia Branca | C4: 165 | D4: 67 | E4: 61 | F4: 0.9104477612
A5: Sul | B5: Alegre | C5: 330 | D5: 135 | E5: 150 | F5: 1.111111111
A6: Sul | B6: Alfredo Chaves | C6: 148 | D6: 59 | E6: 57 | F6: 0.9661016949
A7: Central | B7: Alto Rio Novo | C7: 84 | D7: 27 | E7: 44 | F7: 1.62962963
A8: Sul | B8: Anchieta | C8: 389 | D8: 169 | E8: 175 | F8: 1.035502959
A9: Sul | B9: Apiacá | C9: 71 | D9: 37 | E9: 31 | F9: 0.8378378378
A10: Metropolitana | B10: Aracruz | C10: 1465 | D10: 634 | E10: 644 | F10: 1.015772871
A11: Sul | B11: Atilio Vivacqua | C11: 138 | D11: 64 | E11: 81 | F11: 1.265625
A12: Central | B12: Baixo Guandu | C12: 388 | D12: 163 | E12: 146 | F12: 0.8957055215
A13: Norte | B13: Barra de São Francisco | C13: 553 | D13: 241 | E13: 227 | F13: 0.9419087137
A14: Norte | B14: Boa Esperança | C14: 189 | D14: 77 | E14: 90 | F14: 1.168831169
A15: Sul | B15: Bom Jesus do Norte | C15: 84 | D15: 37 | E15: 44 | F15: 1.189189189
A16: Metropolitana | B16: Brejetuba | C16: 214 | D16: 87 | E16: 96 | F16: 1.103448276
A17: Sul | B17: Cachoeiro de Itapemirim | C17: 2460 | D17: 1105 | E17: 1009 | F17: 0.9131221719
A18: Metropolitana | B18: Cariacica | C18: 4873 | D18: 2069 | E18: 1954 | F18: 0.944417593
A19: Sul | B19: Castelo | C19: 443 | D19: 192 | E19: 195 | F19: 1.015625
A20: Central | B20: Colatina | C20: 1561 | D20: 669 | E20: 717 | F20: 1.071748879
A21: Norte | B21: Conceição da Barra | C21: 342 | D21: 131 | E21: 185 | F21: 1.41221374
A22: Metropolitana | B22: Conceição do Castelo | C22: 169 | D22: 78 | E22: 67 | F22: 0.858974359
A23: Sul | B23: Divino de São Lourenço | C23: 65 | D23: 25 | E23: 18 | F23: 0.72
A24: Metropolitana | B24: Domingos Martins | C24: 417 | D24: 186 | E24: 205 | F24: 1.102150538
A25: Sul | B25: Dores do Rio Preto | C25: 89 | D25: 34 | E25: 43 | F25: 1.264705882
A26: Norte | B26: Ecoporanga | C26: 266 | D26: 125 | E26: 118 | F26: 0.944
A27: Metropolitana | B27: Fundão | C27: 221 | D27: 94 | E27: 97 | F27: 1.031914894
A28: Central | B28: Governador Lindenberg | C28: 150 | D28: 72 | E28: 58 | F28: 0.8055555556
A29: Sul | B29: Guaçuí | C29: 396 | D29: 150 | E29: 144 | F29: 0.96
A30: Metropolitana | B30: Guarapari | C30: 1732 | D30: 752 | E30: 728 | F30: 0.9680851064
A31: Metropolitana | B31: Ibatiba | C31: 362 | D31: 153 | E31: 198 | F31: 1.294117647
A32: Metropolitana | B32: Ibiraçu | C32: 154 | D32: 70 | E32: 85 | F32: 1.214285714
A33: Sul | B33: Ibitirama | C33: 127 | D33: 52 | E33: 72 | F33: 1.384615385
A34: Sul | B34: Iconha | C34: 118 | D34: 47 | E34: 57 | F34: 1.212765957
A35: Sul | B35: Irupi | C35: 197 | D35: 75 | E35: 102 | F35: 1.36
A36: Metropolitana | B36: Itaguaçu | C36: 135 | D36: 59 | E36: 75 | F36: 1.271186441
A37: Sul | B37: Itapemirim | C37: 541 | D37: 201 | E37: 223 | F37: 1.109452736
A38: Metropolitana | B38: Itarana | C38: 140 | D38: 65 | E38: 68 | F38: 1.046153846
A39: Sul | B39: Iúna | C39: 474 | D39: 189 | E39: 183 | F39: 0.9682539683
A40: Norte | B40: Jaguaré | C40: 489 | D40: 212 | E40: 226 | F40: 1.066037736
A41: Sul | B41: Jerônimo Monteiro | C41: 156 | D41: 59 | E41: 64 | F41: 1.084745763
A42: Metropolitana | B42: João Neiva | C42: 178 | D42: 70 | E42: 70 | F42: 1
A43: Metropolitana | B43: Laranja da Terra | C43: 96 | D43: 43 | E43: 52 | F43: 1.209302326
A44: Central | B44: Linhares | C44: 2598 | D44: 1125 | E44: 1089 | F44: 0.968
A45: Central | B45: Mantenópolis | C45: 161 | D45: 78 | E45: 71 | F45: 0.9102564103
A46: Sul | B46: Marataízes | C46: 570 | D46: 266 | E46: 260 | F46: 0.977443609
A47: Metropolitana | B47: Marechal Floriano | C47: 227 | D47: 102 | E47: 100 | F47: 0.9803921569
A48: Central | B48: Marilândia | C48: 167 | D48: 61 | E48: 62 | F48: 1.016393443
A49: Sul | B49: Mimoso do Sul | C49: 262 | D49: 105 | E49: 111 | F49: 1.057142857
A50: Norte | B50: Montanha | C50: 233 | D50: 76 | E50: 97 | F50: 1.276315789
A51: Norte | B51: Mucurici | C51: 68 | D51: 21 | E51: 37 | F51: 1.761904762
A52: Sul | B52: Muniz Freire | C52: 210 | D52: 86 | E52: 113 | F52: 1.313953488
A53: Sul | B53: Muqui | C53: 163 | D53: 60 | E53: 82 | F53: 1.366666667
A54: Norte | B54: Nova Venécia | C54: 681 | D54: 301 | E54: 289 | F54: 0.9601328904
A55: Central | B55: Pancas | C55: 216 | D55: 91 | E55: 89 | F55: 0.978021978
A56: Norte | B56: Pedro Canário | C56: 305 | D56: 132 | E56: 139 | F56: 1.053030303
A57: Norte | B57: Pinheiros | C57: 301 | D57: 109 | E57: 137 | F57: 1.256880734
A58: Sul | B58: Piúma | C58: 309 | D58: 122 | E58: 141 | F58: 1.155737705
A59: Norte | B59: Ponto Belo | C59: 75 | D59: 25 | E59: 37 | F59: 1.48
A60: Sul | B60: Presidente Kennedy | C60: 194 | D60: 94 | E60: 94 | F60: 1
A61: Central | B61: Rio Bananal | C61: 299 | D61: 130 | E61: 137 | F61: 1.053846154
A62: Sul | B62: Rio Novo do Sul | C62: 120 | D62: 47 | E62: 47 | F62: 1
A63: Metropolitana | B63: Santa Leopoldina | C63: 93 | D63: 32 | E63: 35 | F63: 1.09375
A64: Metropolitana | B64: Santa Maria de Jetibá | C64: 682 | D64: 302 | E64: 300 | F64: 0.9933774834
A65: Metropolitana | B65: Santa Teresa | C65: 299 | D65: 120 | E65: 126 | F65: 1.05
A66: Central | B66: São Domingos do Norte | C66: 126 | D66: 58 | E66: 44 | F66: 0.7586206897
A67: Central | B67: São Gabriel da Palha | C67: 440 | D67: 172 | E67: 205 | F67: =E67/D67 -> 1.191860465
A68: Sul | B68: São José do Calçado | C68: 101 | D68: 44 | E68: 42 | F68: 0.9545454545
A69: Norte | B69: São Mateus | C69: 1742 | D69: 613 | E69: 691 | F69: 1.127243067
A70: Central | B70: São Roque do Canaã | C70: 131 | D70: 77 | E70: 63 | F70: 0.8181818182
A71: Metropolitana | B71: Serra | C71: 7393 | D71: 3287 | E71: 2931 | F71: 0.8916945543
A72: Central | B72: Sooretama | C72: 439 | D72: 196 | E72: 216 | F72: 1.102040816
A73: Sul | B73: Vargem Alta | C73: 265 | D73: 121 | E73: 122 | F73: 1.008264463
A74: Metropolitana | B74: Venda Nova do Imigrante | C74: 392 | D74: 162 | E74: 164 | F74: 1.012345679
A75: Metropolitana | B75: Viana | C75: 980 | D75: 430 | E75: 430 | F75: 1
A76: Norte | B76: Vila Pavão | C76: 91 | D76: 43 | E76: 70 | F76: 1.627906977
A77: Central | B77: Vila Valério | C77: 259 | D77: 121 | E77: 106 | F77: 0.8760330579
A78: Metropolitana | B78: Vila Velha | C78: 5698 | D78: 2372 | E78: 2191 | F78: 0.923693086
A79: Metropolitana | B79: Vitória | C79: 3748 | D79: 1596 | E79: 1694 | F79: 1.061403509
B81: Total Norte | C81: =SUMIF($A$2:$A$79,"Norte",C$2:C$79) -> 5520 | D81: =SUMIF($A$2:$A$79,"Norte",D$2:D$79) -> 2196 | E81: =SUMIF($A$2:$A$79,"Norte",E$2:E$79) -> 2424 | F81: 1.103825137
B82: Total Central | C82: =SUMIF($A$2:$A$79,"CENTRAL",C$2:C$79) -> 7184 | D82: =SUMIF($A$2:$A$79,"CENTRAL",D$2:D$79) -> 3107 | E82: =SUMIF($A$2:$A$79,"CENTRAL",E$2:E$79) -> 3108 | F82: 1.000321854
B83: Total Metropolitana | C83: =SUMIF($A$2:$A$79,"METROPOLITANA",C$2:C$79) -> 30042 | D83: =SUMIF($A$2:$A$79,"METROPOLITANA",D$2:D$79) -> 12909 | E83: =SUMIF($A$2:$A$79,"METROPOLITANA",E$2:E$79) -> 12444 | F83: 0.9639786196
B84: Total Sul | C84: =SUMIF($A$2:$A$79,"SUL",C$2:C$79) -> 8420 | D84: =SUMIF($A$2:$A$79,"SUL",D$2:D$79) -> 3575 | E84: =SUMIF($A$2:$A$79,"SUL",E$2:E$79) -> 3660 | F84: 1.023776224
B85: TOTAL ES | C85: =SUM(C2:C79) -> 51166 | D85: =SUM(D2:D79) -> 21787 | E85: =SUM(E2:E79) -> 21636 | F85: =E85/D85 -> 0.9930692615
B86: HOMOGENEIDADE ENTRE MUNICÍPIOS | E86: =COUNTIF(F2:F79,">=0,95") -> 60 | F86: =E86/78 -> 0.7692307692
A89: Vacina e Confia, em 04 de Junho de 2024.**
A90: **Dados referente às doses aplicadas no período de Maio de 2024
A91: Cobertura Calculada por município de procedência da vacinação
A92: 1 População anual extraída do MS/SVS/DASIS - SINASC/DASIS/SVS/MS 2023 (hoje preliminares) referente ao período de março a dezembro de 2023 e SINASC/DASIS/SVS/MS 2024 referente ao período de janeiro a fevereiro de 2024.
A94: ² População proporcional extraída do MS/SVS/DASIS - SINASC/DASIS/SVS/MS 2023 (hoje preliminares) referente ao período de março e abril de 2023 somada a população extraída do SINASC/DASIS/SVS/MS 2024 referente ao período de janeiro e fevereiro de 2024.
A96: Sinasc, em 10 de Julho de 2024.
A97: Observações:
A98: Imunobiológicos que foram recebidos parcialmente pelo estado no mês da análise, sendo distribuídos em quantidades reduzidas às regionais e municípios: Varicela, Haemophilus influenzae tipo B, Soro Antirrábico Humano.
A99: Imunobiológicos que não foram recebidos pelo estado no mês da análise, não sendo possível a distribuição às regionais e municípios: Meningo C, Tetra viral, Sars-cov-10 Bivalente, DTPa (CRIE) e Sars-Cov2-10 Doses Pediátricas.
A100: Imunobiológicos com indisponibilidade de aquisição e distribuição no mês da análise:

Sheet dTpa gestantes - residência
A1: REGIONAL | B1: MUNICÍPIO | C1: ¹POPULAÇÃO GESTANTE ANUAL | D1: ¹POPULAÇÃO PROPORCIONAL | E1: DOSES APLICADAS dTpa GESTANTES | F1: COBERTURA VACINAL dTpa GESTANTES
A2: Metropolitana | B2: Afonso Cláudio | C2: 374 | D2: 146 | E2: 146 | F2: =E2/D2 -> 1
A3: Norte | B3: Água Doce do Norte | C3: 185 | D3: 90 | E3: 63 | F3: =E3/D3 -> 0.7
A4: Central | B4: Águia Branca | C4: 165 | D4: 67 | E4: 49 | F4: 0.7313432836
A5: Sul | B5: Alegre | C5: 330 | D5: 135 | E5: 171 | F5: 1.266666667
A6: Sul | B6: Alfredo Chaves | C6: 148 | D6: 59 | E6: 69 | F6: 1.169491525
A7: Central | B7: Alto Rio Novo | C7: 84 | D7: 27 | E7: 44 | F7: 1.62962963
A8: Sul | B8: Anchieta | C8: 389 | D8: 169 | E8: 166 | F8: 0.9822485207
A9: Sul | B9: Apiacá | C9: 71 | D9: 37 | E9: 27 | F9: 0.7297297297
A10: Metropolitana | B10: Aracruz | C10: 1465 | D10: 634 | E10: 575 | F10: 0.9069400631
A11: Sul | B11: Atilio Vivacqua | C11: 138 | D11: 64 | E11: 66 | F11: 1.03125
A12: Central | B12: Baixo Guandu | C12: 388 | D12: 163 | E12: 142 | F12: 0.8711656442
A13: Norte | B13: Barra de São Francisco | C13: 553 | D13: 241 | E13: 228 | F13: 0.9460580913
A14: Norte | B14: Boa Esperança | C14: 189 | D14: 77 | E14: 82 | F14: 1.064935065
A15: Sul | B15: Bom Jesus do Norte | C15: 84 | D15: 37 | E15: 32 | F15: 0.8648648649
A16: Metropolitana | B16: Brejetuba | C16: 214 | D16: 87 | E16: 83 | F16: 0.9540229885
A17: Sul | B17: Cachoeiro de Itapemirim | C17: 2460 | D17: 1105 | E17: 1002 | F17: 0.9067873303
A18: Metropolitana | B18: Cariacica | C18: 4873 | D18: 2069 | E18: 2216 | F18: 1.071048816
A19: Sul | B19: Castelo | C19: 443 | D19: 192 | E19: 202 | F19: 1.052083333
A20: Central | B20: Colatina | C20: 1561 | D20: 669 | E20: 647 | F20: 0.9671150972
A21: Norte | B21: Conceição da Barra | C21: 342 | D21: 131 | E21: 168 | F21: 1.282442748
A22: Metropolitana | B22: Conceição do Castelo | C22: 169 | D22: 78 | E22: 76 | F22: 0.9743589744
A23: Sul | B23: Divino de São Lourenço | C23: 65 | D23: 25 | E23: 22 | F23: 0.88
A24: Metropolitana | B24: Domingos Martins | C24: 417 | D24: 186 | E24: 226 | F24: 1.215053763
A25: Sul | B25: Dores do Rio Preto | C25: 89 | D25: 34 | E25: 32 | F25: 0.9411764706
A26: Norte | B26: Ecoporanga | C26: 266 | D26: 125 | E26: 124 | F26: 0.992
A27: Metropolitana | B27: Fundão | C27: 221 | D27: 94 | E27: 89 | F27: 0.9468085106
A28: Central | B28: Governador Lindenberg | C28: 150 | D28: 72 | E28: 70 | F28: 0.9722222222
A29: Sul | B29: Guaçuí | C29: 396 | D29: 150 | E29: 127 | F29: 0.8466666667
A30: Metropolitana | B30: Guarapari | C30: 1732 | D30: 752 | E30: 680 | F30: 0.9042553191
A31: Metropolitana | B31: Ibatiba | C31: 362 | D31: 153 | E31: 195 | F31: 1.274509804
A32: Metropolitana | B32: Ibiraçu | C32: 154 | D32: 70 | E32: 91 | F32: 1.3
A33: Sul | B33: Ibitirama | C33: 127 | D33: 52 | E33: 64 | F33: 1.230769231
A34: Sul | B34: Iconha | C34: 118 | D34: 47 | E34: 68 | F34: 1.446808511
A35: Sul | B35: Irupi | C35: 197 | D35: 75 | E35: 77 | F35: 1.026666667
A36: Metropolitana | B36: Itaguaçu | C36: 135 | D36: 59 | E36: 66 | F36: 1.118644068
A37: Sul | B37: Itapemirim | C37: 541 | D37: 201 | E37: 240 | F37: 1.194029851
A38: Metropolitana | B38: Itarana | C38: 140 | D38: 65 | E38: 62 | F38: 0.9538461538
A39: Sul | B39: Iúna | C39: 474 | D39: 189 | E39: 187 | F39: 0.9894179894
A40: Norte | B40: Jaguaré | C40: 489 | D40: 212 | E40: 217 | F40: 1.023584906
A41: Sul | B41: Jerônimo Monteiro | C41: 156 | D41: 59 | E41: 52 | F41: 0.8813559322
A42: Metropolitana | B42: João Neiva | C42: 178 | D42: 70 | E42: 68 | F42: 0.9714285714
A43: Metropolitana | B43: Laranja da Terra | C43: 96 | D43: 43 | E43: 48 | F43: 1.11627907
A44: Central | B44: Linhares | C44: 2598 | D44: 1125 | E44: 1062 | F44: 0.944
A45: Central | B45: Mantenópolis | C45: 161 | D45: 78 | E45: 63 | F45: 0.8076923077
A46: Sul | B46: Marataízes | C46: 570 | D46: 266 | E46: 234 | F46: 0.8796992481
A47: Metropolitana | B47: Marechal Floriano | C47: 227 | D47: 102 | E47: 96 | F47: 0.9411764706
A48: Central | B48: Marilândia | C48: 167 | D48: 61 | E48: 69 | F48: 1.131147541
A49: Sul | B49: Mimoso do Sul | C49: 262 | D49: 105 | E49: 117 | F49: 1.114285714
A50: Norte | B50: Montanha | C50: 233 | D50: 76 | E50: 102 | F50: 1.342105263
A51: Norte | B51: Mucurici | C51: 68 | D51: 21 | E51: 40 | F51: 1.904761905
A52: Sul | B52: Muniz Freire | C52: 210 | D52: 86 | E52: 90 | F52: 1.046511628
A53: Sul | B53: Muqui | C53: 163 | D53: 60 | E53: 88 | F53: 1.466666667
A54: Norte | B54: Nova Venécia | C54: 681 | D54: 301 | E54: 321 | F54: 1.066445183
A55: Central | B55: Pancas | C55: 216 | D55: 91 | E55: 99 | F55: 1.087912088
A56: Norte | B56: Pedro Canário | C56: 305 | D56: 132 | E56: 153 | F56: 1.159090909
A57: Norte | B57: Pinheiros | C57: 301 | D57: 109 | E57: 125 | F57: 1.146788991
A58: Sul | B58: Piúma | C58: 309 | D58: 122 | E58: 133 | F58: 1.090163934
A59: Norte | B59: Ponto Belo | C59: 75 | D59: 25 | E59: 47 | F59: 1.88
A60: Sul | B60: Presidente Kennedy | C60: 194 | D60: 94 | E60: 92 | F60: 0.9787234043
A61: Central | B61: Rio Bananal | C61: 299 | D61: 130 | E61: 145 | F61: 1.115384615
A62: Sul | B62: Rio Novo do Sul | C62: 120 | D62: 47 | E62: 48 | F62: 1.021276596
A63: Metropolitana | B63: Santa Leopoldina | C63: 93 | D63: 32 | E63: 42 | F63: 1.3125
A64: Metropolitana | B64: Santa Maria de Jetibá | C64: 682 | D64: 302 | E64: 253 | F64: 0.8377483444
A65: Metropolitana | B65: Santa Teresa | C65: 299 | D65: 120 | E65: 139 | F65: 1.158333333
A66: Central | B66: São Domingos do Norte | C66: 126 | D66: 58 | E66: 46 | F66: 0.7931034483
A67: Central | B67: São Gabriel da Palha | C67: 440 | D67: 172 | E67: 191 | F67: =E67/D67 -> 1.110465116
A68: Sul | B68: São José do Calçado | C68: 101 | D68: 44 | E68: 43 | F68: 0.9772727273
A69: Norte | B69: São Mateus | C69: 1742 | D69: 613 | E69: 608 | F69: 0.9918433931
A70: Central | B70: São Roque do Canaã | C70: 131 | D70: 77 | E70: 71 | F70: 0.9220779221
A71: Metropolitana | B71: Serra | C71: 7393 | D71: 3287 | E71: 2745 | F71: 0.8351080012
A72: Central | B72: Sooretama | C72: 439 | D72: 196 | E72: 223 | F72: 1.137755102
A73: Sul | B73: Vargem Alta | C73: 265 | D73: 121 | E73: 117 | F73: 0.9669421488
A74: Metropolitana | B74: Venda Nova do Imigrante | C74: 392 | D74: 162 | E74: 159 | F74: 0.9814814815
A75: Metropolitana | B75: Viana | C75: 980 | D75: 430 | E75: 445 | F75: 1.034883721
A76: Norte | B76: Vila Pavão | C76: 91 | D76: 43 | E76: 66 | F76: 1.534883721
A77: Central | B77: Vila Valério | C77: 259 | D77: 121 | E77: 100 | F77: 0.826446281
A78: Metropolitana | B78: Vila Velha | C78: 5698 | D78: 2372 | E78: 1988 | F78: 0.8381112985
A79: Metropolitana | B79: Vitória | C79: 3748 | D79: 1596 | E79: 1461 | F79: 0.9154135338
B81: Total Norte | C81: =SUMIF($A$2:$A$79,"Norte",C$2:C$79) -> 5520 | D81: =SUMIF($A$2:$A$79,"Norte",D$2:D$79) -> 2196 | E81: =SUMIF($A$2:$A$79,"Norte",E$2:E$79) -> 2344 | F81: 1.067395264
B82: Total Central | C82: =SUMIF($A$2:$A$79,"CENTRAL",C$2:C$79) -> 7184 | D82: =SUMIF($A$2:$A$79,"CENTRAL",D$2:D$79) -> 3107 | E82: =SUMIF($A$2:$A$79,"CENTRAL",E$2:E$79) -> 3021 | F82: 0.9723205665
B83: Total Metropolitana | C83: =SUMIF($A$2:$A$79,"METROPOLITANA",C$2:C$79) -> 30042 | D83: =SUMIF($A$2:$A$79,"METROPOLITANA",D$2:D$79) -> 12909 | E83: =SUMIF($A$2:$A$79,"METROPOLITANA",E$2:E$79) -> 11949 | F83: 0.9256332791
B84: Total Sul | C84: =SUMIF($A$2:$A$79,"SUL",C$2:C$79) -> 8420 | D84: =SUMIF($A$2:$A$79,"SUL",D$2:D$79) -> 3575 | E84: =SUMIF($A$2:$A$79,"SUL",E$2:E$79) -> 3566 | F84: 0.9974825175
B85: TOTAL ES | C85: =SUM(C2:C79) -> 51166 | D85: =SUM(D2:D79) -> 21787 | E85: =SUM(E2:E79) -> 20880 | F85: =E85/D85 -> 0.95836967
B86: HOMOGENEIDADE ENTRE MUNICÍPIOS | E86: =COUNTIF(F2:F79,">=0,95") -> 53 | F86: =E86/78 -> 0.6794871795
A89: Vacina e Confia, em 04 de Junho de 2024.**
A90: **Dados referente às doses aplicadas no período de Maio de 2024
A91: Cobertura Calculada por município de procedência da vacinação
A92: 1 População anual extraída do MS/SVS/DASIS - SINASC/DASIS/SVS/MS 2023 (hoje preliminares) referente ao período de março a dezembro de 2023 e SINASC/DASIS/SVS/MS 2024 referente ao período de janeiro a fevereiro de 2024.
A94: ² População proporcional extraída do MS/SVS/DASIS - SINASC/DASIS/SVS/MS 2023 (hoje preliminares) referente ao período de março e abril de 2023 somada a população extraída do SINASC/DASIS/SVS/MS 2024 referente ao período de janeiro e fevereiro de 2024.
A96: Sinasc, em 10 de Julho de 2024.
A97: Observações:
A98: Imunobiológicos que foram recebidos parcialmente pelo estado no mês da análise, sendo distribuídos em quantidades reduzidas às regionais e municípios: Varicela, Haemophilus influenzae tipo B, Soro Antirrábico Humano.
A99: Imunobiológicos que não foram recebidos pelo estado no mês da análise, não sendo possível a distribuição às regionais e municípios: Meningo C, Tetra viral, Sars-cov-10 Bivalente, DTPa (CRIE) e Sars-Cov2-10 Doses Pediátricas.
A100: Imunobiológicos com indisponibilidade de aquisição e distribuição no mês da análise:

Sheet PROTEÇÃO

Sheet cálculos1 (hidden)
A1: Regional | B1: Município | C1: Cobertura Vacinal BCG | D1: Cobertura Vacinal Rotavírus | E1: Cobertura Vacinal COVID-19 | F1: Cobertura Vacinal Pentavalente | G1: Cobertura Vacinal Poliomielite | H1: Cobertura Vacinal Pneumo 10 | I1: Cobertura Vacinal Tríplice Viral | J1: Cobertura Vacinal Meningo C | K1: Cobertura Vacinal Febre Amarela | L1: Cobertura Vacinal Hepatite A | M1: Cobertura Varicela | N1: META 90% | O1: META 95% | P1: ATINGIRAM META | Q1: PQA-VS
A2: Metropolitana | B2: Afonso Cláudio | C2: ='CV Rotina <2A - procedência'!H3 -> 0.8777777778 | D2: ='CV Rotina <2A - procedência'!P3 -> 1 | E2: ='CV Rotina <2A - procedência'!#REF! ->  | F2: ='CV Rotina <2A - procedência'!J3 -> 0.9722222222 | G2: ='CV Rotina <2A - procedência'!L3 -> 0.9611111111 | H2: ='CV Rotina <2A - procedência'!N3 -> 0.9888888889 | I2: ='CV Rotina <2A - procedência'!X3 -> 1.116666667 | J2: ='CV Rotina <2A - procedência'!R3 -> 0.9944444444 | K2: ='CV Rotina <2A - procedência'!T3 -> 1.005555556 | L2: ='CV Rotina <2A - procedência'!V3 -> 1.133333333 | M2: ='CV Rotina <2A - procedência'!Z3 -> 0.4111111111 | N2: =COUNTIF(C2:E2,">=0,9") -> 1 | O2: =COUNTIFS(F2:M2,">=0,95") -> 7 | P2: =SUM(N2:O2) -> 8 | Q2: =COUNTIF(F2:I2,">=0,95") -> 4
A3: Norte | B3: Água Doce do Norte | C3: ='CV Rotina <2A - procedência'!H4 -> 0.4392523364 | D3: ='CV Rotina <2A - procedência'!P4 -> 0.7570093458 | E3: ='CV Rotina <2A - procedência'!#REF! ->  | F3: ='CV Rotina <2A - procedência'!J4 -> 0.738317757 | G3: ='CV Rotina <2A - procedência'!L4 -> 0.7196261682 | H3: ='CV Rotina <2A - procedência'!N4 -> 0.8037383178 | I3: ='CV Rotina <2A - procedência'!X4 -> 0.6728971963 | J3: ='CV Rotina <2A - procedência'!R4 -> 0.7289719626 | K3: ='CV Rotina <2A - procedência'!T4 -> 0.6168224299 | L3: ='CV Rotina <2A - procedência'!V4 -> 0.7009345794 | M3: ='CV Rotina <2A - procedência'!Z4 -> 0.261682243 | N3: =COUNTIF(C3:E3,">=0,9") -> 0 | O3: 0 | P3: =SUM(N3:O3) -> 0 | Q3: =COUNTIF(F3:I3,">=0,95") -> 0
A4: Central | B4: Águia Branca | C4: ='CV Rotina <2A - procedência'!H5 -> 0.5609756098 | D4: ='CV Rotina <2A - procedência'!P5 -> 0.9024390244 | E4: ='CV Rotina <2A - procedência'!#REF! ->  | F4: ='CV Rotina <2A - procedência'!J5 -> 1.036585366 | G4: ='CV Rotina <2A - procedência'!L5 -> 1.024390244 | H4: ='CV Rotina <2A - procedência'!N5 -> 0.9024390244 | I4: ='CV Rotina <2A - procedência'!X5 -> 0.7073170732 | J4: ='CV Rotina <2A - procedência'!R5 -> 1.036585366 | K4: ='CV Rotina <2A - procedência'!T5 -> 0.8902439024 | L4: ='CV Rotina <2A - procedência'!V5 -> 0.6707317073 | M4: ='CV Rotina <2A - procedência'!Z5 -> 0.2804878049 | N4: 1 | O4: 3 | P4: 4 | Q4: 2
A5: Sul | B5: Alegre | C5: ='CV Rotina <2A - procedência'!H6 -> 0.6585365854 | D5: ='CV Rotina <2A - procedência'!P6 -> 0.9207317073 | E5: ='CV Rotina <2A - procedência'!#REF! ->  | F5: ='CV Rotina <2A - procedência'!J6 -> 1.042682927 | G5: ='CV Rotina <2A - procedência'!L6 -> 1.067073171 | H5: ='CV Rotina <2A - procedência'!N6 -> 0.9451219512 | I5: ='CV Rotina <2A - procedência'!X6 -> 0.9634146341 | J5: ='CV Rotina <2A - procedência'!R6 -> 1.048780488 | K5: ='CV Rotina <2A - procedência'!T6 -> 0.9512195122 | L5: ='CV Rotina <2A - procedência'!V6 -> 0.9024390244 | M5: ='CV Rotina <2A - procedência'!Z6 -> 0.3353658537 | N5: 1 | O5: 5 | P5: 6 | Q5: 3
A6: Sul | B6: Alfredo Chaves | C6: ='CV Rotina <2A - procedência'!H7 -> 0.5303030303 | D6: ='CV Rotina <2A - procedência'!P7 -> 1.242424242 | E6: ='CV Rotina <2A - procedência'!#REF! ->  | F6: ='CV Rotina <2A - procedência'!J7 -> 1.212121212 | G6: ='CV Rotina <2A - procedência'!L7 -> 1.196969697 | H6: ='CV Rotina <2A - procedência'!N7 -> 1.212121212 | I6: ='CV Rotina <2A - procedência'!X7 -> 1.166666667 | J6: ='CV Rotina <2A - procedência'!R7 -> 1.333333333 | K6: ='CV Rotina <2A - procedência'!T7 -> 1.060606061 | L6: ='CV Rotina <2A - procedência'!V7 -> 1.075757576 | M6: ='CV Rotina <2A - procedência'!Z7 -> 0.7424242424 | N6: 1 | O6: 7 | P6: 8 | Q6: 4
A7: Central | B7: Alto Rio Novo | C7: ='CV Rotina <2A - procedência'!H8 -> 0.5 | D7: ='CV Rotina <2A - procedência'!P8 -> 1.25 | E7: ='CV Rotina <2A - procedência'!#REF! ->  | F7: ='CV Rotina <2A - procedência'!J8 -> 1.277777778 | G7: ='CV Rotina <2A - procedência'!L8 -> 1.25 | H7: ='CV Rotina <2A - procedência'!N8 -> 1.222222222 | I7: ='CV Rotina <2A - procedência'!X8 -> 1.222222222 | J7: ='CV Rotina <2A - procedência'!R8 -> 1.416666667 | K7: ='CV Rotina <2A - procedência'!T8 -> 1.083333333 | L7: ='CV Rotina <2A - procedência'!V8 -> 1.527777778 | M7: ='CV Rotina <2A - procedência'!Z8 -> 0.6111111111 | N7: 1 | O7: 7 | P7: 8 | Q7: 4
A8: Sul | B8: Anchieta | C8: ='CV Rotina <2A - procedência'!H9 -> 0.5721649485 | D8: ='CV Rotina <2A - procedência'!P9 -> 1 | E8: ='CV Rotina <2A - procedência'!#REF! ->  | F8: ='CV Rotina <2A - procedência'!J9 -> 1 | G8: ='CV Rotina <2A - procedência'!L9 -> 1.010309278 | H8: ='CV Rotina <2A - procedência'!N9 -> 1.005154639 | I8: ='CV Rotina <2A - procedência'!X9 -> 1.030927835 | J8: ='CV Rotina <2A - procedência'!R9 -> 1.015463918 | K8: ='CV Rotina <2A - procedência'!T9 -> 0.793814433 | L8: ='CV Rotina <2A - procedência'!V9 -> 0.9587628866 | M8: ='CV Rotina <2A - procedência'!Z9 -> 0.4381443299 | N8: 1 | O8: 6 | P8: 7 | Q8: 4
A9: Sul | B9: Apiacá | C9: ='CV Rotina <2A - procedência'!H10 -> 0.6222222222 | D9: ='CV Rotina <2A - procedência'!P10 -> 0.6888888889 | E9: ='CV Rotina <2A - procedência'!#REF! ->  | F9: ='CV Rotina <2A - procedência'!J10 -> 0.5555555556 | G9: ='CV Rotina <2A - procedência'!L10 -> 0.5777777778 | H9: ='CV Rotina <2A - procedência'!N10 -> 0.7111111111 | I9: ='CV Rotina <2A - procedência'!X10 -> 0.8666666667 | J9: ='CV Rotina <2A - procedência'!R10 -> 0.6444444444 | K9: ='CV Rotina <2A - procedência'!T10 -> 0.6666666667 | L9: ='CV Rotina <2A - procedência'!V10 -> 0.4888888889 | M9: ='CV Rotina <2A - procedência'!Z10 -> 0.1777777778 | N9: 0 | O9: 0 | P9: 0 | Q9: 0
A10: Metropolitana | B10: Aracruz | C10: ='CV Rotina <2A - procedência'!H11 -> 0.9071895425 | D10: ='CV Rotina <2A - procedência'!P11 -> 0.8784313725 | E10: ='CV Rotina <2A - procedência'!#REF! ->  | F10: ='CV Rotina <2A - procedência'!J11 -> 0.8614379085 | G10: ='CV Rotina <2A - procedência'!L11 -> 0.8575163399 | H10: ='CV Rotina <2A - procedência'!N11 -> 0.891503268 | I10: ='CV Rotina <2A - procedência'!X11 -> 1.018300654 | J10: ='CV Rotina <2A - procedência'!R11 -> 0.860130719 | K10: ='CV Rotina <2A - procedência'!T11 -> 0.7895424837 | L10: ='CV Rotina <2A - procedência'!V11 -> 0.9973856209 | M10: ='CV Rotina <2A - procedência'!Z11 -> 0.5045751634 | N10: 1 | O10: 2 | P10: 3 | Q10: 1
A11: Sul | B11: Atilio Vivacqua | C11: ='CV Rotina <2A - procedência'!H12 -> 0.01369863014 | D11: ='CV Rotina <2A - procedência'!P12 -> 0.8767123288 | E11: ='CV Rotina <2A - procedência'!#REF! ->  | F11: ='CV Rotina <2A - procedência'!J12 -> 0.904109589 | G11: ='CV Rotina <2A - procedência'!L12 -> 0.8904109589 | H11: ='CV Rotina <2A - procedência'!N12 -> 0.8904109589 | I11: ='CV Rotina <2A - procedência'!X12 -> 1.164383562 | J11: ='CV Rotina <2A - procedência'!R12 -> 0.8767123288 | K11: ='CV Rotina <2A - procedência'!T12 -> 0.7397260274 | L11: ='CV Rotina <2A - procedência'!V12 -> 1.01369863 | M11: ='CV Rotina <2A - procedência'!Z12 -> 0.4794520548 | N11: 0 | O11: 2 | P11: 2 | Q11: 1
A12: Central | B12: Baixo Guandu | C12: ='CV Rotina <2A - procedência'!H13 -> 0.5580110497 | D12: ='CV Rotina <2A - procedência'!P13 -> 1.08839779 | E12: ='CV Rotina <2A - procedência'!#REF! ->  | F12: ='CV Rotina <2A - procedência'!J13 -> 1.077348066 | G12: ='CV Rotina <2A - procedência'!L13 -> 1.077348066 | H12: ='CV Rotina <2A - procedência'!N13 -> 1.132596685 | I12: ='CV Rotina <2A - procedência'!X13 -> 1.215469613 | J12: ='CV Rotina <2A - procedência'!R13 -> 1.110497238 | K12: ='CV Rotina <2A - procedência'!T13 -> 0.8287292818 | L12: ='CV Rotina <2A - procedência'!V13 -> 1.154696133 | M12: ='CV Rotina <2A - procedência'!Z13 -> 0.5303867403 | N12: 1 | O12: 6 | P12: 7 | Q12: 4
A13: Norte | B13: Barra de São Francisco | C13: ='CV Rotina <2A - procedência'!H14 -> 0.8547854785 | D13: ='CV Rotina <2A - procedência'!P14 -> 0.8613861386 | E13: ='CV Rotina <2A - procedência'!#REF! ->  | F13: ='CV Rotina <2A - procedência'!J14 -> 0.8415841584 | G13: ='CV Rotina <2A - procedência'!L14 -> 0.8349834983 | H13: ='CV Rotina <2A - procedência'!N14 -> 0.8778877888 | I13: ='CV Rotina <2A - procedência'!X14 -> 0.9471947195 | J13: ='CV Rotina <2A - procedência'!R14 -> 0.8679867987 | K13: ='CV Rotina <2A - procedência'!T14 -> 0.8085808581 | L13: ='CV Rotina <2A - procedência'!V14 -> 0.7458745875 | M13: ='CV Rotina <2A - procedência'!Z14 -> 0.4917491749 | N13: 0 | O13: 0 | P13: 0 | Q13: 0
A14: Norte | B14: Boa Esperança | C14: ='CV Rotina <2A - procedência'!H15 -> 0.3653846154 | D14: ='CV Rotina <2A - procedência'!P15 -> 0.9134615385 | E14: ='CV Rotina <2A - procedência'!#REF! ->  | F14: ='CV Rotina <2A - procedência'!J15 -> 0.8076923077 | G14: ='CV Rotina <2A - procedência'!L15 -> 0.875 | H14: ='CV Rotina <2A - procedência'!N15 -> 0.875 | I14: ='CV Rotina <2A - procedência'!X15 -> 1.028846154 | J14: ='CV Rotina <2A - procedência'!R15 -> 0.8846153846 | K14: ='CV Rotina <2A - procedência'!T15 -> 0.7403846154 | L14: ='CV Rotina <2A - procedência'!V15 -> 0.7692307692 | M14: ='CV Rotina <2A - procedência'!Z15 -> 0.5480769231 | N14: 1 | O14: 1 | P14: 2 | Q14: 1
A15: Sul | B15: Bom Jesus do Norte | C15: ='CV Rotina <2A - procedência'!H16 -> 1.073170732 | D15: ='CV Rotina <2A - procedência'!P16 -> 1.243902439 | E15: ='CV Rotina <2A - procedência'!#REF! ->  | F15: ='CV Rotina <2A - procedência'!J16 -> 1.512195122 | G15: ='CV Rotina <2A - procedência'!L16 -> 1.463414634 | H15: ='CV Rotina <2A - procedência'!N16 -> 1.292682927 | I15: ='CV Rotina <2A - procedência'!X16 -> 1.853658537 | J15: ='CV Rotina <2A - procedência'!R16 -> 1.365853659 | K15: ='CV Rotina <2A - procedência'!T16 -> 1.219512195 | L15: ='CV Rotina <2A - procedência'!V16 -> 0.7317073171 | M15: ='CV Rotina <2A - procedência'!Z16 -> 0.4146341463 | N15: 2 | O15: 6 | P15: 8 | Q15: 4
A16: Metropolitana | B16: Brejetuba | C16: ='CV Rotina <2A - procedência'!H17 -> 0.7232142857 | D16: ='CV Rotina <2A - procedência'!P17 -> 0.9464285714 | E16: ='CV Rotina <2A - procedência'!#REF! ->  | F16: ='CV Rotina <2A - procedência'!J17 -> 0.8482142857 | G16: ='CV Rotina <2A - procedência'!L17 -> 0.8482142857 | H16: ='CV Rotina <2A - procedência'!N17 -> 0.9017857143 | I16: ='CV Rotina <2A - procedência'!X17 -> 0.875 | J16: ='CV Rotina <2A - procedência'!R17 -> 0.8482142857 | K16: ='CV Rotina <2A - procedência'!T17 -> 0.8660714286 | L16: ='CV Rotina <2A - procedência'!V17 -> 0.7410714286 | M16: ='CV Rotina <2A - procedência'!Z17 -> 0.3839285714 | N16: 1 | O16: 0 | P16: 1 | Q16: 0
A17: Sul | B17: Cachoeiro de Itapemirim | C17: ='CV Rotina <2A - procedência'!H18 -> 1.88478582 | D17: ='CV Rotina <2A - procedência'!P18 -> 0.7806499261 | E17: ='CV Rotina <2A - procedência'!#REF! ->  | F17: ='CV Rotina <2A - procedência'!J18 -> 0.7813884786 | G17: ='CV Rotina <2A - procedência'!L18 -> 0.7710487445 | H17: ='CV Rotina <2A - procedência'!N18 -> 0.8042836041 | I17: ='CV Rotina <2A - procedência'!X18 -> 0.8655834564 | J17: ='CV Rotina <2A - procedência'!R18 -> 0.7813884786 | K17: ='CV Rotina <2A - procedência'!T18 -> 0.6152141802 | L17: ='CV Rotina <2A - procedência'!V18 -> 0.734859675 | M17: ='CV Rotina <2A - procedência'!Z18 -> 0.305760709 | N17: 1 | O17: 0 | P17: 1 | Q17: 0
A18: Metropolitana | B18: Cariacica | C18: ='CV Rotina <2A - procedência'!H19 -> 0.4980392157 | D18: ='CV Rotina <2A - procedência'!P19 -> 0.8015686275 | E18: ='CV Rotina <2A - procedência'!#REF! ->  | F18: ='CV Rotina <2A - procedência'!J19 -> 0.8082352941 | G18: ='CV Rotina <2A - procedência'!L19 -> 0.7980392157 | H18: ='CV Rotina <2A - procedência'!N19 -> 0.8384313725 | I18: ='CV Rotina <2A - procedência'!X19 -> 0.9145098039 | J18: ='CV Rotina <2A - procedência'!R19 -> 0.8223529412 | K18: ='CV Rotina <2A - procedência'!T19 -> 0.6749019608 | L18: ='CV Rotina <2A - procedência'!V19 -> 0.6301960784 | M18: ='CV Rotina <2A - procedência'!Z19 -> 0.317254902 | N18: 0 | O18: 0 | P18: 0 | Q18: 0
A19: Sul | B19: Castelo | C19: ='CV Rotina <2A - procedência'!H20 -> 0.5531914894 | D19: ='CV Rotina <2A - procedência'!P20 -> 0.8382978723 | E19: ='CV Rotina <2A - procedência'!#REF! ->  | F19: ='CV Rotina <2A - procedência'!J20 -> 0.8638297872 | G19: ='CV Rotina <2A - procedência'!L20 -> 0.8638297872 | H19: ='CV Rotina <2A - procedência'!N20 -> 0.8553191489 | I19: ='CV Rotina <2A - procedência'!X20 -> 1.038297872 | J19: ='CV Rotina <2A - procedência'!R20 -> 0.829787234 | K19: ='CV Rotina <2A - procedência'!T20 -> 0.7872340426 | L19: ='CV Rotina <2A - procedência'!V20 -> 0.7234042553 | M19: ='CV Rotina <2A - procedência'!Z20 -> 0.4212765957 | N19: 0 | O19: 1 | P19: 1 | Q19: 1
A20: Central | B20: Colatina | C20: ='CV Rotina <2A - procedência'!H21 -> 2.127791563 | D20: ='CV Rotina <2A - procedência'!P21 -> 0.8535980149 | E20: ='CV Rotina <2A - procedência'!#REF! ->  | F20: ='CV Rotina <2A - procedência'!J21 -> 0.864764268 | G20: ='CV Rotina <2A - procedência'!L21 -> 0.8535980149 | H20: ='CV Rotina <2A - procedência'!N21 -> 0.8771712159 | I20: ='CV Rotina <2A - procedência'!X21 -> 0.9131513648 | J20: ='CV Rotina <2A - procedência'!R21 -> 0.8374689826 | K20: ='CV Rotina <2A - procedência'!T21 -> 0.770471464 | L20: ='CV Rotina <2A - procedência'!V21 -> 0.5769230769 | M20: ='CV Rotina <2A - procedência'!Z21 -> 0.3808933002 | N20: 1 | O20: 0 | P20: 1 | Q20: 0
A21: Norte | B21: Conceição da Barra | C21: ='CV Rotina <2A - procedência'!H22 -> 0.07106598985 | D21: ='CV Rotina <2A - procedência'!P22 -> 0.9340101523 | E21: ='CV Rotina <2A - procedência'!#REF! ->  | F21: ='CV Rotina <2A - procedência'!J22 -> 0.8629441624 | G21: ='CV Rotina <2A - procedência'!L22 -> 0.8730964467 | H21: ='CV Rotina <2A - procedência'!N22 -> 0.9492385787 | I21: ='CV Rotina <2A - procedência'!X22 -> 0.9340101523 | J21: ='CV Rotina <2A - procedência'!R22 -> 0.9137055838 | K21: ='CV Rotina <2A - procedência'!T22 -> 0.8324873096 | L21: ='CV Rotina <2A - procedência'!V22 -> 0.7411167513 | M21: ='CV Rotina <2A - procedência'!Z22 -> 0.4467005076 | N21: 1 | O21: 0 | P21: 1 | Q21: 0
A22: Metropolitana | B22: Conceição do Castelo | C22: ='CV Rotina <2A - procedência'!H23 -> 0 | D22: ='CV Rotina <2A - procedência'!P23 -> 0.75 | E22: ='CV Rotina <2A - procedência'!#REF! ->  | F22: ='CV Rotina <2A - procedência'!J23 -> 0.7173913043 | G22: ='CV Rotina <2A - procedência'!L23 -> 0.6956521739 | H22: ='CV Rotina <2A - procedência'!N23 -> 0.7717391304 | I22: ='CV Rotina <2A - procedência'!X23 -> 0.7826086957 | J22: ='CV Rotina <2A - procedência'!R23 -> 0.6630434783 | K22: ='CV Rotina <2A - procedência'!T23 -> 0.9130434783 | L22: ='CV Rotina <2A - procedência'!V23 -> 0.7608695652 | M22: ='CV Rotina <2A - procedência'!Z23 -> 0.4891304348 | N22: 0 | O22: 0 | P22: 0 | Q22: 0
A23: Sul | B23: Divino de São Lourenço | C23: ='CV Rotina <2A - procedência'!H24 -> 0.7692307692 | D23: ='CV Rotina <2A - procedência'!P24 -> 1.025641026 | E23: ='CV Rotina <2A - procedência'!#REF! ->  | F23: ='CV Rotina <2A - procedência'!J24 -> 0.9743589744 | G23: ='CV Rotina <2A - procedência'!L24 -> 0.9743589744 | H23: ='CV Rotina <2A - procedência'!N24 -> 1.025641026 | I23: ='CV Rotina <2A - procedência'!X24 -> 0.6666666667 | J23: ='CV Rotina <2A - procedência'!R24 -> 1.153846154 | K23: ='CV Rotina <2A - procedência'!T24 -> 0.7948717949 | L23: ='CV Rotina <2A - procedência'!V24 -> 0.641025641 | M23: ='CV Rotina <2A - procedência'!Z24 -> 0.5897435897 | N23: 1 | O23: 4 | P23: 5 | Q23: 3
A24: Metropolitana | B24: Domingos Martins | C24: ='CV Rotina <2A - procedência'!H25 -> 0.185840708 | D24: ='CV Rotina <2A - procedência'!P25 -> 0.9026548673 | E24: ='CV Rotina <2A - procedência'!#REF! ->  | F24: ='CV Rotina <2A - procedência'!J25 -> 0.8230088496 | G24: ='CV Rotina <2A - procedência'!L25 -> 0.8230088496 | H24: ='CV Rotina <2A - procedência'!N25 -> 0.9115044248 | I24: ='CV Rotina <2A - procedência'!X25 -> 0.9734513274 | J24: ='CV Rotina <2A - procedência'!R25 -> 0.8849557522 | K24: ='CV Rotina <2A - procedência'!T25 -> 0.7345132743 | L24: ='CV Rotina <2A - procedência'!V25 -> 0.7920353982 | M24: ='CV Rotina <2A - procedência'!Z25 -> 0.6371681416 | N24: 1 | O24: 1 | P24: 2 | Q24: 1
A25: Sul | B25: Dores do Rio Preto | C25: ='CV Rotina <2A - procedência'!H26 -> 0.8095238095 | D25: ='CV Rotina <2A - procedência'!P26 -> 1.333333333 | E25: ='CV Rotina <2A - procedência'!#REF! ->  | F25: ='CV Rotina <2A - procedência'!J26 -> 1.238095238 | G25: ='CV Rotina <2A - procedência'!L26 -> 1.30952381 | H25: ='CV Rotina <2A - procedência'!N26 -> 1.357142857 | I25: ='CV Rotina <2A - procedência'!X26 -> 1.357142857 | J25: ='CV Rotina <2A - procedência'!R26 -> 1.261904762 | K25: ='CV Rotina <2A - procedência'!T26 -> 1.142857143 | L25: ='CV Rotina <2A - procedência'!V26 -> 0.9761904762 | M25: ='CV Rotina <2A - procedência'!Z26 -> 0.4285714286 | N25: 1 | O25: 7 | P25: 8 | Q25: 4
A26: Norte | B26: Ecoporanga | C26: ='CV Rotina <2A - procedência'!H27 -> 0.462585034 | D26: ='CV Rotina <2A - procedência'!P27 -> 0.7482993197 | E26: ='CV Rotina <2A - procedência'!#REF! ->  | F26: ='CV Rotina <2A - procedência'!J27 -> 0.8027210884 | G26: ='CV Rotina <2A - procedência'!L27 -> 0.7959183673 | H26: ='CV Rotina <2A - procedência'!N27 -> 0.7551020408 | I26: ='CV Rotina <2A - procedência'!X27 -> 0.8911564626 | J26: ='CV Rotina <2A - procedência'!R27 -> 0.7074829932 | K26: ='CV Rotina <2A - procedência'!T27 -> 0.7346938776 | L26: ='CV Rotina <2A - procedência'!V27 -> 0.7959183673 | M26: ='CV Rotina <2A - procedência'!Z27 -> 0.5170068027 | N26: 0 | O26: 0 | P26: 0 | Q26: 0
A27: Metropolitana | B27: Fundão | C27: ='CV Rotina <2A - procedência'!H28 -> 0.4049586777 | D27: ='CV Rotina <2A - procedência'!P28 -> 0.958677686 | E27: ='CV Rotina <2A - procedência'!#REF! ->  | F27: ='CV Rotina <2A - procedência'!J28 -> 0.9752066116 | G27: ='CV Rotina <2A - procedência'!L28 -> 0.9669421488 | H27: ='CV Rotina <2A - procedência'!N28 -> 0.9504132231 | I27: ='CV Rotina <2A - procedência'!X28 -> 0.7768595041 | J27: ='CV Rotina <2A - procedência'!R28 -> 0.8760330579 | K27: ='CV Rotina <2A - procedência'!T28 -> 0.8181818182 | L27: ='CV Rotina <2A - procedência'!V28 -> 0.8925619835 | M27: ='CV Rotina <2A - procedência'!Z28 -> 0.5454545455 | N27: 1 | O27: 3 | P27: 4 | Q27: 3
A28: Central | B28: Governador Lindenberg | C28: ='CV Rotina <2A - procedência'!H29 -> 0.2112676056 | D28: ='CV Rotina <2A - procedência'!P29 -> 0.8732394366 | E28: ='CV Rotina <2A - procedência'!#REF! ->  | F28: ='CV Rotina <2A - procedência'!J29 -> 0.8732394366 | G28: ='CV Rotina <2A - procedência'!L29 -> 0.8309859155 | H28: ='CV Rotina <2A - procedência'!N29 -> 0.8591549296 | I28: ='CV Rotina <2A - procedência'!X29 -> 1.084507042 | J28: ='CV Rotina <2A - procedência'!R29 -> 0.8450704225 | K28: ='CV Rotina <2A - procedência'!T29 -> 1.028169014 | L28: ='CV Rotina <2A - procedência'!V29 -> 0.8309859155 | M28: ='CV Rotina <2A - procedência'!Z29 -> 0.4929577465 | N28: 0 | O28: 2 | P28: 2 | Q28: 1
A29: Sul | B29: Guaçuí | C29: ='CV Rotina <2A - procedência'!H30 -> 0.5070422535 | D29: ='CV Rotina <2A - procedência'!P30 -> 0.7981220657 | E29: ='CV Rotina <2A - procedência'!#REF! ->  | F29: ='CV Rotina <2A - procedência'!J30 -> 0.9248826291 | G29: ='CV Rotina <2A - procedência'!L30 -> 0.896713615 | H29: ='CV Rotina <2A - procedência'!N30 -> 0.8638497653 | I29: ='CV Rotina <2A - procedência'!X30 -> 0.9718309859 | J29: ='CV Rotina <2A - procedência'!R30 -> 0.7887323944 | K29: ='CV Rotina <2A - procedência'!T30 -> 0.7089201878 | L29: ='CV Rotina <2A - procedência'!V30 -> 0.7746478873 | M29: ='CV Rotina <2A - procedência'!Z30 -> 0.3708920188 | N29: 0 | O29: 1 | P29: 1 | Q29: 1
A30: Metropolitana | B30: Guarapari | C30: ='CV Rotina <2A - procedência'!H31 -> 0.7714592275 | D30: ='CV Rotina <2A - procedência'!P31 -> 0.7693133047 | E30: ='CV Rotina <2A - procedência'!#REF! ->  | F30: ='CV Rotina <2A - procedência'!J31 -> 0.7650214592 | G30: ='CV Rotina <2A - procedência'!L31 -> 0.741416309 | H30: ='CV Rotina <2A - procedência'!N31 -> 0.8111587983 | I30: ='CV Rotina <2A - procedência'!X31 -> 0.830472103 | J30: ='CV Rotina <2A - procedência'!R31 -> 0.7778969957 | K30: ='CV Rotina <2A - procedência'!T31 -> 0.589055794 | L30: ='CV Rotina <2A - procedência'!V31 -> 0.7274678112 | M30: ='CV Rotina <2A - procedência'!Z31 -> 0.4206008584 | N30: 0 | O30: 0 | P30: 0 | Q30: 0
A31: Metropolitana | B31: Ibatiba | C31: ='CV Rotina <2A - procedência'!H32 -> 0.9647058824 | D31: ='CV Rotina <2A - procedência'!P32 -> 1.017647059 | E31: ='CV Rotina <2A - procedência'!#REF! ->  | F31: ='CV Rotina <2A - procedência'!J32 -> 1.064705882 | G31: ='CV Rotina <2A - procedência'!L32 -> 1.070588235 | H31: ='CV Rotina <2A - procedência'!N32 -> 1.070588235 | I31: ='CV Rotina <2A - procedência'!X32 -> 1.111764706 | J31: ='CV Rotina <2A - procedência'!R32 -> 1.088235294 | K31: ='CV Rotina <2A - procedência'!T32 -> 1.023529412 | L31: ='CV Rotina <2A - procedência'!V32 -> 0.9529411765 | M31: ='CV Rotina <2A - procedência'!Z32 -> 0.1705882353 | N31: 2 | O31: 7 | P31: 9 | Q31: 4
A32: Metropolitana | B32: Ibiraçu | C32: ='CV Rotina <2A - procedência'!H33 -> 0.1744186047 | D32: ='CV Rotina <2A - procedência'!P33 -> 0.7093023256 | E32: ='CV Rotina <2A - procedência'!#REF! ->  | F32: ='CV Rotina <2A - procedência'!J33 -> 0.6860465116 | G32: ='CV Rotina <2A - procedência'!L33 -> 0.6744186047 | H32: ='CV Rotina <2A - procedência'!N33 -> 0.7209302326 | I32: ='CV Rotina <2A - procedência'!X33 -> 0.8604651163 | J32: ='CV Rotina <2A - procedência'!R33 -> 0.7674418605 | K32: ='CV Rotina <2A - procedência'!T33 -> 0.7790697674 | L32: ='CV Rotina <2A - procedência'!V33 -> 0.5930232558 | M32: ='CV Rotina <2A - procedência'!Z33 -> 0.3372093023 | N32: 0 | O32: 0 | P32: 0 | Q32: 0
A33: Sul | B33: Ibitirama | C33: ='CV Rotina <2A - procedência'!H34 -> 0.6 | D33: ='CV Rotina <2A - procedência'!P34 -> 0.9230769231 | E33: ='CV Rotina <2A - procedência'!#REF! ->  | F33: ='CV Rotina <2A - procedência'!J34 -> 0.9692307692 | G33: ='CV Rotina <2A - procedência'!L34 -> 0.9692307692 | H33: ='CV Rotina <2A - procedência'!N34 -> 0.8923076923 | I33: ='CV Rotina <2A - procedência'!X34 -> 1.2 | J33: ='CV Rotina <2A - procedência'!R34 -> 0.8 | K33: ='CV Rotina <2A - procedência'!T34 -> 0.7846153846 | L33: ='CV Rotina <2A - procedência'!V34 -> 0.9538461538 | M33: ='CV Rotina <2A - procedência'!Z34 -> 0.5692307692 | N33: 1 | O33: 4 | P33: 5 | Q33: 3
A34: Sul | B34: Iconha | C34: ='CV Rotina <2A - procedência'!H35 -> 0.3114754098 | D34: ='CV Rotina <2A - procedência'!P35 -> 0.9508196721 | E34: ='CV Rotina <2A - procedência'!#REF! ->  | F34: ='CV Rotina <2A - procedência'!J35 -> 0.9672131148 | G34: ='CV Rotina <2A - procedência'!L35 -> 0.9344262295 | H34: ='CV Rotina <2A - procedência'!N35 -> 0.9344262295 | I34: ='CV Rotina <2A - procedência'!X35 -> 1.278688525 | J34: ='CV Rotina <2A - procedência'!R35 -> 0.9344262295 | K34: ='CV Rotina <2A - procedência'!T35 -> 1.114754098 | L34: ='CV Rotina <2A - procedência'!V35 -> 1.163934426 | M34: ='CV Rotina <2A - procedência'!Z35 -> 0.2950819672 | N34: 1 | O34: =COUNTIFS(F34:M34,">=0,95") -> 4 | P34: 5 | Q34: 2
A35: Sul | B35: Irupi | C35: ='CV Rotina <2A - procedência'!H36 -> 0.8641975309 | D35: ='CV Rotina <2A - procedência'!P36 -> 1.395061728 | E35: ='CV Rotina <2A - procedência'!#REF! ->  | F35: ='CV Rotina <2A - procedência'!J36 -> 1.296296296 | G35: ='CV Rotina <2A - procedência'!L36 -> 1.283950617 | H35: ='CV Rotina <2A - procedência'!N36 -> 1.432098765 | I35: ='CV Rotina <2A - procedência'!X36 -> 1.641975309 | J35: ='CV Rotina <2A - procedência'!R36 -> 1.37037037 | K35: ='CV Rotina <2A - procedência'!T36 -> 1.111111111 | L35: ='CV Rotina <2A - procedência'!V36 -> 1.222222222 | M35: ='CV Rotina <2A - procedência'!Z36 -> 0.2839506173 | N35: 1 | O35: 7 | P35: 8 | Q35: 4
A36: Metropolitana | B36: Itaguaçu | C36: ='CV Rotina <2A - procedência'!H37 -> 0.6794871795 | D36: ='CV Rotina <2A - procedência'!P37 -> 0.7948717949 | E36: ='CV Rotina <2A - procedência'!#REF! ->  | F36: ='CV Rotina <2A - procedência'!J37 -> 0.7820512821 | G36: ='CV Rotina <2A - procedência'!L37 -> 0.7820512821 | H36: ='CV Rotina <2A - procedência'!N37 -> 0.7948717949 | I36: ='CV Rotina <2A - procedência'!X37 -> 0.8974358974 | J36: ='CV Rotina <2A - procedência'!R37 -> 0.7948717949 | K36: ='CV Rotina <2A - procedência'!T37 -> 0.9743589744 | L36: ='CV Rotina <2A - procedência'!V37 -> 0.9743589744 | M36: ='CV Rotina <2A - procedência'!Z37 -> 0.5897435897 | N36: 0 | O36: 2 | P36: 2 | Q36: 0
A37: Sul | B37: Itapemirim | C37: ='CV Rotina <2A - procedência'!H38 -> 0.5596707819 | D37: ='CV Rotina <2A - procedência'!P38 -> 0.9465020576 | E37: ='CV Rotina <2A - procedência'!#REF! ->  | F37: ='CV Rotina <2A - procedência'!J38 -> 0.950617284 | G37: ='CV Rotina <2A - procedência'!L38 -> 0.9382716049 | H37: ='CV Rotina <2A - procedência'!N38 -> 1.032921811 | I37: ='CV Rotina <2A - procedência'!X38 -> 1.024691358 | J37: ='CV Rotina <2A - procedência'!R38 -> 0.9218106996 | K37: ='CV Rotina <2A - procedência'!T38 -> 0.6255144033 | L37: ='CV Rotina <2A - procedência'!V38 -> 0.8641975309 | M37: ='CV Rotina <2A - procedência'!Z38 -> 0.4485596708 | N37: 1 | O37: 3 | P37: 4 | Q37: 3
A38: Metropolitana | B38: Itarana | C38: ='CV Rotina <2A - procedência'!H39 -> 0.7411764706 | D38: ='CV Rotina <2A - procedência'!P39 -> 0.7294117647 | E38: ='CV Rotina <2A - procedência'!#REF! ->  | F38: ='CV Rotina <2A - procedência'!J39 -> 0.7294117647 | G38: ='CV Rotina <2A - procedência'!L39 -> 0.7294117647 | H38: ='CV Rotina <2A - procedência'!N39 -> 0.6588235294 | I38: ='CV Rotina <2A - procedência'!X39 -> 0.8117647059 | J38: ='CV Rotina <2A - procedência'!R39 -> 0.6352941176 | K38: ='CV Rotina <2A - procedência'!T39 -> 0.8 | L38: ='CV Rotina <2A - procedência'!V39 -> 0.5058823529 | M38: ='CV Rotina <2A - procedência'!Z39 -> 0.4470588235 | N38: 0 | O38: 0 | P38: 0 | Q38: 0
A39: Sul | B39: Iúna | C39: ='CV Rotina <2A - procedência'!H40 -> 0.8494623656 | D39: ='CV Rotina <2A - procedência'!P40 -> 1.14516129 | E39: ='CV Rotina <2A - procedência'!#REF! ->  | F39: ='CV Rotina <2A - procedência'!J40 -> 1.284946237 | G39: ='CV Rotina <2A - procedência'!L40 -> 1.274193548 | H39: ='CV Rotina <2A - procedência'!N40 -> 1.161290323 | I39: ='CV Rotina <2A - procedência'!X40 -> 1.155913978 | J39: ='CV Rotina <2A - procedência'!R40 -> 1.193548387 | K39: ='CV Rotina <2A - procedência'!T40 -> 1.129032258 | L39: ='CV Rotina <2A - procedência'!V40 -> 0.9086021505 | M39: ='CV Rotina <2A - procedência'!Z40 -> 0.5107526882 | N39: 1 | O39: 6 | P39: 7 | Q39: 4
A40: Norte | B40: Jaguaré | C40: ='CV Rotina <2A - procedência'!H41 -> 0.6597938144 | D40: ='CV Rotina <2A - procedência'!P41 -> 0.7250859107 | E40: ='CV Rotina <2A - procedência'!#REF! ->  | F40: ='CV Rotina <2A - procedência'!J41 -> 0.7835051546 | G40: ='CV Rotina <2A - procedência'!L41 -> 0.8006872852 | H40: ='CV Rotina <2A - procedência'!N41 -> 0.7319587629 | I40: ='CV Rotina <2A - procedência'!X41 -> 0.8075601375 | J40: ='CV Rotina <2A - procedência'!R41 -> 0.7388316151 | K40: ='CV Rotina <2A - procedência'!T41 -> 0.7113402062 | L40: ='CV Rotina <2A - procedência'!V41 -> 0.5945017182 | M40: ='CV Rotina <2A - procedência'!Z41 -> 0.35395189 | N40: 0 | O40: 0 | P40: 0 | Q40: 0
A41: Sul | B41: Jerônimo Monteiro | C41: ='CV Rotina <2A - procedência'!H42 -> 0.1097560976 | D41: ='CV Rotina <2A - procedência'!P42 -> 0.8902439024 | E41: ='CV Rotina <2A - procedência'!#REF! ->  | F41: ='CV Rotina <2A - procedência'!J42 -> 1.024390244 | G41: ='CV Rotina <2A - procedência'!L42 -> 1.036585366 | H41: ='CV Rotina <2A - procedência'!N42 -> 0.9024390244 | I41: ='CV Rotina <2A - procedência'!X42 -> 0.9024390244 | J41: ='CV Rotina <2A - procedência'!R42 -> 0.8658536585 | K41: ='CV Rotina <2A - procedência'!T42 -> 0.9634146341 | L41: ='CV Rotina <2A - procedência'!V42 -> 0.9146341463 | M41: ='CV Rotina <2A - procedência'!Z42 -> 0.2317073171 | N41: 0 | O41: 3 | P41: 3 | Q41: 2
A42: Metropolitana | B42: João Neiva | C42: ='CV Rotina <2A - procedência'!H43 -> 0.3095238095 | D42: ='CV Rotina <2A - procedência'!P43 -> 0.9285714286 | E42: ='CV Rotina <2A - procedência'!#REF! ->  | F42: ='CV Rotina <2A - procedência'!J43 -> 1.023809524 | G42: ='CV Rotina <2A - procedência'!L43 -> 1.011904762 | H42: ='CV Rotina <2A - procedência'!N43 -> 0.9523809524 | I42: ='CV Rotina <2A - procedência'!X43 -> 1.19047619 | J42: ='CV Rotina <2A - procedência'!R43 -> 0.9285714286 | K42: ='CV Rotina <2A - procedência'!T43 -> 1.05952381 | L42: ='CV Rotina <2A - procedência'!V43 -> 0.9523809524 | M42: ='CV Rotina <2A - procedência'!Z43 -> 0.380952381 | N42: 1 | O42: 6 | P42: 7 | Q42: 4
A43: Metropolitana | B43: Laranja da Terra | C43: ='CV Rotina <2A - procedência'!H44 -> 0.75 | D43: ='CV Rotina <2A - procedência'!P44 -> 0.7916666667 | E43: ='CV Rotina <2A - procedência'!#REF! ->  | F43: ='CV Rotina <2A - procedência'!J44 -> 1.041666667 | G43: ='CV Rotina <2A - procedência'!L44 -> 1.041666667 | H43: ='CV Rotina <2A - procedência'!N44 -> 0.8125 | I43: ='CV Rotina <2A - procedência'!X44 -> 1.5625 | J43: ='CV Rotina <2A - procedência'!R44 -> 1.020833333 | K43: ='CV Rotina <2A - procedência'!T44 -> 1.333333333 | L43: ='CV Rotina <2A - procedência'!V44 -> 1.291666667 | M43: ='CV Rotina <2A - procedência'!Z44 -> 1.145833333 | N43: 0 | O43: 7 | P43: 7 | Q43: 3
A44: Central | B44: Linhares | C44: ='CV Rotina <2A - procedência'!H45 -> 0.8578792342 | D44: ='CV Rotina <2A - procedência'!P45 -> 0.8004418262 | E44: ='CV Rotina <2A - procedência'!#REF! ->  | F44: ='CV Rotina <2A - procedência'!J45 -> 0.7820324006 | G44: ='CV Rotina <2A - procedência'!L45 -> 0.7724594993 | H44: ='CV Rotina <2A - procedência'!N45 -> 0.7908689249 | I44: ='CV Rotina <2A - procedência'!X45 -> 0.8085419735 | J44: ='CV Rotina <2A - procedência'!R45 -> 0.7908689249 | K44: ='CV Rotina <2A - procedência'!T45 -> 0.7113402062 | L44: ='CV Rotina <2A - procedência'!V45 -> 0.6656848306 | M44: ='CV Rotina <2A - procedência'!Z45 -> 0.3483063328 | N44: 0 | O44: 0 | P44: 0 | Q44: 0
A45: Central | B45: Mantenópolis | C45: ='CV Rotina <2A - procedência'!H46 -> 0.4698795181 | D45: ='CV Rotina <2A - procedência'!P46 -> 0.7108433735 | E45: ='CV Rotina <2A - procedência'!#REF! ->  | F45: ='CV Rotina <2A - procedência'!J46 -> 0.8674698795 | G45: ='CV Rotina <2A - procedência'!L46 -> 0.9156626506 | H45: ='CV Rotina <2A - procedência'!N46 -> 0.7469879518 | I45: ='CV Rotina <2A - procedência'!X46 -> 0.9518072289 | J45: ='CV Rotina <2A - procedência'!R46 -> 0.7710843373 | K45: ='CV Rotina <2A - procedência'!T46 -> 0.9036144578 | L45: ='CV Rotina <2A - procedência'!V46 -> 0.7951807229 | M45: ='CV Rotina <2A - procedência'!Z46 -> 0.4578313253 | N45: 0 | O45: 1 | P45: 1 | Q45: 1
A46: Sul | B46: Marataízes | C46: ='CV Rotina <2A - procedência'!H47 -> 0.4276094276 | D46: ='CV Rotina <2A - procedência'!P47 -> 0.9461279461 | E46: ='CV Rotina <2A - procedência'!#REF! ->  | F46: ='CV Rotina <2A - procedência'!J47 -> 0.9158249158 | G46: ='CV Rotina <2A - procedência'!L47 -> 0.9124579125 | H46: ='CV Rotina <2A - procedência'!N47 -> 0.9696969697 | I46: ='CV Rotina <2A - procedência'!X47 -> 0.9898989899 | J46: ='CV Rotina <2A - procedência'!R47 -> 0.898989899 | K46: ='CV Rotina <2A - procedência'!T47 -> 0.6835016835 | L46: ='CV Rotina <2A - procedência'!V47 -> 0.9090909091 | M46: ='CV Rotina <2A - procedência'!Z47 -> 0.3905723906 | N46: 1 | O46: 2 | P46: 3 | Q46: 2
A47: Metropolitana | B47: Marechal Floriano | C47: ='CV Rotina <2A - procedência'!H48 -> 0.2300884956 | D47: ='CV Rotina <2A - procedência'!P48 -> 0.9734513274 | E47: ='CV Rotina <2A - procedência'!#REF! ->  | F47: ='CV Rotina <2A - procedência'!J48 -> 0.8584070796 | G47: ='CV Rotina <2A - procedência'!L48 -> 0.8495575221 | H47: ='CV Rotina <2A - procedência'!N48 -> 1 | I47: ='CV Rotina <2A - procedência'!X48 -> 1.03539823 | J47: ='CV Rotina <2A - procedência'!R48 -> 0.9469026549 | K47: ='CV Rotina <2A - procedência'!T48 -> 0.6902654867 | L47: ='CV Rotina <2A - procedência'!V48 -> 0.9380530973 | M47: ='CV Rotina <2A - procedência'!Z48 -> 0.6637168142 | N47: 1 | O47: 2 | P47: 3 | Q47: 2
A48: Central | B48: Marilândia | C48: ='CV Rotina <2A - procedência'!H49 -> 0.421686747 | D48: ='CV Rotina <2A - procedência'!P49 -> 0.8313253012 | E48: ='CV Rotina <2A - procedência'!#REF! ->  | F48: ='CV Rotina <2A - procedência'!J49 -> 0.8313253012 | G48: ='CV Rotina <2A - procedência'!L49 -> 0.8313253012 | H48: ='CV Rotina <2A - procedência'!N49 -> 0.734939759 | I48: ='CV Rotina <2A - procedência'!X49 -> 0.8072289157 | J48: ='CV Rotina <2A - procedência'!R49 -> 0.8674698795 | K48: ='CV Rotina <2A - procedência'!T49 -> 0.8915662651 | L48: ='CV Rotina <2A - procedência'!V49 -> 0.7710843373 | M48: ='CV Rotina <2A - procedência'!Z49 -> 0.5421686747 | N48: 0 | O48: 0 | P48: 0 | Q48: 0
A49: Sul | B49: Mimoso do Sul | C49: ='CV Rotina <2A - procedência'!H50 -> 0.1438848921 | D49: ='CV Rotina <2A - procedência'!P50 -> 0.6330935252 | E49: ='CV Rotina <2A - procedência'!#REF! ->  | F49: ='CV Rotina <2A - procedência'!J50 -> 0.7050359712 | G49: ='CV Rotina <2A - procedência'!L50 -> 0.6978417266 | H49: ='CV Rotina <2A - procedência'!N50 -> 0.654676259 | I49: ='CV Rotina <2A - procedência'!X50 -> 0.7913669065 | J49: ='CV Rotina <2A - procedência'!R50 -> 0.6690647482 | K49: ='CV Rotina <2A - procedência'!T50 -> 0.6834532374 | L49: ='CV Rotina <2A - procedência'!V50 -> 0.6043165468 | M49: ='CV Rotina <2A - procedência'!Z50 -> 0.4100719424 | N49: 0 | O49: 0 | P49: 0 | Q49: 0
A50: Norte | B50: Montanha | C50: ='CV Rotina <2A - procedência'!H51 -> 0.3628318584 | D50: ='CV Rotina <2A - procedência'!P51 -> 1.10619469 | E50: ='CV Rotina <2A - procedência'!#REF! ->  | F50: ='CV Rotina <2A - procedência'!J51 -> 1.345132743 | G50: ='CV Rotina <2A - procedência'!L51 -> 1.362831858 | H50: ='CV Rotina <2A - procedência'!N51 -> 1.053097345 | I50: ='CV Rotina <2A - procedência'!X51 -> 1.168141593 | J50: ='CV Rotina <2A - procedência'!R51 -> 1.150442478 | K50: ='CV Rotina <2A - procedência'!T51 -> 1.265486726 | L50: ='CV Rotina <2A - procedência'!V51 -> 1.14159292 | M50: ='CV Rotina <2A - procedência'!Z51 -> 0.6371681416 | N50: 1 | O50: 7 | P50: 8 | Q50: 4
A51: Norte | B51: Mucurici | C51: ='CV Rotina <2A - procedência'!H52 -> 0.1935483871 | D51: ='CV Rotina <2A - procedência'!P52 -> 1.290322581 | E51: ='CV Rotina <2A - procedência'!#REF! ->  | F51: ='CV Rotina <2A - procedência'!J52 -> 1.516129032 | G51: ='CV Rotina <2A - procedência'!L52 -> 1.516129032 | H51: ='CV Rotina <2A - procedência'!N52 -> 1.322580645 | I51: ='CV Rotina <2A - procedência'!X52 -> 1.451612903 | J51: ='CV Rotina <2A - procedência'!R52 -> 1.387096774 | K51: ='CV Rotina <2A - procedência'!T52 -> 1.483870968 | L51: ='CV Rotina <2A - procedência'!V52 -> 0.8387096774 | M51: ='CV Rotina <2A - procedência'!Z52 -> 0.5483870968 | N51: 1 | O51: 6 | P51: 7 | Q51: 4
A52: Sul | B52: Muniz Freire | C52: ='CV Rotina <2A - procedência'!H53 -> 0.7378640777 | D52: ='CV Rotina <2A - procedência'!P53 -> 1.106796117 | E52: ='CV Rotina <2A - procedência'!#REF! ->  | F52: ='CV Rotina <2A - procedência'!J53 -> 1.097087379 | G52: ='CV Rotina <2A - procedência'!L53 -> 1.048543689 | H52: ='CV Rotina <2A - procedência'!N53 -> 1.087378641 | I52: ='CV Rotina <2A - procedência'!X53 -> 1.291262136 | J52: ='CV Rotina <2A - procedência'!R53 -> 1.097087379 | K52: ='CV Rotina <2A - procedência'!T53 -> 1.126213592 | L52: ='CV Rotina <2A - procedência'!V53 -> 1.029126214 | M52: ='CV Rotina <2A - procedência'!Z53 -> 0.4854368932 | N52: 1 | O52: 7 | P52: 8 | Q52: 4
A53: Sul | B53: Muqui | C53: ='CV Rotina <2A - procedência'!H54 -> 0.1153846154 | D53: ='CV Rotina <2A - procedência'!P54 -> 0.8717948718 | E53: ='CV Rotina <2A - procedência'!#REF! ->  | F53: ='CV Rotina <2A - procedência'!J54 -> 1.153846154 | G53: ='CV Rotina <2A - procedência'!L54 -> 1.166666667 | H53: ='CV Rotina <2A - procedência'!N54 -> 0.8717948718 | I53: ='CV Rotina <2A - procedência'!X54 -> 0.9230769231 | J53: ='CV Rotina <2A - procedência'!R54 -> 1.025641026 | K53: ='CV Rotina <2A - procedência'!T54 -> 1.064102564 | L53: ='CV Rotina <2A - procedência'!V54 -> 0.8333333333 | M53: ='CV Rotina <2A - procedência'!Z54 -> 0.4743589744 | N53: 0 | O53: 4 | P53: 4 | Q53: 2
A54: Norte | B54: Nova Venécia | C54: ='CV Rotina <2A - procedência'!H55 -> 0.5294117647 | D54: ='CV Rotina <2A - procedência'!P55 -> 0.7807486631 | E54: ='CV Rotina <2A - procedência'!#REF! ->  | F54: ='CV Rotina <2A - procedência'!J55 -> 0.8342245989 | G54: ='CV Rotina <2A - procedência'!L55 -> 0.8395721925 | H54: ='CV Rotina <2A - procedência'!N55 -> 0.7834224599 | I54: ='CV Rotina <2A - procedência'!X55 -> 0.9438502674 | J54: ='CV Rotina <2A - procedência'!R55 -> 0.820855615 | K54: ='CV Rotina <2A - procedência'!T55 -> 0.8582887701 | L54: ='CV Rotina <2A - procedência'!V55 -> 0.7780748663 | M54: ='CV Rotina <2A - procedência'!Z55 -> 0.4438502674 | N54: 0 | O54: 0 | P54: 0 | Q54: 0
A55: Central | B55: Pancas | C55: ='CV Rotina <2A - procedência'!H56 -> 0.5 | D55: ='CV Rotina <2A - procedência'!P56 -> 0.9528301887 | E55: ='CV Rotina <2A - procedência'!#REF! ->  | F55: ='CV Rotina <2A - procedência'!J56 -> 1.009433962 | G55: ='CV Rotina <2A - procedência'!L56 -> 1.009433962 | H55: ='CV Rotina <2A - procedência'!N56 -> 0.9905660377 | I55: ='CV Rotina <2A - procedência'!X56 -> 0.8679245283 | J55: ='CV Rotina <2A - procedência'!R56 -> 0.9811320755 | K55: ='CV Rotina <2A - procedência'!T56 -> 1.009433962 | L55: ='CV Rotina <2A - procedência'!V56 -> 0.9433962264 | M55: ='CV Rotina <2A - procedência'!Z56 -> 0.6886792453 | N55: 1 | O55: 5 | P55: 6 | Q55: 3
A56: Norte | B56: Pedro Canário | C56: ='CV Rotina <2A - procedência'!H57 -> 0.06134969325 | D56: ='CV Rotina <2A - procedência'!P57 -> 0.8711656442 | E56: ='CV Rotina <2A - procedência'!#REF! ->  | F56: ='CV Rotina <2A - procedência'!J57 -> 1.012269939 | G56: ='CV Rotina <2A - procedência'!L57 -> 1.006134969 | H56: ='CV Rotina <2A - procedência'!N57 -> 0.8957055215 | I56: ='CV Rotina <2A - procedência'!X57 -> 1.134969325 | J56: ='CV Rotina <2A - procedência'!R57 -> 0.9386503067 | K56: ='CV Rotina <2A - procedência'!T57 -> 0.8834355828 | L56: ='CV Rotina <2A - procedência'!V57 -> 0.7607361963 | M56: ='CV Rotina <2A - procedência'!Z57 -> 0.5828220859 | N56: 0 | O56: 3 | P56: 3 | Q56: 3
A57: Norte | B57: Pinheiros | C57: ='CV Rotina <2A - procedência'!H58 -> 0.05357142857 | D57: ='CV Rotina <2A - procedência'!P58 -> 0.9523809524 | E57: ='CV Rotina <2A - procedência'!#REF! ->  | F57: ='CV Rotina <2A - procedência'!J58 -> 0.9880952381 | G57: ='CV Rotina <2A - procedência'!L58 -> 0.9761904762 | H57: ='CV Rotina <2A - procedência'!N58 -> 0.9642857143 | I57: ='CV Rotina <2A - procedência'!X58 -> 0.9226190476 | J57: ='CV Rotina <2A - procedência'!R58 -> 0.8988095238 | K57: ='CV Rotina <2A - procedência'!T58 -> 0.8571428571 | L57: ='CV Rotina <2A - procedência'!V58 -> 0.6964285714 | M57: ='CV Rotina <2A - procedência'!Z58 -> 0.2976190476 | N57: 1 | O57: 3 | P57: 4 | Q57: 3
A58: Sul | B58: Piúma | C58: ='CV Rotina <2A - procedência'!H59 -> 0.6225165563 | D58: ='CV Rotina <2A - procedência'!P59 -> 0.8344370861 | E58: ='CV Rotina <2A - procedência'!#REF! ->  | F58: ='CV Rotina <2A - procedência'!J59 -> 0.8940397351 | G58: ='CV Rotina <2A - procedência'!L59 -> 0.8874172185 | H58: ='CV Rotina <2A - procedência'!N59 -> 0.9072847682 | I58: ='CV Rotina <2A - procedência'!X59 -> 0.9271523179 | J58: ='CV Rotina <2A - procedência'!R59 -> 0.8079470199 | K58: ='CV Rotina <2A - procedência'!T59 -> 0.642384106 | L58: ='CV Rotina <2A - procedência'!V59 -> 0.7284768212 | M58: ='CV Rotina <2A - procedência'!Z59 -> 0.3841059603 | N58: 0 | O58: 0 | P58: 0 | Q58: 0
A59: Norte | B59: Ponto Belo | C59: ='CV Rotina <2A - procedência'!H60 -> 0.1142857143 | D59: ='CV Rotina <2A - procedência'!P60 -> 0.9714285714 | E59: ='CV Rotina <2A - procedência'!#REF! ->  | F59: ='CV Rotina <2A - procedência'!J60 -> 0.9714285714 | G59: ='CV Rotina <2A - procedência'!L60 -> 0.9714285714 | H59: ='CV Rotina <2A - procedência'!N60 -> 0.9428571429 | I59: ='CV Rotina <2A - procedência'!X60 -> 1.2 | J59: ='CV Rotina <2A - procedência'!R60 -> 0.7714285714 | K59: ='CV Rotina <2A - procedência'!T60 -> 1.114285714 | L59: ='CV Rotina <2A - procedência'!V60 -> 0.6571428571 | M59: ='CV Rotina <2A - procedência'!Z60 -> 0.5142857143 | N59: 1 | O59: 4 | P59: 5 | Q59: 3
A60: Sul | B60: Presidente Kennedy | C60: ='CV Rotina <2A - procedência'!H61 -> 0.08695652174 | D60: ='CV Rotina <2A - procedência'!P61 -> 0.6782608696 | E60: ='CV Rotina <2A - procedência'!#REF! ->  | F60: ='CV Rotina <2A - procedência'!J61 -> 0.6347826087 | G60: ='CV Rotina <2A - procedência'!L61 -> 0.6434782609 | H60: ='CV Rotina <2A - procedência'!N61 -> 0.6869565217 | I60: ='CV Rotina <2A - procedência'!X61 -> 1.060869565 | J60: ='CV Rotina <2A - procedência'!R61 -> 0.6434782609 | K60: ='CV Rotina <2A - procedência'!T61 -> 0.6956521739 | L60: ='CV Rotina <2A - procedência'!V61 -> 0.8434782609 | M60: ='CV Rotina <2A - procedência'!Z61 -> 0.3739130435 | N60: 0 | O60: 1 | P60: 1 | Q60: 1
A61: Central | B61: Rio Bananal | C61: ='CV Rotina <2A - procedência'!H62 -> 0.1796407186 | D61: ='CV Rotina <2A - procedência'!P62 -> 0.8203592814 | E61: ='CV Rotina <2A - procedência'!#REF! ->  | F61: ='CV Rotina <2A - procedência'!J62 -> 0.8562874251 | G61: ='CV Rotina <2A - procedência'!L62 -> 0.8502994012 | H61: ='CV Rotina <2A - procedência'!N62 -> 0.7784431138 | I61: ='CV Rotina <2A - procedência'!X62 -> 0.9880239521 | J61: ='CV Rotina <2A - procedência'!R62 -> 0.7365269461 | K61: ='CV Rotina <2A - procedência'!T62 -> 0.9101796407 | L61: ='CV Rotina <2A - procedência'!V62 -> 0.8982035928 | M61: ='CV Rotina <2A - procedência'!Z62 -> 0.4550898204 | N61: 0 | O61: 1 | P61: 1 | Q61: 1
A62: Sul | B62: Rio Novo do Sul | C62: ='CV Rotina <2A - procedência'!H63 -> 0.3928571429 | D62: ='CV Rotina <2A - procedência'!P63 -> 1.017857143 | E62: ='CV Rotina <2A - procedência'!#REF! ->  | F62: ='CV Rotina <2A - procedência'!J63 -> 1.214285714 | G62: ='CV Rotina <2A - procedência'!L63 -> 1.196428571 | H62: ='CV Rotina <2A - procedência'!N63 -> 1 | I62: ='CV Rotina <2A - procedência'!X63 -> 1 | J62: ='CV Rotina <2A - procedência'!R63 -> 1.071428571 | K62: ='CV Rotina <2A - procedência'!T63 -> 0.9285714286 | L62: ='CV Rotina <2A - procedência'!V63 -> 1.160714286 | M62: ='CV Rotina <2A - procedência'!Z63 -> 0.7142857143 | N62: 1 | O62: 6 | P62: 7 | Q62: 4
A63: Metropolitana | B63: Santa Leopoldina | C63: ='CV Rotina <2A - procedência'!H64 -> 0.3684210526 | D63: ='CV Rotina <2A - procedência'!P64 -> 1.368421053 | E63: ='CV Rotina <2A - procedência'!#REF! ->  | F63: ='CV Rotina <2A - procedência'!J64 -> 1.578947368 | G63: ='CV Rotina <2A - procedência'!L64 -> 1.578947368 | H63: ='CV Rotina <2A - procedência'!N64 -> 1.289473684 | I63: ='CV Rotina <2A - procedência'!X64 -> 1.736842105 | J63: ='CV Rotina <2A - procedência'!R64 -> 1.526315789 | K63: ='CV Rotina <2A - procedência'!T64 -> 1.368421053 | L63: ='CV Rotina <2A - procedência'!V64 -> 1.736842105 | M63: ='CV Rotina <2A - procedência'!Z64 -> 0.3421052632 | N63: 1 | O63: 7 | P63: 8 | Q63: 4
A64: Metropolitana | B64: Santa Maria de Jetibá | C64: ='CV Rotina <2A - procedência'!H65 -> 0.8150470219 | D64: ='CV Rotina <2A - procedência'!P65 -> 0.9184952978 | E64: ='CV Rotina <2A - procedência'!#REF! ->  | F64: ='CV Rotina <2A - procedência'!J65 -> 0.8996865204 | G64: ='CV Rotina <2A - procedência'!L65 -> 0.8996865204 | H64: ='CV Rotina <2A - procedência'!N65 -> 0.8996865204 | I64: ='CV Rotina <2A - procedência'!X65 -> 1.078369906 | J64: ='CV Rotina <2A - procedência'!R65 -> 0.9090909091 | K64: ='CV Rotina <2A - procedência'!T65 -> 0.8056426332 | L64: ='CV Rotina <2A - procedência'!V65 -> 1.021943574 | M64: ='CV Rotina <2A - procedência'!Z65 -> 0.4137931034 | N64: 1 | O64: 2 | P64: 3 | Q64: 1
A65: Metropolitana | B65: Santa Teresa | C65: ='CV Rotina <2A - procedência'!H66 -> 0.7341772152 | D65: ='CV Rotina <2A - procedência'!P66 -> 0.8860759494 | E65: ='CV Rotina <2A - procedência'!#REF! ->  | F65: ='CV Rotina <2A - procedência'!J66 -> 0.8291139241 | G65: ='CV Rotina <2A - procedência'!L66 -> 0.835443038 | H65: ='CV Rotina <2A - procedência'!N66 -> 0.9240506329 | I65: ='CV Rotina <2A - procedência'!X66 -> 0.8291139241 | J65: ='CV Rotina <2A - procedência'!R66 -> 0.8227848101 | K65: ='CV Rotina <2A - procedência'!T66 -> 0.7215189873 | L65: ='CV Rotina <2A - procedência'!V66 -> 0.6898734177 | M65: ='CV Rotina <2A - procedência'!Z66 -> 0.5316455696 | N65: 0 | O65: 0 | P65: 0 | Q65: 0
A66: Central | B66: São Domingos do Norte | C66: ='CV Rotina <2A - procedência'!H67 -> 0.3538461538 | D66: ='CV Rotina <2A - procedência'!P67 -> 0.8461538462 | E66: ='CV Rotina <2A - procedência'!#REF! ->  | F66: ='CV Rotina <2A - procedência'!J67 -> 0.8153846154 | G66: ='CV Rotina <2A - procedência'!L67 -> 0.8153846154 | H66: ='CV Rotina <2A - procedência'!N67 -> 0.8307692308 | I66: ='CV Rotina <2A - procedência'!X67 -> 0.7846153846 | J66: ='CV Rotina <2A - procedência'!R67 -> 0.8461538462 | K66: ='CV Rotina <2A - procedência'!T67 -> 0.8461538462 | L66: ='CV Rotina <2A - procedência'!V67 -> 0.4769230769 | M66: ='CV Rotina <2A - procedência'!Z67 -> 0.3692307692 | N66: 0 | O66: =COUNTIFS(F66:M66,">=0,95") -> 0 | P66: 0 | Q66: 0
A67: Central | B67: São Gabriel da Palha | C67: ='CV Rotina <2A - procedência'!H68 -> 0.547008547 | D67: ='CV Rotina <2A - procedência'!P68 -> 0.8418803419 | E67: ='CV Rotina <2A - procedência'!#REF! ->  | F67: ='CV Rotina <2A - procedência'!J68 -> 0.8717948718 | G67: ='CV Rotina <2A - procedência'!L68 -> 0.8803418803 | H67: ='CV Rotina <2A - procedência'!N68 -> 0.8675213675 | I67: ='CV Rotina <2A - procedência'!X68 -> 0.8717948718 | J67: ='CV Rotina <2A - procedência'!R68 -> 0.8461538462 | K67: ='CV Rotina <2A - procedência'!T68 -> 0.7393162393 | L67: ='CV Rotina <2A - procedência'!V68 -> 0.7008547009 | M67: ='CV Rotina <2A - procedência'!Z68 -> 0.3760683761 | N67: =COUNTIF(C67:E67,">=0,9") -> 0 | O67: 0 | P67: =SUM(N67:O67) -> 0 | Q67: =COUNTIF(F67:I67,">=0,95") -> 0
A68: Sul | B68: São José do Calçado | C68: ='CV Rotina <2A - procedência'!H69 -> 0.8636363636 | D68: ='CV Rotina <2A - procedência'!P69 -> 1.113636364 | E68: ='CV Rotina <2A - procedência'!#REF! ->  | F68: ='CV Rotina <2A - procedência'!J69 -> 1.522727273 | G68: ='CV Rotina <2A - procedência'!L69 -> 1.5 | H68: ='CV Rotina <2A - procedência'!N69 -> 1.295454545 | I68: ='CV Rotina <2A - procedência'!X69 -> 1.431818182 | J68: ='CV Rotina <2A - procedência'!R69 -> 1.340909091 | K68: ='CV Rotina <2A - procedência'!T69 -> 1.113636364 | L68: ='CV Rotina <2A - procedência'!V69 -> 1.159090909 | M68: ='CV Rotina <2A - procedência'!Z69 -> 0.7727272727 | N68: 1 | O68: 7 | P68: 8 | Q68: 4
A69: Norte | B69: São Mateus | C69: ='CV Rotina <2A - procedência'!H70 -> 1.523662551 | D69: ='CV Rotina <2A - procedência'!P70 -> 0.8189300412 | E69: ='CV Rotina <2A - procedência'!#REF! ->  | F69: ='CV Rotina <2A - procedência'!J70 -> 0.8858024691 | G69: ='CV Rotina <2A - procedência'!L70 -> 0.8672839506 | H69: ='CV Rotina <2A - procedência'!N70 -> 0.878600823 | I69: ='CV Rotina <2A - procedência'!X70 -> 0.8528806584 | J69: ='CV Rotina <2A - procedência'!R70 -> 0.8251028807 | K69: ='CV Rotina <2A - procedência'!T70 -> 0.6882716049 | L69: ='CV Rotina <2A - procedência'!V70 -> 0.7355967078 | M69: ='CV Rotina <2A - procedência'!Z70 -> 0.3621399177 | N69: 1 | O69: 0 | P69: 1 | Q69: 0
A70: Central | B70: São Roque do Canaã | C70: ='CV Rotina <2A - procedência'!H71 -> 0.2976190476 | D70: ='CV Rotina <2A - procedência'!P71 -> 0.6547619048 | E70: ='CV Rotina <2A - procedência'!#REF! ->  | F70: ='CV Rotina <2A - procedência'!J71 -> 0.5833333333 | G70: ='CV Rotina <2A - procedência'!L71 -> 0.5714285714 | H70: ='CV Rotina <2A - procedência'!N71 -> 0.5952380952 | I70: ='CV Rotina <2A - procedência'!X71 -> 0.9166666667 | J70: ='CV Rotina <2A - procedência'!R71 -> 0.630952381 | K70: ='CV Rotina <2A - procedência'!T71 -> 0.7380952381 | L70: ='CV Rotina <2A - procedência'!V71 -> 0.6785714286 | M70: ='CV Rotina <2A - procedência'!Z71 -> 0.3333333333 | N70: 0 | O70: 0 | P70: 0 | Q70: 0
A71: Metropolitana | B71: Serra | C71: ='CV Rotina <2A - procedência'!H72 -> 1.062307692 | D71: ='CV Rotina <2A - procedência'!P72 -> 0.7735897436 | E71: ='CV Rotina <2A - procedência'!#REF! ->  | F71: ='CV Rotina <2A - procedência'!J72 -> 0.7807692308 | G71: ='CV Rotina <2A - procedência'!L72 -> 0.7738461538 | H71: ='CV Rotina <2A - procedência'!N72 -> 0.7961538462 | I71: ='CV Rotina <2A - procedência'!X72 -> 0.7912820513 | J71: ='CV Rotina <2A - procedência'!R72 -> 0.7623076923 | K71: ='CV Rotina <2A - procedência'!T72 -> 0.6594871795 | L71: ='CV Rotina <2A - procedência'!V72 -> 0.4282051282 | M71: ='CV Rotina <2A - procedência'!Z72 -> 0.2266666667 | N71: 1 | O71: 0 | P71: 1 | Q71: 0
A72: Central | B72: Sooretama | C72: ='CV Rotina <2A - procedência'!H73 -> 0.0693877551 | D72: ='CV Rotina <2A - procedência'!P73 -> 0.7632653061 | E72: ='CV Rotina <2A - procedência'!#REF! ->  | F72: ='CV Rotina <2A - procedência'!J73 -> 0.7632653061 | G72: ='CV Rotina <2A - procedência'!L73 -> 0.7714285714 | H72: ='CV Rotina <2A - procedência'!N73 -> 0.7673469388 | I72: ='CV Rotina <2A - procedência'!X73 -> 0.8775510204 | J72: ='CV Rotina <2A - procedência'!R73 -> 0.7102040816 | K72: ='CV Rotina <2A - procedência'!T73 -> 0.7714285714 | L72: ='CV Rotina <2A - procedência'!V73 -> 0.8 | M72: ='CV Rotina <2A - procedência'!Z73 -> 0.293877551 | N72: 0 | O72: 0 | P72: 0 | Q72: 0
A73: Sul | B73: Vargem Alta | C73: ='CV Rotina <2A - procedência'!H74 -> 0.09219858156 | D73: ='CV Rotina <2A - procedência'!P74 -> 0.8226950355 | E73: ='CV Rotina <2A - procedência'!#REF! ->  | F73: ='CV Rotina <2A - procedência'!J74 -> 0.7659574468 | G73: ='CV Rotina <2A - procedência'!L74 -> 0.7659574468 | H73: ='CV Rotina <2A - procedência'!N74 -> 0.7872340426 | I73: ='CV Rotina <2A - procedência'!X74 -> 0.9432624113 | J73: ='CV Rotina <2A - procedência'!R74 -> 0.8226950355 | K73: ='CV Rotina <2A - procedência'!T74 -> 0.7234042553 | L73: ='CV Rotina <2A - procedência'!V74 -> 0.865248227 | M73: ='CV Rotina <2A - procedência'!Z74 -> 0.390070922 | N73: 0 | O73: 0 | P73: 0 | Q73: 0
A74: Metropolitana | B74: Venda Nova do Imigrante | C74: ='CV Rotina <2A - procedência'!H75 -> 1.014218009 | D74: ='CV Rotina <2A - procedência'!P75 -> 0.8199052133 | E74: ='CV Rotina <2A - procedência'!#REF! ->  | F74: ='CV Rotina <2A - procedência'!J75 -> 0.9194312796 | G74: ='CV Rotina <2A - procedência'!L75 -> 0.9194312796 | H74: ='CV Rotina <2A - procedência'!N75 -> 0.8436018957 | I74: ='CV Rotina <2A - procedência'!X75 -> 0.9857819905 | J74: ='CV Rotina <2A - procedência'!R75 -> 0.8625592417 | K74: ='CV Rotina <2A - procedência'!T75 -> 0.8720379147 | L74: ='CV Rotina <2A - procedência'!V75 -> 0.672985782 | M74: ='CV Rotina <2A - procedência'!Z75 -> 0.3127962085 | N74: 1 | O74: 1 | P74: 2 | Q74: 1
A75: Metropolitana | B75: Viana | C75: ='CV Rotina <2A - procedência'!H76 -> 0.1898989899 | D75: ='CV Rotina <2A - procedência'!P76 -> 0.8545454545 | E75: ='CV Rotina <2A - procedência'!#REF! ->  | F75: ='CV Rotina <2A - procedência'!J76 -> 0.8222222222 | G75: ='CV Rotina <2A - procedência'!L76 -> 0.8 | H75: ='CV Rotina <2A - procedência'!N76 -> 0.8909090909 | I75: ='CV Rotina <2A - procedência'!X76 -> 0.9414141414 | J75: ='CV Rotina <2A - procedência'!R76 -> 0.9050505051 | K75: ='CV Rotina <2A - procedência'!T76 -> 0.6585858586 | L75: ='CV Rotina <2A - procedência'!V76 -> 0.7636363636 | M75: ='CV Rotina <2A - procedência'!Z76 -> 0.2747474747 | N75: 0 | O75: 0 | P75: 0 | Q75: 0
A76: Norte | B76: Vila Pavão | C76: ='CV Rotina <2A - procedência'!H77 -> 0.5744680851 | D76: ='CV Rotina <2A - procedência'!P77 -> 0.9574468085 | E76: ='CV Rotina <2A - procedência'!#REF! ->  | F76: ='CV Rotina <2A - procedência'!J77 -> 0.9787234043 | G76: ='CV Rotina <2A - procedência'!L77 -> 0.9574468085 | H76: ='CV Rotina <2A - procedência'!N77 -> 0.9574468085 | I76: ='CV Rotina <2A - procedência'!X77 -> 1.468085106 | J76: ='CV Rotina <2A - procedência'!R77 -> 0.914893617 | K76: ='CV Rotina <2A - procedência'!T77 -> 1.127659574 | L76: ='CV Rotina <2A - procedência'!V77 -> 1.340425532 | M76: ='CV Rotina <2A - procedência'!Z77 -> 0.6170212766 | N76: 1 | O76: 6 | P76: 7 | Q76: 4
A77: Central | B77: Vila Valério | C77: ='CV Rotina <2A - procedência'!H78 -> 0.272 | D77: ='CV Rotina <2A - procedência'!P78 -> 0.904 | E77: ='CV Rotina <2A - procedência'!#REF! ->  | F77: ='CV Rotina <2A - procedência'!J78 -> 0.848 | G77: ='CV Rotina <2A - procedência'!L78 -> 0.8 | H77: ='CV Rotina <2A - procedência'!N78 -> 0.864 | I77: ='CV Rotina <2A - procedência'!X78 -> 0.928 | J77: ='CV Rotina <2A - procedência'!R78 -> 0.96 | K77: ='CV Rotina <2A - procedência'!T78 -> 0.856 | L77: ='CV Rotina <2A - procedência'!V78 -> 0.856 | M77: ='CV Rotina <2A - procedência'!Z78 -> 0.424 | N77: 1 | O77: 1 | P77: 2 | Q77: 0
A78: Metropolitana | B78: Vila Velha | C78: ='CV Rotina <2A - procedência'!H79 -> 0.7428082192 | D78: ='CV Rotina <2A - procedência'!P79 -> 0.7996575342 | E78: ='CV Rotina <2A - procedência'!#REF! ->  | F78: ='CV Rotina <2A - procedência'!J79 -> 0.7767123288 | G78: ='CV Rotina <2A - procedência'!L79 -> 0.7753424658 | H78: ='CV Rotina <2A - procedência'!N79 -> 0.795890411 | I78: ='CV Rotina <2A - procedência'!X79 -> 0.8441780822 | J78: ='CV Rotina <2A - procedência'!R79 -> 0.7921232877 | K78: ='CV Rotina <2A - procedência'!T79 -> 0.6702054795 | L78: ='CV Rotina <2A - procedência'!V79 -> 0.6746575342 | M78: ='CV Rotina <2A - procedência'!Z79 -> 0.3017123288 | N78: 0 | O78: 0 | P78: 0 | Q78: 0
A79: Metropolitana | B79: Vitória | C79: ='CV Rotina <2A - procedência'!H80 -> 1.880699894 | D79: ='CV Rotina <2A - procedência'!P80 -> 0.9289501591 | E79: ='CV Rotina <2A - procedência'!#REF! ->  | F79: ='CV Rotina <2A - procedência'!J80 -> 1.032343584 | G79: ='CV Rotina <2A - procedência'!L80 -> 1.032873807 | H79: ='CV Rotina <2A - procedência'!N80 -> 0.9528101803 | I79: ='CV Rotina <2A - procedência'!X80 -> 0.9490986214 | J79: ='CV Rotina <2A - procedência'!R80 -> 0.974019088 | K79: ='CV Rotina <2A - procedência'!T80 -> 0.7311770944 | L79: ='CV Rotina <2A - procedência'!V80 -> 1.002120891 | M79: ='CV Rotina <2A - procedência'!Z80 -> 0.4427359491 | N79: 2 | O79: 5 | P79: 7 | Q79: 3
B81: Total Norte | C81: ='CV Rotina <2A - procedência'!H82 -> 0.7844036697 | D81: ='CV Rotina <2A - procedência'!P82 -> 0.8440366972 | E81: ='CV Rotina <2A - procedência'!#REF! ->  | F81: ='CV Rotina <2A - procedência'!J82 -> 0.8902359109 | G81: ='CV Rotina <2A - procedência'!L82 -> 0.8872870249 | H81: ='CV Rotina <2A - procedência'!N82 -> 0.8673001311 | I81: ='CV Rotina <2A - procedência'!X82 -> 0.9259501966 | J81: ='CV Rotina <2A - procedência'!R82 -> 0.8479685452 | K81: ='CV Rotina <2A - procedência'!T82 -> 0.7948885976 | L81: ='CV Rotina <2A - procedência'!V82 -> 0.755242464 | M81: ='CV Rotina <2A - procedência'!Z82 -> 0.4259501966 | N81: =COUNTIF(C81:E81,">=0,9") -> 0 | O81: =COUNTIFS(F81:M81,">=0,95") -> 0 | P81: =SUM(N81:O81) -> 0 | Q81: =COUNTIF(F81:I81,">=0,95") -> 0
B82: Total Central | C82: ='CV Rotina <2A - procedência'!H83 -> 0.92431562 | D82: ='CV Rotina <2A - procedência'!P83 -> 0.8389694042 | E82: ='CV Rotina <2A - procedência'!#REF! ->  | F82: ='CV Rotina <2A - procedência'!J83 -> 0.8419216318 | G82: ='CV Rotina <2A - procedência'!L83 -> 0.834675255 | H82: ='CV Rotina <2A - procedência'!N83 -> 0.8389694042 | I82: ='CV Rotina <2A - procedência'!X83 -> 0.8853998926 | J82: ='CV Rotina <2A - procedência'!R83 -> 0.8344068706 | K82: ='CV Rotina <2A - procedência'!T83 -> 0.7826086957 | L82: ='CV Rotina <2A - procedência'!V83 -> 0.7198067633 | M82: ='CV Rotina <2A - procedência'!Z83 -> 0.3899624262 | N82: =COUNTIF(C82:E82,">=0,9") -> 1 | O82: =COUNTIFS(F82:M82,">=0,95") -> 0 | P82: =SUM(N82:O82) -> 1 | Q82: =COUNTIF(F82:I82,">=0,95") -> 0
B83: Total Metropolitana | C83: ='CV Rotina <2A - procedência'!H84 -> 0.8962039951 | D83: ='CV Rotina <2A - procedência'!P84 -> 0.8270922988 | E83: ='CV Rotina <2A - procedência'!#REF! ->  | F83: ='CV Rotina <2A - procedência'!J84 -> 0.8355064551 | G83: ='CV Rotina <2A - procedência'!L84 -> 0.8292118954 | H83: ='CV Rotina <2A - procedência'!N84 -> 0.8457832873 | I83: ='CV Rotina <2A - procedência'!X84 -> 0.8876613784 | J83: ='CV Rotina <2A - procedência'!R84 -> 0.8319737941 | K83: ='CV Rotina <2A - procedência'!T84 -> 0.703834543 | L83: ='CV Rotina <2A - procedência'!V84 -> 0.6951634659 | M83: ='CV Rotina <2A - procedência'!Z84 -> 0.3400346843 | N83: 0 | O83: =COUNTIFS(F83:M83,">=0,95") -> 0 | P83: =SUM(N83:O83) -> 0 | Q83: =COUNTIF(F83:I83,">=0,95") -> 0
B84: Total Sul | C84: ='CV Rotina <2A - procedência'!H85 -> 0.9333797586 | D84: ='CV Rotina <2A - procedência'!P85 -> 0.8860259981 | E84: ='CV Rotina <2A - procedência'!#REF! ->  | F84: ='CV Rotina <2A - procedência'!J85 -> 0.9171309192 | G84: ='CV Rotina <2A - procedência'!L85 -> 0.9103992572 | H84: ='CV Rotina <2A - procedência'!N85 -> 0.9103992572 | I84: ='CV Rotina <2A - procedência'!X85 -> 0.9960538533 | J84: ='CV Rotina <2A - procedência'!R85 -> 0.8927576602 | K84: ='CV Rotina <2A - procedência'!T85 -> 0.763463324 | L84: ='CV Rotina <2A - procedência'!V85 -> 0.8317084494 | M84: ='CV Rotina <2A - procedência'!Z85 -> 0.3883472609 | N84: 1 | O84: =COUNTIFS(F84:M84,">=0,95") -> 1 | P84: =SUM(N84:O84) -> 2 | Q84: =COUNTIF(F84:I84,">=0,95") -> 1
B85: Total Espírito Santo | C85: ='CV Rotina <2A - procedência'!H86 -> 0.8933408366 | D85: ='CV Rotina <2A - procedência'!P86 -> 0.8402175952 | E85: ='CV Rotina <2A - procedência'!#REF! ->  | F85: ='CV Rotina <2A - procedência'!J86 -> 0.8558619396 | G85: ='CV Rotina <2A - procedência'!L86 -> 0.8497467642 | H85: ='CV Rotina <2A - procedência'!N86 -> 0.8577377603 | I85: ='CV Rotina <2A - procedência'!X86 -> 0.9092477959 | J85: ='CV Rotina <2A - procedência'!R86 -> 0.8439692365 | K85: ='CV Rotina <2A - procedência'!T86 -> 0.7349090227 | L85: ='CV Rotina <2A - procedência'!V86 -> 0.7275558057 | M85: ='CV Rotina <2A - procedência'!Z86 -> 0.3646595385 | N85: 0 | O85: =COUNTIFS(F85:M85,">=0,95") -> 0 | P85: =SUM(N85:O85) -> 0 | Q85: =COUNTIF(F85:I85,">=0,95") -> 0
A88: Fonte: SIPNI/DATASUS, em 09 de junho de 2023.*
A89: Vacina e Confia, em 12 de junho de 2023.**
A90: *Dados referentes às doses aplicadas pelas clínicas particulares de janeiro a maio de 2023
A91: **Dados referente às doses aplicadas no período de janeiro a maio de 2023
A92: Cobertura Calculada por município de vacinação
A93: 1 População proporcional extraída do MS/SVS/DASIS - Sistema de Informações sobre Nascidos Vivos - SINASC
A94: 2000 a 2021 – Estimativas preliminares elaboradas pelo Ministério da Saúde/SVS/DASNT/CGIAE
A95: Nota: Dados preliminares 2021

Sheet cálculos2 (hidden)
A1: Regional | B1: Município | C1: Cobertura Vacinal BCG | D1: Cobertura Vacinal Rotavírus | E1: Cobertura Vacinal COVID-19 | F1: Cobertura Vacinal Pentavalente | G1: Cobertura Vacinal Poliomielite | H1: Cobertura Vacinal Pneumo 10 | I1: Cobertura Vacinal Tríplice Viral | J1: Cobertura Vacinal Meningo C | K1: Cobertura Vacinal Febre Amarela | L1: Cobertura Vacinal Hepatite A | M1: Cobertura Varicela | N1: META 90% | O1: META 95% | P1: ATINGIRAM META | Q1: PQA-VS
A2: Metropolitana | B2: Afonso Cláudio | C2: ='CV Rotina <2A - residência'!H3 -> 0.9444444444 | D2: ='CV Rotina <2A - residência'!P3 -> 1.05 | E2: ='CV Rotina <2A - residência'!#REF! ->  | F2: ='CV Rotina <2A - residência'!J3 -> 1.066666667 | G2: ='CV Rotina <2A - residência'!L3 -> 1.055555556 | H2: ='CV Rotina <2A - residência'!N3 -> 1.044444444 | I2: ='CV Rotina <2A - residência'!X3 -> 1.194444444 | J2: ='CV Rotina <2A - residência'!R3 -> 1.055555556 | K2: ='CV Rotina <2A - residência'!T3 -> 1.1 | L2: ='CV Rotina <2A - residência'!V3 -> 1.172222222 | M2: ='CV Rotina <2A - residência'!Z3 -> 0.45 | N2: =COUNTIF(C2:E2,">=0,9") -> 2 | O2: =COUNTIFS(F2:M2,">=0,95") -> 7 | P2: =SUM(N2:O2) -> 9 | Q2: =COUNTIF(F2:I2,">=0,95") -> 4
A3: Norte | B3: Água Doce do Norte | C3: ='CV Rotina <2A - residência'!H4 -> 1.046728972 | D3: ='CV Rotina <2A - residência'!P4 -> 0.8130841121 | E3: ='CV Rotina <2A - residência'!#REF! ->  | F3: ='CV Rotina <2A - residência'!J4 -> 0.7663551402 | G3: ='CV Rotina <2A - residência'!L4 -> 0.7663551402 | H3: ='CV Rotina <2A - residência'!N4 -> 0.8504672897 | I3: ='CV Rotina <2A - residência'!X4 -> 0.6542056075 | J3: ='CV Rotina <2A - residência'!R4 -> 0.8037383178 | K3: ='CV Rotina <2A - residência'!T4 -> 0.6542056075 | L3: ='CV Rotina <2A - residência'!V4 -> 0.6355140187 | M3: ='CV Rotina <2A - residência'!Z4 -> 0.214953271 | N3: =COUNTIF(C3:E3,">=0,9") -> 1 | O3: 0 | P3: =SUM(N3:O3) -> 1 | Q3: =COUNTIF(F3:I3,">=0,95") -> 0
A4: Central | B4: Águia Branca | C4: ='CV Rotina <2A - residência'!H5 -> 0.9634146341 | D4: ='CV Rotina <2A - residência'!P5 -> 0.9390243902 | E4: ='CV Rotina <2A - residência'!#REF! ->  | F4: ='CV Rotina <2A - residência'!J5 -> 1.024390244 | G4: ='CV Rotina <2A - residência'!L5 -> 1.012195122 | H4: ='CV Rotina <2A - residência'!N5 -> 0.9634146341 | I4: ='CV Rotina <2A - residência'!X5 -> 0.7073170732 | J4: ='CV Rotina <2A - residência'!R5 -> 0.9756097561 | K4: ='CV Rotina <2A - residência'!T5 -> 0.8536585366 | L4: ='CV Rotina <2A - residência'!V5 -> 0.7195121951 | M4: ='CV Rotina <2A - residência'!Z5 -> 0.2804878049 | N4: 2 | O4: 4 | P4: 6 | Q4: 3
A5: Sul | B5: Alegre | C5: ='CV Rotina <2A - residência'!H6 -> 0.8902439024 | D5: ='CV Rotina <2A - residência'!P6 -> 0.9024390244 | E5: ='CV Rotina <2A - residência'!#REF! ->  | F5: ='CV Rotina <2A - residência'!J6 -> 0.9756097561 | G5: ='CV Rotina <2A - residência'!L6 -> 1 | H5: ='CV Rotina <2A - residência'!N6 -> 0.9146341463 | I5: ='CV Rotina <2A - residência'!X6 -> 1.006097561 | J5: ='CV Rotina <2A - residência'!R6 -> 1.012195122 | K5: ='CV Rotina <2A - residência'!T6 -> 0.9329268293 | L5: ='CV Rotina <2A - residência'!V6 -> 0.8719512195 | M5: ='CV Rotina <2A - residência'!Z6 -> 0.3231707317 | N5: 1 | O5: 4 | P5: 5 | Q5: 3
A6: Sul | B6: Alfredo Chaves | C6: ='CV Rotina <2A - residência'!H7 -> 0.7878787879 | D6: ='CV Rotina <2A - residência'!P7 -> 1.181818182 | E6: ='CV Rotina <2A - residência'!#REF! ->  | F6: ='CV Rotina <2A - residência'!J7 -> 1.121212121 | G6: ='CV Rotina <2A - residência'!L7 -> 1.106060606 | H6: ='CV Rotina <2A - residência'!N7 -> 1.151515152 | I6: ='CV Rotina <2A - residência'!X7 -> 1.181818182 | J6: ='CV Rotina <2A - residência'!R7 -> 1.257575758 | K6: ='CV Rotina <2A - residência'!T7 -> 1.106060606 | L6: ='CV Rotina <2A - residência'!V7 -> 0.8939393939 | M6: ='CV Rotina <2A - residência'!Z7 -> 0.6363636364 | N6: 1 | O6: 6 | P6: 7 | Q6: 4
A7: Central | B7: Alto Rio Novo | C7: ='CV Rotina <2A - residência'!H8 -> 1.166666667 | D7: ='CV Rotina <2A - residência'!P8 -> 1.194444444 | E7: ='CV Rotina <2A - residência'!#REF! ->  | F7: ='CV Rotina <2A - residência'!J8 -> 1.277777778 | G7: ='CV Rotina <2A - residência'!L8 -> 1.277777778 | H7: ='CV Rotina <2A - residência'!N8 -> 1.194444444 | I7: ='CV Rotina <2A - residência'!X8 -> 1.194444444 | J7: ='CV Rotina <2A - residência'!R8 -> 1.305555556 | K7: ='CV Rotina <2A - residência'!T8 -> 1 | L7: ='CV Rotina <2A - residência'!V8 -> 1.222222222 | M7: ='CV Rotina <2A - residência'!Z8 -> 0.4444444444 | N7: 2 | O7: 7 | P7: 9 | Q7: 4
A8: Sul | B8: Anchieta | C8: ='CV Rotina <2A - residência'!H9 -> 0.912371134 | D8: ='CV Rotina <2A - residência'!P9 -> 1.036082474 | E8: ='CV Rotina <2A - residência'!#REF! ->  | F8: ='CV Rotina <2A - residência'!J9 -> 1.092783505 | G8: ='CV Rotina <2A - residência'!L9 -> 1.103092784 | H8: ='CV Rotina <2A - residência'!N9 -> 1.041237113 | I8: ='CV Rotina <2A - residência'!X9 -> 1.077319588 | J8: ='CV Rotina <2A - residência'!R9 -> 1.067010309 | K8: ='CV Rotina <2A - residência'!T9 -> 0.8608247423 | L8: ='CV Rotina <2A - residência'!V9 -> 0.9381443299 | M8: ='CV Rotina <2A - residência'!Z9 -> 0.4587628866 | N8: 2 | O8: 5 | P8: 7 | Q8: 4
A9: Sul | B9: Apiacá | C9: ='CV Rotina <2A - residência'!H10 -> 0.8222222222 | D9: ='CV Rotina <2A - residência'!P10 -> 0.6444444444 | E9: ='CV Rotina <2A - residência'!#REF! ->  | F9: ='CV Rotina <2A - residência'!J10 -> 0.5777777778 | G9: ='CV Rotina <2A - residência'!L10 -> 0.5777777778 | H9: ='CV Rotina <2A - residência'!N10 -> 0.6666666667 | I9: ='CV Rotina <2A - residência'!X10 -> 0.7777777778 | J9: ='CV Rotina <2A - residência'!R10 -> 0.6888888889 | K9: ='CV Rotina <2A - residência'!T10 -> 0.6 | L9: ='CV Rotina <2A - residência'!V10 -> 0.4 | M9: ='CV Rotina <2A - residência'!Z10 -> 0.1333333333 | N9: 0 | O9: 0 | P9: 0 | Q9: 0
A10: Metropolitana | B10: Aracruz | C10: ='CV Rotina <2A - residência'!H11 -> 0.9163398693 | D10: ='CV Rotina <2A - residência'!P11 -> 0.8745098039 | E10: ='CV Rotina <2A - residência'!#REF! ->  | F10: ='CV Rotina <2A - residência'!J11 -> 0.8418300654 | G10: ='CV Rotina <2A - residência'!L11 -> 0.8392156863 | H10: ='CV Rotina <2A - residência'!N11 -> 0.8849673203 | I10: ='CV Rotina <2A - residência'!X11 -> 0.9986928105 | J10: ='CV Rotina <2A - residência'!R11 -> 0.8483660131 | K10: ='CV Rotina <2A - residência'!T11 -> 0.7581699346 | L10: ='CV Rotina <2A - residência'!V11 -> 0.937254902 | M10: ='CV Rotina <2A - residência'!Z11 -> 0.4810457516 | N10: 1 | O10: 1 | P10: 2 | Q10: 1
A11: Sul | B11: Atilio Vivacqua | C11: ='CV Rotina <2A - residência'!H12 -> 0.8904109589 | D11: ='CV Rotina <2A - residência'!P12 -> 0.8356164384 | E11: ='CV Rotina <2A - residência'!#REF! ->  | F11: ='CV Rotina <2A - residência'!J12 -> 0.8767123288 | G11: ='CV Rotina <2A - residência'!L12 -> 0.8630136986 | H11: ='CV Rotina <2A - residência'!N12 -> 0.8493150685 | I11: ='CV Rotina <2A - residência'!X12 -> 1.068493151 | J11: ='CV Rotina <2A - residência'!R12 -> 0.8767123288 | K11: ='CV Rotina <2A - residência'!T12 -> 0.6164383562 | L11: ='CV Rotina <2A - residência'!V12 -> 0.8767123288 | M11: ='CV Rotina <2A - residência'!Z12 -> 0.4246575342 | N11: 0 | O11: 1 | P11: 1 | Q11: 1
A12: Central | B12: Baixo Guandu | C12: ='CV Rotina <2A - residência'!H13 -> 1.027624309 | D12: ='CV Rotina <2A - residência'!P13 -> 1.049723757 | E12: ='CV Rotina <2A - residência'!#REF! ->  | F12: ='CV Rotina <2A - residência'!J13 -> 1.044198895 | G12: ='CV Rotina <2A - residência'!L13 -> 1.044198895 | H12: ='CV Rotina <2A - residência'!N13 -> 1.077348066 | I12: ='CV Rotina <2A - residência'!X13 -> 1.187845304 | J12: ='CV Rotina <2A - residência'!R13 -> 1.077348066 | K12: ='CV Rotina <2A - residência'!T13 -> 0.8453038674 | L12: ='CV Rotina <2A - residência'!V13 -> 1.138121547 | M12: ='CV Rotina <2A - residência'!Z13 -> 0.5414364641 | N12: 2 | O12: 6 | P12: 8 | Q12: 4
A13: Norte | B13: Barra de São Francisco | C13: ='CV Rotina <2A - residência'!H14 -> 0.8811881188 | D13: ='CV Rotina <2A - residência'!P14 -> 0.8184818482 | E13: ='CV Rotina <2A - residência'!#REF! ->  | F13: ='CV Rotina <2A - residência'!J14 -> 0.8778877888 | G13: ='CV Rotina <2A - residência'!L14 -> 0.8613861386 | H13: ='CV Rotina <2A - residência'!N14 -> 0.8415841584 | I13: ='CV Rotina <2A - residência'!X14 -> 0.9405940594 | J13: ='CV Rotina <2A - residência'!R14 -> 0.8679867987 | K13: ='CV Rotina <2A - residência'!T14 -> 0.8316831683 | L13: ='CV Rotina <2A - residência'!V14 -> 0.7623762376 | M13: ='CV Rotina <2A - residência'!Z14 -> 0.5148514851 | N13: 0 | O13: 0 | P13: 0 | Q13: 0
A14: Norte | B14: Boa Esperança | C14: ='CV Rotina <2A - residência'!H15 -> 0.7596153846 | D14: ='CV Rotina <2A - residência'!P15 -> 1 | E14: ='CV Rotina <2A - residência'!#REF! ->  | F14: ='CV Rotina <2A - residência'!J15 -> 0.8173076923 | G14: ='CV Rotina <2A - residência'!L15 -> 0.8942307692 | H14: ='CV Rotina <2A - residência'!N15 -> 0.9615384615 | I14: ='CV Rotina <2A - residência'!X15 -> 1.038461538 | J14: ='CV Rotina <2A - residência'!R15 -> 0.9230769231 | K14: ='CV Rotina <2A - residência'!T15 -> 0.7788461538 | L14: ='CV Rotina <2A - residência'!V15 -> 0.75 | M14: ='CV Rotina <2A - residência'!Z15 -> 0.5192307692 | N14: 1 | O14: 2 | P14: 3 | Q14: 2
A15: Sul | B15: Bom Jesus do Norte | C15: ='CV Rotina <2A - residência'!H16 -> 0.9024390244 | D15: ='CV Rotina <2A - residência'!P16 -> 1.073170732 | E15: ='CV Rotina <2A - residência'!#REF! ->  | F15: ='CV Rotina <2A - residência'!J16 -> 1.414634146 | G15: ='CV Rotina <2A - residência'!L16 -> 1.365853659 | H15: ='CV Rotina <2A - residência'!N16 -> 1.12195122 | I15: ='CV Rotina <2A - residência'!X16 -> 1.414634146 | J15: ='CV Rotina <2A - residência'!R16 -> 1.146341463 | K15: ='CV Rotina <2A - residência'!T16 -> 1.170731707 | L15: ='CV Rotina <2A - residência'!V16 -> 0.3414634146 | M15: ='CV Rotina <2A - residência'!Z16 -> 0.1219512195 | N15: 2 | O15: 6 | P15: 8 | Q15: 4
A16: Metropolitana | B16: Brejetuba | C16: ='CV Rotina <2A - residência'!H17 -> 0.8303571429 | D16: ='CV Rotina <2A - residência'!P17 -> 0.8839285714 | E16: ='CV Rotina <2A - residência'!#REF! ->  | F16: ='CV Rotina <2A - residência'!J17 -> 0.8214285714 | G16: ='CV Rotina <2A - residência'!L17 -> 0.8214285714 | H16: ='CV Rotina <2A - residência'!N17 -> 0.8482142857 | I16: ='CV Rotina <2A - residência'!X17 -> 0.875 | J16: ='CV Rotina <2A - residência'!R17 -> 0.8214285714 | K16: ='CV Rotina <2A - residência'!T17 -> 0.8303571429 | L16: ='CV Rotina <2A - residência'!V17 -> 0.7857142857 | M16: ='CV Rotina <2A - residência'!Z17 -> 0.3571428571 | N16: 0 | O16: 0 | P16: 0 | Q16: 0
A17: Sul | B17: Cachoeiro de Itapemirim | C17: ='CV Rotina <2A - residência'!H18 -> 1.035450517 | D17: ='CV Rotina <2A - residência'!P18 -> 0.7695716396 | E17: ='CV Rotina <2A - residência'!#REF! ->  | F17: ='CV Rotina <2A - residência'!J18 -> 0.7695716396 | G17: ='CV Rotina <2A - residência'!L18 -> 0.758493353 | H17: ='CV Rotina <2A - residência'!N18 -> 0.7880354505 | I17: ='CV Rotina <2A - residência'!X18 -> 0.8892171344 | J17: ='CV Rotina <2A - residência'!R18 -> 0.7599704579 | K17: ='CV Rotina <2A - residência'!T18 -> 0.6329394387 | L17: ='CV Rotina <2A - residência'!V18 -> 0.7548005908 | M17: ='CV Rotina <2A - residência'!Z18 -> 0.3146233383 | N17: 1 | O17: 0 | P17: 1 | Q17: 0
A18: Metropolitana | B18: Cariacica | C18: ='CV Rotina <2A - residência'!H19 -> 0.8266666667 | D18: ='CV Rotina <2A - residência'!P19 -> 0.8184313725 | E18: ='CV Rotina <2A - residência'!#REF! ->  | F18: ='CV Rotina <2A - residência'!J19 -> 0.8309803922 | G18: ='CV Rotina <2A - residência'!L19 -> 0.8207843137 | H18: ='CV Rotina <2A - residência'!N19 -> 0.8611764706 | I18: ='CV Rotina <2A - residência'!X19 -> 0.9266666667 | J18: ='CV Rotina <2A - residência'!R19 -> 0.8317647059 | K18: ='CV Rotina <2A - residência'!T19 -> 0.6749019608 | L18: ='CV Rotina <2A - residência'!V19 -> 0.668627451 | M18: ='CV Rotina <2A - residência'!Z19 -> 0.3337254902 | N18: 0 | O18: 0 | P18: 0 | Q18: 0
A19: Sul | B19: Castelo | C19: ='CV Rotina <2A - residência'!H20 -> 0.7957446809 | D19: ='CV Rotina <2A - residência'!P20 -> 0.8765957447 | E19: ='CV Rotina <2A - residência'!#REF! ->  | F19: ='CV Rotina <2A - residência'!J20 -> 0.8978723404 | G19: ='CV Rotina <2A - residência'!L20 -> 0.8978723404 | H19: ='CV Rotina <2A - residência'!N20 -> 0.9021276596 | I19: ='CV Rotina <2A - residência'!X20 -> 0.9872340426 | J19: ='CV Rotina <2A - residência'!R20 -> 0.8680851064 | K19: ='CV Rotina <2A - residência'!T20 -> 0.7914893617 | L19: ='CV Rotina <2A - residência'!V20 -> 0.714893617 | M19: ='CV Rotina <2A - residência'!Z20 -> 0.4170212766 | N19: 0 | O19: 1 | P19: 1 | Q19: 1
A20: Central | B20: Colatina | C20: ='CV Rotina <2A - residência'!H21 -> 0.9900744417 | D20: ='CV Rotina <2A - residência'!P21 -> 0.8672456576 | E20: ='CV Rotina <2A - residência'!#REF! ->  | F20: ='CV Rotina <2A - residência'!J21 -> 0.864764268 | G20: ='CV Rotina <2A - residência'!L21 -> 0.8511166253 | H20: ='CV Rotina <2A - residência'!N21 -> 0.8672456576 | I20: ='CV Rotina <2A - residência'!X21 -> 0.9267990074 | J20: ='CV Rotina <2A - residência'!R21 -> 0.8635235732 | K20: ='CV Rotina <2A - residência'!T21 -> 0.7890818859 | L20: ='CV Rotina <2A - residência'!V21 -> 0.6166253102 | M20: ='CV Rotina <2A - residência'!Z21 -> 0.4019851117 | N20: 1 | O20: 0 | P20: 1 | Q20: 0
A21: Norte | B21: Conceição da Barra | C21: ='CV Rotina <2A - residência'!H22 -> 0.4263959391 | D21: ='CV Rotina <2A - residência'!P22 -> 0.9187817259 | E21: ='CV Rotina <2A - residência'!#REF! ->  | F21: ='CV Rotina <2A - residência'!J22 -> 0.8781725888 | G21: ='CV Rotina <2A - residência'!L22 -> 0.8984771574 | H21: ='CV Rotina <2A - residência'!N22 -> 0.9543147208 | I21: ='CV Rotina <2A - residência'!X22 -> 0.9847715736 | J21: ='CV Rotina <2A - residência'!R22 -> 0.923857868 | K21: ='CV Rotina <2A - residência'!T22 -> 0.8629441624 | L21: ='CV Rotina <2A - residência'!V22 -> 0.7461928934 | M21: ='CV Rotina <2A - residência'!Z22 -> 0.4416243655 | N21: 1 | O21: 2 | P21: 3 | Q21: 2
A22: Metropolitana | B22: Conceição do Castelo | C22: ='CV Rotina <2A - residência'!H23 -> 0.7608695652 | D22: ='CV Rotina <2A - residência'!P23 -> 0.6739130435 | E22: ='CV Rotina <2A - residência'!#REF! ->  | F22: ='CV Rotina <2A - residência'!J23 -> 0.6304347826 | G22: ='CV Rotina <2A - residência'!L23 -> 0.597826087 | H22: ='CV Rotina <2A - residência'!N23 -> 0.6847826087 | I22: ='CV Rotina <2A - residência'!X23 -> 0.75 | J22: ='CV Rotina <2A - residência'!R23 -> 0.5652173913 | K22: ='CV Rotina <2A - residência'!T23 -> 0.7717391304 | L22: ='CV Rotina <2A - residência'!V23 -> 0.6847826087 | M22: ='CV Rotina <2A - residência'!Z23 -> 0.4456521739 | N22: 0 | O22: 0 | P22: 0 | Q22: 0
A23: Sul | B23: Divino de São Lourenço | C23: ='CV Rotina <2A - residência'!H24 -> 1 | D23: ='CV Rotina <2A - residência'!P24 -> 1.051282051 | E23: ='CV Rotina <2A - residência'!#REF! ->  | F23: ='CV Rotina <2A - residência'!J24 -> 0.9743589744 | G23: ='CV Rotina <2A - residência'!L24 -> 0.9743589744 | H23: ='CV Rotina <2A - residência'!N24 -> 1.025641026 | I23: ='CV Rotina <2A - residência'!X24 -> 0.641025641 | J23: ='CV Rotina <2A - residência'!R24 -> 1.102564103 | K23: ='CV Rotina <2A - residência'!T24 -> 0.7435897436 | L23: ='CV Rotina <2A - residência'!V24 -> 0.5897435897 | M23: ='CV Rotina <2A - residência'!Z24 -> 0.4871794872 | N23: 2 | O23: 4 | P23: 6 | Q23: 3
A24: Metropolitana | B24: Domingos Martins | C24: ='CV Rotina <2A - residência'!H25 -> 0.796460177 | D24: ='CV Rotina <2A - residência'!P25 -> 0.889380531 | E24: ='CV Rotina <2A - residência'!#REF! ->  | F24: ='CV Rotina <2A - residência'!J25 -> 0.814159292 | G24: ='CV Rotina <2A - residência'!L25 -> 0.8053097345 | H24: ='CV Rotina <2A - residência'!N25 -> 0.8938053097 | I24: ='CV Rotina <2A - residência'!X25 -> 0.9513274336 | J24: ='CV Rotina <2A - residência'!R25 -> 0.8584070796 | K24: ='CV Rotina <2A - residência'!T25 -> 0.6991150442 | L24: ='CV Rotina <2A - residência'!V25 -> 0.814159292 | M24: ='CV Rotina <2A - residência'!Z25 -> 0.6460176991 | N24: 0 | O24: 1 | P24: 1 | Q24: 1
A25: Sul | B25: Dores do Rio Preto | C25: ='CV Rotina <2A - residência'!H26 -> 0.7380952381 | D25: ='CV Rotina <2A - residência'!P26 -> 1.142857143 | E25: ='CV Rotina <2A - residência'!#REF! ->  | F25: ='CV Rotina <2A - residência'!J26 -> 1.023809524 | G25: ='CV Rotina <2A - residência'!L26 -> 1.095238095 | H25: ='CV Rotina <2A - residência'!N26 -> 1.19047619 | I25: ='CV Rotina <2A - residência'!X26 -> 1.214285714 | J25: ='CV Rotina <2A - residência'!R26 -> 1.166666667 | K25: ='CV Rotina <2A - residência'!T26 -> 1 | L25: ='CV Rotina <2A - residência'!V26 -> 0.8095238095 | M25: ='CV Rotina <2A - residência'!Z26 -> 0.3095238095 | N25: 1 | O25: 6 | P25: 7 | Q25: 4
A26: Norte | B26: Ecoporanga | C26: ='CV Rotina <2A - residência'!H27 -> 0.9863945578 | D26: ='CV Rotina <2A - residência'!P27 -> 0.7619047619 | E26: ='CV Rotina <2A - residência'!#REF! ->  | F26: ='CV Rotina <2A - residência'!J27 -> 0.8095238095 | G26: ='CV Rotina <2A - residência'!L27 -> 0.7959183673 | H26: ='CV Rotina <2A - residência'!N27 -> 0.768707483 | I26: ='CV Rotina <2A - residência'!X27 -> 0.8707482993 | J26: ='CV Rotina <2A - residência'!R27 -> 0.7074829932 | K26: ='CV Rotina <2A - residência'!T27 -> 0.7414965986 | L26: ='CV Rotina <2A - residência'!V27 -> 0.8095238095 | M26: ='CV Rotina <2A - residência'!Z27 -> 0.4965986395 | N26: 1 | O26: 0 | P26: 1 | Q26: 0
A27: Metropolitana | B27: Fundão | C27: ='CV Rotina <2A - residência'!H28 -> 0.7438016529 | D27: ='CV Rotina <2A - residência'!P28 -> 0.8347107438 | E27: ='CV Rotina <2A - residência'!#REF! ->  | F27: ='CV Rotina <2A - residência'!J28 -> 0.9338842975 | G27: ='CV Rotina <2A - residência'!L28 -> 0.9173553719 | H27: ='CV Rotina <2A - residência'!N28 -> 0.8347107438 | I27: ='CV Rotina <2A - residência'!X28 -> 0.8347107438 | J27: ='CV Rotina <2A - residência'!R28 -> 0.8016528926 | K27: ='CV Rotina <2A - residência'!T28 -> 0.8429752066 | L27: ='CV Rotina <2A - residência'!V28 -> 0.8181818182 | M27: ='CV Rotina <2A - residência'!Z28 -> 0.5041322314 | N27: 0 | O27: 0 | P27: 0 | Q27: 0
A28: Central | B28: Governador Lindenberg | C28: ='CV Rotina <2A - residência'!H29 -> 0.7323943662 | D28: ='CV Rotina <2A - residência'!P29 -> 0.9295774648 | E28: ='CV Rotina <2A - residência'!#REF! ->  | F28: ='CV Rotina <2A - residência'!J29 -> 0.9014084507 | G28: ='CV Rotina <2A - residência'!L29 -> 0.8732394366 | H28: ='CV Rotina <2A - residência'!N29 -> 0.9295774648 | I28: ='CV Rotina <2A - residência'!X29 -> 1 | J28: ='CV Rotina <2A - residência'!R29 -> 0.8169014085 | K28: ='CV Rotina <2A - residência'!T29 -> 1.126760563 | L28: ='CV Rotina <2A - residência'!V29 -> 0.7887323944 | M28: ='CV Rotina <2A - residência'!Z29 -> 0.5070422535 | N28: 1 | O28: 2 | P28: 3 | Q28: 1
A29: Sul | B29: Guaçuí | C29: ='CV Rotina <2A - residência'!H30 -> 0.7464788732 | D29: ='CV Rotina <2A - residência'!P30 -> 0.8215962441 | E29: ='CV Rotina <2A - residência'!#REF! ->  | F29: ='CV Rotina <2A - residência'!J30 -> 0.9624413146 | G29: ='CV Rotina <2A - residência'!L30 -> 0.9389671362 | H29: ='CV Rotina <2A - residência'!N30 -> 0.8920187793 | I29: ='CV Rotina <2A - residência'!X30 -> 0.9765258216 | J29: ='CV Rotina <2A - residência'!R30 -> 0.8356807512 | K29: ='CV Rotina <2A - residência'!T30 -> 0.7230046948 | L29: ='CV Rotina <2A - residência'!V30 -> 0.8122065728 | M29: ='CV Rotina <2A - residência'!Z30 -> 0.4131455399 | N29: 0 | O29: 2 | P29: 2 | Q29: 2
A30: Metropolitana | B30: Guarapari | C30: ='CV Rotina <2A - residência'!H31 -> 0.8615879828 | D30: ='CV Rotina <2A - residência'!P31 -> 0.8015021459 | E30: ='CV Rotina <2A - residência'!#REF! ->  | F30: ='CV Rotina <2A - residência'!J31 -> 0.7961373391 | G30: ='CV Rotina <2A - residência'!L31 -> 0.7736051502 | H30: ='CV Rotina <2A - residência'!N31 -> 0.8412017167 | I30: ='CV Rotina <2A - residência'!X31 -> 0.8444206009 | J30: ='CV Rotina <2A - residência'!R31 -> 0.8111587983 | K30: ='CV Rotina <2A - residência'!T31 -> 0.6201716738 | L30: ='CV Rotina <2A - residência'!V31 -> 0.7360515021 | M30: ='CV Rotina <2A - residência'!Z31 -> 0.410944206 | N30: 0 | O30: 0 | P30: 0 | Q30: 0
A31: Metropolitana | B31: Ibatiba | C31: ='CV Rotina <2A - residência'!H32 -> 1.088235294 | D31: ='CV Rotina <2A - residência'!P32 -> 0.9882352941 | E31: ='CV Rotina <2A - residência'!#REF! ->  | F31: ='CV Rotina <2A - residência'!J32 -> 1.070588235 | G31: ='CV Rotina <2A - residência'!L32 -> 1.070588235 | H31: ='CV Rotina <2A - residência'!N32 -> 1.047058824 | I31: ='CV Rotina <2A - residência'!X32 -> 1.094117647 | J31: ='CV Rotina <2A - residência'!R32 -> 1.058823529 | K31: ='CV Rotina <2A - residência'!T32 -> 1.005882353 | L31: ='CV Rotina <2A - residência'!V32 -> 0.9352941176 | M31: ='CV Rotina <2A - residência'!Z32 -> 0.2 | N31: 2 | O31: 6 | P31: 8 | Q31: 4
A32: Metropolitana | B32: Ibiraçu | C32: ='CV Rotina <2A - residência'!H33 -> 0.8488372093 | D32: ='CV Rotina <2A - residência'!P33 -> 0.7093023256 | E32: ='CV Rotina <2A - residência'!#REF! ->  | F32: ='CV Rotina <2A - residência'!J33 -> 0.7209302326 | G32: ='CV Rotina <2A - residência'!L33 -> 0.6976744186 | H32: ='CV Rotina <2A - residência'!N33 -> 0.7209302326 | I32: ='CV Rotina <2A - residência'!X33 -> 0.8139534884 | J32: ='CV Rotina <2A - residência'!R33 -> 0.7209302326 | K32: ='CV Rotina <2A - residência'!T33 -> 0.7209302326 | L32: ='CV Rotina <2A - residência'!V33 -> 0.5697674419 | M32: ='CV Rotina <2A - residência'!Z33 -> 0.2558139535 | N32: 0 | O32: 0 | P32: 0 | Q32: 0
A33: Sul | B33: Ibitirama | C33: ='CV Rotina <2A - residência'!H34 -> 0.9230769231 | D33: ='CV Rotina <2A - residência'!P34 -> 0.9538461538 | E33: ='CV Rotina <2A - residência'!#REF! ->  | F33: ='CV Rotina <2A - residência'!J34 -> 0.9538461538 | G33: ='CV Rotina <2A - residência'!L34 -> 0.9384615385 | H33: ='CV Rotina <2A - residência'!N34 -> 0.9230769231 | I33: ='CV Rotina <2A - residência'!X34 -> 1.046153846 | J33: ='CV Rotina <2A - residência'!R34 -> 0.8153846154 | K33: ='CV Rotina <2A - residência'!T34 -> 0.7538461538 | L33: ='CV Rotina <2A - residência'!V34 -> 0.8615384615 | M33: ='CV Rotina <2A - residência'!Z34 -> 0.4769230769 | N33: 2 | O33: 2 | P33: 4 | Q33: 2
A34: Sul | B34: Iconha | C34: ='CV Rotina <2A - residência'!H35 -> 0.606557377 | D34: ='CV Rotina <2A - residência'!P35 -> 0.9672131148 | E34: ='CV Rotina <2A - residência'!#REF! ->  | F34: ='CV Rotina <2A - residência'!J35 -> 1 | G34: ='CV Rotina <2A - residência'!L35 -> 0.9344262295 | H34: ='CV Rotina <2A - residência'!N35 -> 0.9836065574 | I34: ='CV Rotina <2A - residência'!X35 -> 1.245901639 | J34: ='CV Rotina <2A - residência'!R35 -> 0.868852459 | K34: ='CV Rotina <2A - residência'!T35 -> 0.9344262295 | L34: ='CV Rotina <2A - residência'!V35 -> 1.131147541 | M34: ='CV Rotina <2A - residência'!Z35 -> 0.4590163934 | N34: 1 | O34: 4 | P34: =SUM(N34:O34) -> 5 | Q34: 3
A35: Sul | B35: Irupi | C35: ='CV Rotina <2A - residência'!H36 -> 1.074074074 | D35: ='CV Rotina <2A - residência'!P36 -> 1.271604938 | E35: ='CV Rotina <2A - residência'!#REF! ->  | F35: ='CV Rotina <2A - residência'!J36 -> 1.234567901 | G35: ='CV Rotina <2A - residência'!L36 -> 1.222222222 | H35: ='CV Rotina <2A - residência'!N36 -> 1.308641975 | I35: ='CV Rotina <2A - residência'!X36 -> 1.604938272 | J35: ='CV Rotina <2A - residência'!R36 -> 1.283950617 | K35: ='CV Rotina <2A - residência'!T36 -> 1.086419753 | L35: ='CV Rotina <2A - residência'!V36 -> 1.222222222 | M35: ='CV Rotina <2A - residência'!Z36 -> 0.3703703704 | N35: 2 | O35: 7 | P35: 9 | Q35: 4
A36: Metropolitana | B36: Itaguaçu | C36: ='CV Rotina <2A - residência'!H37 -> 0.9358974359 | D36: ='CV Rotina <2A - residência'!P37 -> 0.7948717949 | E36: ='CV Rotina <2A - residência'!#REF! ->  | F36: ='CV Rotina <2A - residência'!J37 -> 0.7948717949 | G36: ='CV Rotina <2A - residência'!L37 -> 0.7692307692 | H36: ='CV Rotina <2A - residência'!N37 -> 0.7948717949 | I36: ='CV Rotina <2A - residência'!X37 -> 0.8974358974 | J36: ='CV Rotina <2A - residência'!R37 -> 0.8076923077 | K36: ='CV Rotina <2A - residência'!T37 -> 0.8974358974 | L36: ='CV Rotina <2A - residência'!V37 -> 0.9615384615 | M36: ='CV Rotina <2A - residência'!Z37 -> 0.5512820513 | N36: 1 | O36: 1 | P36: 2 | Q36: 0
A37: Sul | B37: Itapemirim | C37: ='CV Rotina <2A - residência'!H38 -> 0.9382716049 | D37: ='CV Rotina <2A - residência'!P38 -> 0.950617284 | E37: ='CV Rotina <2A - residência'!#REF! ->  | F37: ='CV Rotina <2A - residência'!J38 -> 0.9917695473 | G37: ='CV Rotina <2A - residência'!L38 -> 1 | H37: ='CV Rotina <2A - residência'!N38 -> 1.053497942 | I37: ='CV Rotina <2A - residência'!X38 -> 1.037037037 | J37: ='CV Rotina <2A - residência'!R38 -> 0.962962963 | K37: ='CV Rotina <2A - residência'!T38 -> 0.6625514403 | L37: ='CV Rotina <2A - residência'!V38 -> 0.9547325103 | M37: ='CV Rotina <2A - residência'!Z38 -> 0.4650205761 | N37: 2 | O37: 6 | P37: 8 | Q37: 4
A38: Metropolitana | B38: Itarana | C38: ='CV Rotina <2A - residência'!H39 -> 0.9294117647 | D38: ='CV Rotina <2A - residência'!P39 -> 0.7294117647 | E38: ='CV Rotina <2A - residência'!#REF! ->  | F38: ='CV Rotina <2A - residência'!J39 -> 0.7176470588 | G38: ='CV Rotina <2A - residência'!L39 -> 0.7176470588 | H38: ='CV Rotina <2A - residência'!N39 -> 0.7058823529 | I38: ='CV Rotina <2A - residência'!X39 -> 0.7529411765 | J38: ='CV Rotina <2A - residência'!R39 -> 0.6235294118 | K38: ='CV Rotina <2A - residência'!T39 -> 0.8117647059 | L38: ='CV Rotina <2A - residência'!V39 -> 0.5294117647 | M38: ='CV Rotina <2A - residência'!Z39 -> 0.4470588235 | N38: 1 | O38: 0 | P38: 1 | Q38: 0
A39: Sul | B39: Iúna | C39: ='CV Rotina <2A - residência'!H40 -> 0.8870967742 | D39: ='CV Rotina <2A - residência'!P40 -> 1.161290323 | E39: ='CV Rotina <2A - residência'!#REF! ->  | F39: ='CV Rotina <2A - residência'!J40 -> 1.247311828 | G39: ='CV Rotina <2A - residência'!L40 -> 1.23655914 | H39: ='CV Rotina <2A - residência'!N40 -> 1.177419355 | I39: ='CV Rotina <2A - residência'!X40 -> 1.209677419 | J39: ='CV Rotina <2A - residência'!R40 -> 1.182795699 | K39: ='CV Rotina <2A - residência'!T40 -> 1.112903226 | L39: ='CV Rotina <2A - residência'!V40 -> 0.9301075269 | M39: ='CV Rotina <2A - residência'!Z40 -> 0.4731182796 | N39: 1 | O39: 6 | P39: 7 | Q39: 4
A40: Norte | B40: Jaguaré | C40: ='CV Rotina <2A - residência'!H41 -> 0.8041237113 | D40: ='CV Rotina <2A - residência'!P41 -> 0.7594501718 | E40: ='CV Rotina <2A - residência'!#REF! ->  | F40: ='CV Rotina <2A - residência'!J41 -> 0.8281786942 | G40: ='CV Rotina <2A - residência'!L41 -> 0.8487972509 | H40: ='CV Rotina <2A - residência'!N41 -> 0.7800687285 | I40: ='CV Rotina <2A - residência'!X41 -> 0.7972508591 | J40: ='CV Rotina <2A - residência'!R41 -> 0.7731958763 | K40: ='CV Rotina <2A - residência'!T41 -> 0.7216494845 | L40: ='CV Rotina <2A - residência'!V41 -> 0.6013745704 | M40: ='CV Rotina <2A - residência'!Z41 -> 0.3642611684 | N40: 0 | O40: 0 | P40: 0 | Q40: 0
A41: Sul | B41: Jerônimo Monteiro | C41: ='CV Rotina <2A - residência'!H42 -> 0.9146341463 | D41: ='CV Rotina <2A - residência'!P42 -> 0.9390243902 | E41: ='CV Rotina <2A - residência'!#REF! ->  | F41: ='CV Rotina <2A - residência'!J42 -> 1 | G41: ='CV Rotina <2A - residência'!L42 -> 1.012195122 | H41: ='CV Rotina <2A - residência'!N42 -> 0.9634146341 | I41: ='CV Rotina <2A - residência'!X42 -> 0.9390243902 | J41: ='CV Rotina <2A - residência'!R42 -> 0.8414634146 | K41: ='CV Rotina <2A - residência'!T42 -> 0.987804878 | L41: ='CV Rotina <2A - residência'!V42 -> 0.8536585366 | M41: ='CV Rotina <2A - residência'!Z42 -> 0.243902439 | N41: 2 | O41: 4 | P41: 6 | Q41: 3
A42: Metropolitana | B42: João Neiva | C42: ='CV Rotina <2A - residência'!H43 -> 0.7857142857 | D42: ='CV Rotina <2A - residência'!P43 -> 0.9523809524 | E42: ='CV Rotina <2A - residência'!#REF! ->  | F42: ='CV Rotina <2A - residência'!J43 -> 1 | G42: ='CV Rotina <2A - residência'!L43 -> 0.9761904762 | H42: ='CV Rotina <2A - residência'!N43 -> 0.9761904762 | I42: ='CV Rotina <2A - residência'!X43 -> 1.154761905 | J42: ='CV Rotina <2A - residência'!R43 -> 0.9404761905 | K42: ='CV Rotina <2A - residência'!T43 -> 0.9642857143 | L42: ='CV Rotina <2A - residência'!V43 -> 0.9523809524 | M42: ='CV Rotina <2A - residência'!Z43 -> 0.380952381 | N42: 1 | O42: 6 | P42: 7 | Q42: 4
A43: Metropolitana | B43: Laranja da Terra | C43: ='CV Rotina <2A - residência'!H44 -> 0.8541666667 | D43: ='CV Rotina <2A - residência'!P44 -> 0.7083333333 | E43: ='CV Rotina <2A - residência'!#REF! ->  | F43: ='CV Rotina <2A - residência'!J44 -> 0.8958333333 | G43: ='CV Rotina <2A - residência'!L44 -> 0.8958333333 | H43: ='CV Rotina <2A - residência'!N44 -> 0.7083333333 | I43: ='CV Rotina <2A - residência'!X44 -> 1.5 | J43: ='CV Rotina <2A - residência'!R44 -> 0.9166666667 | K43: ='CV Rotina <2A - residência'!T44 -> 1.104166667 | L43: ='CV Rotina <2A - residência'!V44 -> 1.25 | M43: ='CV Rotina <2A - residência'!Z44 -> 1.0625 | N43: 0 | O43: 4 | P43: 4 | Q43: 1
A44: Central | B44: Linhares | C44: ='CV Rotina <2A - residência'!H45 -> 0.676730486 | D44: ='CV Rotina <2A - residência'!P45 -> 0.8048600884 | E44: ='CV Rotina <2A - residência'!#REF! ->  | F44: ='CV Rotina <2A - residência'!J45 -> 0.7967599411 | G44: ='CV Rotina <2A - residência'!L45 -> 0.7886597938 | H44: ='CV Rotina <2A - residência'!N45 -> 0.7901325479 | I44: ='CV Rotina <2A - residência'!X45 -> 0.8365243004 | J44: ='CV Rotina <2A - residência'!R45 -> 0.7982326951 | K44: ='CV Rotina <2A - residência'!T45 -> 0.7268041237 | L44: ='CV Rotina <2A - residência'!V45 -> 0.6848306333 | M44: ='CV Rotina <2A - residência'!Z45 -> 0.3475699558 | N44: 0 | O44: 0 | P44: 0 | Q44: 0
A45: Central | B45: Mantenópolis | C45: ='CV Rotina <2A - residência'!H46 -> 0.9879518072 | D45: ='CV Rotina <2A - residência'!P46 -> 0.734939759 | E45: ='CV Rotina <2A - residência'!#REF! ->  | F45: ='CV Rotina <2A - residência'!J46 -> 0.843373494 | G45: ='CV Rotina <2A - residência'!L46 -> 0.8674698795 | H45: ='CV Rotina <2A - residência'!N46 -> 0.7710843373 | I45: ='CV Rotina <2A - residência'!X46 -> 0.9397590361 | J45: ='CV Rotina <2A - residência'!R46 -> 0.7831325301 | K45: ='CV Rotina <2A - residência'!T46 -> 0.9036144578 | L45: ='CV Rotina <2A - residência'!V46 -> 0.734939759 | M45: ='CV Rotina <2A - residência'!Z46 -> 0.421686747 | N45: 1 | O45: 0 | P45: 1 | Q45: 0
A46: Sul | B46: Marataízes | C46: ='CV Rotina <2A - residência'!H47 -> 0.8787878788 | D46: ='CV Rotina <2A - residência'!P47 -> 0.936026936 | E46: ='CV Rotina <2A - residência'!#REF! ->  | F46: ='CV Rotina <2A - residência'!J47 -> 0.8821548822 | G46: ='CV Rotina <2A - residência'!L47 -> 0.8754208754 | H46: ='CV Rotina <2A - residência'!N47 -> 0.9494949495 | I46: ='CV Rotina <2A - residência'!X47 -> 0.9494949495 | J46: ='CV Rotina <2A - residência'!R47 -> 0.8855218855 | K46: ='CV Rotina <2A - residência'!T47 -> 0.632996633 | L46: ='CV Rotina <2A - residência'!V47 -> 0.7912457912 | M46: ='CV Rotina <2A - residência'!Z47 -> 0.3468013468 | N46: 1 | O46: 0 | P46: 1 | Q46: 0
A47: Metropolitana | B47: Marechal Floriano | C47: ='CV Rotina <2A - residência'!H48 -> 0.8053097345 | D47: ='CV Rotina <2A - residência'!P48 -> 1.008849558 | E47: ='CV Rotina <2A - residência'!#REF! ->  | F47: ='CV Rotina <2A - residência'!J48 -> 0.9115044248 | G47: ='CV Rotina <2A - residência'!L48 -> 0.9026548673 | H47: ='CV Rotina <2A - residência'!N48 -> 1.03539823 | I47: ='CV Rotina <2A - residência'!X48 -> 1.026548673 | J47: ='CV Rotina <2A - residência'!R48 -> 0.9911504425 | K47: ='CV Rotina <2A - residência'!T48 -> 0.6814159292 | L47: ='CV Rotina <2A - residência'!V48 -> 0.8672566372 | M47: ='CV Rotina <2A - residência'!Z48 -> 0.6017699115 | N47: 1 | O47: 3 | P47: 4 | Q47: 2
A48: Central | B48: Marilândia | C48: ='CV Rotina <2A - residência'!H49 -> 0.8795180723 | D48: ='CV Rotina <2A - residência'!P49 -> 0.8674698795 | E48: ='CV Rotina <2A - residência'!#REF! ->  | F48: ='CV Rotina <2A - residência'!J49 -> 0.9879518072 | G48: ='CV Rotina <2A - residência'!L49 -> 0.9879518072 | H48: ='CV Rotina <2A - residência'!N49 -> 0.8313253012 | I48: ='CV Rotina <2A - residência'!X49 -> 0.8674698795 | J48: ='CV Rotina <2A - residência'!R49 -> 0.9638554217 | K48: ='CV Rotina <2A - residência'!T49 -> 0.9518072289 | L48: ='CV Rotina <2A - residência'!V49 -> 0.843373494 | M48: ='CV Rotina <2A - residência'!Z49 -> 0.5542168675 | N48: 0 | O48: 4 | P48: 4 | Q48: 2
A49: Sul | B49: Mimoso do Sul | C49: ='CV Rotina <2A - residência'!H50 -> 0.7697841727 | D49: ='CV Rotina <2A - residência'!P50 -> 0.7482014388 | E49: ='CV Rotina <2A - residência'!#REF! ->  | F49: ='CV Rotina <2A - residência'!J50 -> 0.8417266187 | G49: ='CV Rotina <2A - residência'!L50 -> 0.8345323741 | H49: ='CV Rotina <2A - residência'!N50 -> 0.7553956835 | I49: ='CV Rotina <2A - residência'!X50 -> 0.8345323741 | J49: ='CV Rotina <2A - residência'!R50 -> 0.7769784173 | K49: ='CV Rotina <2A - residência'!T50 -> 0.6978417266 | L49: ='CV Rotina <2A - residência'!V50 -> 0.6762589928 | M49: ='CV Rotina <2A - residência'!Z50 -> 0.4172661871 | N49: 0 | O49: 0 | P49: 0 | Q49: 0
A50: Norte | B50: Montanha | C50: ='CV Rotina <2A - residência'!H51 -> 0.610619469 | D50: ='CV Rotina <2A - residência'!P51 -> 1.053097345 | E50: ='CV Rotina <2A - residência'!#REF! ->  | F50: ='CV Rotina <2A - residência'!J51 -> 1.221238938 | G50: ='CV Rotina <2A - residência'!L51 -> 1.230088496 | H50: ='CV Rotina <2A - residência'!N51 -> 1.026548673 | I50: ='CV Rotina <2A - residência'!X51 -> 1.115044248 | J50: ='CV Rotina <2A - residência'!R51 -> 1.03539823 | K50: ='CV Rotina <2A - residência'!T51 -> 1.203539823 | L50: ='CV Rotina <2A - residência'!V51 -> 1.044247788 | M50: ='CV Rotina <2A - residência'!Z51 -> 0.6017699115 | N50: 1 | O50: 7 | P50: 8 | Q50: 4
A51: Norte | B51: Mucurici | C51: ='CV Rotina <2A - residência'!H52 -> 0.6774193548 | D51: ='CV Rotina <2A - residência'!P52 -> 1.387096774 | E51: ='CV Rotina <2A - residência'!#REF! ->  | F51: ='CV Rotina <2A - residência'!J52 -> 1.580645161 | G51: ='CV Rotina <2A - residência'!L52 -> 1.580645161 | H51: ='CV Rotina <2A - residência'!N52 -> 1.387096774 | I51: ='CV Rotina <2A - residência'!X52 -> 1.419354839 | J51: ='CV Rotina <2A - residência'!R52 -> 1.387096774 | K51: ='CV Rotina <2A - residência'!T52 -> 1.419354839 | L51: ='CV Rotina <2A - residência'!V52 -> 0.9032258065 | M51: ='CV Rotina <2A - residência'!Z52 -> 0.6451612903 | N51: 1 | O51: 6 | P51: 7 | Q51: 4
A52: Sul | B52: Muniz Freire | C52: ='CV Rotina <2A - residência'!H53 -> 1.038834951 | D52: ='CV Rotina <2A - residência'!P53 -> 1.087378641 | E52: ='CV Rotina <2A - residência'!#REF! ->  | F52: ='CV Rotina <2A - residência'!J53 -> 1.116504854 | G52: ='CV Rotina <2A - residência'!L53 -> 1.067961165 | H52: ='CV Rotina <2A - residência'!N53 -> 1.106796117 | I52: ='CV Rotina <2A - residência'!X53 -> 1.165048544 | J52: ='CV Rotina <2A - residência'!R53 -> 1.116504854 | K52: ='CV Rotina <2A - residência'!T53 -> 1.126213592 | L52: ='CV Rotina <2A - residência'!V53 -> 0.9805825243 | M52: ='CV Rotina <2A - residência'!Z53 -> 0.4368932039 | N52: 2 | O52: 7 | P52: 9 | Q52: 4
A53: Sul | B53: Muqui | C53: ='CV Rotina <2A - residência'!H54 -> 0.9615384615 | D53: ='CV Rotina <2A - residência'!P54 -> 0.8205128205 | E53: ='CV Rotina <2A - residência'!#REF! ->  | F53: ='CV Rotina <2A - residência'!J54 -> 1.051282051 | G53: ='CV Rotina <2A - residência'!L54 -> 1.064102564 | H53: ='CV Rotina <2A - residência'!N54 -> 0.8333333333 | I53: ='CV Rotina <2A - residência'!X54 -> 0.9487179487 | J53: ='CV Rotina <2A - residência'!R54 -> 0.9615384615 | K53: ='CV Rotina <2A - residência'!T54 -> 1.076923077 | L53: ='CV Rotina <2A - residência'!V54 -> 0.8846153846 | M53: ='CV Rotina <2A - residência'!Z54 -> 0.4358974359 | N53: 1 | O53: 4 | P53: 5 | Q53: 2
A54: Norte | B54: Nova Venécia | C54: ='CV Rotina <2A - residência'!H55 -> 0.8422459893 | D54: ='CV Rotina <2A - residência'!P55 -> 0.8235294118 | E54: ='CV Rotina <2A - residência'!#REF! ->  | F54: ='CV Rotina <2A - residência'!J55 -> 0.8957219251 | G54: ='CV Rotina <2A - residência'!L55 -> 0.9010695187 | H54: ='CV Rotina <2A - residência'!N55 -> 0.8449197861 | I54: ='CV Rotina <2A - residência'!X55 -> 0.9171122995 | J54: ='CV Rotina <2A - residência'!R55 -> 0.8582887701 | K54: ='CV Rotina <2A - residência'!T55 -> 0.8663101604 | L54: ='CV Rotina <2A - residência'!V55 -> 0.7780748663 | M54: ='CV Rotina <2A - residência'!Z55 -> 0.4598930481 | N54: 0 | O54: 0 | P54: 0 | Q54: 0
A55: Central | B55: Pancas | C55: ='CV Rotina <2A - residência'!H56 -> 0.9150943396 | D55: ='CV Rotina <2A - residência'!P56 -> 1.018867925 | E55: ='CV Rotina <2A - residência'!#REF! ->  | F55: ='CV Rotina <2A - residência'!J56 -> 1.122641509 | G55: ='CV Rotina <2A - residência'!L56 -> 1.122641509 | H55: ='CV Rotina <2A - residência'!N56 -> 1.047169811 | I55: ='CV Rotina <2A - residência'!X56 -> 0.9622641509 | J55: ='CV Rotina <2A - residência'!R56 -> 1.056603774 | K55: ='CV Rotina <2A - residência'!T56 -> 1 | L55: ='CV Rotina <2A - residência'!V56 -> 1 | M55: ='CV Rotina <2A - residência'!Z56 -> 0.7169811321 | N55: 2 | O55: 7 | P55: 9 | Q55: 4
A56: Norte | B56: Pedro Canário | C56: ='CV Rotina <2A - residência'!H57 -> 0.527607362 | D56: ='CV Rotina <2A - residência'!P57 -> 0.8466257669 | E56: ='CV Rotina <2A - residência'!#REF! ->  | F56: ='CV Rotina <2A - residência'!J57 -> 1 | G56: ='CV Rotina <2A - residência'!L57 -> 0.981595092 | H56: ='CV Rotina <2A - residência'!N57 -> 0.8773006135 | I56: ='CV Rotina <2A - residência'!X57 -> 1.17791411 | J56: ='CV Rotina <2A - residência'!R57 -> 0.8957055215 | K56: ='CV Rotina <2A - residência'!T57 -> 0.8588957055 | L56: ='CV Rotina <2A - residência'!V57 -> 0.8220858896 | M56: ='CV Rotina <2A - residência'!Z57 -> 0.6073619632 | N56: 0 | O56: 3 | P56: 3 | Q56: 3
A57: Norte | B57: Pinheiros | C57: ='CV Rotina <2A - residência'!H58 -> 0.3988095238 | D57: ='CV Rotina <2A - residência'!P58 -> 0.8511904762 | E57: ='CV Rotina <2A - residência'!#REF! ->  | F57: ='CV Rotina <2A - residência'!J58 -> 0.9404761905 | G57: ='CV Rotina <2A - residência'!L58 -> 0.9285714286 | H57: ='CV Rotina <2A - residência'!N58 -> 0.880952381 | I57: ='CV Rotina <2A - residência'!X58 -> 0.9761904762 | J57: ='CV Rotina <2A - residência'!R58 -> 0.8333333333 | K57: ='CV Rotina <2A - residência'!T58 -> 0.8095238095 | L57: ='CV Rotina <2A - residência'!V58 -> 0.7142857143 | M57: ='CV Rotina <2A - residência'!Z58 -> 0.3214285714 | N57: 0 | O57: 1 | P57: 1 | Q57: 1
A58: Sul | B58: Piúma | C58: ='CV Rotina <2A - residência'!H59 -> 0.8410596026 | D58: ='CV Rotina <2A - residência'!P59 -> 0.8344370861 | E58: ='CV Rotina <2A - residência'!#REF! ->  | F58: ='CV Rotina <2A - residência'!J59 -> 0.9072847682 | G58: ='CV Rotina <2A - residência'!L59 -> 0.9006622517 | H58: ='CV Rotina <2A - residência'!N59 -> 0.9139072848 | I58: ='CV Rotina <2A - residência'!X59 -> 0.9602649007 | J58: ='CV Rotina <2A - residência'!R59 -> 0.8675496689 | K58: ='CV Rotina <2A - residência'!T59 -> 0.6622516556 | L58: ='CV Rotina <2A - residência'!V59 -> 0.7483443709 | M58: ='CV Rotina <2A - residência'!Z59 -> 0.4238410596 | N58: 0 | O58: 1 | P58: 1 | Q58: 1
A59: Norte | B59: Ponto Belo | C59: ='CV Rotina <2A - residência'!H60 -> 0.6 | D59: ='CV Rotina <2A - residência'!P60 -> 0.9714285714 | E59: ='CV Rotina <2A - residência'!#REF! ->  | F59: ='CV Rotina <2A - residência'!J60 -> 1.028571429 | G59: ='CV Rotina <2A - residência'!L60 -> 1.028571429 | H59: ='CV Rotina <2A - residência'!N60 -> 0.9428571429 | I59: ='CV Rotina <2A - residência'!X60 -> 1.228571429 | J59: ='CV Rotina <2A - residência'!R60 -> 0.9714285714 | K59: ='CV Rotina <2A - residência'!T60 -> 1.142857143 | L59: ='CV Rotina <2A - residência'!V60 -> 0.7142857143 | M59: ='CV Rotina <2A - residência'!Z60 -> 0.5142857143 | N59: 1 | O59: 5 | P59: 6 | Q59: 3
A60: Sul | B60: Presidente Kennedy | C60: ='CV Rotina <2A - residência'!H61 -> 0.9565217391 | D60: ='CV Rotina <2A - residência'!P61 -> 0.7043478261 | E60: ='CV Rotina <2A - residência'!#REF! ->  | F60: ='CV Rotina <2A - residência'!J61 -> 0.6869565217 | G60: ='CV Rotina <2A - residência'!L61 -> 0.7043478261 | H60: ='CV Rotina <2A - residência'!N61 -> 0.7043478261 | I60: ='CV Rotina <2A - residência'!X61 -> 1 | J60: ='CV Rotina <2A - residência'!R61 -> 0.652173913 | K60: ='CV Rotina <2A - residência'!T61 -> 0.6956521739 | L60: ='CV Rotina <2A - residência'!V61 -> 0.8608695652 | M60: ='CV Rotina <2A - residência'!Z61 -> 0.4086956522 | N60: 1 | O60: 1 | P60: 2 | Q60: 1
A61: Central | B61: Rio Bananal | C61: ='CV Rotina <2A - residência'!H62 -> 0.6407185629 | D61: ='CV Rotina <2A - residência'!P62 -> 0.7844311377 | E61: ='CV Rotina <2A - residência'!#REF! ->  | F61: ='CV Rotina <2A - residência'!J62 -> 0.8203592814 | G61: ='CV Rotina <2A - residência'!L62 -> 0.8143712575 | H61: ='CV Rotina <2A - residência'!N62 -> 0.7305389222 | I61: ='CV Rotina <2A - residência'!X62 -> 0.9221556886 | J61: ='CV Rotina <2A - residência'!R62 -> 0.7245508982 | K61: ='CV Rotina <2A - residência'!T62 -> 0.8982035928 | L61: ='CV Rotina <2A - residência'!V62 -> 0.8562874251 | M61: ='CV Rotina <2A - residência'!Z62 -> 0.4251497006 | N61: 0 | O61: 0 | P61: 0 | Q61: 0
A62: Sul | B62: Rio Novo do Sul | C62: ='CV Rotina <2A - residência'!H63 -> 0.75 | D62: ='CV Rotina <2A - residência'!P63 -> 1.053571429 | E62: ='CV Rotina <2A - residência'!#REF! ->  | F62: ='CV Rotina <2A - residência'!J63 -> 1.089285714 | G62: ='CV Rotina <2A - residência'!L63 -> 1.053571429 | H62: ='CV Rotina <2A - residência'!N63 -> 1.017857143 | I62: ='CV Rotina <2A - residência'!X63 -> 1.035714286 | J62: ='CV Rotina <2A - residência'!R63 -> 1.089285714 | K62: ='CV Rotina <2A - residência'!T63 -> 1.035714286 | L62: ='CV Rotina <2A - residência'!V63 -> 1.017857143 | M62: ='CV Rotina <2A - residência'!Z63 -> 0.5535714286 | N62: 1 | O62: 7 | P62: 8 | Q62: 4
A63: Metropolitana | B63: Santa Leopoldina | C63: ='CV Rotina <2A - residência'!H64 -> 0.7631578947 | D63: ='CV Rotina <2A - residência'!P64 -> 1.315789474 | E63: ='CV Rotina <2A - residência'!#REF! ->  | F63: ='CV Rotina <2A - residência'!J64 -> 1.5 | G63: ='CV Rotina <2A - residência'!L64 -> 1.5 | H63: ='CV Rotina <2A - residência'!N64 -> 1.289473684 | I63: ='CV Rotina <2A - residência'!X64 -> 1.815789474 | J63: ='CV Rotina <2A - residência'!R64 -> 1.447368421 | K63: ='CV Rotina <2A - residência'!T64 -> 1.342105263 | L63: ='CV Rotina <2A - residência'!V64 -> 1.578947368 | M63: ='CV Rotina <2A - residência'!Z64 -> 0.3684210526 | N63: 1 | O63: 7 | P63: 8 | Q63: 4
A64: Metropolitana | B64: Santa Maria de Jetibá | C64: ='CV Rotina <2A - residência'!H65 -> 0.921630094 | D64: ='CV Rotina <2A - residência'!P65 -> 0.9247648903 | E64: ='CV Rotina <2A - residência'!#REF! ->  | F64: ='CV Rotina <2A - residência'!J65 -> 0.8369905956 | G64: ='CV Rotina <2A - residência'!L65 -> 0.8401253918 | H64: ='CV Rotina <2A - residência'!N65 -> 0.9184952978 | I64: ='CV Rotina <2A - residência'!X65 -> 1.068965517 | J64: ='CV Rotina <2A - residência'!R65 -> 0.8965517241 | K64: ='CV Rotina <2A - residência'!T65 -> 0.7711598746 | L64: ='CV Rotina <2A - residência'!V65 -> 0.9937304075 | M64: ='CV Rotina <2A - residência'!Z65 -> 0.4200626959 | N64: 2 | O64: 2 | P64: 4 | Q64: 1
A65: Metropolitana | B65: Santa Teresa | C65: ='CV Rotina <2A - residência'!H66 -> 0.9367088608 | D65: ='CV Rotina <2A - residência'!P66 -> 0.9556962025 | E65: ='CV Rotina <2A - residência'!#REF! ->  | F65: ='CV Rotina <2A - residência'!J66 -> 0.9113924051 | G65: ='CV Rotina <2A - residência'!L66 -> 0.9113924051 | H65: ='CV Rotina <2A - residência'!N66 -> 0.9620253165 | I65: ='CV Rotina <2A - residência'!X66 -> 0.8734177215 | J65: ='CV Rotina <2A - residência'!R66 -> 0.8987341772 | K65: ='CV Rotina <2A - residência'!T66 -> 0.8417721519 | L65: ='CV Rotina <2A - residência'!V66 -> 0.7405063291 | M65: ='CV Rotina <2A - residência'!Z66 -> 0.5379746835 | N65: 2 | O65: 1 | P65: 3 | Q65: 1
A66: Central | B66: São Domingos do Norte | C66: ='CV Rotina <2A - residência'!H67 -> 0.8461538462 | D66: ='CV Rotina <2A - residência'!P67 -> 0.8307692308 | E66: ='CV Rotina <2A - residência'!#REF! ->  | F66: ='CV Rotina <2A - residência'!J67 -> 0.9076923077 | G66: ='CV Rotina <2A - residência'!L67 -> 0.9076923077 | H66: ='CV Rotina <2A - residência'!N67 -> 0.8615384615 | I66: ='CV Rotina <2A - residência'!X67 -> 0.7538461538 | J66: ='CV Rotina <2A - residência'!R67 -> 0.9230769231 | K66: ='CV Rotina <2A - residência'!T67 -> 0.8 | L66: ='CV Rotina <2A - residência'!V67 -> 0.4769230769 | M66: ='CV Rotina <2A - residência'!Z67 -> 0.4 | N66: 0 | O66: =COUNTIFS(F66:M66,">=0,95") -> 0 | P66: 0 | Q66: 0
A67: Central | B67: São Gabriel da Palha | C67: ='CV Rotina <2A - residência'!H68 -> 0.9615384615 | D67: ='CV Rotina <2A - residência'!P68 -> 0.8632478632 | E67: ='CV Rotina <2A - residência'!#REF! ->  | F67: ='CV Rotina <2A - residência'!J68 -> 0.8547008547 | G67: ='CV Rotina <2A - residência'!L68 -> 0.8504273504 | H67: ='CV Rotina <2A - residência'!N68 -> 0.858974359 | I67: ='CV Rotina <2A - residência'!X68 -> 0.8547008547 | J67: ='CV Rotina <2A - residência'!R68 -> 0.858974359 | K67: ='CV Rotina <2A - residência'!T68 -> 0.735042735 | L67: ='CV Rotina <2A - residência'!V68 -> 0.6623931624 | M67: ='CV Rotina <2A - residência'!Z68 -> 0.3333333333 | N67: =COUNTIF(C67:E67,">=0,9") -> 1 | O67: 0 | P67: =SUM(N67:O67) -> 1 | Q67: =COUNTIF(F67:I67,">=0,95") -> 0
A68: Sul | B68: São José do Calçado | C68: ='CV Rotina <2A - residência'!H69 -> 1.204545455 | D68: ='CV Rotina <2A - residência'!P69 -> 1.090909091 | E68: ='CV Rotina <2A - residência'!#REF! ->  | F68: ='CV Rotina <2A - residência'!J69 -> 1.454545455 | G68: ='CV Rotina <2A - residência'!L69 -> 1.431818182 | H68: ='CV Rotina <2A - residência'!N69 -> 1.272727273 | I68: ='CV Rotina <2A - residência'!X69 -> 1.409090909 | J68: ='CV Rotina <2A - residência'!R69 -> 1.318181818 | K68: ='CV Rotina <2A - residência'!T69 -> 1.136363636 | L68: ='CV Rotina <2A - residência'!V69 -> 1.204545455 | M68: ='CV Rotina <2A - residência'!Z69 -> 0.8181818182 | N68: 2 | O68: 7 | P68: 9 | Q68: 4
